Workbook

Sheet AER only (hidden)
B1: Data in these columns used for data validation and database purposes.
B2: Date last modified: | C2: 2017-01-16 | D2: added (Albury and Victora) for AGN
C3: 2016-10-17 | D3: updated TransGrid's correct legal name, corrected TasNetworks (T) to June financial year
C4: 2017-02-01 | D4: inserted Power and Water, added NRs (dms_FeederCat_1 and dms_FeederCat_2)
C5: 2017-03-03 | D5: inserted AEMO as a business | AB5: FOR ELECTRICITY BUSINESSES ONLY
C6: 2018-03-28 | D6: major changes to accommodate STPIS
C7: Template Version | D7: 5 | AB7: Feeder Types | AF7: TasNetworks (D) | AG7: MAIFI flag | AH7: Feeder Names
AB8: CBD | AC8: Urban | AD8: Short rural | AE8: long rural | AF8: EXTRA
B9: dms_TradingName_List | C9: dms_TradingNameFull_List | D9: dms_ABN_List | E9: dms_JurisdictionList | F9: dms_Sector_List | G9: dms_Segment_List | H9: dms_FormControl_List | I9: dms_RPT_List | J9: dms_RPTMonth_List | K9: dms_CRCPlength_List | L9: dms_FRCPlength_List | M9: dms_663_List | N9: dms_DeterminationRef_List | O9: dms_Addr1_List | P9: dms_Addr2_List | Q9: dms_Suburb_List | R9: dms_State_List | S9: dms_PostCode_List | T9: dms_PAddr1_List | U9: dms_PAddr2_List | V9: dms_PSuburb_List | W9: dms_PState_List | X9: dms_PPostCode_List | Y9: dms_ContactName1_List | Z9: dms_ContactPh1_List | AA9: dms_ContactEmail_List | AB9: dms_CBD_flag | AC9: dms_Urban_flag | AD9: dms_ShortRural_flag | AE9: dms_LongRural_flag | AF9: dms_FeederType_5_flag | AG9: dms_MAIFI_flag_List | AH9: dms_FeederName_1 | AI9: dms_FeederName_2 | AJ9: dms_FeederName_3 | AK9: dms_FeederName_4 | AL9: dms_FeederName_5 | AM9: Column1
B10: ActewAGL Distribution | C10: ActewAGL Distribution | D10: 76670568688 | E10: ACT | F10: Electricity | G10: Distribution | H10: Revenue cap | I10: Financial | J10: June | K10: 5 | L10: 5 | M10: 5 | N10: 2014-19 Distribution Determination | O10: 40 Bunda Street | Q10: CANBERRA | R10: ACT | S10: 2600 | T10: GPO BOX 366 | V10: CANBERRA | W10: ACT | X10: 2601 | Y10: Robert Walker | Z10: 02 6248 3847 | AA10: robert.walker@actewagle.com.au | AB10: NO | AC10: YES | AD10: YES | AE10: NO | AF10: NO | AH10: CBD | AI10: Urban | AJ10: Short rural | AK10: Long rural | AM10: ActewAGL Distribution
B11: ActewAGL Distribution (Tx Assets) | C11: ActewAGL Distribution (Tx Assets) | D11: 76670568688 | E11: ACT | F11: Electricity | G11: Distribution | H11: Revenue cap | I11: Financial | J11: June | K11: 5 | L11: 5 | M11: 5 | N11: distribution determination | O11: 40 Bunda Street | Q11: CANBERRA | R11: ACT | S11: 2600 | T11: GPO BOX 366 | V11: CANBERRA | W11: ACT | X11: 2601 | Y11: Robert Walker | Z11: 02 6248 3847 | AA11: robert.walker@actewagle.com.au | AB11: NO | AC11: YES | AD11: YES | AE11: NO | AF11: NO | AH11: CBD | AI11: Urban | AJ11: Short rural | AK11: Long rural | AM11: ActewAGL Distribution (Tx Assets)
B12: ActewAGL Gas | C12: ActewAGL Gas | D12: 76670568688 | E12: ACT | F12: Gas | G12: Distribution | H12: Weighted average price cap | I12: Financial | J12: June | K12: 5 | L12: 5 | M12: x | O12: 40 Bunda Street | Q12: CANBERRA | R12: ACT | S12: 2600 | T12: GPO BOX 366 | V12: CANBERRA | W12: ACT | X12: 2601 | Y12: Philip Deamer | Z12: 02 6248 3438 | AA12: GasAAReview@actewagl.com.au | AH12: CBD | AI12: Urban | AJ12: Short rural | AK12: Long rural | AM12: ActewAGL Gas
B13: AEMO | C13: Australian Energy Market Operator Ltd | D13: 94072010327 | E13: Vic | F13: Electricity | G13: Transmission | H13: - | I13: Financial | J13: March | K13: 5 | L13: 5 | M13: x | N13: - | O13: Level 22 | P13: 530 Collins Street | Q13: MELBOURNE | R13: VIC | S13: 3000 | T13: GPO Box 2008 | V13: MELBOURNE | W13: VIC | X13: 3001 | AB13: n/a | AC13: n/a | AD13: n/a | AE13: n/a | AF13: n/a | AH13: CBD | AI13: Urban | AJ13: Short rural | AK13: Long rural | AM13: AEMO
B14: AGN (Albury and Victoria) | C14: Australian Gas Networks Limited (reporting data for Albury and Victoria) | D14: 19078551685 | E14: Vic | F14: Gas | G14: Distribution | H14: Weighted average price cap | I14: Calendar | J14: December | K14: 5 | L14: 5 | M14: x | O14: Level 6 | P14: 400 King William Street | Q14: ADELAIDE | R14: SA | S14: 5000 | T14: PO Box 6468 | U14: Halifax Street | V14: ADELAIDE | W14: SA | X14: 5000 | Y14: Craig de Laine | Z14: 08 8418 1129 | AA14: craig.delaine@agn.com.au | AB14: n/a | AC14: n/a | AD14: n/a | AE14: n/a | AF14: n/a | AH14: CBD | AI14: Urban | AJ14: Short rural | AK14: Long rural | AM14: AGN (Albury)
B15: AGN (Albury) | C15: Australian Gas Networks Limited (reporting data for Albury) | D15: 19078551685 | E15: Vic | F15: Gas | G15: Distribution | H15: Weighted average price cap | I15: Calendar | J15: December | K15: 5 | L15: 5 | M15: x | O15: Level 6 | P15: 400 King William Street | Q15: ADELAIDE | R15: SA | S15: 5000 | T15: PO Box 6468 | U15: Halifax Street | V15: ADELAIDE | W15: SA | X15: 5000 | Y15: Craig de Laine | Z15: 08 8418 1129 | AA15: craig.delaine@agn.com.au | AB15: n/a | AC15: n/a | AD15: n/a | AE15: n/a | AF15: n/a | AH15: CBD | AI15: Urban | AJ15: Short rural | AK15: Long rural
B16: AGN (SA) | C16: Australian Gas Networks Limited (reporting data for SA) | D16: 19078551685 | E16: SA | F16: Gas | G16: Distribution | H16: Weighted average price cap | I16: Financial | J16: June | K16: 5 | L16: 5 | M16: 5 | N16: distribution determination | O16: Level 6 | P16: 400 King William Street | Q16: ADELAIDE | R16: SA | S16: 5000 | T16: PO Box 6468 | U16: Halifax Street | V16: ADELAIDE | W16: SA | X16: 5000 | Y16: Craig de Laine | Z16: 08 8418 1129 | AA16: craig.delaine@agn.com.au | AB16: n/a | AC16: n/a | AD16: n/a | AE16: n/a | AF16: n/a | AH16: CBD | AI16: Urban | AJ16: Short rural | AK16: Long rural | AM16: AGN (SA)
B17: AGN (Victoria) | C17: Australian Gas Networks Limited (reporting data for Victoria) | D17: 19078551685 | E17: Vic | F17: Gas | G17: Distribution | H17: Weighted average price cap | I17: Calendar | J17: December | K17: 5 | L17: 5 | M17: x | O17: Level 6 | P17: 400 King William Street | Q17: ADELAIDE | R17: SA | S17: 5000 | T17: PO Box 6468 | U17: Halifax Street | V17: ADELAIDE | W17: SA | X17: 5000 | Y17: Craig de Laine | Z17: 08 8418 1129 | AA17: craig.delaine@agn.com.au | AB17: n/a | AC17: n/a | AD17: n/a | AE17: n/a | AF17: n/a | AH17: CBD | AI17: Urban | AJ17: Short rural | AK17: Long rural | AM17: AGN (Victoria)
B18: Amadeus | C18: APT Pipelines (NT) Pty Ltd | D18: 39009737393 | E18: NT | F18: Gas | G18: Transmission | H18: Weighted average price cap | I18: Financial | J18: June | K18: 5 | L18: 5 | M18: x | N18: n/a | O18: Level 19, HSBC Building | P18: 580 George Street | Q18: SYDNEY | R18: NSW | S18: 2000 | T18: Level 19, HSBC Building | U18: 580 George Street | V18: SYDNEY | W18: NSW | X18: 2000 | Y18: Alexandra Curran | Z18: 02 9275 0020 | AA18: alexandra.curran@apa.com.au | AB18: n/a | AC18: n/a | AD18: n/a | AE18: n/a | AF18: n/a | AH18: CBD | AI18: Urban | AJ18: Short rural | AK18: Long rural | AM18: Amadeus
B19: APA GasNet | C19: APA GasNet Australia (Operations) Pty Ltd | D19: 065083009 | E19: Vic | F19: Gas | G19: Transmission | H19: Weighted average price cap | I19: Calendar | J19: December | K19: 5 | L19: 5 | M19: x | O19: Level 19, HSBC Building | P19: 580 George Street | Q19: SYDNEY | R19: NSW | S19: 2000 | T19: PO Box R41 | V19: ROYAL EXCHANGE | W19: NSW | X19: 1225 | Y19: Alexandra Curran | Z19: 02 9275 0020 | AA19: alexandra.curran@apa.com.au | AB19: n/a | AC19: n/a | AD19: n/a | AE19: n/a | AF19: n/a | AH19: CBD | AI19: Urban | AJ19: Short rural | AK19: Long rural | AM19: APA GasNet
B20: Ausgrid | C20: Ausgrid | D20: 78508211731 | E20: NSW | F20: Electricity | G20: Distribution | H20: Revenue cap | I20: Financial | J20: June | K20: 5 | L20: 5 | M20: 5 | N20: 2014-19 Distribution Determination | O20: 570 George St | Q20: SYDNEY | R20: NSW | S20: 2000 | T20: GPO Box 4009 | V20: SYDNEY | W20: NSW | X20: 2001 | Y20: John Thomson | Z20: 02 9269 2312 | AA20: john.thomson@ausgrid.com.au | AB20: YES | AC20: YES | AD20: YES | AE20: YES | AF20: NO | AH20: CBD | AI20: Urban | AJ20: Short rural | AK20: Long rural | AM20: Ausgrid
B21: Ausgrid (Tx Assets) | C21: Ausgrid (Tx Assets) | D21: 67505337385 | E21: NSW | F21: Electricity | G21: Distribution | H21: Revenue cap | I21: Financial | J21: June | K21: 5 | L21: 5 | M21: 5 | N21: distribution determination | O21: 570 George St | Q21: SYDNEY | R21: NSW | S21: 2000 | T21: GPO Box 4009 | V21: SYDNEY | W21: NSW | X21: 2001 | Y21: John Thomson | Z21: 02 9269 2312 | AA21: john.thomson@ausgrid.com.au | AB21: YES | AC21: YES | AD21: YES | AE21: YES | AF21: NO | AH21: CBD | AI21: Urban | AJ21: Short rural | AK21: Long rural | AM21: Ausgrid (Tx Assets)
B22: AusNet (D) | C22: AusNet Electricity Services Pty Ltd | D22: 91064651118 | E22: Vic | F22: Electricity | G22: Distribution | H22: Revenue cap | I22: Calendar | J22: December | K22: 5 | L22: 5 | M22: 2 | N22: 2016-20 Distribution Determination | O22: Level 32 | P22: 2 Southbank Boulevard | Q22: SOUTHBANK | R22: Vic | S22: 3006 | T22: Locked Bag 14051 | V22: MELBOURNE CITY MAIL CENTRE | W22: VIC | X22: 8001 | Y22: please provide contact details | AC22: YES | AD22: YES | AE22: YES | AF22: NO | AH22: CBD | AI22: Urban | AJ22: Short rural | AK22: Long rural | AM22: AusNet (D)
B23: AusNet (Gas) | C23: AusNet Gas Services | D23: 086015036 | E23: Vic | F23: Gas | G23: Distribution | H23: Weighted average price cap | I23: Calendar | J23: December | K23: 5 | L23: 5 | M23: X | O23: Level 19, HSBC Building | P23: 580 George Street | Q23: SYDNEY | R23: NSW | S23: 2000 | T23: PO Box R41 | V23: ROYAL EXCHANGE | W23: NSW | X23: 1225 | Y23: Alexandra Curran | Z23: 02 9275 0020 | AA23: alexandra.curran@apa.com.au | AB23: n/a | AC23: n/a | AD23: n/a | AE23: n/a | AF23: n/a | AH23: CBD | AI23: Urban | AJ23: Short rural | AK23: Long rural | AM23: AusNet (Gas)
B24: AusNet (T) | C24: Ausnet Services (Transmission) Ltd | D24: 48116124362 | E24: Vic | F24: Electricity | G24: Transmission | H24: Revenue cap | I24: Financial | J24: March | K24: 5 | L24: 5 | M24: 2 | N24: transmission determination | O24: Level 32 | P24: 2 Southbank Boulevard | Q24: SOUTHBANK | R24: Vic | S24: 3006 | T24: Locked Bag 14051 | V24: MELBOURNE CITY MAIL CENTRE | W24: Vic | X24: 8001 | Y24: Clare Thompson | Z24: 03 9695 6670 | AA24: clare.e.thompson@ausnetservices.com.au | AB24: n/a | AC24: n/a | AD24: n/a | AE24: n/a | AF24: n/a | AH24: CBD | AI24: Urban | AJ24: Short rural | AK24: Long rural | AM24: AusNet (T)
B25: Australian Distribution Co. | C25: Australian Distribution Co. | D25: 11222333444 | E25: - | F25: Electricity | G25: Distribution | H25: Revenue cap | I25: Financial | J25: June | K25: 5 | L25: 5 | M25: 2 | N25: distribution determination | O25: 123 Straight Street | Q25: SYDNEY | R25: NSW | S25: 2000 | T25: PO Box 123 | V25: SYDNEY | W25: NSW | X25: 2000 | Y25: Bob Smith | Z25: 02 1234 5678 | AA25: bob@auselec.net.au | AB25: n/a | AC25: n/a | AD25: n/a | AE25: n/a | AF25: NO | AH25: CBD | AI25: Urban | AJ25: Short rural | AK25: Long rural | AM25: Australian Distribution Co.
B26: Australian Distribution Co. (Vic) | C26: Australian Distribution Co. (Victoria) | D26: 11222333444 | E26: Vic | F26: Electricity | G26: Distribution | H26: Revenue cap | I26: Calendar | J26: December | K26: 5 | L26: 5 | M26: 2 | N26: distribution determination | O26: 123 Straight Street | Q26: MELBOURNE | R26: Vic | S26: 3000 | T26: PO Box 123 | V26: MELBOURNE | W26: VIC | X26: 3000 | Y26: Bob Smith | Z26: 02 1234 5678 | AA26: bob@auselec.net.au | AB26: n/a | AC26: n/a | AD26: n/a | AE26: n/a | AF26: NO | AH26: CBD | AI26: Urban | AJ26: Short rural | AK26: Long rural | AM26: Australian Distribution Co. (Vic)
B27: Australian Transmission Co. | C27: Australian Transmission Co. | D27: 11222333444 | E27: - | F27: Electricity | G27: Transmission | H27: Revenue cap | I27: Financial | J27: June | K27: 5 | L27: 5 | M27: 5 | N27: transmission determination | O27: 123 Straight Street | Q27: SYDNEY | R27: NSW | S27: 2000 | T27: PO Box 123 | V27: SYDNEY | W27: NSW | X27: 2000 | Y27: Bob Smith | Z27: 02 1234 5678 | AA27: bob@auselec.net.au | AB27: n/a | AC27: n/a | AD27: n/a | AE27: n/a | AF27: NO | AH27: CBD | AI27: Urban | AJ27: Short rural | AK27: Long rural | AM27: Australian Transmission Co.
B28: Central Ranges Pipeline (D) | C28: Central Ranges Pipeline Pty Ltd | D28: 108218355 | E28: NSW | F28: Gas | G28: Distribution | H28: Weighted average price cap | I28: Financial | J28: June | K28: 15 | L28: 5 | M28: 5 | N28: distribution determination | O28: Level 19 | P28: 580 George Street | Q28: SYDNEY | R28: NSW | S28: 2000 | T28: PO Box R41 | V28: ROYAL EXCHANGE | W28: NSW | X28: 1225 | Y28: Scott Young | Z28: 02 9275 0031 | AA28: scott.young@apa.com.au | AB28: n/a | AC28: n/a | AD28: n/a | AE28: n/a | AF28: n/a | AH28: CBD | AI28: Urban | AJ28: Short rural | AK28: Long rural
B29: Central Ranges Pipeline (T) | C29: Central Ranges Pipeline Pty Ltd | D29: 108218355 | E29: NSW | F29: Gas | G29: Distribution | H29: Weighted average price cap | I29: Financial | J29: June | K29: 14 | L29: 5 | M29: 5 | N29: transmission determination | O29: Level 19 | P29: 580 George Street | Q29: SYDNEY | R29: NSW | S29: 2000 | T29: PO Box R41 | V29: ROYAL EXCHANGE | W29: NSW | X29: 1225 | Y29: Scott Young | Z29: 02 9275 0031 | AA29: scott.young@apa.com.au | AB29: n/a | AC29: n/a | AD29: n/a | AE29: n/a | AF29: n/a | AH29: CBD | AI29: Urban | AJ29: Short rural | AK29: Long rural
B30: CitiPower | C30: CitiPower | D30: 76064651056 | E30: Vic | F30: Electricity | G30: Distribution | H30: Revenue cap | I30: Calendar | J30: December | K30: 5 | L30: 5 | M30: 2 | N30: 2016-20 Distribution Determination | O30: 40 Market Street | Q30: MELBOURNE | R30: Vic | S30: 3000 | T30: Locked Bag 14090 | V30: MELBOURNE | W30: VIC | X30: 8001 | Y30: Hannah Williams | Z30: 03 9683 4088 | AA30: hwilliams@powercor.com.au | AB30: YES | AC30: YES | AD30: NO | AE30: NO | AF30: NO | AH30: CBD | AI30: Urban | AJ30: Short rural | AK30: Long rural | AM30: CitiPower
B31: Directlink | C31: Directlink | D31: 16779340889 | E31: Qld | F31: Electricity | G31: Transmission | H31: Revenue cap | I31: Financial | J31: June | K31: 9 | L31: 5 | M31: 5 | N31: transmission determination | O31: Level 19, HSBC Building | P31: 580 George Street | Q31: SYDNEY | R31: NSW | S31: 2000 | T31: PO Box R41 | V31: ROYAL EXCHANGE | W31: NSW | X31: 1225 | Y31: Scott Young | Z31: 02 9275 0031 | AA31: scott.young@apa.com.au | AB31: n/a | AC31: n/a | AD31: n/a | AE31: n/a | AF31: n/a | AH31: CBD | AI31: Urban | AJ31: Short rural | AK31: Long rural | AM31: Directlink
B32: ElectraNet | C32: ElectraNet | D32: 41094482416 | E32: SA | F32: Electricity | G32: Transmission | H32: Revenue cap | I32: Financial | J32: June | K32: 5 | L32: 5 | M32: 5 | N32: transmission determination | O32: 52-55 East Terrace | P32: Rymill Park | Q32: ADELAIDE | R32: SA | S32: 5000 | T32: PO Box 7096 | U32: Hutt Street Post Office | V32: ADELAIDE | W32: SA | X32: 5000 | Y32: Bill Jackson | Z32: 08 8404 7969 | AA32: jackson.bill@electranet.com.au | AB32: n/a | AC32: n/a | AD32: n/a | AE32: n/a | AF32: n/a | AH32: CBD | AI32: Urban | AJ32: Short rural | AK32: Long rural | AM32: ElectraNet
B33: Endeavour Energy | C33: Endeavour Energy | D33: 11247365823 | E33: NSW | F33: Electricity | G33: Distribution | H33: Revenue cap | I33: Financial | J33: June | K33: 5 | L33: 5 | M33: 5 | N33: 2014-19 Distribution Determination | O33: 51 Huntingwood Drive | Q33: HUNTINGWOOD | R33: NSW | S33: 2148 | T33: PO Box 811 | V33: SEVEN HILLS | W33: NSW | X33: 1730 | Y33: Jon Hocking | Z33: 02 9853 4386 / 0407 348 156 | AA33: Jon.Hocking@Endeavourenergy.com.au | AB33: NO | AC33: YES | AD33: YES | AE33: YES | AF33: NO | AH33: CBD | AI33: Urban | AJ33: Short rural | AK33: Long rural | AM33: Endeavour Energy
B34: Energex | C34: Energex | D34: 40078849055 | E34: Qld | F34: Electricity | G34: Distribution | H34: Revenue cap | I34: Financial | J34: June | K34: 5 | L34: 5 | M34: 5 | N34: 2015-20 Distribution Determination | O34: 26 Reddacliff Street | Q34: NEWSTEAD | R34: Qld | S34: 4006 | T34: 26 Reddacliff Street | V34: NEWSTEAD | W34: QLD | X34: 4006 | Y34: Nicola Roscoe | Z34: 07 3664 5891 | AA34: nicolaroscoe@energex.com.au | AB34: YES | AC34: YES | AD34: YES | AE34: NO | AF34: NO | AH34: CBD | AI34: Urban | AJ34: Short rural | AK34: Long rural | AM34: Energex
B35: Ergon Energy | C35: Ergon Energy | D35: 50087646062 | E35: Qld | F35: Electricity | G35: Distribution | H35: Revenue cap | I35: Financial | J35: June | K35: 5 | L35: 5 | M35: 5 | N35: 2015-20 Distribution Determination | O35: 22 Walker Street | Q35: TOWNSVILLE | R35: Qld | S35: 4810 | T35: Po Box 264 | V35: FORTITUDE VALLEY | W35: QLD | X35: 4006 | Y35: Jenny Doyle, Group Manager Regulatory Affairs | Z35: (07) 3851 6416 | AA35: jenny.doyle@ergon.com.au | AB35: NO | AC35: YES | AD35: YES | AE35: YES | AF35: NO | AH35: CBD | AI35: Urban | AJ35: Short rural | AK35: Long rural | AM35: Ergon Energy
B36: Essential Energy | C36: Essential Energy | D36: 37428185226 | E36: NSW | F36: Electricity | G36: Distribution | H36: Revenue cap | I36: Financial | J36: June | K36: 5 | L36: 5 | M36: 5 | N36: 2014-19 Distribution Determination | O36: 8 Buller Street | Q36: PORT MACQUARIE | R36: NSW | S36: 2444 | T36: PO Box 5730 | V36: PORT MACQUARIE | W36: NSW | X36: 2444 | Y36: Catherine Waddell | Z36: 02 6338 3553 | AA36: catherine.waddell@essentialenergy.com.au | AB36: NO | AC36: NO | AD36: YES | AE36: YES | AF36: NO | AH36: CBD | AI36: Urban | AJ36: Short rural | AK36: Long rural | AM36: Essential Energy
B37: Jemena Electricity | C37: Jemena Electricity | D37: 82064651083 | E37: Vic | F37: Electricity | G37: Distribution | H37: Revenue cap | I37: Calendar | J37: December | K37: 5 | L37: 5 | M37: 2 | N37: 2016-20 Distribution Determination | O37: Level 16 | P37: 567 Collins Street | Q37: MELBOURNE | R37: VIC | S37: 3000 | T37: PO Box 16182 | V37: MELBOURNE | W37: VIC | X37: 8001 | Y37: Matthew Serpell | Z37: 03 9173 8231 | AA37: matthew.serpell@jemena.com.au | AB37: NO | AC37: NO | AD37: YES | AE37: NO | AF37: NO | AH37: CBD | AI37: Urban | AJ37: Short rural | AK37: Long rural | AM37: Jemena Electricity
B38: JGN | C38: Jemena Gas Networks (NSW) Ltd | D38: 003 004 322 | E38: NSW | F38: Gas | G38: Distribution | H38: Weighted average price cap | I38: Financial | J38: June | K38: 5 | L38: 5 | Y38: please provide contact details | AB38: n/a | AC38: n/a | AD38: n/a | AE38: n/a | AF38: n/a | AH38: CBD | AI38: Urban | AJ38: Short rural | AK38: Long rural | AM38: JGN
B39: Multinet Gas | C39: Multinet Gas (DB No.1) Pty Ltd (ACN 086 026 986), Multinet Gas (DB No.2) Pty Ltd (ACN 086 230 122) | D39: 086026986 | E39: Vic | F39: Gas | G39: Distribution | H39: Weighted average price cap | I39: Calendar | J39: December | K39: 5 | L39: 5 | M39: x | O39: 43-45 Centreway | Q39: MT WAVERLEY | R39: Vic | S39: 3149 | Y39: Andrew Schille | Z39: 03 8846 9860 | AA39: andrew.schille@ue.com.au | AB39: n/a | AC39: n/a | AD39: n/a | AE39: n/a | AF39: n/a | AH39: CBD | AI39: Urban | AJ39: Short rural | AK39: Long rural | AM39: Multinet Gas
B40: Murraylink | C40: Murraylink | D40: 79181207909 | E40: SA | F40: Electricity | G40: Transmission | H40: Revenue cap | I40: Financial | J40: June | K40: 5 | L40: 5 | M40: 5 | N40: transmission determination | O40: Level 19 | P40: 580 George Street | Q40: SYDNEY | R40: NSW | S40: 2000 | T40: PO Box R41 | V40: ROYAL EXCHANGE | W40: NSW | X40: 1225 | Y40: Scott Young | Z40: 02 9275 0031 | AA40: scott.young@apa.com.au | AB40: n/a | AC40: n/a | AD40: n/a | AE40: n/a | AF40: n/a | AH40: CBD | AI40: Urban | AJ40: Short rural | AK40: Long rural | AM40: Murraylink
B41: Power and Water | C41: Power and Water Corporation | D41: 15947352360 | E41: NT | F41: Electricity | G41: Distribution | H41: Revenue cap | I41: Financial | J41: June | K41: 5 | L41: 5 | M41: x | N41: distribution determination | O41: GPO Box 1921 | Q41: DARWIN | R41: NT | S41: 801 | T41: GPO Box 1921 | V41: DARWIN | W41: NT | X41: 801 | Y41: Lucy Moon | Z41: 08 8924 5822 | AA41: Lucy.Moon@powerwater.com.au | AB41: YES | AC41: YES | AD41: YES | AE41: YES | AF41: NO | AH41: CBD | AI41: Urban | AJ41: Short rural | AK41: Long rural
B42: Powercor Australia | C42: Powercor Australia | D42: 89064651109 | E42: Vic | F42: Electricity | G42: Distribution | H42: Revenue cap | I42: Calendar | J42: December | K42: 5 | L42: 5 | M42: 2 | N42: 2016-20 Distribution Determination | O42: 40 Market Street | Q42: MELBOURNE | R42: Vic | S42: 3000 | T42: Locked bag 14090 | V42: MELBOURNE | W42: VIC | X42: 8001 | Y42: Hannah Williams | Z42: 03 9683 4088 | AA42: hwilliams@powercor.com.au | AD42: YES | AE42: YES | AF42: NO | AH42: CBD | AI42: Urban | AJ42: Short rural | AK42: Long rural | AM42: Powercor Australia
B43: Powerlink | C43: Queensland Electricity Transmission Corporation Limited trading as Powerlink Queensland | D43: 82078849233 | E43: Qld | F43: Electricity | G43: Transmission | H43: Revenue cap | I43: Financial | J43: June | K43: 5 | L43: 5 | M43: 5 | N43: transmission determination | O43: 33 Harold St | Q43: VIRGINIA | R43: Qld | S43: 4014 | T43: PO Box 1193 | V43: VIRGINIA | W43: QLD | X43: 4014 | Y43: Jennifer Harris | Z43: 07 3860 2667 | AA43: jharris@powerlink.com.au | AB43: n/a | AC43: n/a | AD43: n/a | AE43: n/a | AF43: n/a | AH43: CBD | AI43: Urban | AJ43: Short rural | AK43: Long rural | AM43: Powerlink
B44: Roma to Brisbane Pipeline | C44: APT Petroleum Pipelines Limited t/a Roma to Brisbane Pipeline | D44: 009 737 393 | E44: Qld | F44: Gas | G44: Transmission | H44: Weighted average price cap | I44: Financial | J44: June | K44: 5 | L44: 5 | M44: x | N44: n/a | O44: 580 George Street | Q44: SYDNEY | R44: NSW | S44: 2000 | T44: PO Box R41 | V44: ROYAL EXCHANGE | W44: NSW | X44: 1225 | Y44: Mark Allen | Z44: 02 9275 0010 | AA44: mark.allen@apa.com.au | AB44: n/a | AC44: n/a | AD44: n/a | AE44: n/a | AF44: n/a | AH44: CBD | AI44: Urban | AJ44: Short rural | AK44: Long rural | AM44: Roma to Brisbane Pipeline
B45: SA Power Networks | C45: SA Power Networks | D45: 13332330749 | E45: SA | F45: Electricity | G45: Distribution | H45: Revenue cap | I45: Financial | J45: June | K45: 5 | L45: 5 | M45: 5 | N45: 2015-20 Distribution Determination | O45: 1 Anzac Highway | Q45: KESWICK | R45: SA | S45: 5035 | T45: GPO Box 77 | V45: ADELAIDE | W45: SA | X45: 5000 | Y45: Richard Sibly | Z45: 08 8404 5613 | AA45: richard.sibly@sapowernetworks.com.au | AB45: NO | AC45: NO | AD45: YES | AE45: YES | AF45: NO | AH45: CBD | AI45: Urban | AJ45: Short rural | AK45: Long rural | AM45: SA Power Networks
B46: TasNetworks (D) | C46: TasNetworks (D) | D46: 24167357299 | E46: Tas | F46: Electricity | G46: Distribution | H46: Revenue cap | I46: Financial | J46: June | K46: 5 | L46: 5 | M46: 5 | N46: distribution determination | O46: 1-7 Maria Street | Q46: LENAH VALLEY | R46: Tas | S46: 7008 | T46: PO Box 606 | V46: MOONAH | W46: Tas | X46: 7009 | Y46: John Sayers | Z46: 03 6271 6469 | AA46: john.sayers@tasnetworks.com.au | AB46: YES | AC46: YES | AD46: YES | AE46: YES | AF46: YES | AH46: Critical Infrastructure | AI46: High density commercial | AJ46: Urban | AK46: High density rural | AL46: Low density rural | AM46: TasNetworks (D)
B47: TasNetworks (T) | C47: TasNetworks (T) | D47: 24167357299 | E47: Tas | F47: Electricity | G47: Transmission | H47: Revenue cap | I47: Financial | J47: June | K47: 5 | L47: 5 | M47: 5 | N47: transmission determination | O47: 1-7 Maria Street | Q47: LENAH VALLEY | R47: Tas | S47: 7008 | T47: PO Box 606 | V47: MOONAH | W47: Tas | X47: 7009 | Y47: John Sayers | Z47: 03 6271 6469 | AA47: john.sayers@tasnetworks.com.au | AB47: n/a | AC47: n/a | AD47: n/a | AE47: n/a | AF47: n/a | AH47: CBD | AI47: Urban | AJ47: Short rural | AK47: Long rural | AM47: TasNetworks (T)
B48: TransGrid | C48: NSW Electricity Networks Operations Pty Ltd trading as TransGrid | D48: 609169959 | E48: NSW | F48: Electricity | G48: Transmission | H48: Revenue cap | I48: Financial | J48: June | K48: 5 | L48: 4 | M48: 5 | N48: transmission determination | O48: 180 Thomas Street | Q48: SYDNEY | R48: NSW | S48: 2000 | T48: PO Box A1000 | V48: SYDNEY SOUTH | W48: NSW | X48: 1235 | Y48: Garrie Chubb | Z48: 0408 210 221 | AA48: garrie.chubb@transgrid.com.au | AB48: n/a | AC48: n/a | AD48: n/a | AE48: n/a | AF48: n/a | AH48: CBD | AI48: Urban | AJ48: Short rural | AK48: Long rural | AM48: TransGrid
B49: United Energy | C49: United Energy | D49: 70064651029 | E49: Vic | F49: Electricity | G49: Distribution | H49: Revenue cap | I49: Calendar | J49: December | K49: 5 | L49: 5 | M49: 2 | N49: 2016-20 Distribution Determination | O49: Level 3 | P49: 6 Nexus Court | Q49: MULGRAVE | R49: Vic | S49: 3149 | T49: PO Box 449 | V49: MOUNT WAVERLEY | W49: VIC | X49: 3170 | Y49: Mathew Abraham | Z49: 03 8846 9758 | AA49: mathew.abraham@ue.com.au | AB49: NO | AC49: NO | AD49: YES | AE49: NO | AF49: NO | AH49: CBD | AI49: Urban | AJ49: Short rural | AK49: Long rural | AM49: United Energy
B50: Western Power (D) | C50: Western Power (D) | D50: 18540492861 | E50: WA | F50: Electricity | G50: Distribution | H50: Revenue cap | I50: Financial | J50: June | K50: 12 | L50: 4 | M50: x | N50: distribution determination | O50: 363 Wellington Street | Q50: PERTH | R50: WA | S50: 6000 | T50: GPO Box L921 | V50: PERTH | W50: WA | X50: 6842 | Y50: Judy Hunter | Z50: 08 9326 6239 | AA50: judy.hunter@westernpower.com.au | AB50: NO | AC50: NO | AD50: YES | AE50: YES | AF50: NO | AG50: NO | AH50: CBD | AI50: Urban | AJ50: Short rural | AK50: Long rural | AM50: Western Power (D)
B51: Western Power (T) | C51: Western Power (T) | D51: 18540492861 | E51: WA | F51: Electricity | G51: Transmission | H51: Revenue cap | I51: Financial | J51: June | K51: 12 | L51: 4 | M51: x | N51: transmission determination | O51: 363 Wellington Street | Q51: PERTH | R51: WA | S51: 6000 | T51: GPO Box L921 | V51: PERTH | W51: WA | X51: 6842 | Y51: Judy Hunter | Z51: 08 9326 6239 | AA51: judy.hunter@westernpower.com.au | AB51: n/a | AC51: n/a | AD51: n/a | AE51: n/a | AF51: n/a | AH51: CBD | AI51: Urban | AJ51: Short rural | AK51: Long rural | AM51: Western Power (T)
Y54: For EB & Reset RINs only | AD54: For AARs only
B55: The Reg Year Ending (dms_RYE) must be set to the last year of the regulatory period. For forecast data is is usually (FRCP_y5) for actual it is a single year (CRY). For historical actual data the RYE will need to be set manually in the business details sheet by setting the dms_Multiyear_flag to 1 and putting the correct value in 'dms_Specified_FinalYear. See cells C67:C68 | G55: =IF(dms_RPT="financial",VALUE(LEFT(CRCP_y1,4)-1)&"-"&TEXT(VALUE(RIGHT(CRCP_y1,2)-1),"00"),VALUE(LEFT(CRCP_y1,4)-1)) -> 2014-15 | N55: Drop down selector box for CA & Reset RINs. | O55: For CA & Reset RINs only | Y55: for DNSP only | AD55: For DNSPs only | AJ55: Reason for interruption | AK55: dms_Reason_Interruption_Detailed | AL55: dms_Reason_Interruption | AM55: dms_STPIS_Exclusion_List
B56: dms_Model_List | C56: DELETE NR 'CRY' IF NOT AN ANNUAL RIN (EB, CA , ARR) | E56: dms_RYE_Formula_Result | N56: dms_0203_ProjectType | O56: dms_020303_01_UOM | P56: dms_020501_01_UOM | Q56: dms_020501_02_UOM | R56: dms_020501_03_UOM | S56: dms_020501_04_UOM | T56: dms_020603_01_UOM | U56: dms_020701_01_UOM | V56: dms_020701_02_UOM | W56: dms_040102_01_UOM | X56: dms_040102_04_UOM | Y56: dms_030601_01_UOM | Z56: dms_030601_02_UOM | AA56: dms_030701_01_UOM | AB56: dms_030702_01_UOM | AC56: dms_030703_01_UOM | AD56: dms_030605_UOM | AE56: dms_03060703_UOM | AJ56: Animal | AK56: Animal impact | AL56: Animal | AM56: Weather
B57: ARR | C57: ANNUAL REPORTING STATEMENT | E57: =LEFT(dms_SingleYear_FinalYear_Result,2)&RIGHT(dms_SingleYear_FinalYear_Result,2) -> 2018 | F57: =LEFT(dms_SingleYear_FinalYear_Result,2)&RIGHT(dms_SingleYear_FinalYear_Result,2) | H57: Formula errors are OK | N57: New line on new route - single circuit | O57: Circuit line length in km | P57: 0's | Q57: 0's | R57: 0's | S57: 0's | T57: 0's | U57: km | V57: km | W57: 0's | X57: days | Y57: minutes/customer | Z57: minutes/customer | AA57: Customer / km | AB57: % | AC57: km | AD57: number | AE57: number | AK57: Animal nesting/burrowing, etc and other | AL57: Asset failure | AM57: Equipment failure
B58: CA | C58: CATEGORY ANALYSIS | E58: =LEFT(dms_SingleYear_FinalYear_Result,2)&RIGHT(dms_SingleYear_FinalYear_Result,2) -> 2018 | F58: =LEFT(dms_SingleYear_FinalYear_Result,2)&RIGHT(dms_SingleYear_FinalYear_Result,2) | H58: Formula errors are OK | N58: New line on new route - dual circuit | O58: Circuit line length in km | P58: 0's | Q58: 0's | R58: 0's | S58: 0's | T58: 0's | U58: 0's | V58: 0's | W58: 0's | X58: 0's | Y58: minutes/customer | Z58: minutes/customer | AA58: MWh/customer | AB58: Number of spans | AD58: number | AE58: number | AK58: Other | AL58: Other | AM58: Operational error
B59: CPI | C59: CPI | N59: New line on new route - other | O59: Circuit line length in km | P59: MVA added | Q59: MVA added | R59: MVA added | S59: MVA added | T59: 0's | U59: km | V59: km | W59: 0's | X59: $0s | Y59: interruptions/customer | Z59: interruptions/customer | AA59: kVA / customer | AB59: Number of spans | AD59: number | AE59: number | AJ59: Asset failure | AK59: LV | AL59: Overloads | AM59: Vegetation
B60: EB | C60: ECONOMIC BENCHMARKING | E60: =LEFT(dms_SingleYear_FinalYear_Result,2)&RIGHT(dms_SingleYear_FinalYear_Result,2) -> 2018 | F60: =LEFT(dms_SingleYear_FinalYear_Result,2)&RIGHT(dms_SingleYear_FinalYear_Result,2) | H60: Formula errors are OK | N60: Line rebuild over existing route - single circuit | O60: Circuit line length in km | P60: 0's | Q60: 0's | R60: 0's | S60: 0's | T60: 0's | U60: km | V60: km | W60: $0s | X60: 0's | Y60: interruptions/customer | Z60: interruptions/customer | AB60: Number of spans | AD60: number | AE60: number | AK60: Distribution substation | AL60: Planned | AM60: Animals
B61: PTRM | C61: POST TAX REVENUE MODEL | E61: =LEFT(dms_MultiYear_FinalYear_Result,2)&RIGHT(dms_MultiYear_FinalYear_Result,2) -> 2025 | F61: =LEFT(dms_MultiYear_FinalYear_Result,2)&RIGHT(dms_MultiYear_FinalYear_Result,2) | N61: Line rebuild over existing route - dual circuit | O61: Number | P61: total spend $0s | Q61: total spend $0s | R61: total spend $0s | S61: total spend $0s | T61: (per cent) | U61: 0's | V61: 0's | AB61: Number of spans | AD61: number | AE61: (per cent) | AK61: HV | AL61: Network business | AM61: Third party impacts
B62: Reset | C62: REGULATORY REPORTING STATEMENT | E62: =LEFT(dms_MultiYear_FinalYear_Result,2)&RIGHT(dms_MultiYear_FinalYear_Result,2) -> 2025 | F62: =LEFT(dms_MultiYear_FinalYear_Result,2)&RIGHT(dms_MultiYear_FinalYear_Result,2) | H62: Formula errors are OK | N62: Reconductor - Single circuit | O62: Number | P62: net circuit km added | Q62: net circuit km added | R62: net circuit km added | S62: net circuit km added | U62: years | V62: years | AB62: Years | AD62: number | AK62: Zone substation | AL62: Third party | AM62: Transmission failure
B63: RFM | C63: ROLL FORWARD MODEL | E63: =LEFT(dms_CRCP_FinalYear_Result,2)&RIGHT(dms_CRCP_FinalYear_Result,2) -> 2018 | F63: =LEFT(dms_CRCP_FinalYear_Result,2)&RIGHT(dms_CRCP_FinalYear_Result,2) | N63: Reconductor - Dual circuit | O63: Number | P63: total spend $0s | Q63: total spend $0s | R63: total spend $0s | S63: total spend $0s | AB63: Years | AD63: number | AK63: Subtransmission | AL63: Unknown | AM63: Load shedding
B64: WACC | C64: WEIGHTED AVERAGE COST OF CAPITAL | E64: =LEFT(dms_MultiYear_FinalYear_Result,2)&RIGHT(dms_MultiYear_FinalYear_Result,2) -> 2025 | F64: =LEFT(dms_MultiYear_FinalYear_Result,2)&RIGHT(dms_MultiYear_FinalYear_Result,2) | N64: Other | P64: net circuit km added | Q64: net circuit km added | R64: net circuit km added | S64: net circuit km added | AB64: Trees | AD64: number | AJ64: Other | AK64: insert description of 'other' | AL64: Vegetation | AM64: Inter-distributor connection failure
P65: total spend $0s | Q65: total spend $0s | R65: total spend $0s | S65: total spend $0s | AB65: Trees | AD65: number | AJ65: Overloads | AK65: - | AL65: Weather | AM65: Other
B66: dms_DataQuality_List | P66: 0's | R66: $0s | AB66: Defects | AD66: number | AJ66: Planned | AK66: - | AL66: 2 - STPIS Exclusion (3.3)(a)
B67: Actual | P67: 0's | AB67: Defects | AD67: number | AJ67: Network business | AK67: Network error | AL67: 3 - STPIS Exclusion (3.3)(a)
B68: Estimate | P68: 0's | AB68: Spans | AD68: number | AK68: Switching and protection error | AL68: 4 - STPIS Exclusion (3.3)(a)
B69: Consolidated | P69: $0s | AB69: km | AD69: (per cent) | AJ69: Third party | AK69: Fire | AL69: 5 - STPIS Exclusion (3.3)(a)
B70: Recast | AB70: Spans | AD70: (per cent) | AK70: Other | AL70: 6 - STPIS Exclusion (3.3)(a)
B71: Public | AK71: Dig-in | AL71: 7 - STPIS Exclusion (3.3)(a)
AK72: Unauthorised access
B73: For all files either AER or business needs to be able to specify the type of submission | C73: For PTRM & RFM templates we must provide a choice in case they change their form of control - otherwise it is drawn from the business specific lookup table above. | O73: For PTRM files - this field set the text for the named range "DMS_Xfactor" which in all cases is simply the text "x factors" - this saves putting in each old gas PTRM file | Y73: for TNSP only | AK73: Vehicle impact
B74: dms_SourceList | C74: dms_FormControl_Choices | O74: DMS_Xfactor | Y74: dms_030601_01_UOM | AA74: dms_030701_01_UOM | AB74: dms_030702_01_UOM | AJ74: Unknown | AK74: Unknown
B75: After appeal | C75: Revenue cap | O75: x factors | Y75: % | AA75: Number of spans | AB75: km | AJ75: Vegetation | AK75: Blow-in/Fall-in - NSP responsibility
B76: Draft decision | C76: Revenue yield | Y76: number | AA76: Years | AB76: % | AK76: Grow-in - NSP responsibility
B77: Final decision | C77: Weighted average price cap | Y77: number | AA77: Trees | AB77: km | AK77: Blow-in/Fall-in - Other responsible party
B78: PTRM update 1 | Y78: % | AA78: Defects | AB78: number | AK78: Grow-in - Other responsible party
B79: PTRM update 2 | Y79: number | AA79: Number of spans | AJ79: Weather
B80: PTRM update 3 | Y80: number | AA80: km | AJ80: 2 - STPIS Exclusion (3.3)(a)
B81: PTRM update 4 | Y81: % | AA81: km | AJ81: 3 - STPIS Exclusion (3.3)(a)
B82: PTRM update 5 | Y82: number | AA82: Number of spans | AJ82: 4 - STPIS Exclusion (3.3)(a)
B83: PTRM update 6 | Y83: number | AJ83: 5 - STPIS Exclusion (3.3)(a)
B84: PTRM update 7 | Y84: % | AJ84: 6 - STPIS Exclusion (3.3)(a)
B85: Regulatory proposal | Y85: number | AJ85: 7 - STPIS Exclusion (3.3)(a)
B86: Reporting | Y86: %
B87: Revised regulatory proposal | Y87: number
Y88: %
Y89: number
B93: These are indeces and lookup values for various dates. All step from the value placed in FRCP_y1 on the business and other details worksheet | C93: =IF(dms_FifthFeeder_flag_NSP="NO","This NSP has only 4 feeder categories","This NSP has 5 feeder categories") -> This NSP has only 4 feeder categories | L93: These date tables are currently used in the Recast templates to provide column headings and conditional formatting
B94: dms_FRCPlength_Num_List | C94: dms_FinalYear_List | D94: dms_CRCPlength_Num_List | E94: dms_CFinalYear_List | F94: dms_FRCP_years | H94: dms_CRCP_years | J94: dms_CRCP_index | L94: CRY from input cell on business sheet | M94: CRY - financial | N94: dms_FinYears | O94: CRY calendar | P94: dms_CalYears | Y94: These "row descriptions" are the column headings in the various templates but become row descriptions in the ETL process
B95: 1 | C95: dms_FRCP_y1 | D95: 1 | E95: CRCP_y1 | F95: =FRCP_y1 -> 2020-21 | G95: dms_FRCP_y1 | H95: =IF(dms_RPT="financial",VALUE(LEFT(dms_FRCP_y1,4)-1)&"-"&TEXT(VALUE(MID(dms_FRCP_y1,3,2)),"00"),VALUE(LEFT(dms_FRCP_y1,4)-1)) -> 2019-20 | I95: dms_CRCP_yZ | J95: 1 | L95: =CRY -> 2017-18 | M95: =VALUE(LEFT(CRY,4))&"-"&TEXT(MID(CRY,3,2)+1,"00") -> 2017-18 | N95: dms_CRYf_y1 | O95: =VALUE(LEFT(CRY,4)+1) -> 2018 | P95: dms_CRYc_y1 | Z95: Table 6.3 sustained interruptions - row descriptions
B96: 2 | C96: dms_FRCP_y2 | D96: 2 | E96: CRCP_y2 | F96: =IF(dms_RPT="financial",VALUE(LEFT(dms_FRCP_y1,4)+1)&"-"&TEXT(VALUE(RIGHT(dms_FRCP_y1,2)+1),"00"),VALUE(LEFT(dms_FRCP_y1,4)+1)) -> 2021-22 | G96: dms_FRCP_y2 | H96: =IF(dms_RPT="financial",VALUE(LEFT(dms_CRCP_yZ,4)-1)&"-"&TEXT(VALUE(MID(dms_CRCP_yZ,3,2)),"00"),VALUE(LEFT(dms_CRCP_yZ,4)-1)) -> 2018-19 | I96: dms_CRCP_yY | J96: 2 | M96: =VALUE(LEFT(dms_CRYf_y1,4)+1)&"-"&TEXT(MID(dms_CRYf_y1,3,2)+2,"00") -> 2018-19 | N96: dms_CRYf_y2 | O96: =VALUE(LEFT(dms_CRYc_y1,4)+1) -> 2019 | P96: dms_CRYc_y2 | Z96: dms_060301_CustNo_Affected_Row | AA96: dms_060301_Avg_Duration_Sustained_Int_Row | AB96: dms_060301_Effect_unplanned_SAIDI_Row | AC96: dms_060301_Effect_unplanned_SAIFI_Row
B97: 3 | C97: =IF(dms_Model="ARR",15,9) | D97: 3 | E97: =IF(dms_Model="ARR",15,9) | F97: =IF(dms_RPT="financial",VALUE(LEFT(dms_FRCP_y2,4)+1)&"-"&TEXT(VALUE(RIGHT(dms_FRCP_y2,2)+1),"00"),VALUE(LEFT(dms_FRCP_y2,4)+1)) -> 2022-23 | G97: dms_FRCP_y3 | H97: =IF(dms_RPT="financial",VALUE(LEFT(dms_CRCP_yY,4)-1)&"-"&TEXT(VALUE(MID(dms_CRCP_yY,3,2)),"00"),VALUE(LEFT(dms_CRCP_yY,4)-1)) -> 2017-18 | I97: dms_CRCP_yX | J97: 3 | M97: =VALUE(LEFT(dms_CRYf_y2,4)+1)&"-"&TEXT(MID(dms_CRYf_y2,3,2)+2,"00") -> 2019-20 | N97: dms_CRYf_y3 | O97: =VALUE(LEFT(dms_CRYc_y2,4)+1) -> 2020 | P97: dms_CRYc_y3 | Z97: Number of customers affected by the interruption | AA97: Average duration of sustained customer interruption | AB97: Effect on unplanned SAIDI | AC97: Effect on unplanned SAIFI
B98: 4 | C98: dms_FRCP_y4 | D98: 4 | E98: CRCP_y4 | F98: =IF(dms_RPT="financial",VALUE(LEFT(dms_FRCP_y3,4)+1)&"-"&TEXT(VALUE(RIGHT(dms_FRCP_y3,2)+1),"00"),VALUE(LEFT(dms_FRCP_y3,4)+1)) -> 2023-24 | G98: dms_FRCP_y4 | H98: =IF(dms_RPT="financial",VALUE(LEFT(dms_CRCP_yX,4)-1)&"-"&TEXT(VALUE(MID(dms_CRCP_yX,3,2)),"00"),VALUE(LEFT(dms_CRCP_yX,4)-1)) -> 2016-17 | I98: dms_CRCP_yW | J98: 4 | M98: =VALUE(LEFT(dms_CRYf_y3,4)+1)&"-"&TEXT(MID(dms_CRYf_y3,3,2)+2,"00") -> 2020-21 | N98: dms_CRYf_y4 | O98: =VALUE(LEFT(dms_CRYc_y3,4)+1) -> 2021 | P98: dms_CRYc_y4
B99: 5 | C99: dms_FRCP_y5 | D99: 5 | E99: CRCP_y5 | F99: =IF(dms_RPT="financial",VALUE(LEFT(dms_FRCP_y4,4)+1)&"-"&TEXT(VALUE(RIGHT(dms_FRCP_y4,2)+1),"00"),VALUE(LEFT(dms_FRCP_y4,4)+1)) -> 2024-25 | G99: dms_FRCP_y5 | H99: =IF(dms_RPT="financial",VALUE(LEFT(dms_CRCP_yW,4)-1)&"-"&TEXT(VALUE(MID(dms_CRCP_yW,3,2)),"00"),VALUE(LEFT(dms_CRCP_yW,4)-1)) -> 2015-16 | I99: dms_CRCP_yV | J99: 5 | M99: =VALUE(LEFT(dms_CRYf_y4,4)+1)&"-"&TEXT(MID(dms_CRYf_y4,3,2)+2,"00") -> 2021-22 | N99: dms_CRYf_y5 | O99: =VALUE(LEFT(dms_CRYc_y4,4)+1) -> 2022 | P99: dms_CRYc_y5
B100: 6 | C100: dms_FRCP_y6 | D100: 6 | E100: CRCP_y6 | F100: =IF(dms_RPT="financial",VALUE(LEFT(dms_FRCP_y5,4)+1)&"-"&TEXT(VALUE(RIGHT(dms_FRCP_y5,2)+1),"00"),VALUE(LEFT(dms_FRCP_y5,4)+1)) -> 2025-26 | G100: dms_FRCP_y6 | H100: =IF(dms_RPT="financial",VALUE(LEFT(dms_CRCP_yV,4)-1)&"-"&TEXT(VALUE(MID(dms_CRCP_yV,3,2)),"00"),VALUE(LEFT(dms_CRCP_yV,4)-1)) -> 2014-15 | I100: dms_CRCP_yU | J100: 6 | M100: =VALUE(LEFT(dms_CRYf_y5,4)+1)&"-"&TEXT(MID(dms_CRYf_y5,3,2)+2,"00") -> 2022-23 | N100: dms_CRYf_y6 | O100: =VALUE(LEFT(dms_CRYc_y5,4)+1) -> 2023 | P100: dms_CRYc_y6
B101: 7 | C101: dms_FRCP_y7 | D101: 7 | E101: CRCP_y7 | F101: =IF(dms_RPT="financial",VALUE(LEFT(dms_FRCP_y6,4)+1)&"-"&TEXT(VALUE(RIGHT(dms_FRCP_y6,2)+1),"00"),VALUE(LEFT(dms_FRCP_y6,4)+1)) -> 2026-27 | G101: dms_FRCP_y7 | H101: =IF(dms_RPT="financial",VALUE(LEFT(dms_CRCP_yU,4)-1)&"-"&TEXT(VALUE(MID(dms_CRCP_yU,3,2)),"00"),VALUE(LEFT(dms_CRCP_yU,4)-1)) -> 2013-14 | I101: dms_CRCP_yT | J101: 7 | M101: =VALUE(LEFT(dms_CRYf_y6,4)+1)&"-"&TEXT(MID(dms_CRYf_y6,3,2)+2,"00") -> 2023-24 | N101: dms_CRYf_y7 | O101: =VALUE(LEFT(dms_CRYc_y6,4)+1) -> 2024 | P101: dms_CRYc_y7 | Z101: Table 6.1 telephone answering - row descriptions and start date
B102: 8 | C102: dms_FRCP_y8 | D102: 8 | E102: CRCP_y8 | F102: =IF(dms_RPT="financial",VALUE(LEFT(dms_FRCP_y7,4)+1)&"-"&TEXT(VALUE(RIGHT(dms_FRCP_y7,2)+1),"00"),VALUE(LEFT(dms_FRCP_y7,4)+1)) -> 2027-28 | G102: dms_FRCP_y8 | H102: =IF(dms_RPT="financial",VALUE(LEFT(dms_CRCP_yT,4)-1)&"-"&TEXT(VALUE(MID(dms_CRCP_yT,3,2)),"00"),VALUE(LEFT(dms_CRCP_yT,4)-1)) -> 2012-13 | I102: dms_CRCP_yS | J102: 8 | M102: =VALUE(LEFT(dms_CRYf_y7,4)+1)&"-"&TEXT(MID(dms_CRYf_y7,3,2)+2,"00") -> 2024-25 | N102: dms_CRYf_y8 | O102: =VALUE(LEFT(dms_CRYc_y7,4)+1) -> 2025 | P102: dms_CRYc_y8 | Z102: dms_060101_Rows | AA102: dms_060102_Rows | AB102: dms_060101_StartDateTxt
B103: 9 | C103: dms_FRCP_y9 | D103: 9 | E103: CRCP_y9 | F103: =IF(dms_RPT="financial",VALUE(LEFT(dms_FRCP_y8,4)+1)&"-"&TEXT(VALUE(RIGHT(dms_FRCP_y8,2)+1),"00"),VALUE(LEFT(dms_FRCP_y8,4)+1)) -> 2028-29 | G103: dms_FRCP_y9 | H103: =IF(dms_RPT="financial",VALUE(LEFT(dms_CRCP_yS,4)-1)&"-"&TEXT(VALUE(MID(dms_CRCP_yS,3,2)),"00"),VALUE(LEFT(dms_CRCP_yS,4)-1)) -> 2011-12 | I103: dms_CRCP_yR | J103: 9 | M103: =VALUE(LEFT(dms_CRYf_y8,4)+1)&"-"&TEXT(MID(dms_CRYf_y8,3,2)+2,"00") -> 2025-26 | N103: dms_CRYf_y9 | O103: =VALUE(LEFT(dms_CRYc_y8,4)+1) -> 2026 | P103: dms_CRYc_y9 | Z103: Total number of calls (after removing excluded events) | AA103: Number of calls answered within 30 seconds (after excluding excluded events) | AB103: =dms_060701_StartDateTxt -> 1-Jul-2017
B104: 10 | C104: =IFERROR(IF(dms_Model="ARR",(MAX(0,dms_0608_LastRow-dms_0608_OffsetRows)),"not an ARR"),"6.8 not present") | D104: 10 | E104: =IFERROR(IF(dms_Model="ARR",(MAX(0,dms_0608_LastRow-dms_0608_OffsetRows)),"not an ARR"),"6.8 not present") | F104: =IF(dms_RPT="financial",VALUE(LEFT(dms_FRCP_y9,4)+1)&"-"&TEXT(VALUE(RIGHT(dms_FRCP_y9,2)+1),"00"),VALUE(LEFT(dms_FRCP_y9,4)+1)) -> 2029-30 | G104: dms_FRCP_y10 | H104: =IF(dms_RPT="financial",VALUE(LEFT(dms_CRCP_yR,4)-1)&"-"&TEXT(VALUE(MID(dms_CRCP_yR,3,2)),"00"),VALUE(LEFT(dms_CRCP_yR,4)-1)) -> 2010-11 | I104: dms_CRCP_yQ | J104: 10 | M104: =VALUE(LEFT(dms_CRYf_y9,4)+1)&"-"&TEXT(MID(dms_CRYf_y9,3,2)+2,"00") -> 2026-27 | N104: dms_CRYf_y10 | O104: =VALUE(LEFT(dms_CRYc_y9,4)+1) -> 2027 | P104: dms_CRYc_y10
B105: 11 | C105: dms_FRCP_y11 | D105: 11 | E105: CRCP_y11 | F105: =IF(dms_RPT="financial",VALUE(LEFT(dms_FRCP_y10,4)+1)&"-"&TEXT(VALUE(RIGHT(dms_FRCP_y10,2)+1),"00"),VALUE(LEFT(dms_FRCP_y10,4)+1)) -> 2030-31 | G105: dms_FRCP_y11 | H105: =IF(dms_RPT="financial",VALUE(LEFT(dms_CRCP_yQ,4)-1)&"-"&TEXT(VALUE(MID(dms_CRCP_yQ,3,2)),"00"),VALUE(LEFT(dms_CRCP_yQ,4)-1)) -> 2009-10 | I105: dms_CRCP_yP | J105: 11 | M105: =VALUE(LEFT(dms_CRYf_y10,4)+1)&"-"&TEXT(MID(dms_CRYf_y10,3,2)+2,"00") -> 2027-28 | N105: dms_CRYf_y11 | O105: =VALUE(LEFT(dms_CRYc_y10,4)+1) -> 2028 | P105: dms_CRYc_y11
B106: 12 | C106: dms_FRCP_y12 | D106: 12 | E106: CRCP_y12 | F106: =IF(dms_RPT="financial",VALUE(LEFT(dms_FRCP_y11,4)+1)&"-"&TEXT(VALUE(RIGHT(dms_FRCP_y11,2)+1),"00"),VALUE(LEFT(dms_FRCP_y11,4)+1)) -> 2031-32 | G106: dms_FRCP_y12 | H106: =IF(dms_RPT="financial",VALUE(LEFT(dms_CRCP_yP,4)-1)&"-"&TEXT(VALUE(MID(dms_CRCP_yP,3,2)),"00"),VALUE(LEFT(dms_CRCP_yP,4)-1)) -> 2008-09 | I106: dms_CRCP_yO | J106: 12 | M106: =VALUE(LEFT(dms_CRYf_y11,4)+1)&"-"&TEXT(MID(dms_CRYf_y11,3,2)+2,"00") -> 2028-29 | N106: dms_CRYf_y12 | O106: =VALUE(LEFT(dms_CRYc_y11,4)+1) -> 2029 | P106: dms_CRYc_y12
B107: 13 | C107: dms_FRCP_y13 | D107: 13 | E107: CRCP_y13 | F107: =IF(dms_RPT="financial",VALUE(LEFT(dms_FRCP_y12,4)+1)&"-"&TEXT(VALUE(RIGHT(dms_FRCP_y12,2)+1),"00"),VALUE(LEFT(dms_FRCP_y12,4)+1)) -> 2032-33 | G107: dms_FRCP_y13 | H107: =IF(dms_RPT="financial",VALUE(LEFT(dms_CRCP_yO,4)-1)&"-"&TEXT(VALUE(MID(dms_CRCP_yO,3,2)),"00"),VALUE(LEFT(dms_CRCP_yO,4)-1)) -> 2007-08 | I107: dms_CRCP_yN | J107: 13 | M107: =VALUE(LEFT(dms_CRYf_y12,4)+1)&"-"&TEXT(MID(dms_CRYf_y12,3,2)+2,"00") -> 2029-30 | N107: dms_CRYf_y13 | O107: =VALUE(LEFT(dms_CRYc_y12,4)+1) -> 2030 | P107: dms_CRYc_y13 | AE107: dms_0603_FeederList | AF107: =INDEX(dms_FeederName_1,MATCH(dms_TradingName,dms_TradingName_List)) -> CBD | AG107: =INDEX(dms_FeederName_2,MATCH(dms_TradingName,dms_TradingName_List)) -> Urban | AH107: =INDEX(dms_FeederName_3,MATCH(dms_TradingName,dms_TradingName_List)) -> Short rural | AI107: =INDEX(dms_FeederName_4,MATCH(dms_TradingName,dms_TradingName_List)) -> Long rural | AJ107: =INDEX(dms_FeederName_5,MATCH(dms_TradingName,dms_TradingName_List)) -> 
B108: 14 | C108: dms_FRCP_y14 | D108: 14 | E108: CRCP_y14 | F108: =IF(dms_RPT="financial",VALUE(LEFT(dms_FRCP_y13,4)+1)&"-"&TEXT(VALUE(RIGHT(dms_FRCP_y13,2)+1),"00"),VALUE(LEFT(dms_FRCP_y13,4)+1)) -> 2033-34 | G108: dms_FRCP_y14 | H108: =IF(dms_RPT="financial",VALUE(LEFT(dms_CRCP_yN,4)-1)&"-"&TEXT(VALUE(MID(dms_CRCP_yN,3,2)),"00"),VALUE(LEFT(dms_CRCP_yN,4)-1)) -> 2006-07 | I108: dms_CRCP_yM | J108: 14 | M108: =VALUE(LEFT(dms_CRYf_y13,4)+1)&"-"&TEXT(MID(dms_CRYf_y13,3,2)+2,"00") -> 2030-31 | N108: dms_CRYf_y14 | O108: =VALUE(LEFT(dms_CRYc_y13,4)+1) -> 2031 | P108: dms_CRYc_y14 | Z108: Table 6.7.1 - daily performance data - unplanned - MAIFI -- row descriptions and header named range values
B109: 15 | C109: dms_FRCP_y15 | D109: 15 | E109: CRCP_y15 | F109: =IF(dms_RPT="financial",VALUE(LEFT(dms_FRCP_y14,4)+1)&"-"&TEXT(VALUE(RIGHT(dms_FRCP_y14,2)+1),"00"),VALUE(LEFT(dms_FRCP_y14,4)+1)) -> 2034-35 | G109: dms_FRCP_y15 | H109: =IF(dms_RPT="financial",VALUE(LEFT(dms_CRCP_yM,4)-1)&"-"&TEXT(VALUE(MID(dms_CRCP_yM,3,2)),"00"),VALUE(LEFT(dms_CRCP_yM,4)-1)) -> 2005-06 | I109: dms_CRCP_yL | J109: 15 | M109: =VALUE(LEFT(dms_CRYf_y14,4)+1)&"-"&TEXT(MID(dms_CRYf_y14,3,2)+2,"00") -> 2031-32 | N109: dms_CRYf_y15 | O109: =VALUE(LEFT(dms_CRYc_y14,4)+1) -> 2032 | P109: dms_CRYc_y15 | Z109: These headings (Lists) are determined from the INDEX/MATCH function on the NSP selected on the Business & other details sheet
M110: =VALUE(LEFT(dms_CRYf_y15,4)+1)&"-"&TEXT(MID(dms_CRYf_y15,3,2)+2,"00") -> 2032-33 | N110: dms_CRYf_y16 | O110: =VALUE(LEFT(dms_CRYc_y15,4)+1) -> 2033 | P110: dms_CRYc_y16 | Y110: dms_060701_Feeder_Header_Lvl4 | Z110: =INDEX(dms_FeederName_1,MATCH(dms_TradingName,dms_TradingName_List)) -> CBD | AA110: =INDEX(dms_FeederName_1,MATCH(dms_TradingName,dms_TradingName_List)) -> CBD | AB110: =INDEX(dms_FeederName_2,MATCH(dms_TradingName,dms_TradingName_List)) -> Urban | AC110: =INDEX(dms_FeederName_2,MATCH(dms_TradingName,dms_TradingName_List)) -> Urban | AD110: =INDEX(dms_FeederName_3,MATCH(dms_TradingName,dms_TradingName_List)) -> Short rural | AE110: =INDEX(dms_FeederName_3,MATCH(dms_TradingName,dms_TradingName_List)) -> Short rural | AF110: =INDEX(dms_FeederName_4,MATCH(dms_TradingName,dms_TradingName_List)) -> Long rural | AG110: =INDEX(dms_FeederName_4,MATCH(dms_TradingName,dms_TradingName_List)) -> Long rural | AH110: =IF((INDEX(dms_FeederName_5,MATCH(dms_TradingName,dms_TradingName_List))=0),"Network",(INDEX(dms_FeederName_5,MATCH(dms_TradingName,dms_TradingName_List)))) ->  | AI110: =IF((INDEX(dms_FeederName_5,MATCH(dms_TradingName,dms_TradingName_List))=0),"Network",(INDEX(dms_FeederName_5,MATCH(dms_TradingName,dms_TradingName_List)))) ->  | AJ110: Network | AK110: Network
B111: These are drop down lists for businesses to select the correct FRCP_y1 on the business and other details worksheet. This also populates the column headings in the worksheets | M111: =VALUE(LEFT(dms_CRYf_y16,4)+1)&"-"&TEXT(MID(dms_CRYf_y16,3,2)+2,"00") -> 2033-34 | N111: dms_CRYf_y17 | O111: =VALUE(LEFT(dms_CRYc_y16,4)+1) -> 2034 | P111: dms_CRYc_y17
B112: dms_RCP_fyear_list | C112: dms_CRY_ListF | D112: dms_CRY_ListC | E112: dms_RCP_cyear_list | F112: dms_FRCP_fyear_list | G112: dms_FRCP_ListF | H112: dms_FRCP_ListC | I112: dms_FRCP_cyear_list | M112: =VALUE(LEFT(dms_CRYf_y17,4)+1)&"-"&TEXT(MID(dms_CRYf_y17,3,2)+2,"00") -> 2034-35 | N112: dms_CRYf_y18 | O112: =VALUE(LEFT(dms_CRYc_y17,4)+1) -> 2035 | P112: dms_CRYc_y18 | Y112: dms_060701_Rows | Z112: All events | AA112: After removing excluded events | AB112: All events | AC112: After removing excluded events | AD112: All events | AE112: After removing excluded events | AF112: All events | AG112: After removing excluded events | AH112: All events | AI112: After removing excluded events | AJ112: All events | AK112: After removing excluded events
B113: dms_fy1 | C113: 2005-06 | D113: 2006 | E113: dms_cy1 | F113: dms_frcp_fy1 | G113: 2010-11 | H113: 2011 | I113: dms_crcp_cy1 | M113: =VALUE(LEFT(dms_CRYf_y18,4)+1)&"-"&TEXT(MID(dms_CRYf_y18,3,2)+2,"00") -> 2035-36 | N113: dms_CRYf_y19 | O113: =VALUE(LEFT(dms_CRYc_y18,4)+1) -> 2036 | P113: dms_CRYc_y19 | Z113: the number of column headings changes from 10 to 12 depending on the number of feeder categories for the NSP
B114: dms_fy2 | C114: 2006-07 | D114: 2007 | E114: dms_cy2 | F114: dms_frcp_fy2 | G114: 2011-12 | H114: 2012 | I114: dms_crcp_cy2 | M114: =VALUE(LEFT(dms_CRYf_y19,4)+1)&"-"&TEXT(MID(dms_CRYf_y19,3,2)+2,"00") -> 2036-37 | N114: dms_CRYf_y20 | O114: =VALUE(LEFT(dms_CRYc_y19,4)+1) -> 2037 | P114: dms_CRYc_y20
B115: dms_fy3 | C115: 2007-08 | D115: 2008 | E115: dms_cy3 | F115: dms_frcp_fy3 | G115: 2012-13 | H115: 2013 | I115: dms_crcp_cy3
B116: dms_fy4 | C116: 2008-09 | D116: 2009 | E116: dms_cy4 | F116: dms_frcp_fy4 | G116: 2013-14 | H116: 2014 | I116: dms_crcp_cy4
B117: dms_fy5 | C117: 2009-10 | D117: 2010 | E117: dms_cy5 | F117: dms_frcp_fy5 | G117: 2014-15 | H117: 2015 | I117: dms_crcp_cy5
B118: dms_fy6 | C118: 2010-11 | D118: 2011 | E118: dms_cy6 | F118: dms_frcp_fy6 | G118: 2015-16 | H118: 2016 | I118: dms_crcp_cy6 | Z118: Table 6.8.1 - row descriptions
B119: dms_fy7 | C119: 2011-12 | D119: 2012 | E119: dms_cy7 | F119: dms_frcp_fy7 | G119: 2016-17 | H119: 2017 | I119: dms_crcp_cy7 | Z119: dms_060801_01_Rows | AA119: dms_060801_02_Rows | AB119: dms_060801_03_Rows | AC119: dms_060801_04_Rows
B120: dms_fy8 | C120: 2012-13 | D120: 2013 | E120: dms_cy8 | F120: dms_frcp_fy8 | G120: 2017-18 | H120: 2018 | I120: dms_crcp_cy8 | L120: 2005-06 | M120: 2006 | Z120: Number of interruptions | AA120: Duration of interruptions | AB120: Total unplanned minutes off supply | AC120: Effect on unplanned MAIFI
B121: dms_fy9 | C121: 2013-14 | D121: 2014 | E121: dms_cy9 | F121: dms_frcp_fy9 | G121: 2018-19 | H121: 2019 | I121: dms_crcp_cy9 | L121: 2006-07 | M121: 2007
B122: dms_fy10 | C122: 2014-15 | D122: 2015 | E122: dms_cy10 | F122: dms_frcp_fy10 | G122: 2019-20 | H122: 2020 | I122: dms_crcp_cy10 | L122: 2007-08 | M122: 2008
B123: dms_fy11 | C123: 2015-16 | D123: 2016 | E123: dms_cy11 | F123: dms_frcp_fy11 | G123: 2020-21 | H123: 2021 | I123: dms_crcp_cy11 | L123: 2008-09 | M123: 2009
B124: dms_fy12 | C124: 2016-17 | D124: 2017 | E124: dms_cy12 | F124: dms_frcp_fy12 | G124: 2021-22 | H124: 2022 | I124: dms_crcp_cy12 | L124: 2009-10 | M124: 2010
B125: dms_fy13 | C125: 2017-18 | D125: 2018 | E125: dms_cy13 | F125: dms_frcp_fy13 | G125: 2022-23 | H125: 2023 | I125: dms_crcp_cy13 | L125: 2010-11 | M125: 2011 | Z125: Table 7.9.4 - market impact component - row descriptions
B126: dms_fy14 | C126: 2018-19 | D126: 2019 | E126: dms_cy14 | F126: dms_frcp_fy14 | G126: 2023-24 | H126: 2024 | I126: dms_crcp_cy14 | L126: 2011-12 | M126: 2012 | Y126: dms_070904_01_Rows | Z126: without exclusions | AA126: with exclusions
B127: dms_fy15 | C127: 2019-20 | D127: 2020 | E127: dms_cy15 | F127: dms_frcp_fy15 | G127: 2024-25 | H127: 2025 | I127: dms_crcp_cy15 | L127: 2012-13 | M127: 2013
B128: dms_fy16 | C128: 2020-21 | D128: 2021 | E128: dms_cy16 | L128: 2013-14 | M128: 2014
B129: dms_fy17 | C129: 2021-22 | D129: 2022 | E129: dms_cy17 | L129: 2014-15 | M129: 2015
B130: dms_fy18 | C130: 2022-23 | D130: 2023 | E130: dms_cy18 | L130: 2015-16 | M130: 2016
B131: dms_fy19 | C131: 2023-24 | D131: 2024 | E131: dms_cy19 | L131: 2016-17 | M131: 2017 | Z131: Use this to add to existing files
B132: dms_fy20 | C132: 2024-25 | D132: 2025 | E132: dms_cy20 | L132: 2017-18 | M132: 2018 | Z132: ARR's 6.8 STPIS exclusions
L133: 2018-19 | M133: 2019 | Z133: dms_060801_Event_Date | AA133: dms_060801_OutageID | AB133: dms_060801_FeederID | AC133: dms_060801_FeederClass | AD133: dms_060801_CauseID | AE133: dms_060801_01_Values | AF133: dms_060801_02_Values | AG133: dms_060801_03_Values | AH133: dms_060801_Excl_Cat | AI133: dms_060801_04_Values
L134: 2019-20 | M134: 2020
L135: 2020-21 | M135: 2021
L136: 2021-22 | M136: 2022 | Z136: CA 6.3 sustained interruptions
L137: 2022-23 | M137: 2023 | Z137: dms_060301_Event_Date | AA137: dms_060301_Event_Time | AB137: dms_060301_AssetID | AC137: dms_060301_FeederClass | AD137: dms_060301_Reason | AE137: dms_060301_DetailedReason | AF137: dms_060301_CustNo_Affected_Values | AG137: dms_060301_Avg_Duration_Sustained_Int_Values | AH137: dms_060301_Effect_unplanned_SAIDI_Values | AI137: dms_060301_Effect_unplanned_SAIFI_Values | AJ137: dms_060301_MED
L138: 2023-24 | M138: 2024
L139: 2024-25 | M139: 2025
L140: 2025-26 | M140: 2026
L141: 2026-27 | M141: 2027
L142: 2027-28 | M142: 2028
L143: 2028-29 | M143: 2029
L144: 2029-30 | M144: 2030
L145: 2030-31 | M145: 2031
L146: 2031-32 | M146: 2032
L147: 2032-33 | M147: 2033
L148: 2033-34 | M148: 2034
L149: 2034-35 | M149: 2035
L150: 2035-36 | M150: 2036

Sheet Instructions
B2: =CONCATENATE(dms_Segment," Network Service Provider") -> Distribution Network Service Provider
B3: Annual Reporting RIN Template
C4: =CONCATENATE("This template is to be used by ",dms_TradingName," to fulfil its reporting obligations to the AER.") -> This template is to be used by Energex to fulfil its reporting obligations to the AER.
C5: INSTRUCTIONS
C6: Complete the Business & other details worksheet before entering data or values in any other worksheets. The Business & other details worksheet is linked to other worksheets within the workbook and automatically generates certain column headings and conditional formatting.
C8: Identifying CONFIDENTIAL INFORMATION: Please use the macro at the top of each worksheet to identify confidential information.
C9: -Do this by selecting the cell or cells that contain confidential information and then run the Mark selection as CONFIDENTIAL macro. This will format the cells a specific colour that is identified by the AER's database which in turn marks that information as confidential. -To reverse this, select the cell or cells and run the Return selection to NON-CONFIDENTIAL macro
C11: UNITS OF MEASURE All amounts are to be unrounded and reported in nominal terms on a one for one basis: that is 1000 is to be entered as '1000'.
C13: COLOUR CODING OF INPUT / NON-INPUT CELLS:
D14: Yellow = Input cell (mandatory)
D15: Darker yellow = input cell (mandatory)
D16: Orange = input cell (if data available)
D17: Grey = Not applicable/No inputs required
D18: Leave coloured cells blank if no information exists. PLEASE DO NOT ENTER TEXT into cells that are to contain numeric data.
C21: WORKSHEET NAVIGATION Many tables in the worksheets have been "grouped" to allow for easy navigation. To ungroup or group data use the outline symbols in the left margin of excel (for Row groupings) or above the columns (for column groupings).
C23: RETURNING COMPLETED RESPONSES Please return four (4) files to the AER: 1. A confidential version which must contain a complete set of all responses with confidential information marked using the Mark selected cells CONFIDENTIAL macro and which has been completed using the locked template file provided by the AER. 2. An actual and an estimate version with confidential information marked using the Mark selected cells CONFIDENTIAL macro and which has been completed using the locked template file provided by the AER. 3. A public version with confidential information either removed completely or aggregated in some form together with writtten consent to disclose the public version of the response. Use the drop down box on the Business and other details worksheet to identify the file as either confidential ('consolidated') or public.
C25: SUBMITTING AMENDED DATA TO THE AER If an NSP wishes to correct data previously submitted to the AER it should resubmit that data using the original completed submission as the starting point. Please make any necessary changes to the data. Data that is not being amended should be left unchanged. NSPs must identify the reason for the amendments in the Amendment Reason box on the Business and other details worksheet. NSPs may provide further details regarding any amendments in the Amendments worksheet. .
C26: NSP may use Amended Data macro to highlight cells that contain amended data. NB: if data is also CONFIDENTIAL, re-apply the Confidentiality macro after applying the Amended macro
C27: Please resubmit two (2) files - a confidential version and a public version of the amended submission to the AER

Sheet Contents
B1: REGULATORY REPORTING STATEMENT
B2: =INDEX(dms_TradingNameFull_List,MATCH(dms_TradingName,dms_TradingName_List)) -> Energex
B3: =CONCATENATE((LOOKUP(dms_Model,dms_Model_List,dms_Worksheet_List))&" "&CRY) -> CATEGORY ANALYSIS 2017-18
B4: CONTENTS
E7: 1. Business details | L7: 2. Expenditure
E27: 4. Alternative control services | L27: 5. Network information | S27: 6. Service & quality

Sheet Business & other details
B1: =IF(dms_DataQuality="backcast",INDEX(dms_Worksheet_List,MATCH(dms_Model,dms_Model_List))&" BACKCAST",INDEX(dms_Worksheet_List,MATCH(dms_Model,dms_Model_List))) -> CATEGORY ANALYSIS
B2: =INDEX(dms_TradingNameFull_List,MATCH(dms_TradingName,dms_TradingName_List)) -> Energex
B3: =IF(SUM(dms_SingleYear_Model)>0,CONCATENATE(CRY),CONCATENATE(FRCP_y1," to ",dms_MultiYear_FinalYear_Result)) -> 2017-18
B4: BUSINESS & OTHER DETAILS
B7: Instructions
B8: Complete the following business details regulatory template before entering data or values in any other regulatory template. This regulatory template is linked to other cells within the spreadsheet and automatically generates column headings and conditional formatting to distinguish business specific input and non-input cells.
B10: SUBMISSION PARTICULARS INPUT SHEETS
B12: ENTITY DETAILS
B14: Short name | C14: Energex | F14: Select business name from drop down list first
B15: ACN / ABN | C15: =INDEX(dms_ABN_List,MATCH(dms_TradingName,dms_TradingName_List)) -> 40078849055
B18: Business address | C18: Address 1 | E18: =INDEX(dms_Addr1_List,MATCH(dms_TradingName,dms_TradingName_List)) -> 26 Reddacliff Street
D19: Address 2 | E19: =IF(ISBLANK(INDEX(dms_Addr2_List,MATCH(dms_TradingName,dms_TradingName_List))),"",(INDEX(dms_Addr2_List,MATCH(dms_TradingName,dms_TradingName_List)))) -> 
C20: Suburb | E20: =INDEX(dms_Suburb_List,MATCH(dms_TradingName,dms_TradingName_List)) -> NEWSTEAD
D21: State | E21: =INDEX(dms_State_List,MATCH(dms_TradingName,dms_TradingName_List)) -> Qld | F21: p/code | G21: =INDEX(dms_PostCode_List,MATCH(dms_TradingName,dms_TradingName_List)) -> 4006
B23: Postal address | C23: Address 1 | E23: GPO Box 1461
D24: Address 2 | E24: =IF(ISBLANK(INDEX(dms_PAddr2_List,MATCH(dms_TradingName,dms_TradingName_List))),"",(INDEX(dms_PAddr2_List,MATCH(dms_TradingName,dms_TradingName_List)))) -> 
C25: Suburb | E25: BRISBANE
D26: State | E26: =INDEX(dms_PState_List,MATCH(dms_TradingName,dms_TradingName_List)) -> QLD | F26: p/code | G26: 4001
B29: Contact name/s | C29: Jenny Doyle
B30: Contact phone/s | C30: 07 3851 6416
B31: Contact email address/s | C31: jenny.doyle@energyq.com.au
B33: REGULATORY CONTROL PERIODS
B35: Forthcoming regulatory control period | C35: 2020-21 | D35: =dms_FRCP_y2 -> 2021-22 | E35: =dms_FRCP_y3 -> 2022-23 | F35: =dms_FRCP_y4 -> 2023-24 | G35: =dms_FRCP_y5 -> 2024-25
C36: =dms_FRCP_y6 -> 2025-26 | D36: =dms_FRCP_y7 -> 2026-27 | E36: =dms_FRCP_y8 -> 2027-28 | F36: =dms_FRCP_y9 -> 2028-29 | G36: =dms_FRCP_y10 -> 2029-30
B39: Current regulatory control period | C39: =dms_CRCP_FirstYear_Result -> 2015-16 | D39: =IF(dms_RPT="financial",VALUE(LEFT(CRCP_y1,4)+1)&"-"&TEXT(MID(CRCP_y1,3,2)+2,"00"),VALUE(LEFT(CRCP_y1,4)+1)) -> 2016-17 | E39: =IF(dms_RPT="financial",VALUE(LEFT(CRCP_y1,4)+2)&"-"&TEXT(VALUE(MID(CRCP_y1,3,2)+3),"00"),VALUE(LEFT(CRCP_y1,4)+2)) -> 2017-18 | F39: =IF(dms_RPT="financial",VALUE(LEFT(CRCP_y1,4)+3)&"-"&TEXT(MID(CRCP_y1,3,2)+4,"00"),VALUE(LEFT(CRCP_y1,4)+3)) -> 2018-19 | G39: =IF(dms_RPT="financial",VALUE(LEFT(CRCP_y1,4)+4)&"-"&TEXT(MID(CRCP_y1,3,2)+5,"00"),VALUE(LEFT(CRCP_y1,4)+4)) -> 2019-20
C40: =IF(dms_RPT="financial",VALUE(LEFT(CRCP_y1,4)+5)&"-"&TEXT(MID(CRCP_y1,3,2)+6,"00"),VALUE(LEFT(CRCP_y1,4)+5)) -> 2020-21 | D40: =IF(dms_RPT="financial",VALUE(LEFT(CRCP_y1,4)+6)&"-"&TEXT(MID(CRCP_y1,3,2)+7,"00"),VALUE(LEFT(CRCP_y1,4)+6)) -> 2021-22 | E40: =IF(dms_RPT="financial",VALUE(LEFT(CRCP_y1,4)+7)&"-"&TEXT(MID(CRCP_y1,3,2)+8,"00"),VALUE(LEFT(CRCP_y1,4)+7)) -> 2022-23 | F40: =IF(dms_RPT="financial",VALUE(LEFT(CRCP_y1,4)+8)&"-"&TEXT(MID(CRCP_y1,3,2)+9,"00"),VALUE(LEFT(CRCP_y1,4)+8)) -> 2023-24 | G40: =IF(dms_RPT="financial",VALUE(LEFT(CRCP_y1,4)+9)&"-"&TEXT(MID(CRCP_y1,3,2)+10,"00"),VALUE(LEFT(CRCP_y1,4)+9)) -> 2024-25
C41: =IF(dms_RPT="financial",VALUE(LEFT(CRCP_y1,4)+10)&"-"&TEXT(MID(CRCP_y1,3,2)+11,"00"),VALUE(LEFT(CRCP_y1,4)+10)) -> 2025-26 | D41: =IF(dms_RPT="financial",VALUE(LEFT(CRCP_y1,4)+11)&"-"&TEXT(MID(CRCP_y1,3,2)+12,"00"),VALUE(LEFT(CRCP_y1,4)+11)) -> 2026-27 | E41: =IF(dms_RPT="financial",VALUE(LEFT(CRCP_y1,4)+12)&"-"&TEXT(MID(CRCP_y1,3,2)+13,"00"),VALUE(LEFT(CRCP_y1,4)+12)) -> 2027-28 | F41: =IF(dms_RPT="financial",VALUE(LEFT(CRCP_y1,4)+13)&"-"&TEXT(MID(CRCP_y1,3,2)+14,"00"),VALUE(LEFT(CRCP_y1,4)+13)) -> 2028-29 | G41: =IF(dms_RPT="financial",VALUE(LEFT(CRCP_y1,4)+14)&"-"&TEXT(MID(CRCP_y1,3,2)+15,"00"),VALUE(LEFT(CRCP_y1,4)+14)) -> 2029-30
B44: Previous regulatory control period | C44: =IF(dms_RPT="financial",VALUE(LEFT(PRCP_y2,4)-1)&"-"&TEXT(VALUE(MID(PRCP_y2,3,2)),"00"),VALUE(LEFT(PRCP_y2,4)-1)) -> 2010-11 | D44: =IF(dms_RPT="financial",VALUE(LEFT(PRCP_y3,4)-1)&"-"&TEXT(VALUE(MID(PRCP_y3,3,2)),"00"),VALUE(LEFT(PRCP_y3,4)-1)) -> 2011-12 | E44: =IF(dms_RPT="financial",VALUE(LEFT(PRCP_y4,4)-1)&"-"&TEXT(VALUE(MID(PRCP_y4,3,2)),"00"),VALUE(LEFT(PRCP_y4,4)-1)) -> 2012-13 | F44: =IF(dms_RPT="financial",VALUE(LEFT(PRCP_y5,4)-1)&"-"&TEXT(VALUE(RIGHT(PRCP_y5,2)-1),"00"),VALUE(LEFT(PRCP_y5,4)-1)) -> 2013-14 | G44: =IF(dms_RPT="financial",VALUE(LEFT(CRCP_y1,4)-1)&"-"&TEXT(VALUE(RIGHT(CRCP_y1,2)-1),"00"),VALUE(LEFT(CRCP_y1,4)-1)) -> 2014-15
B48: Commencing regulatory year | C48: 2017-18 | D48: CRY
B50: Last completed regulatory year | C50: 2017-18 | D50: dms_FinalYear
C54: IF THIS IS AN ABC RIN - make sure the the named range CRY is applied and the named range dms_dollar_nom_UOM is applied
C55: IF THIS IS A RESET RIN - make sure the named ranges CRY and dms_dollar_nom_UOM are NOT present in the workbook
C56: FOR ABC RINS THAT SPAN MULTIPLE YEARS - make sure MultiYear Flag is set and final year entered as required
B58: Source | C58: Reporting | E58: Please select the correct submission type from the dropdown list.
B59: Data quality (actual, estimate, public, consolidated) | C59: Consolidated | E59: Use Consolidated for Consolidated Confidential version Use Public for Consolidated Public version
B60: Amended RIN submission - amendment reason | C60: .
B61: Submission Date | C61: 2018-10-31 | D61: dms_SubmissionDate | E61: Please enter date this file submitted to AER (dd/mm/yyyy)
B62: EBSS - First application of scheme in forthcoming period? | C62: No
B63: Sector | C63: =INDEX(dms_Sector_List,MATCH(dms_TradingName,dms_TradingName_List)) -> Electricity | D63: dms_Sector | E63: =INDEX(dms_Sector_List,MATCH(dms_TradingName,dms_TradingName_List))
B64: Segment | C64: =INDEX(dms_Segment_List,MATCH(dms_TradingName,dms_TradingName_List)) -> Distribution | D64: dms_Segment | E64: =INDEX(dms_Segment_List,MATCH(dms_TradingName,dms_TradingName_List))
B65: Regulatory Year Ending | C65: =IF(dms_MultiYear_Flag=1,LEFT(dms_Specified_FinalYear,2)&RIGHT(dms_Specified_FinalYear,2),INDEX(dms_RYE_Formula_Result,MATCH(dms_Model,dms_Model_List))) -> 2018 | D65: dms_RYE | E65: =IF(dms_MultiYear_Flag=1,LEFT(dms_Specified_FinalYear,2)&RIGHT(dms_Specified_FinalYear,2),INDEX(dms_RYE_Formula_Result,MATCH(dms_Model,dms_Model_List)))
B66: Reporting Period Type | C66: =INDEX(dms_RPT_List,MATCH(dms_TradingName,dms_TradingName_List)) -> Financial | D66: dms_RPT | E66: =INDEX(dms_RPT_List,MATCH(dms_TradingName,dms_TradingName_List))
B67: Model or RIN Type | C67: CA | D67: dms_Model | E67: Drop down selection
B68: EB/CA Unit of Measure for Monetary Values | C68: $0s | D68: dms_dollar_nom_UOM | E68: If the cover sheet is attached to an ABC RIN make the NAMED RANGE on this field is set
B69: Security Classification | C69: Public | D69: dms_Classification | E69: Always Public
B70: Dollar $ real month | C70: =INDEX(dms_RPTMonth_List,MATCH(dms_TradingName,dms_TradingName_List)) -> June | D70: dms_RPTMonth | E70: =INDEX(dms_RPTMonth_List,MATCH(dms_TradingName,dms_TradingName_List))
B71: Dollar $ real (the last month before the FRCP_y1) | C71: =IF(SUM(dms_SingleYear_Model)>0,CONCATENATE(dms_RPTMonth)&" "&VALUE((LEFT(CRY,2))&RIGHT(CRY,2)),CONCATENATE(dms_RPTMonth)&" "&VALUE((LEFT(dms_CRCP_FinalYear_Result,2)&RIGHT(dms_CRCP_FinalYear_Result,2)))) -> June 2018 | D71: dms_DollarReal | E71: =IF(SUM(dms_SingleYear_Model)>0,CONCATENATE(dms_RPTMonth)&" "&VALUE((LEFT(CRY,2))&RIGHT(CRY,2)),CONCATENATE(dms_RPTMonth)&" "&VALUE((LEFT(dms_CRCP_FinalYear_Result,2)&RIGHT(dms_CRCP_FinalYear_Result,2))))
B72: Dollar $ real previous year (PRCP_y5) | C72: =IF(SUM(dms_SingleYear_Model)>0,CONCATENATE(dms_RPTMonth)&" "&VALUE(((LEFT(CRY,2))&RIGHT(CRY,2))-1),CONCATENATE(dms_RPTMonth)&" "&VALUE(((LEFT(dms_CRCP_FirstYear_Result,2)&RIGHT(dms_CRCP_FirstYear_Result,2))))-1) -> June 2017 | D72: dms_DollarReal_Prev | E72: =IF(SUM(dms_SingleYear_Model)>0,CONCATENATE(dms_RPTMonth)&" "&VALUE(((LEFT(CRY,2))&RIGHT(CRY,2))-1),CONCATENATE(dms_RPTMonth)&" "&VALUE(((LEFT(dms_CRCP_FirstYear_Result,2)&RIGHT(dms_CRCP_FirstYear_Result,2))))-1)
B73: Form of control | C73: =INDEX(dms_FormControl_List,MATCH(dms_TradingName,dms_TradingName_List)) -> Revenue cap | D73: dms_FormControl | E73: =INDEX(dms_FormControl_List,MATCH(dms_TradingName,dms_TradingName_List))
B74: Calendar Year for table 3.6 data | C74: =VALUE(dms_RYE)-1 -> 2017 | D74: dms_0306_Year | E74: =VALUE(dms_RYE)-1
B75: Jurisdiction | C75: =INDEX(dms_JurisdictionList,MATCH(dms_TradingName,dms_TradingName_List)) -> Qld | D75: dms_Jurisdiction | E75: =INDEX(dms_JurisdictionList,MATCH(dms_TradingName,dms_TradingName_List))
B76: FOR ABC RINS THAT SPAN MULTIPLE YEARS
B77: Is this a multi year ABC RIN? | C77: No
B78: Backcast Multiyear EB, CA or ARR? | C78: =IF(dms_MultiYear_ResponseFlag="No",0,1) -> 0 | D78: dms_MultiYear_Flag | E78: This is set from the answer provided above
C79: =IF(dms_MultiYear_Flag=1,"Specify Final Reg Year here eg 2016 or 2015-16","not a Multi Reg Year submission") -> not a Multi Reg Year submission | D79: dms_Specified_FinalYear | E79: The result here is returned to dms_CRCP_FinalYear_Result if response to Q in C73 is "yes" and dms_MultiYear_Flag is set to 1
B80: This block works out the various RYE's for both ABC RINs and Reset RINS
B81: Single Year Model T/F | C81: =IF(dms_Model="EB",1,0) -> 0 | D81: dms_EB
C82: =IF(dms_Model="CA",1,0) -> 1 | D82: dms_CA | E82: =dms_SingleYear_Model
C83: =IF(dms_Model="ARR",1,0) -> 0 | D83: dms_ARR
B84: Single Year Final Year Reference | C84: CRY | D84: dms_SingleYear_FinalYear_Ref | E84: This is the reference for EB, CA & ARR RINs
B85: Single Year Final Year Result | C85: =IFERROR(IF(SUM(dms_SingleYear_Model)<>0,(INDIRECT(dms_SingleYear_FinalYear_Ref)),"not a single year RIN"),"CRY not present") -> 2017-18 | D85: dms_SingleYear_FinalYear_Result | E85: =IFERROR(IF(SUM(dms_SingleYear_Model)<>0,(INDIRECT(dms_SingleYear_FinalYear_Ref)),"not a single year RIN"),"CRY not present")
B86: FRCP length in years | C86: =INDEX(dms_FRCPlength_List,MATCH(dms_TradingName,dms_TradingName_List)) -> 5 | D86: dms_FRCPlength_Num | E86: =INDEX(dms_FRCPlength_List,MATCH(dms_TradingName,dms_TradingName_List))
B87: Multi Year Final Year Reference | C87: =INDEX(dms_FinalYear_List,MATCH(dms_FRCPlength_Num,dms_FRCPlength_Num_List)) -> dms_FRCP_y5 | D87: dms_MultiYear_FinalYear_Ref | E87: =INDEX(dms_FinalYear_List,MATCH(dms_FRCPlength_Num,dms_FRCPlength_Num_List))
B88: Multi Year Final Year Result | C88: =IF(dms_MultiYear_Flag=0,INDIRECT(dms_MultiYear_FinalYear_Ref),dms_Specified_FinalYear) -> 2024-25 | D88: dms_MultiYear_FinalYear_Result | E88: =IF(dms_MultiYear_Flag=0,INDIRECT(dms_MultiYear_FinalYear_Ref),dms_Specified_FinalYear) | I88: Formula errors OK
B89: CRCP length in years | C89: =INDEX(dms_CRCPlength_List,MATCH(dms_TradingName,dms_TradingName_List)) -> 5 | D89: dms_CRCPlength_Num | E89: =INDEX(dms_CRCPlength_List,MATCH(dms_TradingName,dms_TradingName_List))
B90: CRCP Final Year Reference | C90: =INDEX(dms_CFinalYear_List,MATCH(dms_CRCPlength_Num,dms_CRCPlength_Num_List)) -> CRCP_y5 | D90: dms_CRCP_FinalYear_Ref | E90: =INDEX(dms_CFinalYear_List,MATCH(dms_CRCPlength_Num,dms_CRCPlength_Num_List))
B91: CRCP First Year Result | C91: =INDEX(dms_CRCP_years,MATCH(dms_CRCPlength_Num,dms_CRCP_index)) -> 2015-16 | D91: dms_CRCP_FirstYear_Result | E91: =INDEX(dms_CRCP_years,MATCH(dms_CRCPlength_Num,dms_CRCP_index))
B92: CRCP Final Year Result | C92: =IF(dms_MultiYear_Flag=0,(IF(SUM(dms_SingleYear_Model)>0,CRY,dms_CRCP_yZ)),dms_Specified_FinalYear) -> 2017-18 | D92: dms_CRCP_FinalYear_Result | E92: =IF(dms_MultiYear_Flag=0,(IF(SUM(dms_SingleYear_Model)>0,CRY,dms_CRCP_yZ)),dms_Specified_FinalYear)
B93: FOR CATEGORY ANALYSIS FILES
B94: How many rows in tables 6.3 sustained interruptions? | C94: =IF(dms_Model<>"CA","not a CA","Is a CA") -> Is a CA | D94: dms_060301_MaxRows only returns a valid value when cover sheet is attached to a CA file
B95: Table 6.3.1 - last row reference | C95: =IFERROR(IF(dms_Model="CA", LOOKUP(2,1/(dms_060301_Avg_Duration_Sustained_Int_Values<>""), (ROW(dms_060301_Avg_Duration_Sustained_Int_Values))), "not a CA"),"no data in 6.3 or 6.3 not present") -> 21361 | D95: dms_060301_LastRow | E95: =IFERROR(IF(dms_Model="CA",LOOKUP(2,1/(dms_060301_Avg_Duration_Sustained_Int_Values<>""),(ROW(dms_060301_Avg_Duration_Sustained_Int_Values))),"not a CA"),"6.3 not present")
B96: Table 6.3.1 - max number rows | C96: =IFERROR(IF(dms_Model="CA",(dms_060301_LastRow-15),"not a CA"),"no data in 6.3 or 6.3 not present") -> 21346 | D96: dms_060301_MaxRows | E96: =IFERROR(IF(dms_Model="CA",(dms_060301_LastRow-15),"not a CA"),"6.3 not present")
B97: Table 6.6.3 - Public lighting repair - no. business days | C97: =INDEX(dms_663_List,MATCH(dms_TradingName,dms_TradingName_List)) -> 5 | D97: dms_663 | E97: =INDEX(dms_663_List,MATCH(dms_TradingName,dms_TradingName_List))
B98: FOR ARR or RESET FILES
B99: How many rows in tables 6.1 or 6.7? (leap year?) | C99: insert dms_LeapYear NR if required | D99: dms_LeapYear is used to determine dms_060701_Max_Rows BUT it is only found on worksheet 6.1 or 6.7 and the date value in the cell is used to determine whether it is a leap year
B100: Is dms_LeapYear named range present? | C100: =IFERROR(IF(dms_LeapYear,"yes"),"no") -> no
B101: Table 6.7.1 - includes a leap year? | C101: =IFERROR(IF(MONTH(DATE(YEAR(dms_LeapYear),2,29))=2,"is a leap year","not a leap year"), "dms_LeapYear not present") -> dms_LeapYear not present | D101: dms_LeapYear_Result | E101: =IFERROR(IF(MONTH(DATE(YEAR(dms_LeapYear),2,29))=2,"is a leap year","not a leap year"),"dms_LeapYear not present")
B102: Table 6.7.1 - Last row (leap year/ non leap year) | C102: =IFERROR(IF(dms_Model="ARR", IF(dms_LeapYear_Result="is a leap year",366,365), (IF(dms_Model="Reset", (IF(dms_LeapYear_Result="is a leap year",1827,1826)), "not a relevant RIN type"))), "dms_LeapYear in either 6.1 or 6.7 not present") -> not a relevant RIN type | D102: dms_060701_MaxRows | E102: =IFERROR(IF(dms_Model="ARR",IF(dms_LeapYear_Result="is a leap year",366,365),(IF(dms_Model="Reset",(IF(dms_LeapYear_Result="is a leap year",1827,1826)),"not a relevant RIN type"))),"dms_LeapYear in either 6.1 or 6.7 not present")
B103: How many columns in 6.7? (4 or 5 feeder categories) | C103: =IF(dms_FifthFeeder_flag_NSP="NO","This NSP has only 4 feeder categories","This NSP has 5 feeder categories") -> This NSP has only 4 feeder categories
B104: Table 6.7.1 - Last column (# of feeder categories > 4) | C104: =IF(dms_FifthFeeder_flag_NSP="NO",10,12) -> 10 | D104: dms_060701_MaxCols | E104: =IF(dms_FifthFeeder_flag_NSP="NO",8,10)
B105: Table 6.7.1 - Number of offset rows | C105: =IF(dms_Model="ARR",15,9) -> 9 | D105: dms_060701_OffsetRows | E105: =IF(dms_Model="ARR",15,9)
B106: Start date for telephone answering in 6.1 or 6.7? | E106: Using 060701 as naming standard not 060101
B107: Table 6.1.1 and 6.7.1 - Start Date as Text | C107: =IF(SUM(dms_SingleYear_Model)>0,(CONCATENATE(IF(LEN(CRY)=4,"1-Jan-","1-Jul-"),LEFT(CRY,4))),(CONCATENATE(IF(LEN(CRCP_y4)=4,"1-Jan-","1-Jul-"),LEFT(CRCP_y4,4)))) -> 1-Jul-2017 | D107: dms_060701_StartDateTxt | E107: =IF(SUM(dms_SingleYear_Model)>1,(CONCATENATE(IF(LEN(CRY)=4,"1-Jan-","1-Jul-"),LEFT(CRY,4))),(CONCATENATE(IF(LEN(CRCP_y4)=4,"1-Jan-","1-Jul-"),LEFT(CRCP_y4,4))))
B108: Table 6.1.1 and 6.7.1 - Start Date as Date Value | C108: =DATEVALUE(dms_060701_StartDateTxt) -> 42917 | D108: dms_060701_StartDateVal | E108: =DATEVALUE(dms_060701_StartDateTxt)
B109: FOR ANNUAL REPORTING RINS
B110: How many rows in table 6.8? | C110: insert dms_060801_StartCell NR if required | D110: dms_060801_StartCell is only found on worksheet 6.8 and is used to determine the starting date for the date range
B111: Table 6.8 - Number of offset rows | C111: =IFERROR(IF(dms_Model="ARR",(ROW(dms_060801_StartCell)-1),"not an ARR"),"6.8 not present") -> not an ARR | D111: dms_0608_OffsetRows | E111: =IFERROR(IF(dms_Model="ARR",(ROW(dms_060801_StartCell)-1),"not an ARR"),"6.8 not present")
B112: Table 6.8 - Last row | C112: =IFERROR(IF(dms_060801_StartCell<>"",IF(dms_Model="ARR",(LOOKUP(2,1/(dms_060801_01_Values<>""),(ROW(dms_060801_01_Values)))),"not an ARR"),0),"6.8 not present") -> 6.8 not present | D112: dms_0608_LastRow | E112: =IFERROR(IF(dms_060801_StartCell<>"",IF(dms_Model="ARR",(LOOKUP(2,1/(dms_060801_01_Values<>""),(ROW(dms_060801_01_Values)))),"not an ARR"),0),"6.8 not present")
B113: Table 6.8 - MaxRows | C113: =IFERROR(IF(dms_Model="ARR",(MAX(0,dms_0608_LastRow-dms_0608_OffsetRows)),"not an ARR"),"6.8 not present") -> not an ARR | D113: dms_060801_MaxRows | E113: =IFERROR(IF(dms_Model="ARR",(MAX(0,dms_0608_LastRow-dms_0608_OffsetRows)),"not an ARR"),"6.8 not present")
B114: FOR TNSP FILES
B115: Table 7.9.4 only appears in TNSPs Reset RIN
B116: Table 7.9.4 - first year | C116: =LEFT(PRCP_y3,4) -> 2012 | D116: dms_070904_Start_Year | E116: =LEFT(PRCP_y3,4)
B117: MISC
B118: Distribution Determination Reference | C118: =INDEX(dms_DeterminationRef_List,MATCH(dms_TradingName,dms_TradingName_List)) -> 2015-20 Distribution Determination | D118: dms_DeterminationRef
B119: Is this Submission File a Subset File | C119: NO | D119: dms_Partial
B120: CBD Feeder for this business | C120: =INDEX(dms_CBD_flag,MATCH(dms_TradingName,dms_TradingName_List)) -> YES | D120: dms_CBD_flag_NSP
B121: Urban Feeder for this business | C121: =INDEX(dms_Urban_flag,MATCH(dms_TradingName,dms_TradingName_List)) -> YES | D121: dms_Urban_flag_NSP
B122: Short rural Feeder for this business | C122: =INDEX(dms_ShortRural_flag,MATCH(dms_TradingName,dms_TradingName_List)) -> YES | D122: dms_ShortRural_flag_NSP
B123: Long rural Feeder for this business | C123: =INDEX(dms_LongRural_flag,MATCH(dms_TradingName,dms_TradingName_List)) -> NO | D123: dms_LongRural_flag_NSP
B124: Fifth Feeder Category (eg. TasNetworks (D)) | C124: =INDEX(dms_FeederType_5_flag,MATCH(dms_TradingName,dms_TradingName_List)) -> NO | D124: dms_FifthFeeder_flag_NSP | E124: =INDEX(dms_FeederType_5_flag,MATCH(dms_TradingName,dms_TradingName_List))
B126: discard this record? | C126: NO | D126: dms_DISCARD | E126: If record is to be discarded from DB set this flag to YES
B128: USES NAMED RANGES FLAG | C128: yes | D128: dms_Defined_Names_Used
B130: REGULATORY YEARS FOR MULTI RYE SUBMISSIONS
B131: Multiple RYE flag | C131: NO | D131: dms_Multi_RYE_flag
C132: Manually specify RYE | D132: Named ranges to apply
C133: 2013 | D133: dms_RYE_01
C134: 2014 | D134: dms_RYE_02
C135: 2015 | D135: dms_RYE_03
C136: 2016 | D136: dms_RYE_04
C137: 2017 | D137: dms_RYE_05

Sheet 2.1 Expenditure summary
B1: REGULATORY REPORTING STATEMENT
B2: =INDEX(dms_TradingNameFull_List,MATCH(dms_TradingName,dms_TradingName_List)) -> Energex
B3: =CONCATENATE((LOOKUP(dms_Model,dms_Model_List,dms_Worksheet_List))&" "&CRY) -> CATEGORY ANALYSIS 2017-18
B4: 2.1 EXPENDITURE SUMMARY & RECONCILIATION
B6: There are SIX tables on this worksheet. Each has been grouped for ease of navigation. See the Instructions sheet on how to group or ungroup tables.
B8: 2.1.1 - STANDARD CONTROL SERVICES CAPEX
C9: EXPENDITURE ($0's)
C10: =CRY -> 2017-18
B11: Replacement expenditure | C11: 162800527.8
B12: Connections | C12: 42692551.35
B13: Augmentation Expenditure | C13: 91918000.3
B14: Non-network | C14: 40894577.82
B15: capitalised network overheads | C15: 71717247.11
B16: capitalised corporate overheads | C16: 100481622.5
B17: Metering | C17: 0
B18: Public Lighting | C18: 0
B26: balancing item | C26: -15957039.38
B27: capcons (included in the above) | C27: 3414263.386
B28: TOTAL GROSS CAPEX (including capcons) | C28: =+SUM(C11:C26) -> 494547487.5
B30: 2.1.2 - STANDARD CONTROL SERVICES OPEX
C31: EXPENDITURE ($0's)
C32: =CRY -> 2017-18
B33: Vegetation management | C33: 41689026.98
B34: Maintenance | C34: 55468138.66
B35: Emergency response | C35: 43818403.71
B36: Non-network | C36: 172686082.2
B37: network overheads | C37: 104518685.8
B38: corporate overheads | C38: 125624012.1
B39: Metering | C39: 0
B40: Public Lighting | C40: 0
B48: balancing item | C48: -179774864.2
B49: TOTAL OPEX | C49: =+SUM(C33:C48) -> 364029485.3
B51: 2.1.3 - ALTERNATIVE CONTROL SERVICES CAPEX
C52: EXPENDITURE ($0's)
C53: =CRY -> 2017-18
B54: Connections | C54: 944530.92
B55: capitalised network overheads | C55: 4788617.637
B56: capitalised corporate overheads | C56: 6544991.955
B57: Metering | C57: 7007955.85
B58: Public lighting | C58: 4539001.66
B59: Fee and quoted | C59: 7672959.76
B67: balancing item | C67: -2156147.39
B68: TOTAL CAPEX | C68: =+SUM(C54:C67) -> 29341910.39
B70: 2.1.4 - ALTERNATIVE CONTROL SERVICES OPEX
C71: EXPENDITURE ($0's)
C72: =CRY -> 2017-18
B73: Connections | C73: 25655868.37
B74: network overheads | C74: 25616575.89
B75: corporate overheads | C75: 24123097.02
B76: Metering | C76: 16709486.01
B77: Public lighting | C77: 12166635.4
B78: Fee and quoted | C78: 34042097.93
B86: balancing item | C86: -44387351.68
B87: TOTAL OPEX | C87: =+SUM(C73:C86) -> 93926408.94
B89: 2.1.5 - DUAL FUNCTION ASSETS CAPEX
C90: EXPENDITURE ($0's)
C91: =CRY -> 2017-18
B92: Replacement expenditure
B93: Connections
B94: Augmentation Expenditure
B95: Non-network
B96: Capitalised network overheads
B97: Capitalised corporate overheads
B105: balancing item
B106: capcons (included in the above)
B107: TOTAL GROSS CAPEX (including capcons) | C107: =SUM(C92:C105) -> 0
B109: 2.1.6 - DUAL FUNCTION ASSETS OPEX
C110: EXPENDITURE ($0's)
C111: =CRY -> 2017-18
B112: Vegetation management
B113: Maintenance
B114: Emergency response
B115: Non-network
B116: Network overheads
B117: Corporate overheads
B125: balancing item
B126: TOTAL OPEX | C126: =SUM(C112:C125) -> 0

Sheet 2.2 Repex
B1: REGULATORY REPORTING STATEMENT
B2: =INDEX(dms_TradingNameFull_List,MATCH(dms_TradingName,dms_TradingName_List)) -> Energex
B3: =CONCATENATE((LOOKUP(dms_Model,dms_Model_List,dms_Worksheet_List))&" "&CRY) -> CATEGORY ANALYSIS 2017-18
B4: 2.2 REPEX
B6: There are TWO tables on this worksheet. Each has been grouped for ease of navigation. See the Instructions sheet on how to group or ungroup tables.
B8: 2.2.1 - REPLACEMENT EXPENDITURE, VOLUMES AND ASSET FAILURES BY ASSET CATEGORY
E9: EXPENDITURE ($0's) | F9: ASSET REPLACEMENTS (0's) | G9: ASSET FAILURES (0's)
B10: ASSET GROUP | C10: ASSET CATEGORY | E10: =CRY -> 2017-18 | F10: =CRY -> 2017-18 | G10: =CRY -> 2017-18
B11: POLES BY: HIGHEST OPERATING VOLTAGE ; MATERIAL TYPE; STAKING (IF WOOD) | C11: Staking of a wooden pole | E11: 1516969.07 | F11: 1560 | G11: 0
C12: ˂ = 1 kV; Wood | E12: 6488294.721 | F12: 2092 | G12: 1
C13: > 1 kV & < = 11 kV; Wood | E13: 11972315.58 | F13: 2545 | G13: 1
C14: ˃ 11 kV & < = 22 kV; Wood | E14: 0 | F14: 0 | G14: 0
C15: > 22 kV & < = 66 kV; Wood | E15: 2134681.445 | F15: 255 | G15: 0
C16: > 66 kV & < = 132 kV; Wood | E16: 703063.9834 | F16: 3 | G16: 0
C17: > 132 kV; Wood | E17: 0 | F17: 0 | G17: 0
C18: ˂ = 1 kV; Concrete | E18: 0 | F18: 0 | G18: 0
C19: > 1 kV & < = 11 kV; Concrete | E19: 654504.7081 | F19: 56 | G19: 0
C20: ˃ 11 kV & < = 22 kV; Concrete | E20: 0 | F20: 0 | G20: 0
C21: > 22 kV & < = 66 kV; Concrete | E21: 0 | F21: 0 | G21: 0
C22: > 66 kV & < = 132 kV; Concrete | E22: 0 | F22: 0 | G22: 0
C23: > 132 kV; Concrete | E23: 0 | F23: 0 | G23: 0
C24: ˂ = 1 kV; Steel | E24: 0 | F24: 0 | G24: 2
C25: > 1 kV & < = 11 kV; Steel | E25: 0 | F25: 0 | G25: 0
C26: ˃ 11 kV & < = 22 kV; Steel | E26: 0 | F26: 0 | G26: 0
C27: > 22 kV & < = 66 kV; Steel | E27: 0 | F27: 0 | G27: 0
C28: > 66 kV & < = 132 kV; Steel | E28: 0 | F28: 0 | G28: 0
C29: > 132 kV; Steel | E29: 0 | F29: 0 | G29: 0
C30: Other | E30: 0 | F30: 0 | G30: 1
B31: POLE TOP STRUCTURES BY: HIGHEST OPERATING VOLTAGE | C31: ˂ = 1 kV | E31: 5640687.854 | F31: 4426 | G31: 67
C32: > 1 kV & < = 11 kV | E32: 5282551.569 | F32: 4964 | G32: 40
C33: ˃ 11 kV & < = 22 kV | E33: 0 | F33: 0 | G33: 0
C34: > 22 kV & < = 66 kV | E34: 306668.7993 | F34: 214 | G34: 2
C35: > 66 kV & < = 132 kV | E35: 126384.7129 | F35: 4 | G35: 0
C36: > 132 kV | E36: 0 | F36: 0 | G36: 0
C37: Other | E37: 133.3164096 | F37: 0 | G37: 0
B38: OVERHEAD CONDUCTORS BY: HIGHEST OPERATING VOLTAGE; NUMBER OF PHASES (AT HV) | C38: ˂ = 1 kV | E38: 6172495.023 | F38: 102.636 | G38: 27
C39: > 1 kV & < = 11 kV | E39: 4565658.352 | F39: 164.9452 | G39: 38
C40: ˃ 11 kV & < = 22 kV ; SWER | E40: 1006.138329 | F40: 0 | G40: 0
C41: ˃ 11 kV & < = 22 kV ; Single-Phase | E41: 0 | F41: 0 | G41: 0
C42: ˃ 11 kV & < = 22 kV ; Multiple-Phase | E42: 0 | F42: 0 | G42: 0
C43: > 22 kV & < = 66 kV | E43: 198739.5803 | F43: 1.3526 | G43: 4
C44: > 66 kV & < = 132 kV | E44: 46333.03646 | F44: 0.93225 | G44: 0
C45: > 132 kV | E45: 0 | F45: 0 | G45: 0
C46: Other | E46: 0 | F46: 0 | G46: 0
B47: UNDERGROUND CABLES BY: HIGHEST OPERATING VOLTAGE | C47: ˂ = 1 kV | E47: 2765322.451 | F47: 14.063 | G47: 38
C48: > 1 kV & < = 11 kV | E48: 2977523.128 | F48: 6.34864 | G48: 15
C49: > 11 kV & < = 22 kV | E49: 0 | F49: 0 | G49: 1
C50: > 22 kV & < = 33 kV | E50: 3405486.433 | F50: 3.1575 | G50: 0
C51: > 33 kV & < = 66 kV | E51: 0 | F51: 0 | G51: 0
C52: > 66 kV & < = 132 kV | E52: 11411.05337 | F52: 0 | G52: 0
C53: > 132 kV | E53: 0 | F53: 0.009 | G53: 0
C54: Other | E54: 0 | F54: 0 | G54: 0
B55: SERVICE LINES BY: CONNECTION VOLTAGE; CUSTOMER TYPE; CONNECTION COMPLEXITY | C55: ˂ = 11 kV ; Residential ; Simple Type | E55: 13285663.46 | F55: 31555.0064 | G55: 2697
C56: ˂ = 11 kV ; Commercial & Industrial ; Simple Type | E56: 1155275.083 | F56: 2743.9136 | G56: 0
C57: ˂ = 11 kV ; Residential ; Complex Type | E57: 0 | F57: 0 | G57: 0
C58: ˂ = 11 kV ; Commercial & Industrial ; Complex Type | E58: 0 | F58: 0 | G58: 0
C59: ˂ = 11 kV ; Subdivision ; Complex Type | E59: 0 | F59: 0 | G59: 0
C60: > 11 kV & < = 22 kV ; Commercial & Industrial | E60: 0 | F60: 0 | G60: 0
C61: > 11 kV & < = 22 kV ; Subdivision | E61: 0 | F61: 0 | G61: 0
C62: > 22 kV & < = 33 kV ; Commercial & Industrial | E62: 0 | F62: 0 | G62: 0
C63: > 22 kV & < = 33 kV ; Subdivision | E63: 0 | F63: 0 | G63: 0
C64: > 33 kV & < = 66 kV ; Commercial & Industrial | E64: 0 | F64: 0 | G64: 0
C65: > 33 kV & < = 66 kV ; Subdivision | E65: 0 | F65: 0 | G65: 0
C66: > 66 kV & < = 132 kV ; Commercial & Industrial | E66: 0 | F66: 0 | G66: 0
C67: > 66 kV & < = 132 kV ; Subdivision | E67: 0 | F67: 0 | G67: 0
C68: > 132 kV ; Commercial & Industrial | E68: 0 | F68: 0 | G68: 0
C69: > 132 kV ; Subdivision | E69: 0 | F69: 0 | G69: 0
C70: Other | E70: 15.1943626 | F70: 0 | G70: 0
B71: TRANSFORMERS BY: MOUNTING TYPE; HIGHEST OPERATING VOLTAGE ; AMPERE RATING; NUMBER OF PHASES (AT LV) | C71: Pole Mounted ; < = 22kV ; < = 60 kVA ; Single Phase | E71: 612269.2931 | F71: 90 | G71: 2
C72: Pole Mounted ; < = 22kV ; > 60 kVA and < = 600 kVA ; Single Phase | E72: 0 | F72: 0 | G72: 0
C73: Pole Mounted ; < = 22kV ; > 600 kVA ; Single Phase | E73: 0 | F73: 0 | G73: 0
C74: Pole Mounted ; < = 22kV ; < = 60 kVA ; Multiple Phase | E74: 813089.9019 | F74: 99 | G74: 27
C75: Pole Mounted ; < = 22kV ; > 60 kVA and < = 600 kVA ; Multiple Phase | E75: 7053072.023 | F75: 393 | G75: 77
C76: Pole Mounted ; < = 22kV ; > 600 kVA ; Multiple Phase | E76: 0 | F76: 0 | G76: 0
C77: Kiosk Mounted ; < = 22kV ; < = 60 kVA ; Single Phase | E77: 0 | F77: 0 | G77: 0
C78: Kiosk Mounted ; < = 22kV ; > 60 kVA and < = 600 kVA ; Single Phase | E78: 0 | F78: 0 | G78: 0
C79: Kiosk Mounted ; < = 22kV ; > 600 kVA ; Single Phase | E79: 0 | F79: 0 | G79: 0
C80: Kiosk Mounted ; < = 22kV ; < = 60 kVA ; Multiple Phase | E80: 0 | F80: 0 | G80: 0
C81: Kiosk Mounted ; < = 22kV ; > 60 kVA and < = 600 kVA ; Multiple Phase | E81: 6001772.241 | F81: 114 | G81: 12
C82: Kiosk Mounted ; < = 22kV ; > 600 kVA ; Multiple Phase | E82: 518761.6743 | F82: 7 | G82: 3
C83: Ground Outdoor / Indoor Chamber Mounted; ˂ 22 kV ; < = 60 kVA ; Single Phase | E83: 0 | F83: 0 | G83: 0
C84: Ground Outdoor / Indoor Chamber Mounted; ˂ 22 kV ; > 60 kVA and < = 600 kVA ; Single Phase | E84: 0 | F84: 0 | G84: 0
C85: Ground Outdoor / Indoor Chamber Mounted; ˂ 22 kV ; > 600 kVA ; Single Phase | E85: 0 | F85: 0 | G85: 0
C86: Ground Outdoor / Indoor Chamber Mounted; ˂ 22 kV ; < = 60 kVA ; Multiple Phase | E86: 0 | F86: 0 | G86: 0
C87: Ground Outdoor / Indoor Chamber Mounted; ˂ 22 kV ; > 60 kVA and < = 600 kVA ; Multiple Phase | E87: 536628.3238 | F87: 4 | G87: 0
C88: Ground Outdoor / Indoor Chamber Mounted; ˂ 22 kV ; > 600 kVA ; Multiple Phase | E88: 721344.563 | F88: 18 | G88: 3
C89: Ground Outdoor / Indoor Chamber Mounted; > = 22 kV & < = 33 kV ; < = 15 MVA | E89: 1148400.336 | F89: 0 | G89: 1
C90: Ground Outdoor / Indoor Chamber Mounted; > = 22 kV & < = 33 kV ; > 15 MVA and < = 40 MVA | E90: 8125339.72 | F90: 2 | G90: 0
C91: Ground Outdoor / Indoor Chamber Mounted; > = 22 kV & < = 33 kV ; > 40 MVA | E91: 0 | F91: 0 | G91: 0
C92: Ground Outdoor / Indoor Chamber Mounted; > 33 kV & < = 66 kV ; < = 15 MVA | E92: 0 | F92: 0 | G92: 0
C93: Ground Outdoor / Indoor Chamber Mounted; > 33 kV & < = 66 kV ; > 15 MVA and < = 40 MVA | E93: 0 | F93: 0 | G93: 0
C94: Ground Outdoor / Indoor Chamber Mounted; > 33 kV & < = 66 kV ; > 40 MVA | E94: 0 | F94: 0 | G94: 0
C95: Ground Outdoor / Indoor Chamber Mounted; > 66 kV & < = 132 kV ; < = 100 MVA | E95: 36240.92173 | F95: 0 | G95: 0
C96: Ground Outdoor / Indoor Chamber Mounted; > 66 kV & < = 132 kV ; > 100 MVA | E96: 0 | F96: 0 | G96: 0
C97: Ground Outdoor / Indoor Chamber Mounted; > 132 kV ; < = 100 MVA | E97: 0 | F97: 0 | G97: 0
C98: Ground Outdoor / Indoor Chamber Mounted; > 132 kV ; > 100 MVA | E98: 0 | F98: 0 | G98: 0
C99: Other | E99: 0 | F99: 0 | G99: 0
B100: SWITCHGEAR BY: HIGHEST OPERATING VOLTAGE ; SWITCH FUNCTION | C100: ˂ = 11 kV ; FUSE | E100: 991528.1192 | F100: 3 | G100: 184
C101: ˂ = 11 kV ; Switch | E101: 13009222.96 | F101: 2314 | G101: 51
C102: ˂ = 11 kV ; Circuit Breaker | E102: 11030369.3 | F102: 59 | G102: 12
C103: > 11 kV & < = 22 kV ; Switch | E103: 0 | F103: 0 | G103: 0
C104: > 11 kV & < = 22 kV ; Circuit Breaker | E104: 0 | F104: 0 | G104: 0
C105: > 22 kV & < = 33 kV ; Switch | E105: 2854397.64 | F105: 91 | G105: 0
C106: > 22 kV & < = 33 kV ; Circuit Breaker | E106: 11492700.05 | F106: 25 | G106: 4
C107: > 33 kV & < = 66 kV ; Switch | E107: 0 | F107: 0 | G107: 0
C108: > 33 kV & < = 66 kV ; Circuit Breaker | E108: 0 | F108: 0 | G108: 0
C109: > 66 kV & < = 132 kV ; Switch | E109: 2891.695504 | F109: 0 | G109: 0
C110: > 66 kV & < = 132 kV ; Circuit Breaker | E110: 6690.552186 | F110: 0 | G110: 0
C111: > 132 kV ; Switch | E111: 0 | F111: 0 | G111: 0
C112: > 132 kV ; Circuit Breaker | E112: 0 | F112: 0 | G112: 0
C113: Other | E113: 4822.444009 | F113: 0 | G113: 0
B114: PUBLIC LIGHTING BY: ASSET TYPE ; LIGHTING OBLIGATION | C114: Luminaires ; Major Road | E114: 384365.2374 | F114: 203 | G114: 0
C115: Luminaires ; Minor Road | E115: 1873026.586 | F115: 921 | G115: 0
C116: Brackets ; Major Road | E116: 347290.0046 | F116: 119 | G116: 0
C117: Brackets ; Minor Road | E117: 864406.7597 | F117: 1207 | G117: 0
C118: Lamps ; Major Road | E118: 78.49526203 | F118: 1 | G118: 0
C119: Lamps ; Minor Road | E119: 153.2989221 | F119: -36 | G119: 0
C120: Poles / Columns ; Major Road | E120: 190257.9609 | F120: 16 | G120: 0
C121: Poles / Columns ; Minor Road | E121: 134994.1647 | F121: 119 | G121: 0
C122: Other | E122: 1201.709707 | F122: 2 | G122: 0
B123: SCADA, NETWORK CONTROL AND PROTECTION SYSTEMS BY: FUNCTION | C123: Field Devices | E123: 10693679.39 | F123: 480 | G123: 348
C124: Local Network Wiring Assets | E124: 0 | F124: 0 | G124: 0
C125: Communications Network Assets | E125: 3466063.598 | F125: 60 | G125: 14
C126: Master Station Assets | E126: 0 | F126: 0 | G126: 0
C127: Communications Site Infrastructure | E127: 203269.158 | F127: 0 | G127: 8
C128: Communications Linear Assets | E128: 4696409.47 | F128: 139.092 | G128: 2
C129: AFLC | E129: 463313.2692 | F129: 3 | G129: 1
C130: Other | E130: 1648192.411 | F130: 147 | G130: 0
B131: OTHER BY: DNSP DEFINED | C131: Other non AER Asset Categories | E131: 3463099.811 | F131: 216 | G131: 0
B149: 2.2.2 - SELECTED ASSET CHARACTERISTICS
E150: ASSET VOLUMES CURRENTLY IN COMMISSION | F150: ASSET REPLACEMENTS (0's)
B151: ASSET GROUP | C151: METRIC | D151: UNITS | E151: =CRY -> 2017-18 | F151: =CRY -> 2017-18
B152: TOTAL POLES BY: FEEDER TYPE | C152: Total CBD poles | D152: Number | E152: 0 | F152: 0
C153: Total urban poles | D153: Number | E153: 232920 | F153: 2571.802078
C154: Total rural long poles | D154: Number | E154: 0 | F154: 0
C155: Total rural short poles | D155: Number | E155: 215477 | F155: 2379
B156: OVERHEAD CONDUCTORS BY: CONDUCTOR LENGTH BY FEEDER TYPE | C156: Conductors CBD | D156: KM | E156: 0.09 | F156: 0
C157: Conductors urban | D157: KM | E157: 13566 | F157: 104.3347726
C158: Conductors rural long | D158: KM | E158: 0 | F158: 0
C159: Conductors rural short | D159: KM | E159: 21523 | F159: 166
B160: OVERHEAD CONDUCTORS BY: CONDUCTOR LENGTH MATERIAL TYPE | C160: OH conductor LV ABC | D160: KM | E160: 3541 | F160: 27.23348294
C161: OH conductor steel | D161: KM | E161: 798 | F161: 6.137339562
C162: OH conductor ACSR | D162: KM | E162: 7379 | F162: 56.7511637
C163: OH conductor AAAC | D163: KM | E163: 179 | F163: 1.376671406
C164: OH conductor AAC | D164: KM | E164: 16977 | F164: 130.5684383
C165: OH conductor HDBC | D165: KM | E165: 6215 | F165: 47.79895411
C166: Other | D166: KM | E166: 0 | F166: 0
B167: UNDERGROUND CABLES BY: CABLE LENGTH BY FEEDER TYPE | C167: Cable CBD | D167: KM | E167: 209 | F167: 0.256979102
C168: Cable urban | D168: KM | E168: 12812 | F168: 15.75318782
C169: Cable rural long | D169: KM | E169: 0 | F169: 0
C170: Cable rural short | D170: KM | E170: 6155 | F170: 8
B171: TRANSFORMERS BY: TOTAL MVA | C171: Total MVA replaced | D171: MVA | E171: 32046 | F171: 254
C172: Total MVA disposed of | D172: MVA | E172: 32046 | F172: 194

Sheet 2.3(a) Augex
B1: REGULATORY REPORTING STATEMENT
B2: =INDEX(dms_TradingNameFull_List,MATCH(dms_TradingName,dms_TradingName_List)) -> Energex
B3: =CONCATENATE((LOOKUP(dms_Model,dms_Model_List,dms_Worksheet_List))&" "&CRY) -> CATEGORY ANALYSIS 2017-18
B4: 2.3 AUGEX PROJECT DATA
B7: There are TWO tables on this worksheet - each has been 'grouped' for easy navigation. Both ROWS and COLUMNS have been grouped. See the Instructions sheet on how to group or ungroup tables.
B9: 2.3.1 - AUGEX ASSET DATA - SUBTRANSMISSION SUBSTATIONS, SWITCHING STATIONS AND ZONE SUBSTATIONS
B10: NOTE: DNSP MUST PROVIDE EXPENDITURE INFORMATION ON A PROJECT CLOSE BASIS.
B11: PROJECT DESCRIPTION AND CHANGES | L11: PLANT AND EQUIPMENT EXPENDITURE AND VOLUME | X11: OTHER EXPENDITURE | Z11: TOTAL DIRECT EXPENDITURE ($0's) | AA11: YEARS INCURRED | AB11: ALL RELATED PARTY CONTRACTS | AD11: ALL NON RELATED PARTY CONTRACTS | AE11: LAND AND EASEMENTS
B12: SUBSTATION ID | C12: SUBSTATION TYPE (drop down) | D12: PROJECT ID | E12: PROJECT TYPE (drop down) | F12: PROJECT TRIGGER (drop down) | G12: VOLTAGE (KV) | H12: SUBSTATION RATING NORMAL CYCLIC (MVA) | J12: SUBSTATION RATING N-1 EMERGENCY (MVA) | L12: TRANSFORMERS | O12: SWITCHGEAR | Q12: CAPACITORS | U12: OTHER PLANT ITEM | V12: INSTALLATION (LABOUR) | X12: CIVIL WORKS | Y12: OTHER DIRECT | AB12: RELATED PARTY MARGINS | AC12: TOTAL | AE12: LAND PURCHASE | AF12: EASEMENTS
H13: PRE | I13: POST | J13: PRE | K13: POST | L13: UNITS ADDED | M13: MVA ADDED | N13: EXPENDITURE ($0's) | O13: UNITS ADDED | P13: EXPENDITURE ($0's) | Q13: MVAR ADDED | R13: EXPENDITURE ($0's) | U13: EXPENDITURE ($0's) | V13: VOLUME | W13: EXPENDITURE ($0's) | X13: EXPENDITURE ($0's) | AB13: EXPENDITURE ($0's) | AE13: EXPENDITURE ($0's)
B14: SSGLY | C14: Zone substation | D14: C0062104 | E14: Substation upgrade - capacity | F14: Demand growth | G14: 11 | H14: 28.05 | I14: 60 | J14: 16.77 | K14: 33.75 | L14: 2 | M14: 50 | N14: 1348040.82 | O14: 23 | P14: 594370.8 | Q14: 5.4 | R14: 141252.21 | U14: 1884062.58 | V14: 15990.47 | W14: 1166521.42 | X14: 196375.34 | Y14: 2237314.63 | Z14: =SUM(N14,P14,R14,U14,W14,X14,Y14) -> 7567937.8 | AA14: 2008, 2009, 2010, 2011, 2012, 2013, 2014, 2015, 2016, 2017, 2018 | AB14: 0 | AC14: 0 | AD14: 3902974.8 | AE14: 0 | AF14: 0
B15: SSHTN | C15: Zone substation | D15: C0065200 | E15: Substation upgrade - capacity | F15: Demand growth | G15: 11 | H15: 35.2 | I15: 55 | J15: 20 | K15: 35 | L15: 2 | M15: 50 | N15: 1296488.86 | O15: 7 | P15: 325128.62 | Q15: 5.4 | R15: 143247.1 | U15: 1513402.78 | V15: 20711.25 | W15: 1501231.69 | X15: 134539.54 | Y15: 1087364 | Z15: 6001402.59 | AA15: 2009, 2010, 2011, 2012, 2013, 2014, 2015, 2016, 2017, 2018 | AB15: 0 | AC15: 0 | AD15: 1623294.48 | AE15: 0 | AF15: 0
B16: SSSFC | C16: Zone substation | D16: C0101112 | E16: New substation establishment | F16: Demand growth | G16: 11 | H16: 0 | I16: 55 | J16: 0 | K16: 31.25 | L16: 2 | M16: 50 | N16: 1332978.64 | O16: 18 | P16: 610882.06 | Q16: 0 | R16: 377010 | U16: 6277836.34 | V16: 13477.83 | W16: 932191.86 | X16: 442003.85 | Y16: 5286035.18 | Z16: 15258937.93 | AA16: 2009, 2010, 2011, 2012, 2013, 2014, 2015, 2016, 2017, 2018 | AB16: 0 | AC16: 0 | AD16: 17209684.86 | AE16: 0 | AF16: 0
B17: SSDBS | C17: Subtransmission substation | D17: C0112635 | E17: Other | F17: Demand growth | G17: 33 | H17: 236.25 | I17: 236.25 | J17: 192 | K17: 192 | L17: 0 | M17: 0 | N17: 0 | O17: 2 | P17: 60655.53 | Q17: 5.4 | R17: 141673.79 | U17: 3293435.22 | V17: 23166.82 | W17: 1723704.53 | X17: 39930.76 | Y17: 1183462.84 | Z17: 6442862.67 | AA17: 2009, 2010, 2011, 2012, 2013, 2014, 2015, 2016, 2017, 2018 | AB17: 0 | AC17: 0 | AD17: 3177998.89 | AE17: 0 | AF17: 0
B18: SSMLB | C18: Zone substation | D18: C0124994 | E18: Other | F18: Reactive power issue | G18: 11 | H18: 67.8 | I18: 67.8 | J18: 40.5 | K18: 40.5 | L18: 0 | M18: 0 | N18: 649445.62 | O18: 10 | P18: 3283229.69 | Q18: 125 | R18: 751656.3 | U18: 921345.74 | V18: 15542.9 | W18: 1127984.06 | X18: 56047.08 | Y18: 1948830.8 | Z18: 8738539.29 | AA18: 2009, 2010, 2011, 2012, 2013, 2014, 2015, 2016, 2017, 2018 | AB18: 0 | AC18: 0 | AD18: 2208974.91 | AE18: 0 | AF18: 0
B19: SSGBG | C19: Zone substation | D19: C0131194 | E19: Substation upgrade - capacity | F19: Demand growth | G19: 11 | H19: 52.5 | I19: 78.25 | J19: 31.25 | K19: 62.5 | L19: 1 | M19: 25 | N19: 0 | O19: 13 | P19: 429889.25 | Q19: 0 | R19: 0 | U19: 2228112.3 | V19: 9585.5 | W19: 721977 | X19: 111893.4 | Y19: 904345.58 | Z19: 4396217.53 | AA19: 2010, 2011, 2012, 2013, 2014, 2015, 2016, 2017, 2018 | AB19: 0 | AC19: 0 | AD19: 2232609.95 | AE19: 0 | AF19: 0
B20: SSYTA | C20: Zone substation | D20: C0138982 | E20: Substation upgrade - capacity | F20: Demand growth | G20: 11 | H20: 55 | I20: 63 | J20: 31.25 | K20: 62.5 | L20: 1 | M20: 60 | N20: 1502922.23 | O20: 24 | P20: 3254458.01 | Q20: 0 | R20: 0 | U20: 3475475.54 | V20: 16825.42 | W20: 1276726.23 | X20: 88290.37 | Y20: 1689485.28 | Z20: 11287357.66 | AA20: 2010, 2011, 2012, 2013, 2014, 2015, 2016, 2017, 2018 | AB20: 0 | AC20: 0 | AD20: 6778689.14 | AE20: 0 | AF20: 0
B21: SSCST | C21: Zone substation | D21: C0152828 | E21: Other | F21: Fault level issues | G21: 11 | H21: 186.9 | I21: 186.9 | J21: 147.5 | K21: 147.5 | L21: 0 | M21: 0 | N21: 0 | O21: 0 | P21: 4396497.8 | Q21: 0 | R21: 0 | U21: 671638.94 | V21: 19501.38 | W21: 1526825.24 | X21: 13168.32 | Y21: 819191.63 | Z21: 7427321.93 | AA21: 2011, 2012, 2013, 2014, 2015, 2016, 2017, 2018 | AB21: 0 | AC21: 0 | AD21: 2000572.65 | AE21: 0 | AF21: 0
Z22: 0
Z23: 0
Z24: 0
Z25: 0
Z26: 0
Z27: 0
Z28: 0
Z29: 0
Z30: 0
Z31: 0
Z32: 0
Z33: 0
Z34: 0
Z35: 0
Z36: 0
Z37: 0
Z38: 0
Z39: 0
Z40: 0
Z41: 0
Z42: 0
Z43: 0
Z44: 0
Z45: 0
Z46: =SUM(N46,P46,R46,U46,W46,X46,Y46) -> 0
Z47: 0
Z48: 0
Z49: 0
Z50: 0
Z51: 0
Z52: 0
Z53: 0
Z54: 0
Z55: 0
Z56: 0
Z57: 0
Z58: 0
Z59: 0
Z60: 0
Z61: 0
Z62: 0
Z63: 0
Z64: 0
Z65: 0
D66: Non material projects - [actual] | Z66: 27732730.93 | AA66: 2004, 2005, 2006, 2007, 2008, 2009, 2010, 2011, 2012, 2013, 2014, 2015, 2016, 2017, 2018
B69: AUG232_1 | C69: AUG232_2 | D69: AUG232_3 | E69: AUG232_4 | F69: AUG232_5 | G69: AUG232_6 | H69: ED_AUG232_00001 | I69: ED_AUG232_00002 | J69: ED_AUG232_00003 | K69: ED_AUG232_00004 | L69: ED_AUG232_00005 | M69: ED_AUG232_00006 | N69: ED_AUG232_00007 | O69: ED_AUG232_00008 | P69: ED_AUG232_00009 | Q69: ED_AUG232_00010 | R69: ED_AUG232_00011 | S69: ED_AUG232_00012 | T69: ED_AUG232_00013 | U69: ED_AUG232_00014 | V69: ED_AUG232_00015 | W69: ED_AUG232_00016 | X69: ED_AUG232_00017 | Y69: ED_AUG232_00018 | Z69: ED_AUG232_00019 | AA69: ED_AUG232_00020 | AB69: ED_AUG232_00021
B70: 2.3.2 - AUGEX ASSET DATA - SUBTRANSMISSION LINES
B71: NOTE: DNSP MUST PROVIDE EXPENDITURE INFORMATION ON A PROJECT CLOSE BASIS.
B72: PROJECT DESCRIPTION AND CHANGES | L72: PLANT AND EQUIPMENT EXPENDITURE AND VOLUME | X72: OTHER EXPENDITURE | Z72: TOTAL DIRECT EXPENDITURE ($0's) | AA72: YEARS INCURRED | AB72: ALL RELATED PARTY CONTRACTS | AD72: ALL NON RELATED PARTY CONTRACTS | AE72: LAND AND EASEMENTS
B73: LINE ID | C73: PROJECT ID | D73: PROJECT TYPE | E73: PROJECT TRIGGER | G73: VOLTAGE (KV) | H73: ROUTE LINE LENGTH ADDED | L73: POLES/TOWERS (INCLUDING STRUCTURES, AND CIVIL WORKS) | O73: OVERHEAD LINES | R73: UNDERGROUND CABLES | U73: OTHER PLANT ITEM | V73: INSTALLATION (LABOUR) | X73: CIVIL WORKS | Y73: OTHER DIRECT | AB73: RELATED PARTY MARGINS | AC73: TOTAL | AE73: LAND PURCHASE | AF73: EASEMENTS
H74: KM ADDED | L74: POLES/TOWERS ADDED | M74: POLES/TOWERS UPGRADED | N74: EXPENDITURE ($0's) | O74: CIRCUIT KM ADDED | P74: CIRCUIT KM UPGRADED | Q74: EXPENDITURE ($0's) | R74: CIRCUIT KM ADDED | S74: CIRCUIT KM UPGRADED | T74: EXPENDITURE ($0's) | U74: EXPENDITURE ($0's) | V74: VOLUME | W74: EXPENDITURE ($0's) | X74: EXPENDITURE ($0's) | AB74: EXPENDITURE ($0's) | AE74: EXPENDITURE ($0's)
B75: F3880, F3881 | C75: C0101112 | D75: New line on new route - dual circuit | E75: Demand growth | F75: 0 | G75: Other | H75: 9.7 | I75: 2.9 | J75: 0 | K75: 0 | L75: 0 | M75: 0 | N75: 0 | O75: 0 | P75: 0 | Q75: 0 | R75: 8.6 | S75: 0 | T75: 1777536.25 | U75: 0 | V75: 13447.83 | W75: 932191.86 | X75: 442003.85 | Y75: 5286035.18 | Z75: =SUM(N75,Q75,T75,U75,W75,X75,Y75) -> 8437767.14 | AA75: 2009, 2010, 2011, 2012, 2013, 2014, 2015, 2016, 2017, 2018 | AB75: 0 | AC75: 0 | AD75: 17209684.86 | AE75: 0 | AF75: 0 | AH75: New line on new route - single circuit
B76: F414, F560, F569, F557 | C76: C0112635 | D76: New line on new route - other | E76: Demand growth | F76: 0 | G76: Other | H76: 0.12 | I76: 2.7 | J76: 2.5 | K76: 0 | L76: 20 | M76: 72 | N76: 147455.03 | O76: 0.5 | P76: 1.6 | Q76: 13653.42 | R76: 4.03 | S76: 0 | T76: 1626504.95 | U76: 0 | V76: 23166.82 | W76: 1723704.53 | X76: 39930.76 | Y76: 1183462.84 | Z76: 4734711.53 | AA76: 2009, 2010, 2011, 2012, 2013, 2014, 2015, 2016, 2017, 2018 | AB76: 0 | AC76: 0 | AD76: 3177998.89 | AE76: 0 | AF76: 0 | AH76: New line on new route - dual circuit
Z77: 0 | AH77: New line on new route - other
Z78: 0 | AH78: Line rebuild over existing route - single circuit
Z79: 0 | AH79: Line rebuild over existing route - dual circuit
Z80: 0 | AH80: Reconductor - Single circuit
Z81: 0 | AH81: Reconductor - Dual circuit
Z82: 0 | AH82: Reconductor - Other
Z83: 0 | AH83: Line upgrade - raising/retensoring
Z84: 0 | AH84: Line upgrade - voltage upgrade
Z85: 0 | AH85: Line upgrade - capacity
Z86: 0 | AH86: String spare circuit
Z87: 0 | AH87: Other
Z88: 0
Z89: 0
Z90: 0
Z91: 0
Z92: 0
Z93: 0
Z94: 0
Z95: 0
Z96: 0
Z97: 0
Z98: 0
Z99: 0
Z100: 0
Z101: 0
Z102: 0
Z103: 0
Z104: 0
Z105: 0
Z106: 0
Z107: =SUM(N107,Q107,T107,U107,W107,X107,Y107) -> 0
Z108: 0
Z109: 0
Z110: 0
Z111: 0
Z112: 0
Z113: 0
Z114: 0
Z115: 0
Z116: 0
Z117: 0
Z118: 0
Z119: 0
Z120: 0
Z121: 0
Z122: 0
Z123: 0
Z124: 0
Z125: 0
Z126: 0
Z127: 0
Z128: 0
C129: Non material projects - [actual] | Z129: 27102123.95 | AA129: ='[1]2.3(a) Augex CONSOLIDATED'!AA129 -> 2008, 2009,2010,2011,2012,2013,2014,2015,2016,2017,2018

Sheet 2.3(b) Augex
B1: REGULATORY REPORTING STATEMENT
B2: =INDEX(dms_TradingNameFull_List,MATCH(dms_TradingName,dms_TradingName_List)) -> Energex
B3: =CONCATENATE((LOOKUP(dms_Model,dms_Model_List,dms_Worksheet_List))&" "&CRY) -> CATEGORY ANALYSIS 2017-18
B4: 2.3 AUGEX DATA
B6: There are TWO tables on this worksheet. Each has been grouped for ease of navigation. See the Instructions sheet on how to group or ungroup tables.
B8: 2.3.3 - AUGEX DATA - HV/LV FEEDERS AND DISTRIBUTION SUBSTATIONS
B9: NOTE: DNSP MUST PROVIDE EXPENDITURE INFORMATION ON AN AS INCURRED BASIS.
B10: DESCRIPTOR METRICS
B11: PROJECT TYPE | D11: UNITS ADDED (0's) | E11: UNITS UPGRADED (0's)
C12: UNITS | D12: =CRY -> 2017-18 | E12: =CRY -> 2017-18
B13: HV Feeder Augmentations - Overhead Lines | C13: Circuit line length in km | D13: 17.0347 | E13: 59.632
B14: HV Feeder Augmentations - Underground Cables | C14: Circuit line length in km | D14: 25.44234 | E14: 6.847
B15: LV Feeder Augmentations - Overhead Lines | C15: Circuit line length in km | D15: 3.982 | E15: 28.353
B16: LV Feeder Augmentations - Underground Cables | C16: Circuit line length in km | D16: 2.855 | E16: 5.672
B17: Distribution Substation Augmentations - Pole Mounted | C17: Number | D17: 122 | E17: 237
B18: Distribution Substation Augmentations - Ground Mounted | C18: Number | D18: 6 | E18: 25
B19: Distribution Substation Augmentations - Indoor | C19: Number | D19: 0 | E19: 0
B21: COST METRICS
B22: TOTAL DIRECT EXPENDITURE - Project Type | D22: EXPENDITURE ($0's)
D23: =CRY -> 2017-18
B24: HV Feeder Augmentations - Overhead Lines | D24: 5379241.297
B25: HV Feeder Augmentations - Underground Cables | D25: 2947464.341
B26: HV Feeder Non-Material Projects | D26: 27095773.03
B27: LV Feeder Augmentations - Overhead Lines | D27: 11981154.09
B28: LV Feeder Augmentations - Underground Cables | D28: 834192.79
B29: LV Feeder Non-Material Projects | D29: 3283578.72
B30: Distribution Substation Augmentations - Pole Mounted | D30: 15126708.06
B31: Distribution Substation Augmentations - Ground Mounted | D31: 826012.2687
B32: Distribution Substation Augmentations - Indoor | D32: 0
B35: 2.3.4 - AUGEX DATA - TOTAL EXPENDITURE
B36: AUGMENTATION CAPEX (As incurred) | D36: EXPENDITURE ($0's)
D37: =CRY -> 2017-18
B38: Subtransmission Substations, Switching Stations, Zone Substations | D38: 8190887.508
B39: Subtransmission Lines | D39: 2745022.244
B40: HV Feeders | D40: 35422494.68
B41: HV Feeders - Land Purchases and Easements | D41: 0
B42: Distribution Substations | D42: 15952728.41
B43: Distribution Substations - Land Purchases And Easements | D43: 0
B44: LV Feeders | D44: 16098928.5
B45: LV Feeders - Land Purchases And Easements | D45: 0
B46: Other Assets | D46: 13507938.96

Sheet 2.5 Connections
B1: REGULATORY REPORTING STATEMENT
B2: =INDEX(dms_TradingNameFull_List,MATCH(dms_TradingName,dms_TradingName_List)) -> Energex
B3: =CONCATENATE((LOOKUP(dms_Model,dms_Model_List,dms_Worksheet_List))&" "&CRY) -> CATEGORY ANALYSIS 2017-18
B4: 2.5 CONNECTIONS
B6: There are TWO tables on this worksheet. Each has been grouped for ease of navigation. See the Instructions sheet on how to group or ungroup tables.
B8: 2.5.1 - DESCRIPTOR METRICS
B9: <<<GROUP-ROW>>>
E11: VOLUMES AND EXPENDITURE
B12: CONNECTION SUBCATEGORY | C12: DESCRIPTOR METRIC | D12: UNITS | E12: =CRY -> 2017-18
B13: RESIDENTIAL | C13: Underground connections | D13: 0's | E13: 24702
C14: Overhead connections | D14: 0's | E14: 12212
C15: Distribution substation installed | D15: MVA added | E15: 12.231
C16: Distribution substations installed | D16: 0's | E16: 110
C17: Distribution substation installed | D17: total spend $0s | E17: 1968766.7
C18: Augmentation HV | D18: net circuit km added | E18: 4.9
C19: Augmentation HV | D19: total spend $0s | E19: 437128.94
C20: Augmentation LV | D20: net circuit km added | E20: 88.95289902
C21: Augmentation LV | D21: total spend $0s | E21: 10522908.22
C22: Mean days to connect residential customer with LV single phase connection | D22: 0's | E22: 9
C23: Volume of GSL breaches for residential customers | D23: 0's | E23: 50
C24: Volume of customer complaints relating to connection services | D24: 0's | E24: 516
C25: GSL payments | D25: $0s | E25: 11602
B26: COMMERCIAL/INDUSTRIAL | C26: Underground connections | D26: 0's | E26: 1948
C27: Overhead connections | D27: 0's | E27: 989
C28: Distribution substation installed | D28: MVA added | E28: 200.324
C29: Distribution substations installed | D29: 0's | E29: 363
C30: Distribution substation installed | D30: total spend $0s | E30: 26311019.88
C31: Augmentation HV | D31: net circuit km added | E31: 48.2
C32: Augmentation HV | D32: total spend $0s | E32: 23312818.58
C33: Augmentation LV | D33: net circuit km added | E33: 35.88710098
C34: Augmentation LV | D34: total spend $0s | E34: 2702951.255
B35: SUBDIVISION | C35: Underground connections | D35: 0's | E35: 18141
C36: Overhead connections | D36: 0's | E36: 91
C37: Distribution substation installed | D37: MVA added | E37: 3.13
C38: Distribution substations installed | D38: 0's | E38: 6
C39: Distribution substation installed | D39: total spend $0s | E39: 116903.72
C40: Augmentation HV | D40: net circuit km added | E40: 10.11
C41: Augmentation HV | D41: total spend $0s | E41: 3891059.9
C42: Augmentation LV | D42: net circuit km added | E42: 0.54
C43: Augmentation LV | D43: total spend $0s | E43: 25570.9
C44: Cost per lot ($) | D44: $0s | E44: 221.2337933
B45: EMBEDDED GENERATION | C45: Underground connections | D45: 0's | E45: 5821
C46: Overhead connections | D46: 0's | E46: 4837
C47: Distribution substation installed | D47: MVA added | E47: 0
C48: Distribution substations installed | D48: 0's | E48: 0
C49: Distribution substation installed | D49: total spend $0s | E49: 0
C50: Augmentation HV | D50: net circuit km added | E50: 0
C51: Augmentation HV | D51: total spend $0s | E51: 0
C52: Augmentation LV | D52: net circuit km added | E52: 0
C53: Augmentation LV | D53: total spend $0s | E53: 0
B57: 2.5.2 - COST METRICS BY CONNECTION CLASSIFICATION
D58: EXPENDITURE ($0's) | E58: VOLUMES (0's)
B59: CONNECTION SUBCATEGORY | C59: CONNECTION CLASSIFICATION | D59: =CRY -> 2017-18 | E59: =CRY -> 2017-18
B60: RESIDENTIAL | C60: Simple connection LV | D60: 10200691.07 | E60: 36497
C61: Complex connection LV | D61: 322217.15 | E61: 63
C62: Complex connection HV | D62: 2405895.64 | E62: 354
B63: COMMERCIAL/INDUSTRIAL | C63: Simple connection LV | D63: 826112.3053 | E63: 387
C64: Complex connection HV (customer connected at LV, minor HV works) | D64: 45091038.34 | E64: 2259
C65: Complex connection HV (customer connected at LV, upstream asset works) | D65: 5954925.16 | E65: 269
C66: Complex connection HV (customer connected at HV) | D66: 106055.31 | E66: 8
C67: Complex connection sub-transmission | D67: 348658.64 | E67: 14
B68: SUBDIVISION | C68: Complex connection LV | D68: 29393.38 | E68: 3
C69: Complex connection HV (no upstream asset works) | D69: 4007963.62 | E69: 18229
C70: Complex connection HV (with upstream asset works) | D70: 0 | E70: 0
B71: EMBEDDED GENERATION | C71: Simple connection LV | D71: 0 | E71: 10655
C72: Complex connection HV (small capacity) | D72: 0 | E72: 3
C73: Complex connection HV (large capacity) | D73: 0 | E73: 0

Sheet 2.6 Non-network
B1: REGULATORY REPORTING STATEMENT
B2: =INDEX(dms_TradingNameFull_List,MATCH(dms_TradingName,dms_TradingName_List)) -> Energex
B3: =CONCATENATE((LOOKUP(dms_Model,dms_Model_List,dms_Worksheet_List))&" "&CRY) -> CATEGORY ANALYSIS 2017-18
B4: 2.6 NON NETWORK EXPENDITURE
B6: There are THREE tables on this worksheet. Each has been grouped (and sub-grouped) for ease of navigation. See the Instructions sheet on how to group or ungroup tables.
B8: 2.6.1 - NON-NETWORK EXPENDITURE
F9: EXPENDITURE ($0's)
B10: SERVICE SUBCATEGORY | C10: ASSET CATEGORY | F10: =CRY -> 2017-18
B11: OPEX
B12: IT & COMMUNICATIONS | C12: Client device expenditure | F12: 1654334
C13: Recurrent expenditure | F13: 89472074.07
C14: Non-recurrent expenditure | F14: 5432777.18
B15: MOTOR VEHICLES | C15: Car | F15: 3701159
C16: Light commercial vehicle | F16: 1522323
C17: Elevated work platform (LCV) | F17: 0
C18: Elevated work platform (HCV) | F18: 10250504
C19: Heavy commercial vehicle | F19: 6207787
B20: BUILDINGS AND PROPERTY | C20: Total buildings and property expenditure | F20: 46973527
B21: OTHER | C21: Other expenditure | F21: 0
B22: OTHER - DNSP nominated | C22: OTHER - NON NETWORK EXPENDITURE FLEET | F22: 1141049
C23: OTHER - MOTOR VEHICLES GENERATORS | F23: 1302747
C24: OTHER - TOOLS & EQUIPMENT | F24: 5027801
C25: Other Non-Network Expenditure - Office Furniture | F25: 0
B33: CAPEX
B34: IT & COMMUNICATIONS | C34: Client device expenditure | F34: 2273830.91
C35: Recurrent expenditure | F35: 191406.67
C36: Non-recurrent expenditure | F36: 0
B37: MOTOR VEHICLES | C37: Car | F37: 3966844
C38: Light commercial vehicle | F38: 1532100
C39: Elevated work platform (LCV) | F39: 0
C40: Elevated work platform (HCV) | F40: 6810304
C41: Heavy commercial vehicle | F41: 6536198
B42: BUILDINGS AND PROPERTY | C42: Total buildings and property expenditure | F42: 9667355.24
B43: OTHER | C43: Other expenditure | F43: 0
B44: OTHER - DNSP nominated | C44: =IF(ISBLANK(C22),"",C22) -> OTHER - NON NETWORK EXPENDITURE FLEET | F44: 837860
C45: =IF(ISBLANK(C23),"",C23) -> OTHER - MOTOR VEHICLES GENERATORS | F45: 73446
C46: OTHER - TOOLS & EQUIPMENT | F46: 8818000
C47: Other Non-Network Expenditure - Office Furniture | F47: 187233
B58: 2.6.2 - ANNUAL DESCRIPTOR METRICS - IT & COMMUNICATIONS EXPENDITURE
F59: VOLUMES (0's)
B61: NON-NETWORK CATEGORY | C61: DESCRIPTOR METRIC | F61: =CRY -> 2017-18
B62: IT & COMMUNICATIONS | C62: Employee numbers | F62: 2057.87
C63: User numbers | F63: 4008.96
C64: Number of devices | F64: 4395.24
B67: 2.6.3 - ANNUAL DESCRIPTOR METRICS - MOTOR VEHICLES
F68: VOLUMES / %
B69: NON-NETWORK CATEGORY | C69: ASSET CATEGORY | D69: DESCRIPTOR METRIC | E69: UNITS | F69: =CRY -> 2017-18
B70: MOTOR VEHICLES | C70: CAR | D70: Average kilometres travelled | E70: 0's | F70: 24365
D71: Number purchased | E71: 0's | F71: 94
D72: Number leased | E72: 0's | F72: 0
D73: Number in fleet | E73: 0's | F73: 649
D74: Proportion of total fleet expenditure allocated as regulatory expenditure | E74: (per cent) | F74: 0.8232
C75: LIGHT COMMERCIAL VEHICLE | D75: Average kilometres travelled | E75: 0's | F75: 24888
D76: Number purchased | E76: 0's | F76: 31
D77: Number leased | E77: 0's | F77: 0
D78: Number in fleet | E78: 0's | F78: 175
D79: Proportion of total fleet expenditure allocated as regulatory expenditure | E79: (per cent) | F79: 0.8232
C80: ELEVATED WORK PLATFORM (LCV) | D80: Average kilometres travelled | E80: 0's | F80: 0
D81: Number purchased | E81: 0's | F81: 0
D82: Number leased | E82: 0's | F82: 0
D83: Number in fleet | E83: 0's | F83: 0
D84: Proportion of total fleet expenditure allocated as regulatory expenditure | E84: (per cent) | F84: 0
C85: ELEVATED WORK PLATFORM (HCV) | D85: Average kilometres travelled | E85: 0's | F85: 22494
D86: Number purchased | E86: 0's | F86: 36
D87: Number leased | E87: 0's | F87: 0
D88: Number in fleet | E88: 0's | F88: 235
D89: Proportion of total fleet expenditure allocated as regulatory expenditure | E89: (per cent) | F89: 0.8232
C90: HEAVY COMMERCIAL VEHICLE | D90: Average kilometres travelled | E90: 0's | F90: 24804
D91: Number purchased | E91: 0's | F91: 37
D92: Number leased | E92: 0's | F92: 0
D93: Number in fleet | E93: 0's | F93: 269
D94: Proportion of total fleet expenditure allocated as regulatory expenditure | E94: (per cent) | F94: 0.8232

Sheet 2.7 Vegetation management
B1: REGULATORY REPORTING STATEMENT
B2: =INDEX(dms_TradingNameFull_List,MATCH(dms_TradingName,dms_TradingName_List)) -> Energex
B3: =CONCATENATE((LOOKUP(dms_Model,dms_Model_List,dms_Worksheet_List))&" "&CRY) -> CATEGORY ANALYSIS 2017-18
B4: 2.7 VEGETATION MANAGEMENT
B6: There are THREE tables on this worksheet. Each has been grouped (and sub-grouped) for ease of navigation. See the Instructions sheet on how to group or ungroup tables.
B8: Please enter a description for each Zone in table 2.7.1 - Urban and CBD. The zone description will then autopopulate in tables 2.7.1 - Rural and 2.7.2.
A11: ` | B11: 2.7.1 - DESCRIPTOR METRICS BY ZONE
B12: URBAN AND CBD
E13: =CRY -> 2017-18
B14: ZONES | C14: ASSET | D14: UNITS
B15: ZONE 1 | C15: Route line length within zone | D15: km | E15: 9703
C16: Number of maintenance spans | D16: 0's | E16: 107221
C17: Total length of maintenance spans | D17: km | E17: 4794
C18: Length of vegetation corridors | D18: km | E18: 3126.836035
C19: Average number of trees per maintenance span | D19: 0's | E19: 3.12
C20: Average frequency of cutting cycle | D20: years | E20: 1.3
B21: ZONE 2 | C21: Route line length within zone | D21: km
C22: Number of maintenance spans | D22: 0's
C23: Total length of maintenance spans | D23: km
C24: Length of vegetation corridors | D24: km
C25: Average number of trees per maintenance span | D25: 0's
C26: Average frequency of cutting cycle | D26: years
B27: ZONE 3 | C27: Route line length within zone | D27: km
C28: Number of maintenance spans | D28: 0's
C29: Total length of maintenance spans | D29: km
C30: Length of vegetation corridors | D30: km
C31: Average number of trees per maintenance span | D31: 0's
C32: Average frequency of cutting cycle | D32: years
B33: ZONE 4 | C33: Route line length within zone | D33: km
C34: Number of maintenance spans | D34: 0's
C35: Total length of maintenance spans | D35: km
C36: Length of vegetation corridors | D36: km
C37: Average number of trees per maintenance span | D37: 0's
C38: Average frequency of cutting cycle | D38: years
B39: ZONE 5 | C39: Route line length within zone | D39: km
C40: Number of maintenance spans | D40: 0's
C41: Total length of maintenance spans | D41: km
C42: Length of vegetation corridors | D42: km
C43: Average number of trees per maintenance span | D43: 0's
C44: Average frequency of cutting cycle | D44: years
B45: ZONE 6 | C45: Route line length within zone | D45: km
C46: Number of maintenance spans | D46: 0's
C47: Total length of maintenance spans | D47: km
C48: Length of vegetation corridors | D48: km
C49: Average number of trees per maintenance span | D49: 0's
C50: Average frequency of cutting cycle | D50: years
B51: ZONE 7 | C51: Route line length within zone | D51: km
C52: Number of maintenance spans | D52: 0's
C53: Total length of maintenance spans | D53: km
C54: Length of vegetation corridors | D54: km
C55: Average number of trees per maintenance span | D55: 0's
C56: Average frequency of cutting cycle | D56: years
B57: ZONE 8 | C57: Route line length within zone | D57: km
C58: Number of maintenance spans | D58: 0's
C59: Total length of maintenance spans | D59: km
C60: Length of vegetation corridors | D60: km
C61: Average number of trees per maintenance span | D61: 0's
C62: Average frequency of cutting cycle | D62: years
B63: ZONE 9 | C63: Route line length within zone | D63: km
C64: Number of maintenance spans | D64: 0's
C65: Total length of maintenance spans | D65: km
C66: Length of vegetation corridors | D66: km
C67: Average number of trees per maintenance span | D67: 0's
C68: Average frequency of cutting cycle | D68: years
B69: ZONE 10 | C69: Route line length within zone | D69: km
C70: Number of maintenance spans | D70: 0's
C71: Total length of maintenance spans | D71: km
C72: Length of vegetation corridors | D72: km
C73: Average number of trees per maintenance span | D73: 0's
C74: Average frequency of cutting cycle | D74: years
B75: ZONE 11 | C75: Route line length within zone | D75: km
C76: Number of maintenance spans | D76: 0's
C77: Total length of maintenance spans | D77: km
C78: Length of vegetation corridors | D78: km
C79: Average number of trees per maintenance span | D79: 0's
C80: Average frequency of cutting cycle | D80: years
B81: ZONE 12 | C81: Route line length within zone | D81: km
C82: Number of maintenance spans | D82: 0's
C83: Total length of maintenance spans | D83: km
C84: Length of vegetation corridors | D84: km
C85: Average number of trees per maintenance span | D85: 0's
C86: Average frequency of cutting cycle | D86: years
B87: ZONE 13 | C87: Route line length within zone | D87: km
C88: Number of maintenance spans | D88: 0's
C89: Total length of maintenance spans | D89: km
C90: Length of vegetation corridors | D90: km
C91: Average number of trees per maintenance span | D91: 0's
C92: Average frequency of cutting cycle | D92: years
B93: ZONE 14 | C93: Route line length within zone | D93: km
C94: Number of maintenance spans | D94: 0's
C95: Total length of maintenance spans | D95: km
C96: Length of vegetation corridors | D96: km
C97: Average number of trees per maintenance span | D97: 0's
C98: Average frequency of cutting cycle | D98: years
B99: ZONE 15 | C99: Route line length within zone | D99: km
C100: Number of maintenance spans | D100: 0's
C101: Total length of maintenance spans | D101: km
C102: Length of vegetation corridors | D102: km
C103: Average number of trees per maintenance span | D103: 0's
C104: Average frequency of cutting cycle | D104: years
B105: ZONE 16 | C105: Route line length within zone | D105: km
C106: Number of maintenance spans | D106: 0's
C107: Total length of maintenance spans | D107: km
C108: Length of vegetation corridors | D108: km
C109: Average number of trees per maintenance span | D109: 0's
C110: Average frequency of cutting cycle | D110: years
B111: ZONE 17 | C111: Route line length within zone | D111: km
C112: Number of maintenance spans | D112: 0's
C113: Total length of maintenance spans | D113: km
C114: Length of vegetation corridors | D114: km
C115: Average number of trees per maintenance span | D115: 0's
C116: Average frequency of cutting cycle | D116: years
B117: ZONE 18 | C117: Route line length within zone | D117: km
C118: Number of maintenance spans | D118: 0's
C119: Total length of maintenance spans | D119: km
C120: Length of vegetation corridors | D120: km
C121: Average number of trees per maintenance span | D121: 0's
C122: Average frequency of cutting cycle | D122: years
B124: RURAL
E125: =CRY -> 2017-18
B126: ZONES | C126: ASSET | D126: UNITS
B127: =B15 -> ZONE 1 | C127: Route line length within zone | D127: km | E127: 16038
C128: Number of maintenance spans | D128: 0's | E128: 88260
C129: Total length of maintenance spans | D129: km | E129: 7084
C130: Length of vegetation corridors | D130: km | E130: 2908.376942
C131: Average number of trees per maintenance span | D131: 0's | E131: 4.43
C132: Average frequency of cutting cycle | D132: years | E132: 1.6
B133: =B21 -> ZONE 2 | C133: Route line length within zone | D133: km
C134: Number of maintenance spans | D134: 0's
C135: Total length of maintenance spans | D135: km
C136: Length of vegetation corridors | D136: km
C137: Average number of trees per maintenance span | D137: 0's
C138: Average frequency of cutting cycle | D138: years
B139: =B27 -> ZONE 3 | C139: Route line length within zone | D139: km
C140: Number of maintenance spans | D140: 0's
C141: Total length of maintenance spans | D141: km
C142: Length of vegetation corridors | D142: km
C143: Average number of trees per maintenance span | D143: 0's
C144: Average frequency of cutting cycle | D144: years
B145: =B33 -> ZONE 4 | C145: Route line length within zone | D145: km
C146: Number of maintenance spans | D146: 0's
C147: Total length of maintenance spans | D147: km
C148: Length of vegetation corridors | D148: km
C149: Average number of trees per maintenance span | D149: 0's
C150: Average frequency of cutting cycle | D150: years
B151: =B39 -> ZONE 5 | C151: Route line length within zone | D151: km
C152: Number of maintenance spans | D152: 0's
C153: Total length of maintenance spans | D153: km
C154: Length of vegetation corridors | D154: km
C155: Average number of trees per maintenance span | D155: 0's
C156: Average frequency of cutting cycle | D156: years
B157: =B45 -> ZONE 6 | C157: Route line length within zone | D157: km
C158: Number of maintenance spans | D158: 0's
C159: Total length of maintenance spans | D159: km
C160: Length of vegetation corridors | D160: km
C161: Average number of trees per maintenance span | D161: 0's
C162: Average frequency of cutting cycle | D162: years
B163: =B51 -> ZONE 7 | C163: Route line length within zone | D163: km
C164: Number of maintenance spans | D164: 0's
C165: Total length of maintenance spans | D165: km
C166: Length of vegetation corridors | D166: km
C167: Average number of trees per maintenance span | D167: 0's
C168: Average frequency of cutting cycle | D168: years
B169: =B57 -> ZONE 8 | C169: Route line length within zone | D169: km
C170: Number of maintenance spans | D170: 0's
C171: Total length of maintenance spans | D171: km
C172: Length of vegetation corridors | D172: km
C173: Average number of trees per maintenance span | D173: 0's
C174: Average frequency of cutting cycle | D174: years
B175: =B63 -> ZONE 9 | C175: Route line length within zone | D175: km
C176: Number of maintenance spans | D176: 0's
C177: Total length of maintenance spans | D177: km
C178: Length of vegetation corridors | D178: km
C179: Average number of trees per maintenance span | D179: 0's
C180: Average frequency of cutting cycle | D180: years
B181: =B69 -> ZONE 10 | C181: Route line length within zone | D181: km
C182: Number of maintenance spans | D182: 0's
C183: Total length of maintenance spans | D183: km
C184: Length of vegetation corridors | D184: km
C185: Average number of trees per maintenance span | D185: 0's
C186: Average frequency of cutting cycle | D186: years
B187: =B75 -> ZONE 11 | C187: Route line length within zone | D187: km
C188: Number of maintenance spans | D188: 0's
C189: Total length of maintenance spans | D189: km
C190: Length of vegetation corridors | D190: km
C191: Average number of trees per maintenance span | D191: 0's
C192: Average frequency of cutting cycle | D192: years
B193: =B81 -> ZONE 12 | C193: Route line length within zone | D193: km
C194: Number of maintenance spans | D194: 0's
C195: Total length of maintenance spans | D195: km
C196: Length of vegetation corridors | D196: km
C197: Average number of trees per maintenance span | D197: 0's
C198: Average frequency of cutting cycle | D198: years
B199: =B87 -> ZONE 13 | C199: Route line length within zone | D199: km
C200: Number of maintenance spans | D200: 0's
C201: Total length of maintenance spans | D201: km
C202: Length of vegetation corridors | D202: km
C203: Average number of trees per maintenance span | D203: 0's
C204: Average frequency of cutting cycle | D204: years
B205: =B93 -> ZONE 14 | C205: Route line length within zone | D205: km
... 201 more rows

Sheet 2.8 Maintenance
B1: REGULATORY REPORTING STATEMENT
B2: =INDEX(dms_TradingNameFull_List,MATCH(dms_TradingName,dms_TradingName_List)) -> Energex
B3: =CONCATENATE((LOOKUP(dms_Model,dms_Model_List,dms_Worksheet_List))&" "&CRY) -> CATEGORY ANALYSIS 2017-18
B4: 2.8 MAINTENANCE
B6: There are TWO tables on this worksheet. Each has been grouped for ease of navigation. See the Instructions sheet on how to group or ungroup tables.
B8: 2.8.1 - DESCRIPTOR METRICS FOR ROUTINE AND NON-ROUTINE MAINTENANCE
F9: ASSET QUANTITY (0's) | H9: AVERAGE AGE OF ASSET GROUP | I9: INSPECTION CYCLE (YEARS) | J9: MAINTENANCE CYCLE (YEARS)
F10: AT YEAR END | G10: INSPECTED / MAINTAINED
B11: MAINTENANCE ACTIVITY | C11: MAINTENANCE ASSET CATEGORY | D11: ASSET QUANTITY | E11: Units | F11: =CRY -> 2017-18 | G11: =CRY -> 2017-18 | H11: =CRY -> 2017-18
B12: Pole top, overhead line & service line maintenance | C12: Pole tops and overhead lines | D12: Number of poles | E12: Number | F12: 448407 | G12: 16119 | H12: 28 | I12: 10 | J12: 0
C13: Service lines | D13: Number of customers | E13: Number | F13: 596769 | G13: 21171 | H13: 16.43 | J13: 0
B14: Pole inspection and treatment | C14: All poles | D14: Number of poles | E14: Number | F14: 448407 | G14: 102512 | H14: 28 | I14: 5 | J14: 0
B15: Overhead asset inspection | C15: All overhead assets | D15: Line patrolled (route KM) | E15: KM | F15: 35090 | G15: 25826 | H15: 38 | I15: 10 | J15: 0
B16: Network underground cable maintenance: by voltage | C16: LV - 11 to 22 KV | D16: Length (KM) | E16: KM | F16: 18173 | G16: 2041 | H16: 18
C17: 33 KV and above | D17: Length (KM) | E17: KM | F17: 991 | G17: 104 | H17: 22
B18: Network underground cable maintenance: by location | C18: Cbd | D18: Length (KM) | E18: KM | F18: 209 | G18: 23.38331942 | H18: 24
C19: Non-CBD | D19: Length (KM) | E19: KM | F19: 18955 | G19: 2121.616681 | H19: 18
B20: Distribution substation equipment & property maintenance | C20: Distribution substation transformers | D20: Number of installed transformers | E20: Number | F20: 49871 | G20: 236 | H20: 16
C21: Distribution substation switchgear (within-substations and stand-alone switchgear) | D21: Number of switches | E21: Number | F21: 23005 | G21: 1600 | H21: 12 | I21: 0 | J21: 6
C22: Distribution substation - other equipment | D22: Earth mat | E22: Number | F22: 46 | H22: 11
C23: Distribution substation - property | D23: Number of distribution substation properties maintained | E23: Number | F23: 49709 | G23: 157 | H23: 25
B24: Zone substation equipment maintenance | C24: Transformers - zone substation | D24: Number | E24: Number | F24: 562 | G24: 1775 | H24: 20 | I24: 1.5 | J24: 1
C25: Transformers - distribution | D25: Number of distribution transformers within zone substation | E25: Number | F25: 12 | G25: 0 | H25: 33
C26: Transformers - HV | D26: Number of HV transformers | E26: Number | F26: 491 | H26: 21
C27: Zone substation - other equipment | D27: <DNSP to nominate> | E27: Number | F27: 20569 | G27: 4487 | H27: 14 | I27: 6 | J27: 1
B28: Zone substation property maintenance | C28: All zone substation properties | D28: Number of zone substation properties maintained | E28: Number | F28: 303 | G28: 454 | H28: 37 | I28: 1.5 | J28: 0
B29: Public lighting maintenance | C29: Minor roads | D29: Number of public lights maintained | E29: Number | F29: 235323 | G29: 55275 | H29: 14 | I29: 0.25 | J29: 0
C30: Major roads | D30: Number of public lights maintained | E30: Number | F30: 92294 | G30: 18775 | H30: 14 | I30: 0.13 | J30: 0
B31: SCADA & network control maintenance | C31: SCADA & network control | D31: Number of systems | E31: Number | F31: 11614 | G31: 637 | H31: 5.27 | I31: 1 | J31: 0
B32: Protection systems maintenance | C32: Protection systems | D32: Number of systems | E32: Number | F32: 16881 | G32: 941 | H32: 13.95101001 | I32: 0 | J32: 0
B33: Subtransmission asset maintenance | C33: Subtransmission asset maintenance - for DNSPs with dual function assets | D33: <DNSP to nominate> | E33: Number | F33: 0 | G33: 0 | H33: 0 | I33: 0 | J33: 0
B34: Various assets | C34: includes rates, electricity, communications equip, metering | D34: Various | E34: Number | F34: 0 | G34: 0 | H34: 0 | I34: 0 | J34: 0
B35: Ground clearance - access tracks | C35: Access tracks | D35: Number | E35: Number | F35: 0 | G35: 0 | H35: 0 | I35: 0 | J35: 0
B36: Other | C36: Zone Substation Inspection | D36: Zone Substation Inspection | F36: 21631 | G36: 1603 | H36: 14 | I36: 0.5 | J36: 0
C37: Distribution Asset Inspection | D37: Distribution Asset Inspection | F37: 49871 | G37: 5398 | H37: 16 | I37: 3 | J37: 0
C38: Distribution Pole Mounted Plant Maintenance | D38: Distribution Pole Mounted Plant Maintenance | F38: 50813 | G38: 2138 | H38: 15 | I38: 2.5 | J38: 5
C39: Underground Feeder Asset Inspection | D39: Underground Feeder Asset Inspection | F39: 19164 | G39: 60783 | H39: 18 | I39: 0.08 | J39: 0
C40: Pilot Cable Inspection and Maintenance | D40: Pilot Cable Inspection and Maintenance | F40: 3678425 | G40: 94 | H40: 17.67732106 | I40: 1 | J40: 0
C41: Other | D41: Other | F41: 0 | H41: 0 | I41: 0 | J41: 0
B48: 2.8.2 - COST METRICS FOR ROUTINE AND NON-ROUTINE MAINTENANCE
F49: EXPENDITURE ($0'S)
F50: ROUTINE MAINTENANCE | G50: NON-ROUTINE MAINTENANCE
B51: MAINTENANCE ACTIVITY | C51: MAINTENANCE ASSET CATEGORY | D51: ASSET QUANTITY | E51: Units | F51: =CRY -> 2017-18 | G51: =CRY -> 2017-18
B52: Pole top, overhead line & service line maintenance | C52: Pole tops and overhead lines | D52: Number of poles | E52: Number | F52: 114372.51 | G52: 11086941.64
C53: Service lines | D53: Number of customers | E53: Number | F53: 1052163.3 | G53: 682755.08
B54: Pole inspection and treatment | C54: All poles | D54: Number of poles | E54: Number | F54: 5609436.09 | G54: 0
B55: Overhead asset inspection | C55: All overhead assets | D55: Line patrolled (route KM) | E55: KM | F55: 1250755.88 | G55: 284362.87
B56: Network underground cable maintenance: by voltage | C56: LV - 11 to 22 KV | D56: Length (KM) | E56: KM | F56: 9390.29 | G56: 2163818.21
C57: 33 KV and above | D57: Length (KM) | E57: KM | F57: 0 | G57: 2175958.86
B58: Network underground cable maintenance: by location | C58: Cbd | D58: Length (KM) | E58: KM | F58: 102.3665038 | G58: 47309.27434
C59: Non-CBD | D59: Length (KM) | E59: KM | F59: 9287.923496 | G59: 4292467.796
B60: Distribution substation equipment & property maintenance | C60: Distribution substation transformers | D60: Number of installed transformers | E60: Number | F60: 0 | G60: 555400.73
C61: Distribution substation switchgear (within-substations and stand-alone switchgear) | D61: Number of switches | E61: Number | F61: 6373819.51 | G61: 0
C62: Distribution substation - other equipment | D62: Earth mat | E62: Number | F62: 0 | G62: 0
C63: Distribution substation - property | D63: Number of distribution substation properties maintained | E63: Number | F63: 0 | G63: 627561.11
B64: Zone substation equipment maintenance | C64: Transformers - zone substation | D64: Number | E64: Number | F64: 1151246.17 | G64: 2774666.81
C65: Transformers - distribution | D65: Number of distribution transformers within zone substation | E65: Number | F65: 0 | G65: 0
C66: Transformers - HV | D66: Number of HV transformers | E66: Number | F66: 0 | G66: 0
C67: Zone substation - other equipment | D67: =IF(ISBLANK(D27),"",D27) -> <DNSP to nominate> | E67: =IF(ISBLANK(E27),"",E27) -> Number | F67: 1447474.41 | G67: 6076415.22
B68: Zone substation property maintenance | C68: All zone substation properties | D68: Number of zone substation properties maintained | E68: Number | F68: 136275.48 | G68: 3257111.99
B69: Public lighting maintenance | C69: Minor roads | D69: Number of public lights maintained | E69: Number | F69: 0 | G69: 0
C70: Major roads | D70: Number of public lights maintained | E70: Number | F70: 0 | G70: 0
B71: SCADA & network control maintenance | C71: SCADA & network control | D71: Number of systems | E71: Number | F71: 892994.48 | G71: 4400.98
B72: Protection systems maintenance | C72: Protection systems | D72: Number of systems | E72: Number | F72: 2361975.4 | G72: 386242.7
B73: Subtransmission asset maintenance | C73: Subtransmission asset maintenance - for DNSPs with dual function assets | D73: =IF(ISBLANK(D33),"",D33) -> <DNSP to nominate> | E73: =IF(ISBLANK(E33),"",E33) -> Number | F73: 0 | G73: 0
B74: Various assets | C74: includes rates, electricity, communications equip, metering | D74: Various | E74: Number | F74: 0 | G74: 0
B75: Ground clearance - access tracks | C75: Access tracks | D75: Number | E75: Number | F75: 0 | G75: 507906.34
B76: Other | C76: =IF(ISBLANK(C36),"",C36) -> Zone Substation Inspection | D76: Zone Substation Inspection | F76: 748455.45 | G76: 332371.21
C77: Distribution Asset Inspection | D77: Distribution Asset Inspection | F77: 690472.91 | G77: 210874.01
C78: Distribution Pole Mounted Plant Maintenance | D78: Distribution Pole Mounted Plant Maintenance | F78: 277429.28 | G78: 703468.82
C79: Underground Feeder Asset Inspection | D79: Underground Feeder Asset Inspection | F79: 1072699.36 | G79: 0
C80: Pilot Cable Inspection and Maintenance | D80: Pilot Cable Inspection and Maintenance | F80: 9169.44 | G80: 252923.64
C81: Other | D81: Other | F81: 0 | G81: 186828.48
F82: 0 | G82: 0
F83: 0 | G83: 0
F84: 0 | G84: 0
F85: 0 | G85: 0

Sheet 2.9 Emergency Response
B1: REGULATORY REPORTING STATEMENT
B2: =INDEX(dms_TradingNameFull_List,MATCH(dms_TradingName,dms_TradingName_List)) -> Energex
B3: =CONCATENATE((LOOKUP(dms_Model,dms_Model_List,dms_Worksheet_List))&" "&CRY) -> CATEGORY ANALYSIS 2017-18
B4: 2.9 EMERGENCY RESPONSE
B7: There is ONE table on this worksheet. It has been sub-grouped for ease of navigation. See the Instructions sheet on how to group or ungroup tables.
B9: 2.9.1 - EMERGENCY RESPONSE EXPENDITURE (OPEX)
C10: EXPENDITURE ($0's)
C11: =CRY -> 2017-18
B12: (A) TOTAL EMERGENCY RESPONSE EXPENDITURE
B13: Total Expenditure | C13: 43818403.71
B14: (B) MAJOR EVENTS O&M EXPENDITURE
B15: Storm struck Energex on Friday February 2018 | C15: 527257.99
B16: Storm struck Energex on Monday February 2018 | C16: 189202.38
B17: Storm struck Energex on Sunday February 2018 | C17: 1403781.63
B18: Storm struck Energex on Monday December 2017 | C18: 135931.52
B19: Storm struck Energex on Saturday December 2017 | C19: 156538.55
B58: (C) MAJOR EVENT DAYS O&M EXPENDITURE
B59: 2017-07-01 | C59: 0
B60: 2017-07-02 | C60: 0
B61: 2017-07-03 | C61: 0
B62: 2017-07-04 | C62: 0
B63: 2017-07-05 | C63: 0
B64: 2017-07-06 | C64: 0
B65: 2017-07-07 | C65: 0
B66: 2017-07-08 | C66: 0
B67: 2017-07-09 | C67: 0
B68: 2017-07-10 | C68: 0
B69: 2017-07-11 | C69: 0
B70: 2017-07-12 | C70: 0
B71: 2017-07-13 | C71: 0
B72: 2017-07-14 | C72: 0
B73: 2017-07-15 | C73: 0
B74: 2017-07-16 | C74: 0
B75: 2017-07-17 | C75: 0
B76: 2017-07-18 | C76: 0
B77: 2017-07-19 | C77: 0
B78: 2017-07-20 | C78: 0
B79: 2017-07-21 | C79: 0
B80: 2017-07-22 | C80: 0
B81: 2017-07-23 | C81: 0
B82: 2017-07-24 | C82: 0
B83: 2017-07-25 | C83: 0
B84: 2017-07-26 | C84: 0
B85: 2017-07-27 | C85: 0
B86: 2017-07-28 | C86: 0
B87: 2017-07-29 | C87: 0
B88: 2017-07-30 | C88: 0
B89: 2017-07-31 | C89: 0
B90: 2017-08-01 | C90: 0
B91: 2017-08-02 | C91: 0
B92: 2017-08-03 | C92: 0
B93: 2017-08-04 | C93: 0
B94: 2017-08-05 | C94: 0
B95: 2017-08-06 | C95: 0
B96: 2017-08-07 | C96: 0
B97: 2017-08-08 | C97: 0
B98: 2017-08-09 | C98: 0
B99: 2017-08-10 | C99: 0
B100: 2017-08-11 | C100: 0
B101: 2017-08-12 | C101: 0
B102: 2017-08-13 | C102: 0
B103: 2017-08-14 | C103: 0
B104: 2017-08-15 | C104: 0
B105: 2017-08-16 | C105: 0
B106: 2017-08-17 | C106: 0
B107: 2017-08-18 | C107: 0
B108: 2017-08-19 | C108: 0
B109: 2017-08-20 | C109: 0
B110: 2017-08-21 | C110: 0
B111: 2017-08-22 | C111: 0
B112: 2017-08-23 | C112: 0
B113: 2017-08-24 | C113: 0
B114: 2017-08-25 | C114: 0
B115: 2017-08-26 | C115: 0
B116: 2017-08-27 | C116: 0
B117: 2017-08-28 | C117: 0
B118: 2017-08-29 | C118: 0
B119: 2017-08-30 | C119: 0
B120: 2017-08-31 | C120: 0
B121: 2017-09-01 | C121: 0
B122: 2017-09-02 | C122: 0
B123: 2017-09-03 | C123: 0
B124: 2017-09-04 | C124: 0
B125: 2017-09-05 | C125: 0
B126: 2017-09-06 | C126: 0
B127: 2017-09-07 | C127: 0
B128: 2017-09-08 | C128: 0
B129: 2017-09-09 | C129: 0
B130: 2017-09-10 | C130: 0
B131: 2017-09-11 | C131: 0
B132: 2017-09-12 | C132: 0
B133: 2017-09-13 | C133: 0
B134: 2017-09-14 | C134: 0
B135: 2017-09-15 | C135: 0
B136: 2017-09-16 | C136: 0
B137: 2017-09-17 | C137: 0
B138: 2017-09-18 | C138: 0
B139: 2017-09-19 | C139: 0
B140: 2017-09-20 | C140: 0
B141: 2017-09-21 | C141: 0
B142: 2017-09-22 | C142: 0
B143: 2017-09-23 | C143: 0
B144: 2017-09-24 | C144: 0
B145: 2017-09-25 | C145: 0
B146: 2017-09-26 | C146: 0
B147: 2017-09-27 | C147: 0
B148: 2017-09-28 | C148: 0
B149: 2017-09-29 | C149: 0
B150: 2017-09-30 | C150: 0
B151: 2017-10-01 | C151: 0
B152: 2017-10-02 | C152: 0
B153: 2017-10-03 | C153: 0
B154: 2017-10-04 | C154: 0
B155: 2017-10-05 | C155: 0
B156: 2017-10-06 | C156: 0
B157: 2017-10-07 | C157: 0
B158: 2017-10-08 | C158: 0
B159: 2017-10-09 | C159: 0
B160: 2017-10-10 | C160: 0
B161: 2017-10-11 | C161: 0
B162: 2017-10-12 | C162: 0
B163: 2017-10-13 | C163: 0
B164: 2017-10-14 | C164: 0
B165: 2017-10-15 | C165: 0
B166: 2017-10-16 | C166: 0
B167: 2017-10-17 | C167: 0
B168: 2017-10-18 | C168: 0
B169: 2017-10-19 | C169: 0
B170: 2017-10-20 | C170: 0
B171: 2017-10-21 | C171: 0
B172: 2017-10-22 | C172: 0
B173: 2017-10-23 | C173: 0
B174: 2017-10-24 | C174: 0
B175: 2017-10-25 | C175: 0
B176: 2017-10-26 | C176: 0
B177: 2017-10-27 | C177: 0
B178: 2017-10-28 | C178: 0
B179: 2017-10-29 | C179: 0
B180: 2017-10-30 | C180: 0
B181: 2017-10-31 | C181: 0
B182: 2017-11-01 | C182: 0
B183: 2017-11-02 | C183: 0
B184: 2017-11-03 | C184: 0
B185: 2017-11-04 | C185: 0
B186: 2017-11-05 | C186: 0
B187: 2017-11-06 | C187: 0
B188: 2017-11-07 | C188: 0
B189: 2017-11-08 | C189: 0
B190: 2017-11-09 | C190: 0
B191: 2017-11-10 | C191: 0
B192: 2017-11-11 | C192: 0
B193: 2017-11-12 | C193: 0
B194: 2017-11-13 | C194: 0
B195: 2017-11-14 | C195: 0
B196: 2017-11-15 | C196: 0
B197: 2017-11-16 | C197: 0
B198: 2017-11-17 | C198: 0
B199: 2017-11-18 | C199: 0
B200: 2017-11-19 | C200: 0
B201: 2017-11-20 | C201: 0
B202: 2017-11-21 | C202: 0
B203: 2017-11-22 | C203: 0
B204: 2017-11-23 | C204: 0
B205: 2017-11-24 | C205: 0
B206: 2017-11-25 | C206: 0
B207: 2017-11-26 | C207: 0
B208: 2017-11-27 | C208: 0
B209: 2017-11-28 | C209: 0
B210: 2017-11-29 | C210: 0
B211: 2017-11-30 | C211: 0
B212: 2017-12-01 | C212: 0
B213: 2017-12-02 | C213: 0
B214: 2017-12-03 | C214: 0
B215: 2017-12-04 | C215: 0
B216: 2017-12-05 | C216: 0
B217: 2017-12-06 | C217: 0
B218: 2017-12-07 | C218: 0
B219: 2017-12-08 | C219: 3836.75
B220: 2017-12-09 | C220: 58367.99
B221: 2017-12-10 | C221: 64034.5
B222: 2017-12-11 | C222: 23085.75
B223: 2017-12-12 | C223: 589.54
B224: 2017-12-13 | C224: 1375.84
B225: 2017-12-14 | C225: 550.91
B226: 2017-12-15 | C226: 1450.69
B227: 2017-12-16 | C227: 1264.55
B228: 2017-12-17 | C228: 641.41
B229: 2017-12-18 | C229: 135.07
B230: 2017-12-19 | C230: 105.44
B231: 2017-12-20 | C231: 0
B232: 2017-12-21 | C232: 0
B233: 2017-12-22 | C233: 136.25
B234: 2017-12-23 | C234: 0
B235: 2017-12-24 | C235: 0
B236: 2017-12-25 | C236: 74767.41
B237: 2017-12-26 | C237: 16109.2
B238: 2017-12-27 | C238: 6503.87
B239: 2017-12-28 | C239: 6378.33
B240: 2017-12-29 | C240: 3970.03
B241: 2017-12-30 | C241: 349.43
... 182 more rows

Sheet 2.10 Overheads
B1: REGULATORY REPORTING STATEMENT
B2: =INDEX(dms_TradingNameFull_List,MATCH(dms_TradingName,dms_TradingName_List)) -> Energex
B3: =CONCATENATE((LOOKUP(dms_Model,dms_Model_List,dms_Worksheet_List))&" "&CRY) -> CATEGORY ANALYSIS 2017-18
B4: 2.10 OVERHEADS
B6: =CONCATENATE("Please note. This worksheet 2.10 Overheads is the original worksheet. We have also included a different version of the Overheads template (worksheet 2.10A Overheads) which collects the information in a different way. ",dms_TradingName, " is not obliged to complete worksheet 2.10A. However, the AER would prefer to collect Overheads information as presented in the revised worksheet 2.10A Overheads. If ",dms_TradingName," is prepared to complete worksheet 2.10A in lieu of the original worksheet 2.10 Overheads, please indicate that choice by selecting from the drop down list at the right. ",dms_TradingName, " is only required to complete one version of the Overheads worksheet in order to comply with the Category Analysis RIN.") -> Please note. This worksheet 2.10 Overheads is the original worksheet. We have also included a different version of the Overheads template (worksheet 2.10A Overheads) which collects the information in a different way. Energex is not obliged to complete worksheet 2.10A. However, the AER would prefer to collect Overheads information as presented in the revised worksheet 2.10A Overheads. If Energex is prepared to complete worksheet 2.10A in lieu of the original worksheet 2.10 Overheads, please indicate that choice by selecting from the drop down list at the right. Energex is only required to complete one version of the Overheads worksheet in order to comply with the Category Analysis RIN. | D6: Choose Response drop down selection
D7: Worksheet 2.10
B11: There are TWO tables on this worksheet. Each has been grouped (and sub-grouped) for ease of navigation. See the Instructions sheet on how to group or ungroup tables.
B13: =CONCATENATE("Instructions Please enter a description for each expenditure category as currently reported under ",dms_TradingName,"'s annual RIN.") -> Instructions Please enter a description for each expenditure category as currently reported under Energex's annual RIN.
B15: 2.10.1 - NETWORK OVERHEADS EXPENDITURE
D16: EXPENDITURE ($0's)
D17: =CRY -> 2017-18
B18: NETWORK OVERHEADS
B19: Standard Control Services | C19: Network management | D19: 27967198.83
C20: Network planning | D20: 11750370.62
C21: Network control and operational switching | D21: 27273388.76
C22: Quality and standard functions | D22: 11121941.1
C23: Project governance and related functions | D23: 30299472.27
C24: Other | D24: 0
C25: Training and Development | D25: 14965758.21
C26: OHS | D26: 4311459.777
C27: Customer Service | D27: 17751497.66
C28: Network Billing and Other Energy Market Services (including meter reading) | D28: 7334393.565
C29: DSM Initiatives | D29: 8791281.8
C30: Levies | D30: 8990193
C31: Network Property | D31: 5678977.309
B47: Alternative Control Services | C47: Network management | D47: 4075865.263
C48: Network planning | D48: 1712501.151
C49: Network control and operational switching | D49: 701445.6801
C50: Quality and standard functions | D50: 1616805.65
C51: Project governance and related functions | D51: 4431349.997
C52: Other | D52: 0
C53: Training and Development | D53: 2261729.367
C54: OHS | D54: 651847.3651
C55: Customer Service | D55: 1401018.558
C56: Network Billing and Other Energy Market Services (including meter reading) | D56: 12724975.31
C57: DSM Initiatives | D57: 0
C58: Levies | D58: 0
C59: Network Property | D59: 827655.1853
B75: Negotiated Services | C75: Total
B76: Unregulated Services | C76: Total | D76: 1281259.523
B79: CAPITALISED NETWORK OVERHEADS
B80: Standard Control Services | C80: Network management | D80: 17457179.67
C81: Network planning | D81: 7335852.324
C82: Network control and operational switching | D82: 3004787.425
C83: Quality and standard functions | D83: 7055128.775
C84: Project governance and related functions | D84: 20302187.84
C85: Other | D85: 0
C86: Training and Development | D86: 7152998.819
C87: OHS | D87: 2053370.429
C88: Customer Service | D88: 872540.3944
C89: Network Billing and Other Energy Market Services (including meter reading) | D89: 2937769.527
C90: DSM Initiatives | D90: 0
C91: Levies | D91: 0
C92: Network Property | D92: 3545431.904
B104: 2.10.2 - CORPORATE OVERHEADS EXPENDITURE
D105: EXPENDITURE ($0's)
D106: =CRY -> 2017-18
B107: CORPORATE OVERHEADS
B108: Standard Control Services | C108: Office of CEO | D108: 1306774.013
C109: Legal and Secretariat | D109: 1488880.893
C110: Audit | D110: 963102.6029
C111: Strategy and Regulation | D111: 5431537.307
C112: Human Resources | D112: 6570077.142
C113: Finance | D113: 5459944.784
C114: Business Support Services | D114: 13734969.23
C115: Business Operations and Performance | D115: 330445.2075
C116: Field Support Services | D116: 7478052.199
C117: Stakeholder Engagement and Management | D117: 5221524.766
C118: Other Operating | D118: 19404177
C119: Corporate Restructuring | D119: 17938798.59
C120: IT and Communications | D120: 81707774.78
C121: Property | D121: 38494090.49
C122: Fleet | D122: 20744524.2
C123: Debt Raising Costs | D123: 0
B129: Alternative Control Services | C129: Office of CEO | D129: 220477.9683
C130: Legal and Secretariat | D130: 251202.9098
C131: Audit | D131: 162493.9761
C132: Strategy and Regulation | D132: 916405.0545
C133: Human Resources | D133: 1059881.974
C134: Finance | D134: 918063.2972
C135: Business Support Services | D135: 2001736.912
C136: Business Operations and Performance | D136: 54087.19868
C137: Field Support Services | D137: 1089852.687
C138: Stakeholder Engagement and Management | D138: 880971.8901
C139: Other Operating | D139: -91586.42009
C140: Corporate Restructuring | D140: 3026621.151
C141: IT and Communications | D141: 11935380.29
C142: Property | D142: 5610135.745
C143: Fleet | D143: 2632364.341
C144: Debt Raising Costs | D144: 0
B150: Negotiated Services | C150: Total
B151: Unregulated Services | C151: Total | D151: 6447729.57
B153: CAPITALISED CORPORATE OVERHEADS
B154: Standard Control Services | C154: Office of CEO | D154: 0
C155: Legal and Secretariat | D155: 0
C156: Audit | D156: 0
C157: Strategy and Regulation | D157: 0
C158: Human Resources | D158: 1320844.029
C159: Finance | D159: 85163.71635
C160: Business Support Services | D160: 8574853.436
C161: Business Operations and Performance | D161: 45243.15414
C162: Field Support Services | D162: 4668609.047
C163: Stakeholder Engagement and Management | D163: 0
C164: Other Operating | D164: 0
C165: Corporate Restructuring | D165: 0
C166: IT and Communications | D166: 50269827.34
C167: Property | D167: 24032175
C168: Fleet | D168: 11484906.79
C169: Debt Raising Costs | D169: 0

Sheet 2.10(A) Overheads
B1: REGULATORY REPORTING STATEMENT
B2: =INDEX(dms_TradingNameFull_List,MATCH(dms_TradingName,dms_TradingName_List)) -> Energex
B3: =CONCATENATE((LOOKUP(dms_Model,dms_Model_List,dms_Worksheet_List))&" "&CRY) -> CATEGORY ANALYSIS 2017-18
B4: 2.10(A) OVERHEADS
B6: This worksheet may be completed on a voluntary basis. Please see worksheet 2.10 for an explanation of Overheads reporting options.
B9: There are TWO tables on this worksheet. Each has been grouped (and sub-grouped) for ease of navigation. See the Instructions sheet on how to group or ungroup tables.
B11: 2.10.1 - NETWORK OVERHEADS EXPENDITURE
D12: EXPENDITURE ($0's)
D13: =CRY -> 2017-18
B14: OPEX
B15: Standard Control Services | C15: Total
B16: Alternative Control Services | C16: Total
B17: CAPEX
B18: Standard Control Services | C18: Total
B19: Alternative Control Services | C19: Total
B20: OTHER DISTRIBUTION SERVICES
B21: Negotiated Services | C21: Total
B22: Unregulated Services | C22: Total
B26: 2.10.2 - CORPORATE OVERHEADS EXPENDITURE
D27: EXPENDITURE ($0's)
D28: =CRY -> 2017-18
B29: OPEX
B30: Standard Control Services | C30: Total
B31: Alternative Control Services | C31: Total
B32: CAPEX
B33: Standard Control Services | C33: Total
B34: Alternative Control Services | C34: Total
B35: OTHER DISTRIBUTION SERVICES
B36: Negotiated Services | C36: Total
B37: Unregulated Services | C37: Total

Sheet 2.11 Labour
B1: REGULATORY REPORTING STATEMENT
B2: =INDEX(dms_TradingNameFull_List,MATCH(dms_TradingName,dms_TradingName_List)) -> Energex
B3: =CONCATENATE((LOOKUP(dms_Model,dms_Model_List,dms_Worksheet_List))&" "&CRY) -> CATEGORY ANALYSIS 2017-18
B4: 2.11 LABOUR
B6: There are TWO tables on this worksheet. Each has been grouped for ease of navigation. See the Instructions sheet on how to group or ungroup tables.
B8: 2.11.1 - COST METRICS PER ANNUM
D9: ASL (0's) | E9: TOTAL LABOUR EXPENDITURE ($0's) | F9: AVERAGE PRODUCTIVE WORK HOURS PER ASL (0's) | G9: STAND-DOWN OCCURENCES PER ASL (0's)
D11: =CRY -> 2017-18 | E11: =CRY -> 2017-18 | F11: =CRY -> 2017-18 | G11: =CRY -> 2017-18
B12: INTERNAL LABOUR EXPENDITURE
B13: CORPORATE OVERHEADS | C13: Executive manager | D13: 0 | E13: 0 | F13: 0 | G13: 0
C14: Senior manager | D14: 0.6107143599 | E14: 184962.9633 | F14: 1530.890636 | G14: 0
C15: Manager | D15: 11.88328125 | E15: 2886531.619 | F15: 1596.921512 | G15: 0
C16: Professional | D16: 102.5692017 | E16: 18554065.14 | F16: 1602.603943 | G16: 0
C17: Semi professional | D17: 16.81992804 | E17: 2959343.168 | F17: 1656.561918 | G17: 0
C18: Support staff | D18: 139.8625561 | E18: 14889018.51 | F18: 1547.356237 | G18: 0
C19: Intern, junior staff, apprentice | D19: 30.62752764 | E19: 4473493.614 | F19: 1804.358903 | G19: 0
B20: NETWORK OVERHEADS | C20: Executive manager | D20: 0 | E20: 0 | F20: 0 | G20: 0
C21: Senior manager | D21: 12.72307775 | E21: 3853353.25 | F21: 1529.908169 | G21: 0
C22: Manager | D22: 19.16013938 | E22: 4654131.042 | F22: 1594.282568 | G22: 0
C23: Professional | D23: 197.3864438 | E23: 35633546.49 | F23: 1600.673252 | G23: 0.2900428824
C24: Semi professional | D24: 343.9942737 | E24: 56117397.74 | F24: 1562.532147 | G24: 1.482743033
C25: Support staff | D25: 233.2194198 | E25: 24154823.33 | F25: 1572.990076 | G25: 0.2841198634
C26: Intern, junior staff, apprentice | D26: 181.9002054 | E26: 24711973.82 | F26: 1628.521497 | G26: 4.591598336
B27: TOTAL DIRECT NETWORK LABOUR | C27: Skilled electrical worker | D27: 598.3685185 | E27: 100212182.8 | F27: 1878.217636 | G27: 0
C28: Skilled non electical worker | D28: 310.2393642 | E28: 55673837.22 | F28: 1700.148815 | G28: 0
C29: Apprentice | D29: 88.85794666 | E29: 8776072.285 | F29: 1458.150503 | G29: 0
C30: Unskilled worker | D30: 65.44265136 | E30: 7990772.119 | F30: 1788.603754 | G30: 0
B33: 2.11.2 - DESCRIPTOR METRICS
D34: ORDINARY TIME (0's) | F34: OVERTIME (0's)
D35: PER ASL | E35: HOURLY RATE PER ASL | F35: PER ASL | G35: HOURLY RATE PER ASL
D36: =CRY -> 2017-18 | E36: =CRY -> 2017-18 | F36: =CRY -> 2017-18 | G36: =CRY -> 2017-18
B37: AVERAGE PRODUCTIVE WORK HOURS PER ASL
B38: CORPORATE OVERHEADS | C38: Executive manager | D38: 1530.890636 | E38: 0 | F38: 0 | G38: 0
C39: Senior manager | D39: 1530.890636 | E39: 186.1126807 | F39: 0 | G39: 0
C40: Manager | D40: 1591.607744 | E40: 143.5745249 | F40: 5.313768031 | G40: 0
C41: Professional | D41: 1591.7033 | E41: 175.8774958 | F41: 10.95259179 | G41: 134.3896111
C42: Semi professional | D42: 1509.246969 | E42: 96.76184403 | F42: 147.3149489 | G42: 104.2487467
C43: Support staff | D43: 1546.011191 | E43: 83.35182124 | F43: 4.926603244 | G43: 91.69295017
C44: Intern, junior staff, apprentice | D44: 1510.456556 | E44: 77.26950384 | F44: 280.9521051 | G44: 83.73433179
B45: NETWORK OVERHEADS | C45: Executive manager | D45: 1530.890636 | E45: 0 | F45: 0 | G45: 0
C46: Senior manager | D46: 1530.890636 | E46: 186.1126807 | F46: 0 | G46: 0
C47: Manager | D47: 1591.607744 | E47: 143.5745249 | F47: 2.674823966 | G47: 0
C48: Professional | D48: 1591.730345 | E48: 105.9463068 | F48: 9.065508663 | G48: 135.2545929
C49: Semi professional | D49: 1509.246969 | E49: 96.76184403 | F49: 53.28517799 | G49: 139.460447
C50: Support staff | D50: 1548.829006 | E50: 62.00308404 | F50: 31.48554901 | G50: 89.06827581
C51: Intern, junior staff, apprentice | D51: 1223.771232 | E51: 94.68315602 | F51: 119.274528 | G51: 102.451143
B52: TOTAL DIRECT NETWORK LABOUR | C52: Skilled electrical worker | D52: 1509.246969 | E52: 77.26950384 | F52: 368.9706667 | G52: 110.7943617
C53: Skilled non electical worker | D53: 1509.246969 | E53: 96.76184403 | F53: 190.9018459 | G53: 119.856205
C54: Apprentice | D54: 1218.246969 | E54: 62.48791415 | F54: 239.9035337 | G54: 70.06824324
C55: Unskilled worker | D55: 1509.246969 | E55: 60.20235074 | F55: 279.3567852 | G55: 85.95424166

Sheet 2.12 Input tables
B1: REGULATORY REPORTING STATEMENT
B2: =INDEX(dms_TradingNameFull_List,MATCH(dms_TradingName,dms_TradingName_List)) -> Energex
B3: =CONCATENATE((LOOKUP(dms_Model,dms_Model_List,dms_Worksheet_List))&" "&CRY) -> CATEGORY ANALYSIS 2017-18
B4: 2.12 INPUT TABLES
B6: There is ONE table on this worksheet. It has been sub-grouped for ease of navigation. See the Instructions sheet on how to group or ungroup tables.
B8: 2.12.1 - INPUT TABLES
D9: DIRECT MATERIAL EXPENDITURE | E9: DIRECT LABOUR EXPENDITURE | F9: CONTRACT EXPENDITURE | G9: OTHER EXPENDITURE | H9: RELATED PARTY CONTRACT EXPENDITURE | I9: RELATED PARTY CONTRACT MARGIN EXPENDITURE
D10: EXPENDITURE ($0's)
D11: =CRY -> 2017-18 | E11: 2017-18 | F11: 2017-18 | G11: 2017-18 | H11: 2017-18 | I11: 2017-18
B12: VEGETATION MANAGEMENT | C12: ='2.7 Vegetation management'!B15 -> ZONE 1 | D12: 8236.92 | E12: 90321.44 | F12: 41579934.48 | G12: 10534.14 | H12: 0 | I12: 0
C13: ='2.7 Vegetation management'!B21 -> ZONE 2 | D13: 0 | E13: 0 | F13: 0 | G13: 0 | H13: 0 | I13: 0
C14: ='2.7 Vegetation management'!B27 -> ZONE 3 | D14: 0 | E14: 0 | F14: 0 | G14: 0 | H14: 0 | I14: 0
C15: ='2.7 Vegetation management'!B33 -> ZONE 4 | D15: 0 | E15: 0 | F15: 0 | G15: 0 | H15: 0 | I15: 0
C16: ='2.7 Vegetation management'!B39 -> ZONE 5 | D16: 0 | E16: 0 | F16: 0 | G16: 0 | H16: 0 | I16: 0
C17: ='2.7 Vegetation management'!B45 -> ZONE 6 | D17: 0 | E17: 0 | F17: 0 | G17: 0 | H17: 0 | I17: 0
C18: ='2.7 Vegetation management'!B51 -> ZONE 7 | D18: 0 | E18: 0 | F18: 0 | G18: 0 | H18: 0 | I18: 0
C19: ='2.7 Vegetation management'!B57 -> ZONE 8 | D19: 0 | E19: 0 | F19: 0 | G19: 0 | H19: 0 | I19: 0
C20: ='2.7 Vegetation management'!B63 -> ZONE 9 | D20: 0 | E20: 0 | F20: 0 | G20: 0 | H20: 0 | I20: 0
C21: ='2.7 Vegetation management'!B69 -> ZONE 10 | D21: 0 | E21: 0 | F21: 0 | G21: 0 | H21: 0 | I21: 0
C22: ='2.7 Vegetation management'!B75 -> ZONE 11 | D22: 0 | E22: 0 | F22: 0 | G22: 0 | H22: 0 | I22: 0
C23: ='2.7 Vegetation management'!B81 -> ZONE 12 | D23: 0 | E23: 0 | F23: 0 | G23: 0 | H23: 0 | I23: 0
C24: ='2.7 Vegetation management'!B87 -> ZONE 13 | D24: 0 | E24: 0 | F24: 0 | G24: 0 | H24: 0 | I24: 0
C25: ='2.7 Vegetation management'!B93 -> ZONE 14 | D25: 0 | E25: 0 | F25: 0 | G25: 0 | H25: 0 | I25: 0
C26: ='2.7 Vegetation management'!B99 -> ZONE 15 | D26: 0 | E26: 0 | F26: 0 | G26: 0 | H26: 0 | I26: 0
C27: ='2.7 Vegetation management'!B105 -> ZONE 16 | D27: 0 | E27: 0 | F27: 0 | G27: 0 | H27: 0 | I27: 0
C28: ='2.7 Vegetation management'!B111 -> ZONE 17 | D28: 0 | E28: 0 | F28: 0 | G28: 0 | H28: 0 | I28: 0
C29: ='2.7 Vegetation management'!B117 -> ZONE 18 | D29: 0 | E29: 0 | F29: 0 | G29: 0 | H29: 0 | I29: 0
B30: ROUTINE MAINTENANCE | C30: Pole top, overhead line & service line maintenance | D30: 397.23 | E30: 90977.33 | F30: 1062991.02 | G30: 12170.23 | H30: 0 | I30: 0
C31: Pole inspection and treatment | D31: 143479.66 | E31: 1359.32 | F31: 5456051.78 | G31: 8545.33 | H31: 610979.72 | I31: 0
C32: Overhead asset inspection | D32: 2947.14 | E32: 644948.58 | F32: 530096.22 | G32: 72763.94 | H32: 0 | I32: 0
C33: Network underground cable maintenance | D33: 0 | E33: 8452.16 | F33: 0 | G33: 938.13 | H33: 0 | I33: 0
C34: Distribution substation equipment & property maintenance | D34: 2005613.01 | E34: 3144506.97 | F34: 747733.74 | G34: 475965.79 | H34: 0 | I34: 0
C35: Zone substation equipment maintenance | D35: 207232.54 | E35: 1648268.1 | F35: 540711.41 | G35: 202508.53 | H35: 0 | I35: 0
C36: Zone substation property maintenance | D36: 1158.45 | E36: 116501.45 | F36: 4863.29 | G36: 13752.29 | H36: 0 | I36: 0
C37: Public lighting maintenance | D37: 0 | E37: 0 | F37: 0 | G37: 0 | H37: 0 | I37: 0
C38: Scada & network control maintenance | D38: 13168.45 | E38: 773186.12 | F38: 13768.62 | G38: 92871.29 | H38: 0 | I38: 0
C39: Protection systems maintenance | D39: -68.85 | E39: 2119325.13 | F39: 400 | G39: 242319.12 | H39: 0 | I39: 0
C40: Subtransmission asset maintenance - for dnsps with dual function assets | D40: 0 | E40: 0 | F40: 0 | G40: 0 | H40: 0 | I40: 0
C41: Other | D41: 101589.86 | E41: 1889472.27 | F41: 572164.23 | G41: 235000.08 | H41: 0 | I41: 0
B42: NON-ROUTINE MAINTENANCE | C42: Pole top, overhead line & service line maintenance | D42: 1098204.92 | E42: 6653951.28 | F42: 3193315.37 | G42: 824225.15 | H42: 0 | I42: 0
C43: Pole inspection and treatment | D43: 0 | E43: 0 | F43: 0 | G43: 0 | H43: 0 | I43: 0
C44: Overhead asset inspection | D44: 244.01 | E44: 146905.23 | F44: 120885.27 | G44: 16328.36 | H44: 0 | I44: 0
C45: Network underground cable maintenance | D45: 432402.92 | E45: 1920200.1 | F45: 1745113.09 | G45: 242060.96 | H45: 0 | I45: 0
C46: Distribution substation equipment & property maintenance | D46: 172207.54 | E46: 379556.34 | F46: 254513.33 | G46: 376684.63 | H46: 0 | I46: 0
C47: Zone substation equipment maintenance | D47: 1021704.07 | E47: 4796102.08 | F47: 2444288.52 | G47: 588987.36 | H47: 0 | I47: 0
C48: Zone substation property maintenance | D48: 110241.8 | E48: 141164.08 | F48: 456094.03 | G48: 2549612.08 | H48: 0 | I48: 0
C49: Public lighting maintenance | D49: 0 | E49: 0 | F49: 0 | G49: 0 | H49: 0 | I49: 0
C50: SCADA & network control maintenance | D50: 0 | E50: 3961.39 | F50: 0 | G50: 439.59 | H50: 0 | I50: 0
C51: Protection systems maintenance | D51: 9578.48 | E51: 337347.84 | F51: 1314.37 | G51: 38002.01 | H51: 0 | I51: 0
C52: Subtransmission asset maintenance - for DNSP with dual function assets | D52: 0 | E52: 0 | F52: 0 | G52: 0 | H52: 0 | I52: 0
C53: Other | D53: 177339.16 | E53: 1064860.3 | F53: 659087.44 | G53: 293085.6 | H53: 0 | I53: 0
B54: OVERHEADS | C54: Network overheads | D54: 15604019.73 | E54: 157709146.7 | F54: 16608354.3 | G54: 18000865.17 | H54: 16038035.9 | I54: 0
C55: Corporate overheads | D55: 2130528.803 | E55: 67771341.26 | F55: 109234218.6 | G55: 84085364.9 | H55: 122340302.2 | I55: 0
B56: AUGMENTATION | C56: Subtransmission substations, switching stations, zone substations | D56: 2307230.653 | E56: 2069037 | F56: 3594617 | G56: 220002.4665 | H56: 0 | I56: 0
C57: Subtransmission lines | D57: 592490.014 | E57: 734443 | F57: 1282800 | G57: 135289.6534 | H57: 0 | I57: 0
C58: HV feeders | D58: 9265717.241 | E58: 14428262 | F58: 9693995 | G58: 2034521.199 | H58: 0 | I58: 0
C59: Distribution substations | D59: 5016034.738 | E59: 5786510 | F59: 4254842 | G59: 895341.0775 | H59: 0 | I59: 0
C60: LV feeders | D60: 3128116.919 | E60: 7372858 | F60: 4621477 | G60: 976474.9513 | H60: 0 | I60: 0
C61: Other assets | D61: 6066753.856 | E61: 4342586.46 | F61: 2241340 | G61: 857260.1775 | H61: 0 | I61: 0
B62: CONNECTIONS | C62: Simple and complex customer connections | D62: 16740352.9 | E62: 28171985.87 | F62: 20278348.44 | G62: 4102263.43 | H62: 291363.95 | I62: 0
B63: EMERGENCY RESPONSE | C63: Major storms | D63: 236215.19 | E63: 5815077.65 | F63: 870331.99 | G63: 687554.14 | H63: 0 | I63: 0
C64: Major event days | D64: 53541.21 | E64: 2011669.28 | F64: 115455.12 | G64: 232046.46 | H64: 0 | I64: 0
B65: PUBLIC LIGHTING | C65: All public lighting services | D65: 4046735.64 | E65: 1694224.55 | F65: 10564696.56 | G65: 399980.31 | H65: 15007.51 | I65: 0
B66: METERING | C66: All metering services | D66: 4440721.62 | E66: 9197768.83 | F66: 11606398.4 | G66: 3279.77 | H66: 0 | I66: 0
B67: FEE-BASED SERVICES | C67: All fee-based services | D67: 296887.38 | E67: 6892098.65 | F67: 11438537.71 | G67: 839740.58 | H67: 0 | I67: 0
B68: QUOTED SERVICES | C68: All quoted services | D68: 5694895.44 | E68: 11902962.65 | F68: 4820986.03 | G68: -171050.75 | H68: 258758.58 | I68: 0
B69: REPLACEMENT | C69: Poles | D69: 4172354.702 | E69: 8353755.9 | F69: 9921155.04 | G69: 1022563.867 | H69: 2247.96 | I69: 0
C70: Pole top structures | D70: 2017174.558 | E70: 4060250.484 | F70: 4789063.542 | G70: 489937.6677 | H70: 0 | I70: 0
C71: Overhead conductors | D71: 1696415.491 | E71: 3298021.521 | F71: 5580039.248 | G71: 409755.8705 | H71: 0 | I71: 0
C72: Underground cables | D72: 1564631.298 | E72: 2579257.628 | F72: 4656078.63 | G72: 359775.5092 | H72: 0 | I72: 0
C73: Service lines | D73: 2632852.399 | E73: 883991.066 | F73: 10647227.2 | G73: 276883.0649 | H73: 3113152.33 | I73: 0
C74: Transformers | D74: 10732045.71 | E74: 7063246.989 | F74: 6299582.97 | G74: 1472043.325 | H74: 23740.58 | I74: 0
C75: Switchgear | D75: 11834435.97 | E75: 14958527.09 | F75: 10358053.79 | G75: 2241605.923 | H75: 0 | I75: 0
C76: Public lighting | D76: 580392.3925 | E76: 1308280.505 | F76: 1741430.719 | G76: 165670.6011 | H76: 0 | I76: 0
C77: SCADA network control and protection systems | D77: 4949141.699 | E77: 10056168.98 | F77: 4945564.3 | G77: 1220052.326 | H77: 173198.58 | I77: 0
C78: Other | D78: 1420024.793 | E78: -1132930.708 | F78: 2429273.819 | G78: 746731.9069 | H78: 0 | I78: 0
B79: NON-NETWORK EXPENDITURE | C79: IT and communications | D79: 2356813.72 | E79: 0 | F79: 96637228.05 | G79: 30381.06 | H79: 99436765.89 | I79: 0
C80: Motor vehicles | D80: 17922879 | E80: 3831201 | F80: 516883 | G80: 18256256 | H80: 0 | I80: 0
C81: Buildings and property | D81: 3696264 | E81: 4160501 | F81: 9469169 | G81: 39314948 | H81: 163199.29 | I81: 0
C82: Other | D82: 8434034 | E82: 5127623 | F82: 2400032 | G82: 1426447 | H82: 426520.76 | I82: 0

Sheet 4.1 Public lighting
B1: REGULATORY REPORTING STATEMENT
B2: =INDEX(dms_TradingNameFull_List,MATCH(dms_TradingName,dms_TradingName_List)) -> Energex
B3: =CONCATENATE((LOOKUP(dms_Model,dms_Model_List,dms_Worksheet_List))&" "&CRY) -> CATEGORY ANALYSIS 2017-18
B4: 4.1 PUBLIC LIGHTING
B7: There are THREE tables on this worksheet. Each has been grouped for ease of navigation. See the Instructions sheet on how to group or ungroup tables.
B9: 4.1.1 - DESCRIPTOR METRICS OVER YEAR
E10: VOLUME (0's)
C11: LIGHT TYPE | E11: =CRY -> 2017-18
B12: POPULATION OF LIGHTS | C12: High Pressure Sodium Vapour - Major | E12: 37806
C13: Mercury Vapour - Major | E13: 1888
C14: Metal Hallide - Major | E14: 332
C15: LED - Major | E15: 95
C16: Fluorescent - Minor | E16: 35212
C17: Metal Hallide - Minor | E17: 28
C18: Mercury vapour - Minor | E18: 55738
C19: High Pressure Sodium Vapour - Minor | E19: 16007
C20: LED - Minor | E20: 2175
B214: 4.1.2 - DESCRIPTOR METRICS ANNUALLY
E217: VOLUMES & EXPENDITURE
B218: SERVICE/SERVICE QUALITY | C218: DESCRIPTOR METRIC | D218: UNITS | E218: =CRY -> 2017-18
B219: LIGHT INSTALLATION | C219: Major road light installation | D219: 0's | E219: 483
C220: Minor road light installation | D220: 0's | E220: 604
C221: Number of poles installed | D221: 0's | E221: 350
C222: Total cost | D222: $0s | E222: 2935307.75
B223: LIGHT REPLACEMENT | C223: Major road light replacement | D223: 0's | E223: 1428
C224: Minor road light replacement | D224: 0's | E224: 4404
C225: Number of poles replaced | D225: 0's | E225: 239
C226: Total cost | D226: $0s | E226: 1603693.91
B227: LIGHT MAINTENANCE | C227: Major road light maintenance | D227: 0's | E227: 18775
C228: Minor road light maintenance | D228: 0's | E228: 55275
C229: Number of poles installed | D229: 0's | E229: 9068
C230: Total cost | D230: $0s | E230: 12166635.4
B231: QUALITY OF SUPPLY | C231: Mean days to rectify/replace public lighting assets | D231: days | E231: 4.25
C232: GSO breaches | D232: 0's | E232: 0
C233: GSL payments | D233: $0s | E233: 0
C234: Customer complaints | D234: 0's | E234: 7
B237: 4.1.3 - COST METRICS
E238: AVERAGE UNIT COST ($)
B239: ACTIVITY TYPE | C239: LIGHT TYPE | E239: =CRY -> 2017-18
B240: LIGHT INSTALLATION | C240: steel overhead major | E240: 6660
C241: steel underground decorative minor | E241: 4544
C242: steel underground major | E242: 11030
C243: wood pole major | E243: 1602
C244: wood pole minor | E244: 887
B340: LIGHT REPLACEMENT | C340: High Pressure Sodium - Major | E340: 338
C341: Mercury Vapour Minor | E341: 224
C342: High Pressure Sodium Vapour Minor | E342: 238
B440: LIGHT MAINTENANCE | C440: Major Road Luminaires | E440: 29.82
C441: Minor Road Luminaires | E441: 24.78

Sheet 4.2 Metering
B1: REGULATORY REPORTING STATEMENT
B2: =INDEX(dms_TradingNameFull_List,MATCH(dms_TradingName,dms_TradingName_List)) -> Energex
B3: =CONCATENATE((LOOKUP(dms_Model,dms_Model_List,dms_Worksheet_List))&" "&CRY) -> CATEGORY ANALYSIS 2017-18
B4: 4.2 METERING
B6: There are TWO tables on this worksheet. Each has been grouped for ease of navigation. See the Instructions sheet on how to group or ungroup tables.
B8: 4.2.1 - METERING DESCRIPTOR METRIC
D9: VOLUMES (0's)
B10: Asset Category | C10: Asset Subcategory | D10: =CRY -> 2017-18
B11: Meter Type 4 | C11: Single phase meter population
C12: Multi phase meter population
C13: Current transformer connected meter population
C14: Direct connect meter population
B15: Meter Type 5 | C15: Single phase meter population
C16: Multi phase meter population
C17: Current transformer connected meter population
C18: Direct connect meter population
B19: Meter Type 6 | C19: Single phase meter population | D19: 1947541.5
C20: Multi phase meter population | D20: 145448.5
C21: Current transformer connected meter population | D21: 9458
C22: Direct connect meter population | D22: 2083532
B25: 4.2.2 - COST METRICS
D26: VOLUMES (0's) | E26: EXPENDITURE ($0's)
B27: Service Subcategory | C27: Meter Type | D27: =CRY -> 2017-18 | E27: =CRY -> 2017-18
B28: Meter purchase | C28: Meter Type 4 | D28: 0 | E28: 0
C29: Meter Type 5 | D29: 0 | E29: 0
C30: Meter Type 6 | D30: 17863 | E30: 1530726.76
B31: Meter testing | C31: Meter Type 4 | D31: 0 | E31: 0
C32: Meter Type 5 | D32: 0 | E32: 0
C33: Meter Type 6 | D33: 2786 | E33: 460688.83
B34: Meter investigation | C34: Meter Type 4 | D34: 0 | E34: 0
C35: Meter Type 5 | D35: 0 | E35: 0
C36: Meter Type 6 | D36: 4194 | E36: 15491.98
B37: Scheduled meter reading | C37: Meter Type 4 | D37: 0 | E37: 0
C38: Meter Type 5 | D38: 0 | E38: 0
C39: Meter Type 6
B40: Special meter reading | C40: Meter Type 4 | D40: 0 | E40: 0
C41: Meter Type 5 | D41: 0 | E41: 0
C42: Meter Type 6
B43: New meter installation | C43: Meter Type 4 | D43: 0 | E43: 0
C44: Meter Type 5 | D44: 0 | E44: 0
C45: Meter Type 6 | D45: 24278 | E45: 6677101.82
B46: Meter replacement | C46: Meter Type 4 | D46: 0 | E46: 0
C47: Meter Type 5 | D47: 0 | E47: 0
C48: Meter Type 6 | D48: 5297 | E48: 330854.03
B49: Meter maintenance | C49: Meter Type 4 | D49: 0 | E49: 0
C50: Meter Type 5 | D50: 0 | E50: 0
C51: Meter Type 6 | D51: 1944 | E51: 1060638.9
B52: Remote meter reading | C52: Meter Type 4 | D52: 0 | E52: 0
B53: Remote meter re-configuration | C53: Meter Type 4 | D53: 0 | E53: 0
B54: Other metering | C54: Meter Type 4 | E54: 0
C55: Meter Type 5 | E55: 0
C56: Meter Type 6 | E56: 4738756.75
C57: Meter Type 7 | E57: 0
B58: IT infrastructure capex | C58: Meter Type 4 | E58: 0
B59: IT infrastructure opex | C59: Meter Type 4 | E59: 0
B60: Communications infrastructure capex | C60: Meter Type 4 | E60: 0
B61: Communications infrastructure opex | C61: Meter Type 4 | E61: 0

Sheet 4.3 Fee-based services
B1: REGULATORY REPORTING STATEMENT
B2: =INDEX(dms_TradingNameFull_List,MATCH(dms_TradingName,dms_TradingName_List)) -> Energex
B3: =CONCATENATE((LOOKUP(dms_Model,dms_Model_List,dms_Worksheet_List))&" "&CRY) -> CATEGORY ANALYSIS 2017-18
B4: 4.3 ANCILLARY SERVICES - FEE BASED SERVICES
B6: 4.3.1 - COST METRICS FOR FEE-BASED SERVICES
D7: EXPENDITURE ($0's) | F7: VOLUMES (0's)
B8: SERVICE | C8: SERVICE SUBCATEGORY | D8: =CRY -> 2017-18 | F8: =CRY -> 2017-18
B9: Common Fee-Based Services | C9: Energisation | E9: ED_FEE431_00001
C10: De-energisation | E10: ED_FEE431_00002
C11: Re-energisation | E11: ED_FEE431_00003
B12: Miscellaneous Fee-Based Services | C12: A&A to current metering equipment | D12: 143163.78 | E12: ED_FEE431_00004 | F12: 1787
C13: Attending LOS - LV cust at fault | D13: 195582.53 | E13: ED_FEE431_00005 | F13: 795
C14: De-en | D14: 5233303.18 | E14: ED_FEE431_00006 | F14: 119436
C15: Meter test | E15: ED_FEE431_00007
C16: Meter inspect | D16: 7777.8 | E16: ED_FEE431_00008 | F16: 127
C17: Reconfigure meter | D17: 346156.68 | E17: ED_FEE431_00009 | F17: 5993
C18: Off-cycle read | D18: 1104297.79 | E18: ED_FEE431_00010 | F18: 200803
C19: Site visit | D19: 581148.03 | E19: ED_FEE431_00011 | F19: 35390
C20: Temp connection | D20: 228926.66 | E20: ED_FEE431_00012 | F20: 2464
C21: Re-en - BH | D21: 5758677.642 | E21: 0 | F21: 210355
C22: Re-en - AH | D22: 20395.11703 | E22: 0 | F22: 745
C23: Re-en Visual - BH | D23: 1918290.793 | E23: 0 | F23: 70072
C24: Re-en Visual - AH | D24: 104329.9208 | E24: 0 | F24: 3811
C25: Re-en NoPay Visual - BH | D25: 1149.791833 | E25: 0 | F25: 42
C26: Re-en NoPay Visual - AH | D26: 27.37599601 | E26: 0 | F26: 1
C27: Supply Abolishment | D27: 562921.7 | E27: 0 | F27: 3328
C28: UMS (unmetered supply) | E28: 0
C29: SL glare screening - standard | D29: 11139.12 | E29: 0 | F29: 129
C30: Replacement of standard luminaires with aero screen units/SL | E30: 0
C31: Rearrange connection assets | E31: 0
C32: OH service line replacement | D32: 156275.12 | E32: 0 | F32: 1059
C33: Temporary disconnections and reconnection | E33: 0 | F33: 21
C34: Customer initiated supply enhancement | D34: 864633.55 | E34: 0 | F34: 1247
C35: Customer consultation or appointment | D35: 22500.14 | E35: 0 | F35: 112
C36: Accreditation of alternative service providers | D36: 3822.5 | E36: 0 | F36: 4
C37: Small customer connections | D37: 1868614.85 | E37: 0 | F37: 631
C38: CT Metering | D38: 334130.25 | E38: 0 | F38: 657
E39: ED_FEE431_00031
E40: ED_FEE431_00032
E41: ED_FEE431_00033
E42: ED_FEE431_00034
E43: ED_FEE431_00035
E44: ED_FEE431_00036
E45: ED_FEE431_00037
E46: ED_FEE431_00038
E47: ED_FEE431_00039
E48: ED_FEE431_00040
E49: ED_FEE431_00041
E50: ED_FEE431_00042
E51: ED_FEE431_00043
E52: ED_FEE431_00044
E53: ED_FEE431_00045
E54: ED_FEE431_00046
E55: ED_FEE431_00047
E56: ED_FEE431_00048
E57: ED_FEE431_00049
E58: ED_FEE431_00050
E59: ED_FEE431_00051
E60: ED_FEE431_00052
E61: ED_FEE431_00053
E62: ED_FEE431_00054
E63: ED_FEE431_00055
E64: ED_FEE431_00056
E65: ED_FEE431_00057
E66: ED_FEE431_00058
E67: ED_FEE431_00059
E68: ED_FEE431_00060
E69: ED_FEE431_00061
E70: ED_FEE431_00062
E71: ED_FEE431_00063
E72: ED_FEE431_00064
E73: ED_FEE431_00065
E74: ED_FEE431_00066
E75: ED_FEE431_00067
E76: ED_FEE431_00068
E77: ED_FEE431_00069
E78: ED_FEE431_00070
E79: ED_FEE431_00071
E80: ED_FEE431_00072
E81: ED_FEE431_00073
E82: ED_FEE431_00074
E83: ED_FEE431_00075
E84: ED_FEE431_00076
E85: ED_FEE431_00077
E86: ED_FEE431_00078
E87: ED_FEE431_00079
E88: ED_FEE431_00080
E89: ED_FEE431_00081
E90: ED_FEE431_00082
E91: ED_FEE431_00083
E92: ED_FEE431_00084
E93: ED_FEE431_00085
E94: ED_FEE431_00086
E95: ED_FEE431_00087
E96: ED_FEE431_00088
E97: ED_FEE431_00089
E98: ED_FEE431_00090
E99: ED_FEE431_00091
E100: ED_FEE431_00092
E101: ED_FEE431_00093
E102: ED_FEE431_00094
E103: ED_FEE431_00095
E104: ED_FEE431_00096
E105: ED_FEE431_00097
E106: ED_FEE431_00098
E107: ED_FEE431_00099
E108: ED_FEE431_00100
E109: ED_FEE431_00101
E110: ED_FEE431_00102
E111: ED_FEE431_00103
E112: ED_FEE431_00104
E113: ED_FEE431_00105
E114: ED_FEE431_00106
E115: ED_FEE431_00107
E116: ED_FEE431_00108
E117: ED_FEE431_00109
E118: ED_FEE431_00110
E119: ED_FEE431_00111
E120: ED_FEE431_00112
E121: ED_FEE431_00113
E122: ED_FEE431_00114
E123: ED_FEE431_00115
E124: ED_FEE431_00116
E125: ED_FEE431_00117
E126: ED_FEE431_00118
E127: ED_FEE431_00119
E128: ED_FEE431_00120
E129: ED_FEE431_00121
E130: ED_FEE431_00122
E131: ED_FEE431_00123
E132: ED_FEE431_00124
E133: ED_FEE431_00125
E134: ED_FEE431_00126
E135: ED_FEE431_00127
E136: ED_FEE431_00128
E137: ED_FEE431_00129
E138: ED_FEE431_00130
E139: ED_FEE431_00131
E140: ED_FEE431_00132
E141: ED_FEE431_00133
E142: ED_FEE431_00134
E143: ED_FEE431_00135
E144: ED_FEE431_00136
E145: ED_FEE431_00137
E146: ED_FEE431_00138
E147: ED_FEE431_00139
E148: ED_FEE431_00140
E149: ED_FEE431_00141
E150: ED_FEE431_00142
E151: ED_FEE431_00143
E152: ED_FEE431_00144
E153: ED_FEE431_00145
E154: ED_FEE431_00146
E155: ED_FEE431_00147
E156: ED_FEE431_00148
E157: ED_FEE431_00149
E158: ED_FEE431_00150
E159: ED_FEE431_00151
E160: ED_FEE431_00152
E161: ED_FEE431_00153
E162: ED_FEE431_00154
E163: ED_FEE431_00155
E164: ED_FEE431_00156
E165: ED_FEE431_00157
E166: ED_FEE431_00158
E167: ED_FEE431_00159
E168: ED_FEE431_00160
E169: ED_FEE431_00161
E170: ED_FEE431_00162
E171: ED_FEE431_00163
E172: ED_FEE431_00164
E173: ED_FEE431_00165
E174: ED_FEE431_00166
E175: ED_FEE431_00167
E176: ED_FEE431_00168
E177: ED_FEE431_00169
E178: ED_FEE431_00170
E179: ED_FEE431_00171
E180: ED_FEE431_00172
E181: ED_FEE431_00173
E182: ED_FEE431_00174
E183: ED_FEE431_00175
E184: ED_FEE431_00176
E185: ED_FEE431_00177
E186: ED_FEE431_00178
E187: ED_FEE431_00179
E188: ED_FEE431_00180
E189: ED_FEE431_00181
E190: ED_FEE431_00182
E191: ED_FEE431_00183
E192: ED_FEE431_00184
E193: ED_FEE431_00185
E194: ED_FEE431_00186
E195: ED_FEE431_00187
E196: ED_FEE431_00188
E197: ED_FEE431_00189
E198: ED_FEE431_00190
E199: ED_FEE431_00191
E200: ED_FEE431_00192
E201: ED_FEE431_00193
... 278 more rows

Sheet 4.4 Quoted services
B1: REGULATORY REPORTING STATEMENT
B2: =INDEX(dms_TradingNameFull_List,MATCH(dms_TradingName,dms_TradingName_List)) -> Energex
B3: =CONCATENATE((LOOKUP(dms_Model,dms_Model_List,dms_Worksheet_List))&" "&CRY) -> CATEGORY ANALYSIS 2017-18
B4: 4.4 ANCILLARY SERVICES - QUOTED SERVICES
B6: 4.4.1 - COST METRICS FOR QUOTED SERVICES
D7: EXPENDITURE ($0's) | F7: VOLUMES (0's)
B8: SERVICE | C8: SERVICE SUBCATEGORY | D8: =CRY -> 2017-18 | F8: =CRY -> 2017-18
B9: Quoted Services | C9: Rearrangement of network assets | D9: 10818125.34 | F9: 167
C10: Customer requested works (work close) | D10: 356657.4 | E10: ED_QUO441_00002 | F10: 230
C11: Non-standard data and meter services | E11: ED_QUO441_00003
C12: Large customer connections | D12: 5333857.02 | E12: ED_QUO441_00004 | F12: 243
C13: Unmetered services, inc Streetlighting | D13: 142869.47 | E13: ED_QUO441_00005 | F13: 105
C14: Temp connections - complex | D14: 687493.03 | E14: ED_QUO441_00006 | F14: 17
C15: Loss of asset | D15: 383424.9 | E15: ED_QUO441_00007 | F15: 154
C16: Other recoverable works | D16: 116569.22 | E16: ED_QUO441_00008 | F16: 2
C17: Recoverable Streetlighting Construction | D17: 772240.66 | E17: ED_QUO441_00009 | F17: 29
C18: Unique glare shields / luminaires | D18: 40347.61 | E18: ED_QUO441_00010 | F18: 11
C19: Real Estate development inc design spec & audit | D19: 3282150.24 | E19: ED_QUO441_00011 | F19: 219
C20: Parallel generator assessment | D20: 314058.48 | E20: ED_QUO441_00012 | F20: 5
E21: ED_QUO441_00013
E22: ED_QUO441_00014
E23: ED_QUO441_00015
E24: ED_QUO441_00016
E25: ED_QUO441_00017
E26: ED_QUO441_00018
E27: ED_QUO441_00019
E28: ED_QUO441_00020
E29: ED_QUO441_00021
E30: ED_QUO441_00022
E31: ED_QUO441_00023
E32: ED_QUO441_00024
E33: ED_QUO441_00025
E34: ED_QUO441_00026
E35: ED_QUO441_00027
E36: ED_QUO441_00028
E37: ED_QUO441_00029
E38: ED_QUO441_00030
E39: ED_QUO441_00031
E40: ED_QUO441_00032
E41: ED_QUO441_00033
E42: ED_QUO441_00034
E43: ED_QUO441_00035
E44: ED_QUO441_00036
E45: ED_QUO441_00037
E46: ED_QUO441_00038
E47: ED_QUO441_00039
E48: ED_QUO441_00040
E49: ED_QUO441_00041
E50: ED_QUO441_00042
E51: ED_QUO441_00043
E52: ED_QUO441_00044
E53: ED_QUO441_00045
E54: ED_QUO441_00046
E55: ED_QUO441_00047
E56: ED_QUO441_00048
E57: ED_QUO441_00049
E58: ED_QUO441_00050
E59: ED_QUO441_00051
E60: ED_QUO441_00052
E61: ED_QUO441_00053
E62: ED_QUO441_00054
E63: ED_QUO441_00055
E64: ED_QUO441_00056
E65: ED_QUO441_00057
E66: ED_QUO441_00058
E67: ED_QUO441_00059
E68: ED_QUO441_00060
E69: ED_QUO441_00061
E70: ED_QUO441_00062
E71: ED_QUO441_00063
E72: ED_QUO441_00064
E73: ED_QUO441_00065
E74: ED_QUO441_00066
E75: ED_QUO441_00067
E76: ED_QUO441_00068
E77: ED_QUO441_00069
E78: ED_QUO441_00070
E79: ED_QUO441_00071
E80: ED_QUO441_00072
E81: ED_QUO441_00073
E82: ED_QUO441_00074
E83: ED_QUO441_00075
E84: ED_QUO441_00076
E85: ED_QUO441_00077
E86: ED_QUO441_00078
E87: ED_QUO441_00079
E88: ED_QUO441_00080
E89: ED_QUO441_00081
E90: ED_QUO441_00082
E91: ED_QUO441_00083
E92: ED_QUO441_00084
E93: ED_QUO441_00085
E94: ED_QUO441_00086
E95: ED_QUO441_00087
E96: ED_QUO441_00088
E97: ED_QUO441_00089
E98: ED_QUO441_00090
E99: ED_QUO441_00091
E100: ED_QUO441_00092
E101: ED_QUO441_00093
E102: ED_QUO441_00094
E103: ED_QUO441_00095
E104: ED_QUO441_00096
E105: ED_QUO441_00097
E106: ED_QUO441_00098
E107: ED_QUO441_00099
E108: ED_QUO441_00100
E109: ED_QUO441_00101
E110: ED_QUO441_00102
E111: ED_QUO441_00103
E112: ED_QUO441_00104
E113: ED_QUO441_00105
E114: ED_QUO441_00106
E115: ED_QUO441_00107
E116: ED_QUO441_00108
E117: ED_QUO441_00109
E118: ED_QUO441_00110
E119: ED_QUO441_00111
E120: ED_QUO441_00112
E121: ED_QUO441_00113
E122: ED_QUO441_00114
E123: ED_QUO441_00115
E124: ED_QUO441_00116
E125: ED_QUO441_00117
E126: ED_QUO441_00118
E127: ED_QUO441_00119
E128: ED_QUO441_00120
E129: ED_QUO441_00121
E130: ED_QUO441_00122
E131: ED_QUO441_00123
E132: ED_QUO441_00124
E133: ED_QUO441_00125
E134: ED_QUO441_00126
E135: ED_QUO441_00127
E136: ED_QUO441_00128
E137: ED_QUO441_00129
E138: ED_QUO441_00130
E139: ED_QUO441_00131
E140: ED_QUO441_00132
E141: ED_QUO441_00133
E142: ED_QUO441_00134
E143: ED_QUO441_00135
E144: ED_QUO441_00136
E145: ED_QUO441_00137
E146: ED_QUO441_00138
E147: ED_QUO441_00139
E148: ED_QUO441_00140
E149: ED_QUO441_00141
E150: ED_QUO441_00142
E151: ED_QUO441_00143
E152: ED_QUO441_00144
E153: ED_QUO441_00145
E154: ED_QUO441_00146
E155: ED_QUO441_00147
E156: ED_QUO441_00148
E157: ED_QUO441_00149
E158: ED_QUO441_00150
E159: ED_QUO441_00151
E160: ED_QUO441_00152
E161: ED_QUO441_00153
E162: ED_QUO441_00154
E163: ED_QUO441_00155
E164: ED_QUO441_00156
E165: ED_QUO441_00157
E166: ED_QUO441_00158
E167: ED_QUO441_00159
E168: ED_QUO441_00160
E169: ED_QUO441_00161
E170: ED_QUO441_00162
E171: ED_QUO441_00163
E172: ED_QUO441_00164
E173: ED_QUO441_00165
E174: ED_QUO441_00166
E175: ED_QUO441_00167
E176: ED_QUO441_00168
E177: ED_QUO441_00169
E178: ED_QUO441_00170
E179: ED_QUO441_00171
E180: ED_QUO441_00172
E181: ED_QUO441_00173
E182: ED_QUO441_00174
E183: ED_QUO441_00175
E184: ED_QUO441_00176
E185: ED_QUO441_00177
E186: ED_QUO441_00178
E187: ED_QUO441_00179
E188: ED_QUO441_00180
E189: ED_QUO441_00181
E190: ED_QUO441_00182
E191: ED_QUO441_00183
E192: ED_QUO441_00184
E193: ED_QUO441_00185
E194: ED_QUO441_00186
E195: ED_QUO441_00187
E196: ED_QUO441_00188
E197: ED_QUO441_00189
E198: ED_QUO441_00190
E199: ED_QUO441_00191
E200: ED_QUO441_00192
E201: ED_QUO441_00193
... 280 more rows

Sheet 5.2 Asset Age Profile
B1: REGULATORY REPORTING STATEMENT
B2: =INDEX(dms_TradingNameFull_List,MATCH(dms_TradingName,dms_TradingName_List)) -> Energex
B3: =CONCATENATE((LOOKUP(dms_Model,dms_Model_List,dms_Worksheet_List))&" "&CRY) -> CATEGORY ANALYSIS 2017-18
B4: 5.2 ASSET AGE PROFILE
B6: There is ONE table on this worksheet. Both the ROWS and COLUMNS have been 'grouped' for easy navigation. See the Instructions sheet on how to group or ungroup data.
B8: 5.2.1 - ASSET AGE PROFILE
D9: ECONOMIC LIFE (YEARS) | F9: INSTALLED ASSETS -˃ QUANTITY CURRENTLY IN COMMISSION BY YEAR
B10: ASSET GROUP | C10: ASSET CATEGORY | D10: MEAN | E10: STANDARD DEVIATION | F10: =CRY -> 2017-18 | G10: =IF(dms_RPT="financial",(VALUE(LEFT(F10,4)-1)&"-"&MID(F10,3,2)),VALUE(LEFT(F10,4)-1)) -> 2016-17 | H10: =IF(dms_RPT="financial",(VALUE(LEFT(G10,4)-1)&"-"&MID(G10,3,2)),VALUE(LEFT(G10,4)-1)) -> 2015-16 | I10: 2014-15 | J10: 2013-14 | K10: 2012-13 | L10: 2011-12 | M10: 2010-11 | N10: 2009-10 | O10: 2008-09 | P10: 2007-08 | Q10: 2006-07 | R10: 2005-06 | S10: 2004-05 | T10: 2003-04 | U10: 2002-03 | V10: 2001-02 | W10: 2000-01 | X10: 1999-00 | Y10: 1998-99 | Z10: 1997-98 | AA10: 1996-97 | AB10: 1995-96 | AC10: 1994-95 | AD10: 1993-94 | AE10: 1992-93 | AF10: 1991-92 | AG10: 1990-91 | AH10: 1989-90 | AI10: 1988-89 | AJ10: 1987-88 | AK10: 1986-87 | AL10: 1985-86 | AM10: =IF(dms_RPT="financial",(VALUE(LEFT(AL10,4)-1)&"-"&MID(AL10,3,2)),VALUE(LEFT(AL10,4)-1)) -> 1984-85 | AN10: 1983-84 | AO10: 1982-83 | AP10: 1981-82 | AQ10: 1980-81 | AR10: 1979-80 | AS10: 1978-79 | AT10: 1977-78 | AU10: 1976-77 | AV10: 1975-76 | AW10: 1974-75 | AX10: 1973-74 | AY10: 1972-73 | AZ10: 1971-72 | BA10: 1970-71 | BB10: 1969-70 | BC10: 1968-69 | BD10: 1967-68 | BE10: 1966-67 | BF10: 1965-66 | BG10: 1964-65 | BH10: 1963-64 | BI10: 1962-63 | BJ10: 1961-62 | BK10: 1960-61 | BL10: 1959-60 | BM10: 1958-59 | BN10: 1957-58 | BO10: 1956-57 | BP10: 1955-56 | BQ10: 1954-55 | BR10: 1953-54 | BS10: =IF(dms_RPT="financial",(VALUE(LEFT(BR10,4)-1)&"-"&MID(BR10,3,2)),VALUE(LEFT(BR10,4)-1)) -> 1952-53 | BT10: 1951-52 | BU10: 1950-51 | BV10: 1949-50 | BW10: 1948-49 | BX10: 1947-48 | BY10: 1946-47 | BZ10: 1945-46 | CA10: 1944-45 | CB10: 1943-44 | CC10: 1942-43 | CD10: 1941-42 | CE10: 1940-41 | CF10: 1939-40 | CG10: 1938-39 | CH10: 1937-38 | CI10: 1936-37 | CJ10: 1935-36 | CK10: 1934-35 | CL10: 1933-34 | CM10: 1932-33 | CN10: 1931-32 | CO10: 1930-31 | CP10: 1929-30 | CQ10: 1928-29 | CR10: 1927-28 | CS10: 1926-27 | CT10: 1925-26 | CU10: 1924-25 | CV10: 1923-24 | CW10: 1922-23 | CX10: 1921-22 | CY10: =IF(dms_RPT="financial",(VALUE(LEFT(CX10,4)-1)&"-"&MID(CX10,3,2)),VALUE(LEFT(CX10,4)-1)) -> 1920-21 | CZ10: 1919-20 | DA10: 1918-19 | DB10: 1917-18 | DC10: 1916-17 | DD10: 1915-16 | DE10: 1914-15 | DF10: 1913-14 | DG10: 1912-13 | DH10: =IF(dms_RPT="financial",(VALUE(LEFT(DG10,4)-1)&"-"&MID(DG10,3,2)),VALUE(LEFT(DG10,4)-1)) -> 1911-12 | DI10: =IF(dms_RPT="financial",(VALUE(LEFT(DH10,4)-1)&"-"&MID(DH10,3,2)),VALUE(LEFT(DH10,4)-1)) -> 1910-11 | DJ10: =IF(dms_RPT="financial",(VALUE(LEFT(DI10,4)-1)&"-"&MID(DI10,3,2)),VALUE(LEFT(DI10,4)-1)) -> 1909-10
B11: POLES BY: HIGHEST OPERATING VOLTAGE ; MATERIAL TYPE; STAKING (IF WOOD) | C11: Staking of a wooden pole | D11: 15 | E11: 3.87 | F11: 1479 | G11: 1340 | H11: 1145 | I11: 1052 | J11: 1493 | K11: 1495 | L11: 1352 | M11: 768 | N11: 1266 | O11: 2856 | P11: 3182 | Q11: 2152 | R11: 2323 | S11: 2527 | T11: 1350 | U11: 1600 | V11: 1588 | W11: 1524 | X11: 2066 | Y11: 888 | Z11: 8 | AA11: 9 | AB11: 0 | AC11: 0 | AD11: 0 | AE11: 0 | AF11: 0 | AG11: 0 | AH11: 0 | AI11: 0 | AJ11: 0 | AK11: 0 | AL11: 0 | AM11: 0 | AN11: 0 | AO11: 0 | AP11: 0 | AQ11: 0 | AR11: 0 | AS11: 0 | AT11: 0 | AU11: 0 | AV11: 0 | AW11: 0 | AX11: 0 | AY11: 0 | AZ11: 0 | BA11: 0 | BB11: 0 | BC11: 0 | BD11: 0 | BE11: 0 | BF11: 0 | BG11: 0 | BH11: 0 | BI11: 0 | BJ11: 0 | BK11: 0 | BL11: 0 | BM11: 0 | BN11: 0 | BO11: 0 | BP11: 0 | BQ11: 0 | BR11: 0 | BS11: 0 | BT11: 0 | BU11: 0 | BV11: 0 | BW11: 0 | BX11: 0 | BY11: 0 | BZ11: 0 | CA11: 0 | CB11: 0 | CC11: 0 | CD11: 0 | CE11: 0 | CF11: 0 | CG11: 0 | CH11: 0 | CI11: 0 | CJ11: 0 | CK11: 0 | CL11: 0 | CM11: 0 | CN11: 0 | CO11: 0 | CP11: 0 | CQ11: 0 | CR11: 0 | CS11: 0 | CT11: 0 | CU11: 0 | CV11: 0 | CW11: 0 | CX11: 0 | CY11: 0 | CZ11: 0 | DA11: 0 | DB11: 0 | DC11: 0 | DD11: 0 | DE11: 0 | DF11: 0 | DG11: 0 | DH11: 0
C12: ˂ = 1 kV; Wood | D12: 50 | E12: 7.07 | F12: 3541 | G12: 4368 | H12: 4296 | I12: 3089 | J12: 3239 | K12: 3132 | L12: 3131 | M12: 2694 | N12: 2978 | O12: 3191 | P12: 2618 | Q12: 2264 | R12: 2521 | S12: 1680 | T12: 1618 | U12: 1672 | V12: 1885 | W12: 1782 | X12: 2338 | Y12: 2163 | Z12: 2432 | AA12: 2877 | AB12: 2996 | AC12: 3750 | AD12: 3887 | AE12: 4496 | AF12: 4103 | AG12: 4466 | AH12: 4858 | AI12: 4825 | AJ12: 3720 | AK12: 3892 | AL12: 4945 | AM12: 4584 | AN12: 5078 | AO12: 4652 | AP12: 3611 | AQ12: 3421 | AR12: 3202 | AS12: 3172 | AT12: 3532 | AU12: 3471 | AV12: 3397 | AW12: 2831 | AX12: 2963 | AY12: 3186 | AZ12: 2786 | BA12: 2611 | BB12: 2556 | BC12: 1993 | BD12: 1870 | BE12: 1727 | BF12: 1626 | BG12: 1334 | BH12: 939 | BI12: 575 | BJ12: 471 | BK12: 449 | BL12: 353 | BM12: 356 | BN12: 250 | BO12: 233 | BP12: 219 | BQ12: 240 | BR12: 255 | BS12: 211 | BT12: 205 | BU12: 150 | BV12: 136 | BW12: 143 | BX12: 132 | BY12: 110 | BZ12: 96 | CA12: 31 | CB12: 14 | CC12: 27 | CD12: 51 | CE12: 64 | CF12: 82 | CG12: 103 | CH12: 66 | CI12: 85 | CJ12: 79 | CK12: 93 | CL12: 38 | CM12: 17 | CN12: 29 | CO12: 4 | CP12: 10 | CQ12: 5 | CR12: 7 | CS12: 4 | CT12: 8 | CU12: 2 | CV12: 2 | CW12: 0 | CX12: 0 | CY12: 0 | CZ12: 0 | DA12: 0 | DB12: 0 | DC12: 0 | DD12: 0 | DE12: 0 | DF12: 0 | DG12: 0 | DH12: 0
C13: > 1 kV & < = 11 kV; Wood | D13: 50 | E13: 7.07 | F13: 4646 | G13: 4974 | H13: 4638 | I13: 5156 | J13: 5282 | K13: 5032 | L13: 5125 | M13: 4665 | N13: 4908 | O13: 4481 | P13: 3617 | Q13: 3619 | R13: 2840 | S13: 2514 | T13: 1864 | U13: 1501 | V13: 2421 | W13: 2311 | X13: 2607 | Y13: 2357 | Z13: 2641 | AA13: 2971 | AB13: 3139 | AC13: 3733 | AD13: 3568 | AE13: 3987 | AF13: 4271 | AG13: 4764 | AH13: 5152 | AI13: 4815 | AJ13: 4239 | AK13: 4372 | AL13: 5687 | AM13: 4593 | AN13: 5540 | AO13: 5400 | AP13: 4403 | AQ13: 4112 | AR13: 3769 | AS13: 3583 | AT13: 3673 | AU13: 3172 | AV13: 3088 | AW13: 2994 | AX13: 2782 | AY13: 2668 | AZ13: 2522 | BA13: 2478 | BB13: 2378 | BC13: 1877 | BD13: 1748 | BE13: 1555 | BF13: 1466 | BG13: 1472 | BH13: 1102 | BI13: 627 | BJ13: 458 | BK13: 559 | BL13: 474 | BM13: 510 | BN13: 387 | BO13: 476 | BP13: 332 | BQ13: 318 | BR13: 485 | BS13: 352 | BT13: 246 | BU13: 188 | BV13: 127 | BW13: 143 | BX13: 125 | BY13: 128 | BZ13: 155 | CA13: 23 | CB13: 32 | CC13: 30 | CD13: 39 | CE13: 46 | CF13: 131 | CG13: 109 | CH13: 61 | CI13: 110 | CJ13: 52 | CK13: 50 | CL13: 108 | CM13: 25 | CN13: 61 | CO13: 8 | CP13: 5 | CQ13: 3 | CR13: 5 | CS13: 0 | CT13: 4 | CU13: 2 | CV13: 0 | CW13: 0 | CX13: 0 | CY13: 0 | CZ13: 0 | DA13: 0 | DB13: 0 | DC13: 0 | DD13: 0 | DE13: 0 | DF13: 0 | DG13: 0 | DH13: 0
C14: ˃ 11 kV & < = 22 kV; Wood | D14: 50 | E14: 7.07 | F14: 0 | G14: 0 | H14: 0 | I14: 0 | J14: 2 | K14: 0 | L14: 3 | M14: 0 | N14: 0 | O14: 4 | P14: 0 | Q14: 8 | R14: 9 | S14: 0 | T14: 7 | U14: 0 | V14: 0 | W14: 8 | X14: 2 | Y14: 0 | Z14: 0 | AA14: 1 | AB14: 2 | AC14: 0 | AD14: 0 | AE14: 96 | AF14: 17 | AG14: 0 | AH14: 0 | AI14: 0 | AJ14: 0 | AK14: 0 | AL14: 0 | AM14: 0 | AN14: 0 | AO14: 1 | AP14: 0 | AQ14: 0 | AR14: 0 | AS14: 0 | AT14: 0 | AU14: 0 | AV14: 0 | AW14: 0 | AX14: 0 | AY14: 0 | AZ14: 0 | BA14: 0 | BB14: 0 | BC14: 0 | BD14: 0 | BE14: 0 | BF14: 0 | BG14: 0 | BH14: 0 | BI14: 0 | BJ14: 0 | BK14: 0 | BL14: 0 | BM14: 0 | BN14: 0 | BO14: 0 | BP14: 0 | BQ14: 0 | BR14: 0 | BS14: 0 | BT14: 0 | BU14: 0 | BV14: 0 | BW14: 0 | BX14: 0 | BY14: 0 | BZ14: 0 | CA14: 0 | CB14: 0 | CC14: 0 | CD14: 0 | CE14: 0 | CF14: 0 | CG14: 0 | CH14: 0 | CI14: 0 | CJ14: 0 | CK14: 0 | CL14: 0 | CM14: 0 | CN14: 0 | CO14: 0 | CP14: 0 | CQ14: 0 | CR14: 0 | CS14: 0 | CT14: 0 | CU14: 0 | CV14: 0 | CW14: 0 | CX14: 0 | CY14: 0 | CZ14: 0 | DA14: 0 | DB14: 0 | DC14: 0 | DD14: 0 | DE14: 0 | DF14: 0 | DG14: 0 | DH14: 0
C15: > 22 kV & < = 66 kV; Wood | D15: 50 | E15: 7.07 | F15: 410 | G15: 438 | H15: 390 | I15: 551 | J15: 634 | K15: 1389 | L15: 1293 | M15: 936 | N15: 850 | O15: 560 | P15: 643 | Q15: 468 | R15: 553 | S15: 250 | T15: 352 | U15: 343 | V15: 340 | W15: 566 | X15: 305 | Y15: 300 | Z15: 306 | AA15: 337 | AB15: 332 | AC15: 273 | AD15: 266 | AE15: 185 | AF15: 245 | AG15: 276 | AH15: 300 | AI15: 238 | AJ15: 462 | AK15: 319 | AL15: 403 | AM15: 287 | AN15: 331 | AO15: 276 | AP15: 256 | AQ15: 213 | AR15: 437 | AS15: 433 | AT15: 699 | AU15: 691 | AV15: 542 | AW15: 582 | AX15: 473 | AY15: 263 | AZ15: 352 | BA15: 300 | BB15: 403 | BC15: 333 | BD15: 142 | BE15: 358 | BF15: 222 | BG15: 283 | BH15: 104 | BI15: 51 | BJ15: 38 | BK15: 61 | BL15: 74 | BM15: 61 | BN15: 108 | BO15: 93 | BP15: 24 | BQ15: 14 | BR15: 45 | BS15: 21 | BT15: 27 | BU15: 43 | BV15: 24 | BW15: 41 | BX15: 15 | BY15: 23 | BZ15: 41 | CA15: 0 | CB15: 0 | CC15: 3 | CD15: 24 | CE15: 54 | CF15: 48 | CG15: 13 | CH15: 22 | CI15: 18 | CJ15: 17 | CK15: 4 | CL15: 1 | CM15: 0 | CN15: 2 | CO15: 1 | CP15: 0 | CQ15: 15 | CR15: 0 | CS15: 0 | CT15: 0 | CU15: 0 | CV15: 0 | CW15: 0 | CX15: 0 | CY15: 0 | CZ15: 0 | DA15: 0 | DB15: 0 | DC15: 0 | DD15: 0 | DE15: 0 | DF15: 0 | DG15: 0 | DH15: 0
C16: > 66 kV & < = 132 kV; Wood | D16: 50 | E16: 7.07 | F16: 25 | G16: 61 | H16: 76 | I16: 22 | J16: 70 | K16: 19 | L16: 16 | M16: 67 | N16: 45 | O16: 11 | P16: 19 | Q16: 209 | R16: 197 | S16: 30 | T16: 8 | U16: 8 | V16: 105 | W16: 283 | X16: 280 | Y16: 38 | Z16: 47 | AA16: 7 | AB16: 14 | AC16: 0 | AD16: 0 | AE16: 12 | AF16: 8 | AG16: 29 | AH16: 1 | AI16: 3 | AJ16: 5 | AK16: 9 | AL16: 15 | AM16: 0 | AN16: 15 | AO16: 6 | AP16: 2 | AQ16: 0 | AR16: 34 | AS16: 40 | AT16: 0 | AU16: 2 | AV16: 1 | AW16: 0 | AX16: 0 | AY16: 0 | AZ16: 2 | BA16: 0 | BB16: 0 | BC16: 1 | BD16: 0 | BE16: 1 | BF16: 33 | BG16: 0 | BH16: 0 | BI16: 0 | BJ16: 0 | BK16: 0 | BL16: 0 | BM16: 0 | BN16: 0 | BO16: 0 | BP16: 0 | BQ16: 0 | BR16: 0 | BS16: 0 | BT16: 0 | BU16: 1 | BV16: 0 | BW16: 0 | BX16: 0 | BY16: 0 | BZ16: 0 | CA16: 0 | CB16: 0 | CC16: 1 | CD16: 0 | CE16: 0 | CF16: 0 | CG16: 0 | CH16: 0 | CI16: 0 | CJ16: 0 | CK16: 0 | CL16: 0 | CM16: 0 | CN16: 0 | CO16: 0 | CP16: 0 | CQ16: 0 | CR16: 0 | CS16: 0 | CT16: 0 | CU16: 0 | CV16: 0 | CW16: 0 | CX16: 0 | CY16: 0 | CZ16: 0 | DA16: 0 | DB16: 0 | DC16: 0 | DD16: 0 | DE16: 0 | DF16: 0 | DG16: 0 | DH16: 0
C17: > 132 kV; Wood | D17: 0 | E17: 0 | F17: 0 | G17: 0 | H17: 0 | I17: 0 | J17: 0 | K17: 0 | L17: 0 | M17: 0 | N17: 0 | O17: 0 | P17: 0 | Q17: 0 | R17: 0 | S17: 0 | T17: 0 | U17: 0 | V17: 0 | W17: 0 | X17: 0 | Y17: 0 | Z17: 0 | AA17: 0 | AB17: 0 | AC17: 0 | AD17: 0 | AE17: 0 | AF17: 0 | AG17: 0 | AH17: 0 | AI17: 0 | AJ17: 0 | AK17: 0 | AL17: 0 | AM17: 0 | AN17: 0 | AO17: 0 | AP17: 0 | AQ17: 0 | AR17: 0 | AS17: 0 | AT17: 0 | AU17: 0 | AV17: 0 | AW17: 0 | AX17: 0 | AY17: 0 | AZ17: 0 | BA17: 0 | BB17: 0 | BC17: 0 | BD17: 0 | BE17: 0 | BF17: 0 | BG17: 0 | BH17: 0 | BI17: 0 | BJ17: 0 | BK17: 0 | BL17: 0 | BM17: 0 | BN17: 0 | BO17: 0 | BP17: 0 | BQ17: 0 | BR17: 0 | BS17: 0 | BT17: 0 | BU17: 0 | BV17: 0 | BW17: 0 | BX17: 0 | BY17: 0 | BZ17: 0 | CA17: 0 | CB17: 0 | CC17: 0 | CD17: 0 | CE17: 0 | CF17: 0 | CG17: 0 | CH17: 0 | CI17: 0 | CJ17: 0 | CK17: 0 | CL17: 0 | CM17: 0 | CN17: 0 | CO17: 0 | CP17: 0 | CQ17: 0 | CR17: 0 | CS17: 0 | CT17: 0 | CU17: 0 | CV17: 0 | CW17: 0 | CX17: 0 | CY17: 0 | CZ17: 0 | DA17: 0 | DB17: 0 | DC17: 0 | DD17: 0 | DE17: 0 | DF17: 0 | DG17: 0 | DH17: 0
C18: ˂ = 1 kV; Concrete | D18: 70 | E18: 8.37 | F18: 59 | G18: 3 | H18: 2 | I18: 3 | J18: 3 | K18: 8 | L18: 42 | M18: 2 | N18: 0 | O18: 7 | P18: 79 | Q18: 19 | R18: 19 | S18: 11 | T18: 9 | U18: 17 | V18: 50 | W18: 24 | X18: 35 | Y18: 36 | Z18: 59 | AA18: 78 | AB18: 110 | AC18: 370 | AD18: 177 | AE18: 56 | AF18: 6 | AG18: 18 | AH18: 62 | AI18: 30 | AJ18: 21 | AK18: 65 | AL18: 71 | AM18: 46 | AN18: 40 | AO18: 48 | AP18: 26 | AQ18: 40 | AR18: 78 | AS18: 86 | AT18: 84 | AU18: 28 | AV18: 33 | AW18: 43 | AX18: 75 | AY18: 158 | AZ18: 52 | BA18: 37 | BB18: 32 | BC18: 23 | BD18: 11 | BE18: 24 | BF18: 9 | BG18: 7 | BH18: 7 | BI18: 3 | BJ18: 32 | BK18: 2 | BL18: 21 | BM18: 2 | BN18: 5 | BO18: 0 | BP18: 0 | BQ18: 0 | BR18: 0 | BS18: 2 | BT18: 1 | BU18: 0 | BV18: 0 | BW18: 0 | BX18: 0 | BY18: 0 | BZ18: 0 | CA18: 0 | CB18: 0 | CC18: 0 | CD18: 1 | CE18: 0 | CF18: 0 | CG18: 1 | CH18: 0 | CI18: 0 | CJ18: 1 | CK18: 0 | CL18: 0 | CM18: 0 | CN18: 0 | CO18: 0 | CP18: 0 | CQ18: 0 | CR18: 0 | CS18: 0 | CT18: 0 | CU18: 0 | CV18: 0 | CW18: 0 | CX18: 0 | CY18: 0 | CZ18: 0 | DA18: 0 | DB18: 0 | DC18: 0 | DD18: 0 | DE18: 0 | DF18: 0 | DG18: 0 | DH18: 0
C19: > 1 kV & < = 11 kV; Concrete | D19: 70 | E19: 8.37 | F19: 212 | G19: 215 | H19: 149 | I19: 131 | J19: 155 | K19: 205 | L19: 206 | M19: 184 | N19: 216 | O19: 239 | P19: 319 | Q19: 317 | R19: 341 | S19: 393 | T19: 100 | U19: 61 | V19: 42 | W19: 43 | X19: 86 | Y19: 51 | Z19: 40 | AA19: 39 | AB19: 56 | AC19: 81 | AD19: 92 | AE19: 103 | AF19: 69 | AG19: 52 | AH19: 45 | AI19: 51 | AJ19: 58 | AK19: 281 | AL19: 345 | AM19: 186 | AN19: 41 | AO19: 25 | AP19: 25 | AQ19: 34 | AR19: 17 | AS19: 13 | AT19: 15 | AU19: 24 | AV19: 14 | AW19: 23 | AX19: 36 | AY19: 47 | AZ19: 47 | BA19: 87 | BB19: 100 | BC19: 56 | BD19: 56 | BE19: 61 | BF19: 30 | BG19: 40 | BH19: 16 | BI19: 1 | BJ19: 1 | BK19: 1 | BL19: 1 | BM19: 0 | BN19: 0 | BO19: 1 | BP19: 0 | BQ19: 2 | BR19: 0 | BS19: 1 | BT19: 0 | BU19: 0 | BV19: 1 | BW19: 0 | BX19: 0 | BY19: 0 | BZ19: 0 | CA19: 0 | CB19: 0 | CC19: 0 | CD19: 0 | CE19: 0 | CF19: 0 | CG19: 2 | CH19: 0 | CI19: 1 | CJ19: 0 | CK19: 0 | CL19: 1 | CM19: 0 | CN19: 1 | CO19: 0 | CP19: 1 | CQ19: 0 | CR19: 0 | CS19: 0 | CT19: 0 | CU19: 0 | CV19: 0 | CW19: 0 | CX19: 0 | CY19: 0 | CZ19: 0 | DA19: 0 | DB19: 0 | DC19: 0 | DD19: 0 | DE19: 0 | DF19: 0 | DG19: 0 | DH19: 0
C20: ˃ 11 kV & < = 22 kV; Concrete | D20: 0 | E20: 0 | F20: 0 | G20: 0 | H20: 0 | I20: 0 | J20: 0 | K20: 0 | L20: 0 | M20: 0 | N20: 0 | O20: 0 | P20: 0 | Q20: 0 | R20: 0 | S20: 0 | T20: 0 | U20: 0 | V20: 0 | W20: 0 | X20: 0 | Y20: 0 | Z20: 0 | AA20: 0 | AB20: 0 | AC20: 0 | AD20: 0 | AE20: 0 | AF20: 0 | AG20: 0 | AH20: 0 | AI20: 0 | AJ20: 0 | AK20: 0 | AL20: 0 | AM20: 0 | AN20: 0 | AO20: 0 | AP20: 0 | AQ20: 0 | AR20: 0 | AS20: 0 | AT20: 0 | AU20: 0 | AV20: 0 | AW20: 0 | AX20: 0 | AY20: 0 | AZ20: 0 | BA20: 0 | BB20: 0 | BC20: 0 | BD20: 0 | BE20: 0 | BF20: 0 | BG20: 0 | BH20: 0 | BI20: 0 | BJ20: 0 | BK20: 0 | BL20: 0 | BM20: 0 | BN20: 0 | BO20: 0 | BP20: 0 | BQ20: 0 | BR20: 0 | BS20: 0 | BT20: 0 | BU20: 0 | BV20: 0 | BW20: 0 | BX20: 0 | BY20: 0 | BZ20: 0 | CA20: 0 | CB20: 0 | CC20: 0 | CD20: 0 | CE20: 0 | CF20: 0 | CG20: 0 | CH20: 0 | CI20: 0 | CJ20: 0 | CK20: 0 | CL20: 0 | CM20: 0 | CN20: 0 | CO20: 0 | CP20: 0 | CQ20: 0 | CR20: 0 | CS20: 0 | CT20: 0 | CU20: 0 | CV20: 0 | CW20: 0 | CX20: 0 | CY20: 0 | CZ20: 0 | DA20: 0 | DB20: 0 | DC20: 0 | DD20: 0 | DE20: 0 | DF20: 0 | DG20: 0 | DH20: 0
C21: > 22 kV & < = 66 kV; Concrete | D21: 70 | E21: 8.37 | F21: 3 | G21: 3 | H21: 9 | I21: 23 | J21: 36 | K21: 7 | L21: 12 | M21: 10 | N21: 27 | O21: 2 | P21: 4 | Q21: 6 | R21: 22 | S21: 0 | T21: 1 | U21: 10 | V21: 0 | W21: 67 | X21: 22 | Y21: 53 | Z21: 0 | AA21: 6 | AB21: 4 | AC21: 34 | AD21: 19 | AE21: 4 | AF21: 3 | AG21: 2 | AH21: 18 | AI21: 92 | AJ21: 21 | AK21: 20 | AL21: 36 | AM21: 0 | AN21: 0 | AO21: 2 | AP21: 0 | AQ21: 149 | AR21: 0 | AS21: 0 | AT21: 0 | AU21: 1 | AV21: 0 | AW21: 0 | AX21: 0 | AY21: 0 | AZ21: 0 | BA21: 0 | BB21: 0 | BC21: 0 | BD21: 1 | BE21: 0 | BF21: 0 | BG21: 0 | BH21: 0 | BI21: 0 | BJ21: 0 | BK21: 0 | BL21: 0 | BM21: 1 | BN21: 0 | BO21: 0 | BP21: 0 | BQ21: 0 | BR21: 0 | BS21: 0 | BT21: 0 | BU21: 0 | BV21: 0 | BW21: 0 | BX21: 0 | BY21: 0 | BZ21: 0 | CA21: 0 | CB21: 0 | CC21: 0 | CD21: 0 | CE21: 0 | CF21: 0 | CG21: 0 | CH21: 0 | CI21: 0 | CJ21: 0 | CK21: 0 | CL21: 0 | CM21: 0 | CN21: 0 | CO21: 0 | CP21: 0 | CQ21: 0 | CR21: 0 | CS21: 0 | CT21: 0 | CU21: 0 | CV21: 0 | CW21: 0 | CX21: 0 | CY21: 0 | CZ21: 0 | DA21: 0 | DB21: 0 | DC21: 0 | DD21: 0 | DE21: 0 | DF21: 0 | DG21: 0 | DH21: 0
C22: > 66 kV & < = 132 kV; Concrete | D22: 70 | E22: 8.37 | F22: 0 | G22: 48 | H22: 63 | I22: 28 | J22: 112 | K22: 9 | L22: 46 | M22: 27 | N22: 32 | O22: 5 | P22: 77 | Q22: 105 | R22: 31 | S22: 28 | T22: 2 | U22: 1 | V22: 98 | W22: 213 | X22: 37 | Y22: 83 | Z22: 5 | AA22: 0 | AB22: 0 | AC22: 1 | AD22: 0 | AE22: 8 | AF22: 79 | AG22: 2 | AH22: 1 | AI22: 2 | AJ22: 0 | AK22: 102 | AL22: 1 | AM22: 24 | AN22: 2 | AO22: 181 | AP22: 39 | AQ22: 0 | AR22: 1 | AS22: 0 | AT22: 0 | AU22: 0 | AV22: 0 | AW22: 0 | AX22: 0 | AY22: 0 | AZ22: 0 | BA22: 0 | BB22: 0 | BC22: 0 | BD22: 0 | BE22: 0 | BF22: 0 | BG22: 0 | BH22: 0 | BI22: 0 | BJ22: 0 | BK22: 0 | BL22: 0 | BM22: 0 | BN22: 0 | BO22: 0 | BP22: 0 | BQ22: 0 | BR22: 0 | BS22: 0 | BT22: 0 | BU22: 0 | BV22: 0 | BW22: 0 | BX22: 0 | BY22: 0 | BZ22: 0 | CA22: 0 | CB22: 0 | CC22: 0 | CD22: 0 | CE22: 0 | CF22: 0 | CG22: 0 | CH22: 0 | CI22: 0 | CJ22: 0 | CK22: 0 | CL22: 0 | CM22: 0 | CN22: 0 | CO22: 0 | CP22: 0 | CQ22: 0 | CR22: 0 | CS22: 0 | CT22: 0 | CU22: 0 | CV22: 0 | CW22: 0 | CX22: 0 | CY22: 0 | CZ22: 0 | DA22: 0 | DB22: 0 | DC22: 0 | DD22: 0 | DE22: 0 | DF22: 0 | DG22: 0 | DH22: 0
C23: > 132 kV; Concrete | D23: 0 | E23: 0 | F23: 0 | G23: 0 | H23: 0 | I23: 0 | J23: 0 | K23: 0 | L23: 0 | M23: 0 | N23: 0 | O23: 0 | P23: 0 | Q23: 0 | R23: 0 | S23: 0 | T23: 0 | U23: 0 | V23: 0 | W23: 0 | X23: 0 | Y23: 0 | Z23: 0 | AA23: 0 | AB23: 0 | AC23: 0 | AD23: 0 | AE23: 0 | AF23: 0 | AG23: 0 | AH23: 0 | AI23: 0 | AJ23: 0 | AK23: 0 | AL23: 0 | AM23: 0 | AN23: 0 | AO23: 0 | AP23: 0 | AQ23: 0 | AR23: 0 | AS23: 0 | AT23: 0 | AU23: 0 | AV23: 0 | AW23: 0 | AX23: 0 | AY23: 0 | AZ23: 0 | BA23: 0 | BB23: 0 | BC23: 0 | BD23: 0 | BE23: 0 | BF23: 0 | BG23: 0 | BH23: 0 | BI23: 0 | BJ23: 0 | BK23: 0 | BL23: 0 | BM23: 0 | BN23: 0 | BO23: 0 | BP23: 0 | BQ23: 0 | BR23: 0 | BS23: 0 | BT23: 0 | BU23: 0 | BV23: 0 | BW23: 0 | BX23: 0 | BY23: 0 | BZ23: 0 | CA23: 0 | CB23: 0 | CC23: 0 | CD23: 0 | CE23: 0 | CF23: 0 | CG23: 0 | CH23: 0 | CI23: 0 | CJ23: 0 | CK23: 0 | CL23: 0 | CM23: 0 | CN23: 0 | CO23: 0 | CP23: 0 | CQ23: 0 | CR23: 0 | CS23: 0 | CT23: 0 | CU23: 0 | CV23: 0 | CW23: 0 | CX23: 0 | CY23: 0 | CZ23: 0 | DA23: 0 | DB23: 0 | DC23: 0 | DD23: 0 | DE23: 0 | DF23: 0 | DG23: 0 | DH23: 0
C24: ˂ = 1 kV; Steel | D24: 60 | E24: 7.75 | F24: 0 | G24: 0 | H24: 0 | I24: 0 | J24: 204 | K24: 12 | L24: 54 | M24: 7 | N24: 0 | O24: 5 | P24: 1 | Q24: 8 | R24: 1 | S24: 0 | T24: 1 | U24: 5 | V24: 6 | W24: 16 | X24: 0 | Y24: 550 | Z24: 0 | AA24: 0 | AB24: 0 | AC24: 0 | AD24: 0 | AE24: 9 | AF24: 0 | AG24: 0 | AH24: 0 | AI24: 0 | AJ24: 0 | AK24: 0 | AL24: 0 | AM24: 0 | AN24: 0 | AO24: 0 | AP24: 0 | AQ24: 0 | AR24: 1 | AS24: 0 | AT24: 0 | AU24: 0 | AV24: 0 | AW24: 0 | AX24: 0 | AY24: 0 | AZ24: 0 | BA24: 0 | BB24: 0 | BC24: 0 | BD24: 0 | BE24: 0 | BF24: 0 | BG24: 0 | BH24: 0 | BI24: 0 | BJ24: 0 | BK24: 0 | BL24: 0 | BM24: 0 | BN24: 0 | BO24: 0 | BP24: 0 | BQ24: 0 | BR24: 0 | BS24: 0 | BT24: 0 | BU24: 0 | BV24: 0 | BW24: 0 | BX24: 0 | BY24: 0 | BZ24: 0 | CA24: 0 | CB24: 0 | CC24: 0 | CD24: 0 | CE24: 0 | CF24: 0 | CG24: 0 | CH24: 0 | CI24: 0 | CJ24: 0 | CK24: 0 | CL24: 0 | CM24: 0 | CN24: 0 | CO24: 0 | CP24: 0 | CQ24: 0 | CR24: 0 | CS24: 0 | CT24: 0 | CU24: 0 | CV24: 0 | CW24: 0 | CX24: 0 | CY24: 0 | CZ24: 0 | DA24: 0 | DB24: 0 | DC24: 0 | DD24: 0 | DE24: 0 | DF24: 0 | DG24: 0 | DH24: 0
C25: > 1 kV & < = 11 kV; Steel | D25: 60 | E25: 7.75 | F25: 0 | G25: 0 | H25: 0 | I25: 0 | J25: 0 | K25: 0 | L25: 0 | M25: 0 | N25: 0 | O25: 0 | P25: 0 | Q25: 2 | R25: 1 | S25: 0 | T25: 0 | U25: 0 | V25: 1 | W25: 0 | X25: 3 | Y25: 0 | Z25: 1 | AA25: 0 | AB25: 0 | AC25: 0 | AD25: 0 | AE25: 0 | AF25: 1 | AG25: 0 | AH25: 0 | AI25: 0 | AJ25: 0 | AK25: 0 | AL25: 0 | AM25: 0 | AN25: 0 | AO25: 0 | AP25: 1 | AQ25: 0 | AR25: 0 | AS25: 0 | AT25: 0 | AU25: 0 | AV25: 0 | AW25: 0 | AX25: 0 | AY25: 0 | AZ25: 0 | BA25: 0 | BB25: 0 | BC25: 1 | BD25: 0 | BE25: 0 | BF25: 0 | BG25: 0 | BH25: 0 | BI25: 0 | BJ25: 0 | BK25: 0 | BL25: 0 | BM25: 0 | BN25: 0 | BO25: 0 | BP25: 0 | BQ25: 0 | BR25: 0 | BS25: 0 | BT25: 0 | BU25: 0 | BV25: 0 | BW25: 0 | BX25: 1 | BY25: 0 | BZ25: 0 | CA25: 0 | CB25: 0 | CC25: 0 | CD25: 0 | CE25: 0 | CF25: 0 | CG25: 0 | CH25: 0 | CI25: 0 | CJ25: 0 | CK25: 0 | CL25: 0 | CM25: 0 | CN25: 0 | CO25: 0 | CP25: 0 | CQ25: 0 | CR25: 0 | CS25: 0 | CT25: 0 | CU25: 0 | CV25: 0 | CW25: 0 | CX25: 0 | CY25: 0 | CZ25: 0 | DA25: 0 | DB25: 0 | DC25: 0 | DD25: 0 | DE25: 0 | DF25: 0 | DG25: 0 | DH25: 0
C26: ˃ 11 kV & < = 22 kV; Steel | D26: 0 | E26: 0 | F26: 0 | G26: 0 | H26: 0 | I26: 0 | J26: 0 | K26: 0 | L26: 0 | M26: 0 | N26: 0 | O26: 0 | P26: 0 | Q26: 0 | R26: 0 | S26: 0 | T26: 0 | U26: 0 | V26: 0 | W26: 0 | X26: 0 | Y26: 0 | Z26: 0 | AA26: 0 | AB26: 0 | AC26: 0 | AD26: 0 | AE26: 0 | AF26: 0 | AG26: 0 | AH26: 0 | AI26: 0 | AJ26: 0 | AK26: 0 | AL26: 0 | AM26: 0 | AN26: 0 | AO26: 0 | AP26: 0 | AQ26: 0 | AR26: 0 | AS26: 0 | AT26: 0 | AU26: 0 | AV26: 0 | AW26: 0 | AX26: 0 | AY26: 0 | AZ26: 0 | BA26: 0 | BB26: 0 | BC26: 0 | BD26: 0 | BE26: 0 | BF26: 0 | BG26: 0 | BH26: 0 | BI26: 0 | BJ26: 0 | BK26: 0 | BL26: 0 | BM26: 0 | BN26: 0 | BO26: 0 | BP26: 0 | BQ26: 0 | BR26: 0 | BS26: 0 | BT26: 0 | BU26: 0 | BV26: 0 | BW26: 0 | BX26: 0 | BY26: 0 | BZ26: 0 | CA26: 0 | CB26: 0 | CC26: 0 | CD26: 0 | CE26: 0 | CF26: 0 | CG26: 0 | CH26: 0 | CI26: 0 | CJ26: 0 | CK26: 0 | CL26: 0 | CM26: 0 | CN26: 0 | CO26: 0 | CP26: 0 | CQ26: 0 | CR26: 0 | CS26: 0 | CT26: 0 | CU26: 0 | CV26: 0 | CW26: 0 | CX26: 0 | CY26: 0 | CZ26: 0 | DA26: 0 | DB26: 0 | DC26: 0 | DD26: 0 | DE26: 0 | DF26: 0 | DG26: 0 | DH26: 0
C27: > 22 kV & < = 66 kV; Steel | D27: 60 | E27: 7.75 | F27: 1 | G27: 0 | H27: 0 | I27: 0 | J27: 0 | K27: 0 | L27: 0 | M27: 0 | N27: 0 | O27: 0 | P27: 0 | Q27: 0 | R27: 0 | S27: 0 | T27: 0 | U27: 0 | V27: 0 | W27: 0 | X27: 0 | Y27: 1 | Z27: 0 | AA27: 0 | AB27: 1 | AC27: 0 | AD27: 0 | AE27: 0 | AF27: 0 | AG27: 0 | AH27: 1 | AI27: 0 | AJ27: 0 | AK27: 1 | AL27: 0 | AM27: 0 | AN27: 0 | AO27: 0 | AP27: 0 | AQ27: 0 | AR27: 0 | AS27: 0 | AT27: 0 | AU27: 0 | AV27: 0 | AW27: 0 | AX27: 0 | AY27: 0 | AZ27: 0 | BA27: 0 | BB27: 0 | BC27: 0 | BD27: 0 | BE27: 0 | BF27: 0 | BG27: 0 | BH27: 0 | BI27: 0 | BJ27: 0 | BK27: 0 | BL27: 0 | BM27: 0 | BN27: 0 | BO27: 0 | BP27: 0 | BQ27: 0 | BR27: 0 | BS27: 0 | BT27: 0 | BU27: 0 | BV27: 0 | BW27: 0 | BX27: 0 | BY27: 0 | BZ27: 0 | CA27: 0 | CB27: 0 | CC27: 0 | CD27: 0 | CE27: 0 | CF27: 0 | CG27: 0 | CH27: 0 | CI27: 0 | CJ27: 0 | CK27: 0 | CL27: 0 | CM27: 0 | CN27: 0 | CO27: 0 | CP27: 0 | CQ27: 0 | CR27: 0 | CS27: 0 | CT27: 0 | CU27: 0 | CV27: 0 | CW27: 0 | CX27: 0 | CY27: 0 | CZ27: 0 | DA27: 0 | DB27: 0 | DC27: 0 | DD27: 0 | DE27: 0 | DF27: 0 | DG27: 0 | DH27: 0
C28: > 66 kV & < = 132 kV; Steel | D28: 60 | E28: 7.75 | F28: 0 | G28: 0 | H28: 0 | I28: 0 | J28: 0 | K28: 0 | L28: 0 | M28: 1 | N28: 1 | O28: 0 | P28: 0 | Q28: 0 | R28: 0 | S28: 0 | T28: 0 | U28: 0 | V28: 0 | W28: 0 | X28: 0 | Y28: 0 | Z28: 0 | AA28: 0 | AB28: 0 | AC28: 0 | AD28: 0 | AE28: 0 | AF28: 0 | AG28: 0 | AH28: 0 | AI28: 0 | AJ28: 0 | AK28: 0 | AL28: 1 | AM28: 0 | AN28: 0 | AO28: 0 | AP28: 0 | AQ28: 0 | AR28: 0 | AS28: 0 | AT28: 0 | AU28: 0 | AV28: 0 | AW28: 0 | AX28: 0 | AY28: 0 | AZ28: 0 | BA28: 0 | BB28: 0 | BC28: 0 | BD28: 0 | BE28: 0 | BF28: 0 | BG28: 0 | BH28: 0 | BI28: 0 | BJ28: 0 | BK28: 0 | BL28: 0 | BM28: 0 | BN28: 0 | BO28: 0 | BP28: 0 | BQ28: 0 | BR28: 0 | BS28: 0 | BT28: 0 | BU28: 0 | BV28: 0 | BW28: 0 | BX28: 0 | BY28: 0 | BZ28: 0 | CA28: 0 | CB28: 0 | CC28: 0 | CD28: 0 | CE28: 0 | CF28: 0 | CG28: 0 | CH28: 0 | CI28: 0 | CJ28: 0 | CK28: 0 | CL28: 0 | CM28: 0 | CN28: 0 | CO28: 0 | CP28: 0 | CQ28: 0 | CR28: 0 | CS28: 0 | CT28: 0 | CU28: 0 | CV28: 0 | CW28: 0 | CX28: 0 | CY28: 0 | CZ28: 0 | DA28: 0 | DB28: 0 | DC28: 0 | DD28: 0 | DE28: 0 | DF28: 0 | DG28: 0 | DH28: 0
C29: > 132 kV; Steel | D29: 0 | E29: 0 | F29: 0 | G29: 0 | H29: 0 | I29: 0 | J29: 0 | K29: 0 | L29: 0 | M29: 0 | N29: 0 | O29: 0 | P29: 0 | Q29: 0 | R29: 0 | S29: 0 | T29: 0 | U29: 0 | V29: 0 | W29: 0 | X29: 0 | Y29: 0 | Z29: 0 | AA29: 0 | AB29: 0 | AC29: 0 | AD29: 0 | AE29: 0 | AF29: 0 | AG29: 0 | AH29: 0 | AI29: 0 | AJ29: 0 | AK29: 0 | AL29: 0 | AM29: 0 | AN29: 0 | AO29: 0 | AP29: 0 | AQ29: 0 | AR29: 0 | AS29: 0 | AT29: 0 | AU29: 0 | AV29: 0 | AW29: 0 | AX29: 0 | AY29: 0 | AZ29: 0 | BA29: 0 | BB29: 0 | BC29: 0 | BD29: 0 | BE29: 0 | BF29: 0 | BG29: 0 | BH29: 0 | BI29: 0 | BJ29: 0 | BK29: 0 | BL29: 0 | BM29: 0 | BN29: 0 | BO29: 0 | BP29: 0 | BQ29: 0 | BR29: 0 | BS29: 0 | BT29: 0 | BU29: 0 | BV29: 0 | BW29: 0 | BX29: 0 | BY29: 0 | BZ29: 0 | CA29: 0 | CB29: 0 | CC29: 0 | CD29: 0 | CE29: 0 | CF29: 0 | CG29: 0 | CH29: 0 | CI29: 0 | CJ29: 0 | CK29: 0 | CL29: 0 | CM29: 0 | CN29: 0 | CO29: 0 | CP29: 0 | CQ29: 0 | CR29: 0 | CS29: 0 | CT29: 0 | CU29: 0 | CV29: 0 | CW29: 0 | CX29: 0 | CY29: 0 | CZ29: 0 | DA29: 0 | DB29: 0 | DC29: 0 | DD29: 0 | DE29: 0 | DF29: 0 | DG29: 0 | DH29: 0
C30: Other | D30: 0 | E30: 0 | F30: 0 | G30: 0 | H30: 0 | I30: 0 | J30: 0 | K30: 0 | L30: 0 | M30: 0 | N30: 0 | O30: 0 | P30: 0 | Q30: 0 | R30: 0 | S30: 0 | T30: 0 | U30: 0 | V30: 0 | W30: 0 | X30: 0 | Y30: 0 | Z30: 0 | AA30: 0 | AB30: 0 | AC30: 0 | AD30: 0 | AE30: 0 | AF30: 0 | AG30: 0 | AH30: 0 | AI30: 0 | AJ30: 0 | AK30: 0 | AL30: 0 | AM30: 0 | AN30: 0 | AO30: 0 | AP30: 0 | AQ30: 0 | AR30: 0 | AS30: 0 | AT30: 0 | AU30: 0 | AV30: 0 | AW30: 0 | AX30: 0 | AY30: 0 | AZ30: 0 | BA30: 0 | BB30: 0 | BC30: 0 | BD30: 0 | BE30: 0 | BF30: 0 | BG30: 0 | BH30: 0 | BI30: 0 | BJ30: 0 | BK30: 0 | BL30: 0 | BM30: 0 | BN30: 0 | BO30: 0 | BP30: 0 | BQ30: 0 | BR30: 0 | BS30: 0 | BT30: 0 | BU30: 0 | BV30: 0 | BW30: 0 | BX30: 0 | BY30: 0 | BZ30: 0 | CA30: 0 | CB30: 0 | CC30: 0 | CD30: 0 | CE30: 0 | CF30: 0 | CG30: 0 | CH30: 0 | CI30: 0 | CJ30: 0 | CK30: 0 | CL30: 0 | CM30: 0 | CN30: 0 | CO30: 0 | CP30: 0 | CQ30: 0 | CR30: 0 | CS30: 0 | CT30: 0 | CU30: 0 | CV30: 0 | CW30: 0 | CX30: 0 | CY30: 0 | CZ30: 0 | DA30: 0 | DB30: 0 | DC30: 0 | DD30: 0 | DE30: 0 | DF30: 0 | DG30: 0 | DH30: 0
B31: OVERHEAD CONDUCTORS BY: HIGHEST OPERATING VOLTAGE; NUMBER OF PHASES (AT HV) | C31: ˂ = 1 kV | D31: 60 | E31: 7.75 | F31: 29 | G31: 40 | H31: 37 | I31: 46 | J31: 44 | K31: 63 | L31: 79 | M31: 62 | N31: 71 | O31: 70 | P31: 63 | Q31: 65 | R31: 70 | S31: 58 | T31: 50 | U31: 36 | V31: 44 | W31: 55 | X31: 76 | Y31: 68 | Z31: 82 | AA31: 101 | AB31: 113 | AC31: 172 | AD31: 195 | AE31: 226 | AF31: 249 | AG31: 265 | AH31: 306 | AI31: 294 | AJ31: 254 | AK31: 298 | AL31: 389 | AM31: 368 | AN31: 426 | AO31: 482 | AP31: 369 | AQ31: 370 | AR31: 410 | AS31: 512 | AT31: 576 | AU31: 576 | AV31: 605 | AW31: 549 | AX31: 529 | AY31: 550 | AZ31: 503 | BA31: 523 | BB31: 501 | BC31: 184 | BD31: 209 | BE31: 190 | BF31: 200 | BG31: 193 | BH31: 142 | BI31: 89 | BJ31: 76 | BK31: 82 | BL31: 60 | BM31: 69 | BN31: 55 | BO31: 61 | BP31: 47 | BQ31: 56 | BR31: 49 | BS31: 57 | BT31: 49 | BU31: 47 | BV31: 37 | BW31: 39 | BX31: 33 | BY31: 25 | BZ31: 23 | CA31: 7 | CB31: 5 | CC31: 4 | CD31: 10 | CE31: 12 | CF31: 16 | CG31: 16 | CH31: 14 | CI31: 21 | CJ31: 23 | CK31: 19 | CL31: 19 | CM31: 9 | CN31: 11 | CO31: 3 | CP31: 2 | CQ31: 0 | CR31: 0 | CS31: 0 | CT31: 0 | CU31: 0 | CV31: 0 | CW31: 0 | CX31: 0 | CY31: 0 | CZ31: 0 | DA31: 0 | DB31: 0 | DC31: 0 | DD31: 0 | DE31: 0 | DF31: 0 | DG31: 0 | DH31: 0
C32: > 1 kV & < = 11 kV | D32: 60 | E32: 7.75 | F32: 34 | G32: 49 | H32: 71 | I32: 69 | J32: 67 | K32: 114 | L32: 141 | M32: 122 | N32: 129 | O32: 128 | P32: 121 | Q32: 141 | R32: 127 | S32: 126 | T32: 91 | U32: 78 | V32: 94 | W32: 139 | X32: 121 | Y32: 151 | Z32: 164 | AA32: 207 | AB32: 211 | AC32: 261 | AD32: 279 | AE32: 271 | AF32: 324 | AG32: 423 | AH32: 425 | AI32: 412 | AJ32: 415 | AK32: 438 | AL32: 533 | AM32: 476 | AN32: 533 | AO32: 607 | AP32: 575 | AQ32: 564 | AR32: 545 | AS32: 592 | AT32: 649 | AU32: 592 | AV32: 602 | AW32: 556 | AX32: 556 | AY32: 506 | AZ32: 467 | BA32: 497 | BB32: 487 | BC32: 122 | BD32: 135 | BE32: 142 | BF32: 138 | BG32: 168 | BH32: 132 | BI32: 83 | BJ32: 72 | BK32: 81 | BL32: 62 | BM32: 84 | BN32: 78 | BO32: 126 | BP32: 69 | BQ32: 69 | BR32: 106 | BS32: 90 | BT32: 65 | BU32: 61 | BV32: 37 | BW32: 34 | BX32: 45 | BY32: 39 | BZ32: 35 | CA32: 9 | CB32: 6 | CC32: 7 | CD32: 13 | CE32: 25 | CF32: 49 | CG32: 36 | CH32: 18 | CI32: 19 | CJ32: 17 | CK32: 10 | CL32: 23 | CM32: 6 | CN32: 18 | CO32: 2 | CP32: 1 | CQ32: 0 | CR32: 0 | CS32: 0 | CT32: 0 | CU32: 0 | CV32: 0 | CW32: 0 | CX32: 0 | CY32: 0 | CZ32: 0 | DA32: 0 | DB32: 0 | DC32: 0 | DD32: 0 | DE32: 0 | DF32: 0 | DG32: 0 | DH32: 0
C33: ˃ 11 kV & < = 22 kV ; SWER | D33: 60 | E33: 7.75 | F33: 0 | G33: 0 | H33: 0 | I33: 0 | J33: 0 | K33: 0 | L33: 0 | M33: 0 | N33: 0 | O33: 0 | P33: 0 | Q33: 2 | R33: 0 | S33: 0 | T33: 0 | U33: 0 | V33: 0 | W33: 1 | X33: 0 | Y33: 0 | Z33: 0 | AA33: 0 | AB33: 0 | AC33: 0 | AD33: 0 | AE33: 13 | AF33: 24 | AG33: 0 | AH33: 0 | AI33: 0 | AJ33: 0 | AK33: 0 | AL33: 0 | AM33: 0 | AN33: 0 | AO33: 0 | AP33: 0 | AQ33: 0 | AR33: 0 | AS33: 0 | AT33: 0 | AU33: 0 | AV33: 0 | AW33: 0 | AX33: 0 | AY33: 0 | AZ33: 0 | BA33: 0 | BB33: 0 | BC33: 0 | BD33: 0 | BE33: 0 | BF33: 0 | BG33: 0 | BH33: 0 | BI33: 0 | BJ33: 0 | BK33: 0 | BL33: 0 | BM33: 0 | BN33: 0 | BO33: 0 | BP33: 0 | BQ33: 0 | BR33: 0 | BS33: 0 | BT33: 0 | BU33: 0 | BV33: 0 | BW33: 0 | BX33: 0 | BY33: 0 | BZ33: 0 | CA33: 0 | CB33: 0 | CC33: 0 | CD33: 0 | CE33: 0 | CF33: 0 | CG33: 0 | CH33: 0 | CI33: 0 | CJ33: 0 | CK33: 0 | CL33: 0 | CM33: 0 | CN33: 0 | CO33: 0 | CP33: 0 | CQ33: 0 | CR33: 0 | CS33: 0 | CT33: 0 | CU33: 0 | CV33: 0 | CW33: 0 | CX33: 0 | CY33: 0 | CZ33: 0 | DA33: 0 | DB33: 0 | DC33: 0 | DD33: 0 | DE33: 0 | DF33: 0 | DG33: 0 | DH33: 0
C34: ˃ 11 kV & < = 22 kV ; Single-Phase | D34: 60 | E34: 7.75 | F34: 0 | G34: 0 | H34: 0 | I34: 0 | J34: 0 | K34: 0 | L34: 0 | M34: 0 | N34: 0 | O34: 0 | P34: 0 | Q34: 0 | R34: 0 | S34: 0 | T34: 0 | U34: 0 | V34: 0 | W34: 0 | X34: 0 | Y34: 0 | Z34: 0 | AA34: 0 | AB34: 0 | AC34: 0 | AD34: 0 | AE34: 0 | AF34: 0 | AG34: 0 | AH34: 0 | AI34: 0 | AJ34: 0 | AK34: 0 | AL34: 0 | AM34: 0 | AN34: 0 | AO34: 0 | AP34: 0 | AQ34: 0 | AR34: 0 | AS34: 0 | AT34: 0 | AU34: 0 | AV34: 0 | AW34: 0 | AX34: 0 | AY34: 0 | AZ34: 0 | BA34: 0 | BB34: 0 | BC34: 0 | BD34: 0 | BE34: 0 | BF34: 0 | BG34: 0 | BH34: 0 | BI34: 0 | BJ34: 0 | BK34: 0 | BL34: 0 | BM34: 0 | BN34: 0 | BO34: 0 | BP34: 0 | BQ34: 0 | BR34: 0 | BS34: 0 | BT34: 0 | BU34: 0 | BV34: 0 | BW34: 0 | BX34: 0 | BY34: 0 | BZ34: 0 | CA34: 0 | CB34: 0 | CC34: 0 | CD34: 0 | CE34: 0 | CF34: 0 | CG34: 0 | CH34: 0 | CI34: 0 | CJ34: 0 | CK34: 0 | CL34: 0 | CM34: 0 | CN34: 0 | CO34: 0 | CP34: 0 | CQ34: 0 | CR34: 0 | CS34: 0 | CT34: 0 | CU34: 0 | CV34: 0 | CW34: 0 | CX34: 0 | CY34: 0 | CZ34: 0 | DA34: 0 | DB34: 0 | DC34: 0 | DD34: 0 | DE34: 0 | DF34: 0 | DG34: 0 | DH34: 0
C35: ˃ 11 kV & < = 22 kV ; Multiple-Phase | D35: 60 | E35: 7.75 | F35: 0 | G35: 0 | H35: 0 | I35: 0 | J35: 0 | K35: 0 | L35: 0 | M35: 0 | N35: 0 | O35: 0 | P35: 0 | Q35: 0 | R35: 0 | S35: 0 | T35: 0 | U35: 0 | V35: 0 | W35: 0 | X35: 0 | Y35: 0 | Z35: 0 | AA35: 0 | AB35: 0 | AC35: 0 | AD35: 0 | AE35: 0 | AF35: 0 | AG35: 0 | AH35: 0 | AI35: 0 | AJ35: 0 | AK35: 0 | AL35: 0 | AM35: 0 | AN35: 0 | AO35: 0 | AP35: 0 | AQ35: 0 | AR35: 0 | AS35: 0 | AT35: 0 | AU35: 0 | AV35: 0 | AW35: 0 | AX35: 0 | AY35: 0 | AZ35: 0 | BA35: 0 | BB35: 0 | BC35: 0 | BD35: 0 | BE35: 0 | BF35: 0 | BG35: 0 | BH35: 0 | BI35: 0 | BJ35: 0 | BK35: 0 | BL35: 0 | BM35: 0 | BN35: 0 | BO35: 0 | BP35: 0 | BQ35: 0 | BR35: 0 | BS35: 0 | BT35: 0 | BU35: 0 | BV35: 0 | BW35: 0 | BX35: 0 | BY35: 0 | BZ35: 0 | CA35: 0 | CB35: 0 | CC35: 0 | CD35: 0 | CE35: 0 | CF35: 0 | CG35: 0 | CH35: 0 | CI35: 0 | CJ35: 0 | CK35: 0 | CL35: 0 | CM35: 0 | CN35: 0 | CO35: 0 | CP35: 0 | CQ35: 0 | CR35: 0 | CS35: 0 | CT35: 0 | CU35: 0 | CV35: 0 | CW35: 0 | CX35: 0 | CY35: 0 | CZ35: 0 | DA35: 0 | DB35: 0 | DC35: 0 | DD35: 0 | DE35: 0 | DF35: 0 | DG35: 0 | DH35: 0
C36: > 22 kV & < = 66 kV | D36: 60 | E36: 7.75 | F36: 0 | G36: 0 | H36: 0 | I36: 0 | J36: 0 | K36: 1 | L36: 3 | M36: 46 | N36: 42 | O36: 5 | P36: 22 | Q36: 16 | R36: 1 | S36: 7 | T36: 12 | U36: 20 | V36: 20 | W36: 10 | X36: 4 | Y36: 25 | Z36: 3 | AA36: 30 | AB36: 22 | AC36: 4 | AD36: 1 | AE36: 0 | AF36: 2 | AG36: 24 | AH36: 69 | AI36: 8 | AJ36: 6 | AK36: 3 | AL36: 13 | AM36: 65 | AN36: 55 | AO36: 54 | AP36: 0 | AQ36: 12 | AR36: 64 | AS36: 20 | AT36: 44 | AU36: 68 | AV36: 118 | AW36: 118 | AX36: 71 | AY36: 81 | AZ36: 29 | BA36: 100 | BB36: 171 | BC36: 10 | BD36: 14 | BE36: 19 | BF36: 23 | BG36: 35 | BH36: 4 | BI36: 6 | BJ36: 2 | BK36: 1 | BL36: 14 | BM36: 15 | BN36: 32 | BO36: 38 | BP36: 4 | BQ36: 3 | BR36: 13 | BS36: 18 | BT36: 50 | BU36: 40 | BV36: 11 | BW36: 6 | BX36: 31 | BY36: 0 | BZ36: 3 | CA36: 0 | CB36: 0 | CC36: 4 | CD36: 14 | CE36: 58 | CF36: 61 | CG36: 26 | CH36: 4 | CI36: 13 | CJ36: 32 | CK36: 8 | CL36: 0 | CM36: 0 | CN36: 18 | CO36: 1 | CP36: 0 | CQ36: 0 | CR36: 0 | CS36: 0 | CT36: 0 | CU36: 0 | CV36: 0 | CW36: 0 | CX36: 0 | CY36: 0 | CZ36: 0 | DA36: 0 | DB36: 0 | DC36: 0 | DD36: 0 | DE36: 0 | DF36: 0 | DG36: 0 | DH36: 0
C37: > 66 kV & < = 132 kV | D37: 60 | E37: 7.75 | F37: 0 | G37: 0 | H37: 7 | I37: 0 | J37: 0 | K37: 0 | L37: 0 | M37: 20 | N37: 0 | O37: 0 | P37: 9 | Q37: 0 | R37: 0 | S37: 2 | T37: 0 | U37: 0 | V37: 8 | W37: 8 | X37: 26 | Y37: 214 | Z37: 2 | AA37: 0 | AB37: 0 | AC37: 0 | AD37: 40 | AE37: 38 | AF37: 0 | AG37: 5 | AH37: 4 | AI37: 0 | AJ37: 14 | AK37: 14 | AL37: 19 | AM37: 13 | AN37: 0 | AO37: 65 | AP37: 7 | AQ37: 0 | AR37: 7 | AS37: 142 | AT37: 0 | AU37: 0 | AV37: 0 | AW37: 0 | AX37: 0 | AY37: 0 | AZ37: 192 | BA37: 0 | BB37: 0 | BC37: 0 | BD37: 0 | BE37: 0 | BF37: 95 | BG37: 184 | BH37: 0 | BI37: 0 | BJ37: 0 | BK37: 0 | BL37: 0 | BM37: 0 | BN37: 0 | BO37: 0 | BP37: 0 | BQ37: 0 | BR37: 0 | BS37: 0 | BT37: 0 | BU37: 0 | BV37: 0 | BW37: 0 | BX37: 0 | BY37: 0 | BZ37: 0 | CA37: 0 | CB37: 0 | CC37: 0 | CD37: 0 | CE37: 0 | CF37: 0 | CG37: 0 | CH37: 0 | CI37: 0 | CJ37: 0 | CK37: 0 | CL37: 0 | CM37: 0 | CN37: 0 | CO37: 0 | CP37: 0 | CQ37: 0 | CR37: 0 | CS37: 0 | CT37: 0 | CU37: 0 | CV37: 0 | CW37: 0 | CX37: 0 | CY37: 0 | CZ37: 0 | DA37: 0 | DB37: 0 | DC37: 0 | DD37: 0 | DE37: 0 | DF37: 0 | DG37: 0 | DH37: 0
C38: > 132 kV | D38: 0 | E38: 0 | F38: 0 | G38: 0 | H38: 0 | I38: 0 | J38: 0 | K38: 0 | L38: 0 | M38: 0 | N38: 0 | O38: 0 | P38: 0 | Q38: 0 | R38: 0 | S38: 0 | T38: 0 | U38: 0 | V38: 0 | W38: 0 | X38: 0 | Y38: 0 | Z38: 0 | AA38: 0 | AB38: 0 | AC38: 0 | AD38: 0 | AE38: 0 | AF38: 0 | AG38: 0 | AH38: 0 | AI38: 0 | AJ38: 0 | AK38: 0 | AL38: 0 | AM38: 0 | AN38: 0 | AO38: 0 | AP38: 0 | AQ38: 0 | AR38: 0 | AS38: 0 | AT38: 0 | AU38: 0 | AV38: 0 | AW38: 0 | AX38: 0 | AY38: 0 | AZ38: 0 | BA38: 0 | BB38: 0 | BC38: 0 | BD38: 0 | BE38: 0 | BF38: 0 | BG38: 0 | BH38: 0 | BI38: 0 | BJ38: 0 | BK38: 0 | BL38: 0 | BM38: 0 | BN38: 0 | BO38: 0 | BP38: 0 | BQ38: 0 | BR38: 0 | BS38: 0 | BT38: 0 | BU38: 0 | BV38: 0 | BW38: 0 | BX38: 0 | BY38: 0 | BZ38: 0 | CA38: 0 | CB38: 0 | CC38: 0 | CD38: 0 | CE38: 0 | CF38: 0 | CG38: 0 | CH38: 0 | CI38: 0 | CJ38: 0 | CK38: 0 | CL38: 0 | CM38: 0 | CN38: 0 | CO38: 0 | CP38: 0 | CQ38: 0 | CR38: 0 | CS38: 0 | CT38: 0 | CU38: 0 | CV38: 0 | CW38: 0 | CX38: 0 | CY38: 0 | CZ38: 0 | DA38: 0 | DB38: 0 | DC38: 0 | DD38: 0 | DE38: 0 | DF38: 0 | DG38: 0 | DH38: 0
C39: Other | D39: 0 | E39: 0 | F39: 0 | G39: 0 | H39: 0 | I39: 0 | J39: 0 | K39: 0 | L39: 0 | M39: 0 | N39: 0 | O39: 0 | P39: 0 | Q39: 0 | R39: 0 | S39: 0 | T39: 0 | U39: 0 | V39: 0 | W39: 0 | X39: 0 | Y39: 0 | Z39: 0 | AA39: 0 | AB39: 0 | AC39: 0 | AD39: 0 | AE39: 0 | AF39: 0 | AG39: 0 | AH39: 0 | AI39: 0 | AJ39: 0 | AK39: 0 | AL39: 0 | AM39: 0 | AN39: 0 | AO39: 0 | AP39: 0 | AQ39: 0 | AR39: 0 | AS39: 0 | AT39: 0 | AU39: 0 | AV39: 0 | AW39: 0 | AX39: 0 | AY39: 0 | AZ39: 0 | BA39: 0 | BB39: 0 | BC39: 0 | BD39: 0 | BE39: 0 | BF39: 0 | BG39: 0 | BH39: 0 | BI39: 0 | BJ39: 0 | BK39: 0 | BL39: 0 | BM39: 0 | BN39: 0 | BO39: 0 | BP39: 0 | BQ39: 0 | BR39: 0 | BS39: 0 | BT39: 0 | BU39: 0 | BV39: 0 | BW39: 0 | BX39: 0 | BY39: 0 | BZ39: 0 | CA39: 0 | CB39: 0 | CC39: 0 | CD39: 0 | CE39: 0 | CF39: 0 | CG39: 0 | CH39: 0 | CI39: 0 | CJ39: 0 | CK39: 0 | CL39: 0 | CM39: 0 | CN39: 0 | CO39: 0 | CP39: 0 | CQ39: 0 | CR39: 0 | CS39: 0 | CT39: 0 | CU39: 0 | CV39: 0 | CW39: 0 | CX39: 0 | CY39: 0 | CZ39: 0 | DA39: 0 | DB39: 0 | DC39: 0 | DD39: 0 | DE39: 0 | DF39: 0 | DG39: 0 | DH39: 0
B40: UNDERGROUND CABLES BY: HIGHEST OPERATING VOLTAGE | C40: ˂ = 1 kV | D40: 50 | E40: 7.07 | F40: 227 | G40: 370 | H40: 399 | I40: 329 | J40: 211 | K40: 186 | L40: 254 | M40: 301 | N40: 281 | O40: 401 | P40: 479 | Q40: 508 | R40: 469 | S40: 575 | T40: 489 | U40: 328 | V40: 55 | W40: 33 | X40: 25 | Y40: 111 | Z40: 217 | AA40: 329 | AB40: 437 | AC40: 406 | AD40: 585 | AE40: 613 | AF40: 484 | AG40: 554 | AH40: 476 | AI40: 374 | AJ40: 446 | AK40: 152 | AL40: 57 | AM40: 170 | AN40: 51 | AO40: 51 | AP40: 14 | AQ40: 57 | AR40: 152 | AS40: 11 | AT40: 211 | AU40: 8 | AV40: 44 | AW40: 0 | AX40: 12 | AY40: 143 | AZ40: 2 | BA40: 12 | BB40: 0 | BC40: 2 | BD40: 0 | BE40: 0 | BF40: 0 | BG40: 0 | BH40: 0 | BI40: 0 | BJ40: 0 | BK40: 0 | BL40: 0 | BM40: 0 | BN40: 0 | BO40: 0 | BP40: 0 | BQ40: 0 | BR40: 0 | BS40: 0 | BT40: 0 | BU40: 0 | BV40: 0 | BW40: 0 | BX40: 0 | BY40: 0 | BZ40: 0 | CA40: 0 | CB40: 0 | CC40: 0 | CD40: 0 | CE40: 0 | CF40: 0 | CG40: 0 | CH40: 0 | CI40: 0 | CJ40: 0 | CK40: 0 | CL40: 0 | CM40: 0 | CN40: 0 | CO40: 0 | CP40: 0 | CQ40: 0 | CR40: 0 | CS40: 0 | CT40: 0 | CU40: 0 | CV40: 0 | CW40: 0 | CX40: 0 | CY40: 0 | CZ40: 0 | DA40: 0 | DB40: 0 | DC40: 0 | DD40: 0 | DE40: 0 | DF40: 0 | DG40: 0 | DH40: 0
C41: > 1 kV & < = 11 kV | D41: 50 | E41: 7.07 | F41: 23 | G41: 111 | H41: 130 | I41: 106 | J41: 110 | K41: 114 | L41: 131 | M41: 161 | N41: 228 | O41: 260 | P41: 314 | Q41: 381 | R41: 429 | S41: 336 | T41: 235 | U41: 165 | V41: 100 | W41: 94 | X41: 84 | Y41: 74 | Z41: 96 | AA41: 182 | AB41: 62 | AC41: 64 | AD41: 69 | AE41: 81 | AF41: 89 | AG41: 141 | AH41: 108 | AI41: 180 | AJ41: 178 | AK41: 170 | AL41: 84 | AM41: 74 | AN41: 104 | AO41: 176 | AP41: 60 | AQ41: 67 | AR41: 75 | AS41: 87 | AT41: 61 | AU41: 73 | AV41: 38 | AW41: 45 | AX41: 4 | AY41: 62 | AZ41: 45 | BA41: 6 | BB41: 9 | BC41: 0 | BD41: 0 | BE41: 5 | BF41: 0 | BG41: 1 | BH41: 1 | BI41: 0 | BJ41: 0 | BK41: 0 | BL41: 0 | BM41: 0 | BN41: 0 | BO41: 0 | BP41: 0 | BQ41: 1 | BR41: 0 | BS41: 0 | BT41: 0 | BU41: 0 | BV41: 0 | BW41: 0 | BX41: 0 | BY41: 0 | BZ41: 0 | CA41: 0 | CB41: 0 | CC41: 0 | CD41: 0 | CE41: 0 | CF41: 0 | CG41: 0 | CH41: 0 | CI41: 0 | CJ41: 0 | CK41: 0 | CL41: 0 | CM41: 0 | CN41: 0 | CO41: 0 | CP41: 0 | CQ41: 0 | CR41: 0 | CS41: 0 | CT41: 0 | CU41: 0 | CV41: 0 | CW41: 0 | CX41: 0 | CY41: 0 | CZ41: 0 | DA41: 0 | DB41: 0 | DC41: 0 | DD41: 0 | DE41: 0 | DF41: 0 | DG41: 0 | DH41: 0
C42: > 11 kV & < = 22 kV | D42: 0 | E42: 0 | F42: 0 | G42: 0 | H42: 0 | I42: 0 | J42: 0 | K42: 0 | L42: 0 | M42: 0 | N42: 0 | O42: 0 | P42: 0 | Q42: 0 | R42: 0 | S42: 0 | T42: 0 | U42: 0 | V42: 0 | W42: 0 | X42: 0 | Y42: 0 | Z42: 0 | AA42: 0 | AB42: 0 | AC42: 0 | AD42: 0 | AE42: 0 | AF42: 0 | AG42: 0 | AH42: 0 | AI42: 0 | AJ42: 0 | AK42: 0 | AL42: 0 | AM42: 0 | AN42: 0 | AO42: 0 | AP42: 0 | AQ42: 0 | AR42: 0 | AS42: 0 | AT42: 0 | AU42: 0 | AV42: 0 | AW42: 0 | AX42: 0 | AY42: 0 | AZ42: 0 | BA42: 0 | BB42: 0 | BC42: 0 | BD42: 0 | BE42: 0 | BF42: 0 | BG42: 0 | BH42: 0 | BI42: 0 | BJ42: 0 | BK42: 0 | BL42: 0 | BM42: 0 | BN42: 0 | BO42: 0 | BP42: 0 | BQ42: 0 | BR42: 0 | BS42: 0 | BT42: 0 | BU42: 0 | BV42: 0 | BW42: 0 | BX42: 0 | BY42: 0 | BZ42: 0 | CA42: 0 | CB42: 0 | CC42: 0 | CD42: 0 | CE42: 0 | CF42: 0 | CG42: 0 | CH42: 0 | CI42: 0 | CJ42: 0 | CK42: 0 | CL42: 0 | CM42: 0 | CN42: 0 | CO42: 0 | CP42: 0 | CQ42: 0 | CR42: 0 | CS42: 0 | CT42: 0 | CU42: 0 | CV42: 0 | CW42: 0 | CX42: 0 | CY42: 0 | CZ42: 0 | DA42: 0 | DB42: 0 | DC42: 0 | DD42: 0 | DE42: 0 | DF42: 0 | DG42: 0 | DH42: 0
C43: > 22 kV & < = 33 kV | D43: 50 | E43: 7.07 | F43: 0 | G43: 1 | H43: 4 | I43: 1 | J43: 17 | K43: 7 | L43: 16 | M43: 37 | N43: 16 | O43: 33 | P43: 21 | Q43: 61 | R43: 54 | S43: 58 | T43: 7 | U43: 41 | V43: 46 | W43: 45 | X43: 47 | Y43: 1 | Z43: 18 | AA43: 1 | AB43: 0 | AC43: 0 | AD43: 0 | AE43: 0 | AF43: 0 | AG43: 13 | AH43: 14 | AI43: 0 | AJ43: 0 | AK43: 5 | AL43: 3 | AM43: 5 | AN43: 0 | AO43: 0 | AP43: 0 | AQ43: 0 | AR43: 0 | AS43: 0 | AT43: 33 | AU43: 0 | AV43: 0 | AW43: 12 | AX43: 0 | AY43: 50 | AZ43: 8 | BA43: 68 | BB43: 14 | BC43: 14 | BD43: 11 | BE43: 19 | BF43: 0 | BG43: 0 | BH43: 11 | BI43: 0 | BJ43: 0 | BK43: 0 | BL43: 0 | BM43: 8 | BN43: 0 | BO43: 0 | BP43: 0 | BQ43: 0 | BR43: 9 | BS43: 0 | BT43: 0 | BU43: 0 | BV43: 0 | BW43: 0 | BX43: 0 | BY43: 0 | BZ43: 0 | CA43: 0 | CB43: 0 | CC43: 0 | CD43: 0 | CE43: 0 | CF43: 0 | CG43: 0 | CH43: 0 | CI43: 0 | CJ43: 0 | CK43: 0 | CL43: 0 | CM43: 0 | CN43: 0 | CO43: 0 | CP43: 0 | CQ43: 0 | CR43: 0 | CS43: 0 | CT43: 0 | CU43: 0 | CV43: 0 | CW43: 0 | CX43: 0 | CY43: 0 | CZ43: 0 | DA43: 0 | DB43: 0 | DC43: 0 | DD43: 0 | DE43: 0 | DF43: 0 | DG43: 0 | DH43: 0
C44: > 33 kV & < = 66 kV | D44: 0 | E44: 0 | F44: 0 | G44: 0 | H44: 0 | I44: 0 | J44: 0 | K44: 0 | L44: 0 | M44: 0 | N44: 0 | O44: 0 | P44: 0 | Q44: 0 | R44: 0 | S44: 0 | T44: 0 | U44: 0 | V44: 0 | W44: 0 | X44: 0 | Y44: 0 | Z44: 0 | AA44: 0 | AB44: 0 | AC44: 0 | AD44: 0 | AE44: 0 | AF44: 0 | AG44: 0 | AH44: 0 | AI44: 0 | AJ44: 0 | AK44: 0 | AL44: 0 | AM44: 0 | AN44: 0 | AO44: 0 | AP44: 0 | AQ44: 0 | AR44: 0 | AS44: 0 | AT44: 0 | AU44: 0 | AV44: 0 | AW44: 0 | AX44: 0 | AY44: 0 | AZ44: 0 | BA44: 0 | BB44: 0 | BC44: 0 | BD44: 0 | BE44: 0 | BF44: 0 | BG44: 0 | BH44: 0 | BI44: 0 | BJ44: 0 | BK44: 0 | BL44: 0 | BM44: 0 | BN44: 0 | BO44: 0 | BP44: 0 | BQ44: 0 | BR44: 0 | BS44: 0 | BT44: 0 | BU44: 0 | BV44: 0 | BW44: 0 | BX44: 0 | BY44: 0 | BZ44: 0 | CA44: 0 | CB44: 0 | CC44: 0 | CD44: 0 | CE44: 0 | CF44: 0 | CG44: 0 | CH44: 0 | CI44: 0 | CJ44: 0 | CK44: 0 | CL44: 0 | CM44: 0 | CN44: 0 | CO44: 0 | CP44: 0 | CQ44: 0 | CR44: 0 | CS44: 0 | CT44: 0 | CU44: 0 | CV44: 0 | CW44: 0 | CX44: 0 | CY44: 0 | CZ44: 0 | DA44: 0 | DB44: 0 | DC44: 0 | DD44: 0 | DE44: 0 | DF44: 0 | DG44: 0 | DH44: 0
C45: > 66 kV & < = 132 kV | D45: 60 | E45: 7.75 | F45: 0 | G45: 0 | H45: 0 | I45: 9 | J45: 0 | K45: 0 | L45: 6 | M45: 3 | N45: 15 | O45: 6 | P45: 9 | Q45: 30 | R45: 12 | S45: 4 | T45: 2 | U45: 0 | V45: 26 | W45: 3 | X45: 31 | Y45: 6 | Z45: 0 | AA45: 0 | AB45: 0 | AC45: 0 | AD45: 0 | AE45: 0 | AF45: 0 | AG45: 0 | AH45: 0 | AI45: 0 | AJ45: 0 | AK45: 0 | AL45: 0 | AM45: 0 | AN45: 0 | AO45: 0 | AP45: 0 | AQ45: 0 | AR45: 0 | AS45: 0 | AT45: 0 | AU45: 0 | AV45: 0 | AW45: 0 | AX45: 0 | AY45: 0 | AZ45: 0 | BA45: 0 | BB45: 0 | BC45: 0 | BD45: 0 | BE45: 0 | BF45: 0 | BG45: 0 | BH45: 0 | BI45: 0 | BJ45: 0 | BK45: 0 | BL45: 0 | BM45: 0 | BN45: 0 | BO45: 0 | BP45: 0 | BQ45: 0 | BR45: 0 | BS45: 0 | BT45: 0 | BU45: 0 | BV45: 0 | BW45: 0 | BX45: 0 | BY45: 0 | BZ45: 0 | CA45: 0 | CB45: 0 | CC45: 0 | CD45: 0 | CE45: 0 | CF45: 0 | CG45: 0 | CH45: 0 | CI45: 0 | CJ45: 0 | CK45: 0 | CL45: 0 | CM45: 0 | CN45: 0 | CO45: 0 | CP45: 0 | CQ45: 0 | CR45: 0 | CS45: 0 | CT45: 0 | CU45: 0 | CV45: 0 | CW45: 0 | CX45: 0 | CY45: 0 | CZ45: 0 | DA45: 0 | DB45: 0 | DC45: 0 | DD45: 0 | DE45: 0 | DF45: 0 | DG45: 0 | DH45: 0
C46: > 132 kV | D46: 0 | E46: 0 | F46: 0 | G46: 0 | H46: 0 | I46: 0 | J46: 0 | K46: 0 | L46: 0 | M46: 0 | N46: 0 | O46: 0 | P46: 0 | Q46: 0 | R46: 0 | S46: 0 | T46: 0 | U46: 0 | V46: 0 | W46: 0 | X46: 0 | Y46: 0 | Z46: 0 | AA46: 0 | AB46: 0 | AC46: 0 | AD46: 0 | AE46: 0 | AF46: 0 | AG46: 0 | AH46: 0 | AI46: 0 | AJ46: 0 | AK46: 0 | AL46: 0 | AM46: 0 | AN46: 0 | AO46: 0 | AP46: 0 | AQ46: 0 | AR46: 0 | AS46: 0 | AT46: 0 | AU46: 0 | AV46: 0 | AW46: 0 | AX46: 0 | AY46: 0 | AZ46: 0 | BA46: 0 | BB46: 0 | BC46: 0 | BD46: 0 | BE46: 0 | BF46: 0 | BG46: 0 | BH46: 0 | BI46: 0 | BJ46: 0 | BK46: 0 | BL46: 0 | BM46: 0 | BN46: 0 | BO46: 0 | BP46: 0 | BQ46: 0 | BR46: 0 | BS46: 0 | BT46: 0 | BU46: 0 | BV46: 0 | BW46: 0 | BX46: 0 | BY46: 0 | BZ46: 0 | CA46: 0 | CB46: 0 | CC46: 0 | CD46: 0 | CE46: 0 | CF46: 0 | CG46: 0 | CH46: 0 | CI46: 0 | CJ46: 0 | CK46: 0 | CL46: 0 | CM46: 0 | CN46: 0 | CO46: 0 | CP46: 0 | CQ46: 0 | CR46: 0 | CS46: 0 | CT46: 0 | CU46: 0 | CV46: 0 | CW46: 0 | CX46: 0 | CY46: 0 | CZ46: 0 | DA46: 0 | DB46: 0 | DC46: 0 | DD46: 0 | DE46: 0 | DF46: 0 | DG46: 0 | DH46: 0
C47: Other | D47: 0 | E47: 0 | F47: 0 | G47: 0 | H47: 0 | I47: 0 | J47: 0 | K47: 0 | L47: 0 | M47: 0 | N47: 0 | O47: 0 | P47: 0 | Q47: 0 | R47: 0 | S47: 0 | T47: 0 | U47: 0 | V47: 0 | W47: 0 | X47: 0 | Y47: 0 | Z47: 0 | AA47: 0 | AB47: 0 | AC47: 0 | AD47: 0 | AE47: 0 | AF47: 0 | AG47: 0 | AH47: 0 | AI47: 0 | AJ47: 0 | AK47: 0 | AL47: 0 | AM47: 0 | AN47: 0 | AO47: 0 | AP47: 0 | AQ47: 0 | AR47: 0 | AS47: 0 | AT47: 0 | AU47: 0 | AV47: 0 | AW47: 0 | AX47: 0 | AY47: 0 | AZ47: 0 | BA47: 0 | BB47: 0 | BC47: 0 | BD47: 0 | BE47: 0 | BF47: 0 | BG47: 0 | BH47: 0 | BI47: 0 | BJ47: 0 | BK47: 0 | BL47: 0 | BM47: 0 | BN47: 0 | BO47: 0 | BP47: 0 | BQ47: 0 | BR47: 0 | BS47: 0 | BT47: 0 | BU47: 0 | BV47: 0 | BW47: 0 | BX47: 0 | BY47: 0 | BZ47: 0 | CA47: 0 | CB47: 0 | CC47: 0 | CD47: 0 | CE47: 0 | CF47: 0 | CG47: 0 | CH47: 0 | CI47: 0 | CJ47: 0 | CK47: 0 | CL47: 0 | CM47: 0 | CN47: 0 | CO47: 0 | CP47: 0 | CQ47: 0 | CR47: 0 | CS47: 0 | CT47: 0 | CU47: 0 | CV47: 0 | CW47: 0 | CX47: 0 | CY47: 0 | CZ47: 0 | DA47: 0 | DB47: 0 | DC47: 0 | DD47: 0 | DE47: 0 | DF47: 0 | DG47: 0 | DH47: 0
B48: SERVICE LINES BY: CONNECTION VOLTAGE; CUSTOMER TYPE; CONNECTION COMPLEXITY | C48: ˂ = 11 kV ; Residential ; Simple Type | D48: 35 | E48: 5.92 | F48: 21685.914 | G48: 20247.034 | H48: 20896.434 | I48: 21379.864 | J48: 16959.28 | K48: 13281.85938 | L48: 20132.17938 | M48: 19227.81938 | N48: 21318.05938 | O48: 27044.13938 | P48: 34786.11612 | Q48: 31044.69303 | R48: 4013.808382 | S48: 3459.336382 | T48: 22195.55662 | U48: 23279.47528 | V48: 18161.49086 | W48: 17914.41575 | X48: 21091.09574 | Y48: 19467.4593 | Z48: 15655.44332 | AA48: 2435.98832 | AB48: 4950.226476 | AC48: 4950.226476 | AD48: 4950.226476 | AE48: 4950.226476 | AF48: 4950.226476 | AG48: 4950.226476 | AH48: 4950.226476 | AI48: 4950.226476 | AJ48: 4950.226476 | AK48: 4950.226476 | AL48: 5963.090719 | AM48: 5963.090719 | AN48: 5963.090719 | AO48: 5963.090719 | AP48: 5963.090719 | AQ48: 5963.090719 | AR48: 5963.090719 | AS48: 5963.090719 | AT48: 5963.090719 | AU48: 5963.090719 | AV48: 5963.090719 | AW48: 1075.010784 | AX48: 1075.010784 | AY48: 1075.010784 | AZ48: 1075.010784 | BA48: 1075.010784 | BB48: 1075.010784 | BC48: 1075.010784 | BD48: 1075.010784 | BE48: 1075.010784 | BF48: 1075.010784 | BG48: 1075.010784 | BH48: 1075.010784 | BI48: 1075.010784 | BJ48: 1075.010784 | BK48: 1075.010784 | BL48: 1075.010784 | BM48: 1075.010784 | BN48: 0 | BO48: 0 | BP48: 0 | BQ48: 0 | BR48: 0 | BS48: 0 | BT48: 0 | BU48: 0 | BV48: 0 | BW48: 0 | BX48: 0 | BY48: 0 | BZ48: 0 | CA48: 0 | CB48: 0 | CC48: 0 | CD48: 0 | CE48: 0 | CF48: 0 | CG48: 0 | CH48: 0 | CI48: 0 | CJ48: 0 | CK48: 0 | CL48: 0 | CM48: 0 | CN48: 0 | CO48: 0 | CP48: 0 | CQ48: 0 | CR48: 0 | CS48: 0 | CT48: 0 | CU48: 0 | CV48: 0 | CW48: 0 | CX48: 0 | CY48: 0 | CZ48: 0 | DA48: 0 | DB48: 0 | DC48: 0 | DD48: 0 | DE48: 0 | DF48: 0 | DG48: 0 | DH48: 0
C49: ˂ = 11 kV ; Commercial & Industrial ; Simple Type | D49: 35 | E49: 5.92 | F49: 1937.086 | G49: 1764.966 | H49: 1866.566 | I49: 1909.136 | J49: 1474.72 | K49: 1154.944294 | L49: 1750.624294 | M49: 1671.984294 | N49: 1853.744294 | O49: 2351.664294 | P49: 3024.879663 | Q49: 2699.538524 | R49: 344.4952941 | S49: 294.9672941 | T49: 1928.735358 | U49: 2024.302198 | V49: 1579.260075 | W49: 1557.775283 | X49: 1834.008325 | Y49: 1692.822548 | Z49: 1361.342897 | AA49: 211.8250713 | AB49: 422.8235238 | AC49: 422.8235238 | AD49: 422.8235238 | AE49: 422.8235238 | AF49: 422.8235238 | AG49: 422.8235238 | AH49: 422.8235238 | AI49: 422.8235238 | AJ49: 422.8235238 | AK49: 422.8235238 | AL49: 510.8986753 | AM49: 510.8986753 | AN49: 510.8986753 | AO49: 510.8986753 | AP49: 510.8986753 | AQ49: 510.8986753 | AR49: 510.8986753 | AS49: 510.8986753 | AT49: 510.8986753 | AU49: 510.8986753 | AV49: 510.8986753 | AW49: 93.09313725 | AX49: 93.09313725 | AY49: 93.09313725 | AZ49: 93.09313725 | BA49: 93.09313725 | BB49: 93.09313725 | BC49: 93.09313725 | BD49: 93.09313725 | BE49: 93.09313725 | BF49: 93.09313725 | BG49: 93.09313725 | BH49: 93.09313725 | BI49: 93.09313725 | BJ49: 93.09313725 | BK49: 93.09313725 | BL49: 93.09313725 | BM49: 93.09313725 | BN49: 0 | BO49: 0 | BP49: 0 | BQ49: 0 | BR49: 0 | BS49: 0 | BT49: 0 | BU49: 0 | BV49: 0 | BW49: 0 | BX49: 0 | BY49: 0 | BZ49: 0 | CA49: 0 | CB49: 0 | CC49: 0 | CD49: 0 | CE49: 0 | CF49: 0 | CG49: 0 | CH49: 0 | CI49: 0 | CJ49: 0 | CK49: 0 | CL49: 0 | CM49: 0 | CN49: 0 | CO49: 0 | CP49: 0 | CQ49: 0 | CR49: 0 | CS49: 0 | CT49: 0 | CU49: 0 | CV49: 0 | CW49: 0 | CX49: 0 | CY49: 0 | CZ49: 0 | DA49: 0 | DB49: 0 | DC49: 0 | DD49: 0 | DE49: 0 | DF49: 0 | DG49: 0 | DH49: 0
C50: ˂ = 11 kV ; Residential ; Complex Type | D50: 0 | E50: 0 | F50: 0 | G50: 0 | H50: 0 | I50: 0 | J50: 0 | K50: 0 | L50: 0 | M50: 0 | N50: 0 | O50: 0 | P50: 0 | Q50: 0 | R50: 0 | S50: 0 | T50: 0 | U50: 0 | V50: 0 | W50: 0 | X50: 0 | Y50: 0 | Z50: 0 | AA50: 0 | AB50: 0 | AC50: 0 | AD50: 0 | AE50: 0 | AF50: 0 | AG50: 0 | AH50: 0 | AI50: 0 | AJ50: 0 | AK50: 0 | AL50: 0 | AM50: 0 | AN50: 0 | AO50: 0 | AP50: 0 | AQ50: 0 | AR50: 0 | AS50: 0 | AT50: 0 | AU50: 0 | AV50: 0 | AW50: 0 | AX50: 0 | AY50: 0 | AZ50: 0 | BA50: 0 | BB50: 0 | BC50: 0 | BD50: 0 | BE50: 0 | BF50: 0 | BG50: 0 | BH50: 0 | BI50: 0 | BJ50: 0 | BK50: 0 | BL50: 0 | BM50: 0 | BN50: 0 | BO50: 0 | BP50: 0 | BQ50: 0 | BR50: 0 | BS50: 0 | BT50: 0 | BU50: 0 | BV50: 0 | BW50: 0 | BX50: 0 | BY50: 0 | BZ50: 0 | CA50: 0 | CB50: 0 | CC50: 0 | CD50: 0 | CE50: 0 | CF50: 0 | CG50: 0 | CH50: 0 | CI50: 0 | CJ50: 0 | CK50: 0 | CL50: 0 | CM50: 0 | CN50: 0 | CO50: 0 | CP50: 0 | CQ50: 0 | CR50: 0 | CS50: 0 | CT50: 0 | CU50: 0 | CV50: 0 | CW50: 0 | CX50: 0 | CY50: 0 | CZ50: 0 | DA50: 0 | DB50: 0 | DC50: 0 | DD50: 0 | DE50: 0 | DF50: 0 | DG50: 0 | DH50: 0
C51: ˂ = 11 kV ; Commercial & Industrial ; Complex Type | D51: 0 | E51: 0 | F51: 0 | G51: 0 | H51: 0 | I51: 0 | J51: 0 | K51: 0 | L51: 0 | M51: 0 | N51: 0 | O51: 0 | P51: 0 | Q51: 0 | R51: 0 | S51: 0 | T51: 0 | U51: 0 | V51: 0 | W51: 0 | X51: 0 | Y51: 0 | Z51: 0 | AA51: 0 | AB51: 0 | AC51: 0 | AD51: 0 | AE51: 0 | AF51: 0 | AG51: 0 | AH51: 0 | AI51: 0 | AJ51: 0 | AK51: 0 | AL51: 0 | AM51: 0 | AN51: 0 | AO51: 0 | AP51: 0 | AQ51: 0 | AR51: 0 | AS51: 0 | AT51: 0 | AU51: 0 | AV51: 0 | AW51: 0 | AX51: 0 | AY51: 0 | AZ51: 0 | BA51: 0 | BB51: 0 | BC51: 0 | BD51: 0 | BE51: 0 | BF51: 0 | BG51: 0 | BH51: 0 | BI51: 0 | BJ51: 0 | BK51: 0 | BL51: 0 | BM51: 0 | BN51: 0 | BO51: 0 | BP51: 0 | BQ51: 0 | BR51: 0 | BS51: 0 | BT51: 0 | BU51: 0 | BV51: 0 | BW51: 0 | BX51: 0 | BY51: 0 | BZ51: 0 | CA51: 0 | CB51: 0 | CC51: 0 | CD51: 0 | CE51: 0 | CF51: 0 | CG51: 0 | CH51: 0 | CI51: 0 | CJ51: 0 | CK51: 0 | CL51: 0 | CM51: 0 | CN51: 0 | CO51: 0 | CP51: 0 | CQ51: 0 | CR51: 0 | CS51: 0 | CT51: 0 | CU51: 0 | CV51: 0 | CW51: 0 | CX51: 0 | CY51: 0 | CZ51: 0 | DA51: 0 | DB51: 0 | DC51: 0 | DD51: 0 | DE51: 0 | DF51: 0 | DG51: 0 | DH51: 0
C52: ˂ = 11 kV ; Subdivision ; Complex Type | D52: 0 | E52: 0 | F52: 0 | G52: 0 | H52: 0 | I52: 0 | J52: 0 | K52: 0 | L52: 0 | M52: 0 | N52: 0 | O52: 0 | P52: 0 | Q52: 0 | R52: 0 | S52: 0 | T52: 0 | U52: 0 | V52: 0 | W52: 0 | X52: 0 | Y52: 0 | Z52: 0 | AA52: 0 | AB52: 0 | AC52: 0 | AD52: 0 | AE52: 0 | AF52: 0 | AG52: 0 | AH52: 0 | AI52: 0 | AJ52: 0 | AK52: 0 | AL52: 0 | AM52: 0 | AN52: 0 | AO52: 0 | AP52: 0 | AQ52: 0 | AR52: 0 | AS52: 0 | AT52: 0 | AU52: 0 | AV52: 0 | AW52: 0 | AX52: 0 | AY52: 0 | AZ52: 0 | BA52: 0 | BB52: 0 | BC52: 0 | BD52: 0 | BE52: 0 | BF52: 0 | BG52: 0 | BH52: 0 | BI52: 0 | BJ52: 0 | BK52: 0 | BL52: 0 | BM52: 0 | BN52: 0 | BO52: 0 | BP52: 0 | BQ52: 0 | BR52: 0 | BS52: 0 | BT52: 0 | BU52: 0 | BV52: 0 | BW52: 0 | BX52: 0 | BY52: 0 | BZ52: 0 | CA52: 0 | CB52: 0 | CC52: 0 | CD52: 0 | CE52: 0 | CF52: 0 | CG52: 0 | CH52: 0 | CI52: 0 | CJ52: 0 | CK52: 0 | CL52: 0 | CM52: 0 | CN52: 0 | CO52: 0 | CP52: 0 | CQ52: 0 | CR52: 0 | CS52: 0 | CT52: 0 | CU52: 0 | CV52: 0 | CW52: 0 | CX52: 0 | CY52: 0 | CZ52: 0 | DA52: 0 | DB52: 0 | DC52: 0 | DD52: 0 | DE52: 0 | DF52: 0 | DG52: 0 | DH52: 0
C53: > 11 kV & < = 22 kV ; Commercial & Industrial | D53: 0 | E53: 0 | F53: 0 | G53: 0 | H53: 0 | I53: 0 | J53: 0 | K53: 0 | L53: 0 | M53: 0 | N53: 0 | O53: 0 | P53: 0 | Q53: 0 | R53: 0 | S53: 0 | T53: 0 | U53: 0 | V53: 0 | W53: 0 | X53: 0 | Y53: 0 | Z53: 0 | AA53: 0 | AB53: 0 | AC53: 0 | AD53: 0 | AE53: 0 | AF53: 0 | AG53: 0 | AH53: 0 | AI53: 0 | AJ53: 0 | AK53: 0 | AL53: 0 | AM53: 0 | AN53: 0 | AO53: 0 | AP53: 0 | AQ53: 0 | AR53: 0 | AS53: 0 | AT53: 0 | AU53: 0 | AV53: 0 | AW53: 0 | AX53: 0 | AY53: 0 | AZ53: 0 | BA53: 0 | BB53: 0 | BC53: 0 | BD53: 0 | BE53: 0 | BF53: 0 | BG53: 0 | BH53: 0 | BI53: 0 | BJ53: 0 | BK53: 0 | BL53: 0 | BM53: 0 | BN53: 0 | BO53: 0 | BP53: 0 | BQ53: 0 | BR53: 0 | BS53: 0 | BT53: 0 | BU53: 0 | BV53: 0 | BW53: 0 | BX53: 0 | BY53: 0 | BZ53: 0 | CA53: 0 | CB53: 0 | CC53: 0 | CD53: 0 | CE53: 0 | CF53: 0 | CG53: 0 | CH53: 0 | CI53: 0 | CJ53: 0 | CK53: 0 | CL53: 0 | CM53: 0 | CN53: 0 | CO53: 0 | CP53: 0 | CQ53: 0 | CR53: 0 | CS53: 0 | CT53: 0 | CU53: 0 | CV53: 0 | CW53: 0 | CX53: 0 | CY53: 0 | CZ53: 0 | DA53: 0 | DB53: 0 | DC53: 0 | DD53: 0 | DE53: 0 | DF53: 0 | DG53: 0 | DH53: 0
C54: > 11 kV & < = 22 kV ; Subdivision | D54: 0 | E54: 0 | F54: 0 | G54: 0 | H54: 0 | I54: 0 | J54: 0 | K54: 0 | L54: 0 | M54: 0 | N54: 0 | O54: 0 | P54: 0 | Q54: 0 | R54: 0 | S54: 0 | T54: 0 | U54: 0 | V54: 0 | W54: 0 | X54: 0 | Y54: 0 | Z54: 0 | AA54: 0 | AB54: 0 | AC54: 0 | AD54: 0 | AE54: 0 | AF54: 0 | AG54: 0 | AH54: 0 | AI54: 0 | AJ54: 0 | AK54: 0 | AL54: 0 | AM54: 0 | AN54: 0 | AO54: 0 | AP54: 0 | AQ54: 0 | AR54: 0 | AS54: 0 | AT54: 0 | AU54: 0 | AV54: 0 | AW54: 0 | AX54: 0 | AY54: 0 | AZ54: 0 | BA54: 0 | BB54: 0 | BC54: 0 | BD54: 0 | BE54: 0 | BF54: 0 | BG54: 0 | BH54: 0 | BI54: 0 | BJ54: 0 | BK54: 0 | BL54: 0 | BM54: 0 | BN54: 0 | BO54: 0 | BP54: 0 | BQ54: 0 | BR54: 0 | BS54: 0 | BT54: 0 | BU54: 0 | BV54: 0 | BW54: 0 | BX54: 0 | BY54: 0 | BZ54: 0 | CA54: 0 | CB54: 0 | CC54: 0 | CD54: 0 | CE54: 0 | CF54: 0 | CG54: 0 | CH54: 0 | CI54: 0 | CJ54: 0 | CK54: 0 | CL54: 0 | CM54: 0 | CN54: 0 | CO54: 0 | CP54: 0 | CQ54: 0 | CR54: 0 | CS54: 0 | CT54: 0 | CU54: 0 | CV54: 0 | CW54: 0 | CX54: 0 | CY54: 0 | CZ54: 0 | DA54: 0 | DB54: 0 | DC54: 0 | DD54: 0 | DE54: 0 | DF54: 0 | DG54: 0 | DH54: 0
C55: > 22 kV & < = 33 kV ; Commercial & Industrial | D55: 0 | E55: 0 | F55: 0 | G55: 0 | H55: 0 | I55: 0 | J55: 0 | K55: 0 | L55: 0 | M55: 0 | N55: 0 | O55: 0 | P55: 0 | Q55: 0 | R55: 0 | S55: 0 | T55: 0 | U55: 0 | V55: 0 | W55: 0 | X55: 0 | Y55: 0 | Z55: 0 | AA55: 0 | AB55: 0 | AC55: 0 | AD55: 0 | AE55: 0 | AF55: 0 | AG55: 0 | AH55: 0 | AI55: 0 | AJ55: 0 | AK55: 0 | AL55: 0 | AM55: 0 | AN55: 0 | AO55: 0 | AP55: 0 | AQ55: 0 | AR55: 0 | AS55: 0 | AT55: 0 | AU55: 0 | AV55: 0 | AW55: 0 | AX55: 0 | AY55: 0 | AZ55: 0 | BA55: 0 | BB55: 0 | BC55: 0 | BD55: 0 | BE55: 0 | BF55: 0 | BG55: 0 | BH55: 0 | BI55: 0 | BJ55: 0 | BK55: 0 | BL55: 0 | BM55: 0 | BN55: 0 | BO55: 0 | BP55: 0 | BQ55: 0 | BR55: 0 | BS55: 0 | BT55: 0 | BU55: 0 | BV55: 0 | BW55: 0 | BX55: 0 | BY55: 0 | BZ55: 0 | CA55: 0 | CB55: 0 | CC55: 0 | CD55: 0 | CE55: 0 | CF55: 0 | CG55: 0 | CH55: 0 | CI55: 0 | CJ55: 0 | CK55: 0 | CL55: 0 | CM55: 0 | CN55: 0 | CO55: 0 | CP55: 0 | CQ55: 0 | CR55: 0 | CS55: 0 | CT55: 0 | CU55: 0 | CV55: 0 | CW55: 0 | CX55: 0 | CY55: 0 | CZ55: 0 | DA55: 0 | DB55: 0 | DC55: 0 | DD55: 0 | DE55: 0 | DF55: 0 | DG55: 0 | DH55: 0
C56: > 22 kV & < = 33 kV ; Subdivision | D56: 0 | E56: 0 | F56: 0 | G56: 0 | H56: 0 | I56: 0 | J56: 0 | K56: 0 | L56: 0 | M56: 0 | N56: 0 | O56: 0 | P56: 0 | Q56: 0 | R56: 0 | S56: 0 | T56: 0 | U56: 0 | V56: 0 | W56: 0 | X56: 0 | Y56: 0 | Z56: 0 | AA56: 0 | AB56: 0 | AC56: 0 | AD56: 0 | AE56: 0 | AF56: 0 | AG56: 0 | AH56: 0 | AI56: 0 | AJ56: 0 | AK56: 0 | AL56: 0 | AM56: 0 | AN56: 0 | AO56: 0 | AP56: 0 | AQ56: 0 | AR56: 0 | AS56: 0 | AT56: 0 | AU56: 0 | AV56: 0 | AW56: 0 | AX56: 0 | AY56: 0 | AZ56: 0 | BA56: 0 | BB56: 0 | BC56: 0 | BD56: 0 | BE56: 0 | BF56: 0 | BG56: 0 | BH56: 0 | BI56: 0 | BJ56: 0 | BK56: 0 | BL56: 0 | BM56: 0 | BN56: 0 | BO56: 0 | BP56: 0 | BQ56: 0 | BR56: 0 | BS56: 0 | BT56: 0 | BU56: 0 | BV56: 0 | BW56: 0 | BX56: 0 | BY56: 0 | BZ56: 0 | CA56: 0 | CB56: 0 | CC56: 0 | CD56: 0 | CE56: 0 | CF56: 0 | CG56: 0 | CH56: 0 | CI56: 0 | CJ56: 0 | CK56: 0 | CL56: 0 | CM56: 0 | CN56: 0 | CO56: 0 | CP56: 0 | CQ56: 0 | CR56: 0 | CS56: 0 | CT56: 0 | CU56: 0 | CV56: 0 | CW56: 0 | CX56: 0 | CY56: 0 | CZ56: 0 | DA56: 0 | DB56: 0 | DC56: 0 | DD56: 0 | DE56: 0 | DF56: 0 | DG56: 0 | DH56: 0
C57: > 33 kV & < = 66 kV ; Commercial & Industrial | D57: 0 | E57: 0 | F57: 0 | G57: 0 | H57: 0 | I57: 0 | J57: 0 | K57: 0 | L57: 0 | M57: 0 | N57: 0 | O57: 0 | P57: 0 | Q57: 0 | R57: 0 | S57: 0 | T57: 0 | U57: 0 | V57: 0 | W57: 0 | X57: 0 | Y57: 0 | Z57: 0 | AA57: 0 | AB57: 0 | AC57: 0 | AD57: 0 | AE57: 0 | AF57: 0 | AG57: 0 | AH57: 0 | AI57: 0 | AJ57: 0 | AK57: 0 | AL57: 0 | AM57: 0 | AN57: 0 | AO57: 0 | AP57: 0 | AQ57: 0 | AR57: 0 | AS57: 0 | AT57: 0 | AU57: 0 | AV57: 0 | AW57: 0 | AX57: 0 | AY57: 0 | AZ57: 0 | BA57: 0 | BB57: 0 | BC57: 0 | BD57: 0 | BE57: 0 | BF57: 0 | BG57: 0 | BH57: 0 | BI57: 0 | BJ57: 0 | BK57: 0 | BL57: 0 | BM57: 0 | BN57: 0 | BO57: 0 | BP57: 0 | BQ57: 0 | BR57: 0 | BS57: 0 | BT57: 0 | BU57: 0 | BV57: 0 | BW57: 0 | BX57: 0 | BY57: 0 | BZ57: 0 | CA57: 0 | CB57: 0 | CC57: 0 | CD57: 0 | CE57: 0 | CF57: 0 | CG57: 0 | CH57: 0 | CI57: 0 | CJ57: 0 | CK57: 0 | CL57: 0 | CM57: 0 | CN57: 0 | CO57: 0 | CP57: 0 | CQ57: 0 | CR57: 0 | CS57: 0 | CT57: 0 | CU57: 0 | CV57: 0 | CW57: 0 | CX57: 0 | CY57: 0 | CZ57: 0 | DA57: 0 | DB57: 0 | DC57: 0 | DD57: 0 | DE57: 0 | DF57: 0 | DG57: 0 | DH57: 0
C58: > 33 kV & < = 66 kV ; Subdivision | D58: 0 | E58: 0 | F58: 0 | G58: 0 | H58: 0 | I58: 0 | J58: 0 | K58: 0 | L58: 0 | M58: 0 | N58: 0 | O58: 0 | P58: 0 | Q58: 0 | R58: 0 | S58: 0 | T58: 0 | U58: 0 | V58: 0 | W58: 0 | X58: 0 | Y58: 0 | Z58: 0 | AA58: 0 | AB58: 0 | AC58: 0 | AD58: 0 | AE58: 0 | AF58: 0 | AG58: 0 | AH58: 0 | AI58: 0 | AJ58: 0 | AK58: 0 | AL58: 0 | AM58: 0 | AN58: 0 | AO58: 0 | AP58: 0 | AQ58: 0 | AR58: 0 | AS58: 0 | AT58: 0 | AU58: 0 | AV58: 0 | AW58: 0 | AX58: 0 | AY58: 0 | AZ58: 0 | BA58: 0 | BB58: 0 | BC58: 0 | BD58: 0 | BE58: 0 | BF58: 0 | BG58: 0 | BH58: 0 | BI58: 0 | BJ58: 0 | BK58: 0 | BL58: 0 | BM58: 0 | BN58: 0 | BO58: 0 | BP58: 0 | BQ58: 0 | BR58: 0 | BS58: 0 | BT58: 0 | BU58: 0 | BV58: 0 | BW58: 0 | BX58: 0 | BY58: 0 | BZ58: 0 | CA58: 0 | CB58: 0 | CC58: 0 | CD58: 0 | CE58: 0 | CF58: 0 | CG58: 0 | CH58: 0 | CI58: 0 | CJ58: 0 | CK58: 0 | CL58: 0 | CM58: 0 | CN58: 0 | CO58: 0 | CP58: 0 | CQ58: 0 | CR58: 0 | CS58: 0 | CT58: 0 | CU58: 0 | CV58: 0 | CW58: 0 | CX58: 0 | CY58: 0 | CZ58: 0 | DA58: 0 | DB58: 0 | DC58: 0 | DD58: 0 | DE58: 0 | DF58: 0 | DG58: 0 | DH58: 0
C59: > 66 kV & < = 132 kV ; Commercial & Industrial | D59: 0 | E59: 0 | F59: 0 | G59: 0 | H59: 0 | I59: 0 | J59: 0 | K59: 0 | L59: 0 | M59: 0 | N59: 0 | O59: 0 | P59: 0 | Q59: 0 | R59: 0 | S59: 0 | T59: 0 | U59: 0 | V59: 0 | W59: 0 | X59: 0 | Y59: 0 | Z59: 0 | AA59: 0 | AB59: 0 | AC59: 0 | AD59: 0 | AE59: 0 | AF59: 0 | AG59: 0 | AH59: 0 | AI59: 0 | AJ59: 0 | AK59: 0 | AL59: 0 | AM59: 0 | AN59: 0 | AO59: 0 | AP59: 0 | AQ59: 0 | AR59: 0 | AS59: 0 | AT59: 0 | AU59: 0 | AV59: 0 | AW59: 0 | AX59: 0 | AY59: 0 | AZ59: 0 | BA59: 0 | BB59: 0 | BC59: 0 | BD59: 0 | BE59: 0 | BF59: 0 | BG59: 0 | BH59: 0 | BI59: 0 | BJ59: 0 | BK59: 0 | BL59: 0 | BM59: 0 | BN59: 0 | BO59: 0 | BP59: 0 | BQ59: 0 | BR59: 0 | BS59: 0 | BT59: 0 | BU59: 0 | BV59: 0 | BW59: 0 | BX59: 0 | BY59: 0 | BZ59: 0 | CA59: 0 | CB59: 0 | CC59: 0 | CD59: 0 | CE59: 0 | CF59: 0 | CG59: 0 | CH59: 0 | CI59: 0 | CJ59: 0 | CK59: 0 | CL59: 0 | CM59: 0 | CN59: 0 | CO59: 0 | CP59: 0 | CQ59: 0 | CR59: 0 | CS59: 0 | CT59: 0 | CU59: 0 | CV59: 0 | CW59: 0 | CX59: 0 | CY59: 0 | CZ59: 0 | DA59: 0 | DB59: 0 | DC59: 0 | DD59: 0 | DE59: 0 | DF59: 0 | DG59: 0 | DH59: 0
C60: > 66 kV & < = 132 kV ; Subdivision | D60: 0 | E60: 0 | F60: 0 | G60: 0 | H60: 0 | I60: 0 | J60: 0 | K60: 0 | L60: 0 | M60: 0 | N60: 0 | O60: 0 | P60: 0 | Q60: 0 | R60: 0 | S60: 0 | T60: 0 | U60: 0 | V60: 0 | W60: 0 | X60: 0 | Y60: 0 | Z60: 0 | AA60: 0 | AB60: 0 | AC60: 0 | AD60: 0 | AE60: 0 | AF60: 0 | AG60: 0 | AH60: 0 | AI60: 0 | AJ60: 0 | AK60: 0 | AL60: 0 | AM60: 0 | AN60: 0 | AO60: 0 | AP60: 0 | AQ60: 0 | AR60: 0 | AS60: 0 | AT60: 0 | AU60: 0 | AV60: 0 | AW60: 0 | AX60: 0 | AY60: 0 | AZ60: 0 | BA60: 0 | BB60: 0 | BC60: 0 | BD60: 0 | BE60: 0 | BF60: 0 | BG60: 0 | BH60: 0 | BI60: 0 | BJ60: 0 | BK60: 0 | BL60: 0 | BM60: 0 | BN60: 0 | BO60: 0 | BP60: 0 | BQ60: 0 | BR60: 0 | BS60: 0 | BT60: 0 | BU60: 0 | BV60: 0 | BW60: 0 | BX60: 0 | BY60: 0 | BZ60: 0 | CA60: 0 | CB60: 0 | CC60: 0 | CD60: 0 | CE60: 0 | CF60: 0 | CG60: 0 | CH60: 0 | CI60: 0 | CJ60: 0 | CK60: 0 | CL60: 0 | CM60: 0 | CN60: 0 | CO60: 0 | CP60: 0 | CQ60: 0 | CR60: 0 | CS60: 0 | CT60: 0 | CU60: 0 | CV60: 0 | CW60: 0 | CX60: 0 | CY60: 0 | CZ60: 0 | DA60: 0 | DB60: 0 | DC60: 0 | DD60: 0 | DE60: 0 | DF60: 0 | DG60: 0 | DH60: 0
C61: > 132 kV ; Commercial & Industrial | D61: 0 | E61: 0 | F61: 0 | G61: 0 | H61: 0 | I61: 0 | J61: 0 | K61: 0 | L61: 0 | M61: 0 | N61: 0 | O61: 0 | P61: 0 | Q61: 0 | R61: 0 | S61: 0 | T61: 0 | U61: 0 | V61: 0 | W61: 0 | X61: 0 | Y61: 0 | Z61: 0 | AA61: 0 | AB61: 0 | AC61: 0 | AD61: 0 | AE61: 0 | AF61: 0 | AG61: 0 | AH61: 0 | AI61: 0 | AJ61: 0 | AK61: 0 | AL61: 0 | AM61: 0 | AN61: 0 | AO61: 0 | AP61: 0 | AQ61: 0 | AR61: 0 | AS61: 0 | AT61: 0 | AU61: 0 | AV61: 0 | AW61: 0 | AX61: 0 | AY61: 0 | AZ61: 0 | BA61: 0 | BB61: 0 | BC61: 0 | BD61: 0 | BE61: 0 | BF61: 0 | BG61: 0 | BH61: 0 | BI61: 0 | BJ61: 0 | BK61: 0 | BL61: 0 | BM61: 0 | BN61: 0 | BO61: 0 | BP61: 0 | BQ61: 0 | BR61: 0 | BS61: 0 | BT61: 0 | BU61: 0 | BV61: 0 | BW61: 0 | BX61: 0 | BY61: 0 | BZ61: 0 | CA61: 0 | CB61: 0 | CC61: 0 | CD61: 0 | CE61: 0 | CF61: 0 | CG61: 0 | CH61: 0 | CI61: 0 | CJ61: 0 | CK61: 0 | CL61: 0 | CM61: 0 | CN61: 0 | CO61: 0 | CP61: 0 | CQ61: 0 | CR61: 0 | CS61: 0 | CT61: 0 | CU61: 0 | CV61: 0 | CW61: 0 | CX61: 0 | CY61: 0 | CZ61: 0 | DA61: 0 | DB61: 0 | DC61: 0 | DD61: 0 | DE61: 0 | DF61: 0 | DG61: 0 | DH61: 0
C62: > 132 kV ; Subdivision | D62: 0 | E62: 0 | F62: 0 | G62: 0 | H62: 0 | I62: 0 | J62: 0 | K62: 0 | L62: 0 | M62: 0 | N62: 0 | O62: 0 | P62: 0 | Q62: 0 | R62: 0 | S62: 0 | T62: 0 | U62: 0 | V62: 0 | W62: 0 | X62: 0 | Y62: 0 | Z62: 0 | AA62: 0 | AB62: 0 | AC62: 0 | AD62: 0 | AE62: 0 | AF62: 0 | AG62: 0 | AH62: 0 | AI62: 0 | AJ62: 0 | AK62: 0 | AL62: 0 | AM62: 0 | AN62: 0 | AO62: 0 | AP62: 0 | AQ62: 0 | AR62: 0 | AS62: 0 | AT62: 0 | AU62: 0 | AV62: 0 | AW62: 0 | AX62: 0 | AY62: 0 | AZ62: 0 | BA62: 0 | BB62: 0 | BC62: 0 | BD62: 0 | BE62: 0 | BF62: 0 | BG62: 0 | BH62: 0 | BI62: 0 | BJ62: 0 | BK62: 0 | BL62: 0 | BM62: 0 | BN62: 0 | BO62: 0 | BP62: 0 | BQ62: 0 | BR62: 0 | BS62: 0 | BT62: 0 | BU62: 0 | BV62: 0 | BW62: 0 | BX62: 0 | BY62: 0 | BZ62: 0 | CA62: 0 | CB62: 0 | CC62: 0 | CD62: 0 | CE62: 0 | CF62: 0 | CG62: 0 | CH62: 0 | CI62: 0 | CJ62: 0 | CK62: 0 | CL62: 0 | CM62: 0 | CN62: 0 | CO62: 0 | CP62: 0 | CQ62: 0 | CR62: 0 | CS62: 0 | CT62: 0 | CU62: 0 | CV62: 0 | CW62: 0 | CX62: 0 | CY62: 0 | CZ62: 0 | DA62: 0 | DB62: 0 | DC62: 0 | DD62: 0 | DE62: 0 | DF62: 0 | DG62: 0 | DH62: 0
C63: Other | D63: 0 | E63: 0 | F63: 0 | G63: 0 | H63: 0 | I63: 0 | J63: 0 | K63: 0 | L63: 0 | M63: 0 | N63: 0 | O63: 0 | P63: 0 | Q63: 0 | R63: 0 | S63: 0 | T63: 0 | U63: 0 | V63: 0 | W63: 0 | X63: 0 | Y63: 0 | Z63: 0 | AA63: 0 | AB63: 0 | AC63: 0 | AD63: 0 | AE63: 0 | AF63: 0 | AG63: 0 | AH63: 0 | AI63: 0 | AJ63: 0 | AK63: 0 | AL63: 0 | AM63: 0 | AN63: 0 | AO63: 0 | AP63: 0 | AQ63: 0 | AR63: 0 | AS63: 0 | AT63: 0 | AU63: 0 | AV63: 0 | AW63: 0 | AX63: 0 | AY63: 0 | AZ63: 0 | BA63: 0 | BB63: 0 | BC63: 0 | BD63: 0 | BE63: 0 | BF63: 0 | BG63: 0 | BH63: 0 | BI63: 0 | BJ63: 0 | BK63: 0 | BL63: 0 | BM63: 0 | BN63: 0 | BO63: 0 | BP63: 0 | BQ63: 0 | BR63: 0 | BS63: 0 | BT63: 0 | BU63: 0 | BV63: 0 | BW63: 0 | BX63: 0 | BY63: 0 | BZ63: 0 | CA63: 0 | CB63: 0 | CC63: 0 | CD63: 0 | CE63: 0 | CF63: 0 | CG63: 0 | CH63: 0 | CI63: 0 | CJ63: 0 | CK63: 0 | CL63: 0 | CM63: 0 | CN63: 0 | CO63: 0 | CP63: 0 | CQ63: 0 | CR63: 0 | CS63: 0 | CT63: 0 | CU63: 0 | CV63: 0 | CW63: 0 | CX63: 0 | CY63: 0 | CZ63: 0 | DA63: 0 | DB63: 0 | DC63: 0 | DD63: 0 | DE63: 0 | DF63: 0 | DG63: 0 | DH63: 0
B64: TRANSFORMERS BY: MOUNTING TYPE; HIGHEST OPERATING VOLTAGE ; AMPERE RATING; NUMBER OF PHASES (AT LV) | C64: Pole Mounted ; < = 22kV ; < = 60 kVA ; Single Phase | D64: 40 | E64: 6.32 | F64: 20 | G64: 143 | H64: 114 | I64: 153 | J64: 135 | K64: 130 | L64: 127 | M64: 122 | N64: 150 | O64: 189 | P64: 162 | Q64: 117 | R64: 344 | S64: 69 | T64: 207 | U64: 79 | V64: 132 | W64: 124 | X64: 185 | Y64: 123 | Z64: 126 | AA64: 49 | AB64: 53 | AC64: 124 | AD64: 175 | AE64: 105 | AF64: 114 | AG64: 135 | AH64: 115 | AI64: 216 | AJ64: 4 | AK64: 2 | AL64: 287 | AM64: 117 | AN64: 87 | AO64: 144 | AP64: 182 | AQ64: 103 | AR64: 192 | AS64: 80 | AT64: 182 | AU64: 121 | AV64: 47 | AW64: 13 | AX64: 27 | AY64: 19 | AZ64: 23 | BA64: 21 | BB64: 8 | BC64: 10 | BD64: 7 | BE64: 0 | BF64: 9 | BG64: 27 | BH64: 13 | BI64: 5 | BJ64: 5 | BK64: 4 | BL64: 0 | BM64: 0 | BN64: 0 | BO64: 0 | BP64: 0 | BQ64: 0 | BR64: 0 | BS64: 0 | BT64: 0 | BU64: 0 | BV64: 0 | BW64: 4 | BX64: 0 | BY64: 0 | BZ64: 0 | CA64: 0 | CB64: 0 | CC64: 0 | CD64: 0 | CE64: 0 | CF64: 0 | CG64: 0 | CH64: 0 | CI64: 0 | CJ64: 0 | CK64: 0 | CL64: 0 | CM64: 0 | CN64: 0 | CO64: 0 | CP64: 0 | CQ64: 0 | CR64: 0 | CS64: 0 | CT64: 0 | CU64: 0 | CV64: 0 | CW64: 0 | CX64: 0 | CY64: 0 | CZ64: 0 | DA64: 0 | DB64: 0 | DC64: 0 | DD64: 0 | DE64: 0 | DF64: 0 | DG64: 0 | DH64: 0
C65: Pole Mounted ; < = 22kV ; > 60 kVA and < = 600 kVA ; Single Phase | D65: 40 | E65: 6.32 | F65: 0 | G65: 0 | H65: 1 | I65: 0 | J65: 0 | K65: 0 | L65: 4 | M65: 1 | N65: 3 | O65: 1 | P65: 0 | Q65: 0 | R65: 0 | S65: 0 | T65: 0 | U65: 0 | V65: 0 | W65: 0 | X65: 0 | Y65: 0 | Z65: 0 | AA65: 0 | AB65: 0 | AC65: 0 | AD65: 0 | AE65: 0 | AF65: 0 | AG65: 0 | AH65: 1 | AI65: 0 | AJ65: 0 | AK65: 0 | AL65: 0 | AM65: 0 | AN65: 0 | AO65: 0 | AP65: 0 | AQ65: 0 | AR65: 0 | AS65: 0 | AT65: 0 | AU65: 0 | AV65: 0 | AW65: 0 | AX65: 0 | AY65: 0 | AZ65: 0 | BA65: 0 | BB65: 0 | BC65: 0 | BD65: 0 | BE65: 0 | BF65: 0 | BG65: 0 | BH65: 0 | BI65: 0 | BJ65: 0 | BK65: 0 | BL65: 0 | BM65: 0 | BN65: 0 | BO65: 0 | BP65: 0 | BQ65: 0 | BR65: 0 | BS65: 0 | BT65: 0 | BU65: 0 | BV65: 0 | BW65: 0 | BX65: 0 | BY65: 0 | BZ65: 0 | CA65: 0 | CB65: 0 | CC65: 0 | CD65: 0 | CE65: 0 | CF65: 0 | CG65: 0 | CH65: 0 | CI65: 0 | CJ65: 0 | CK65: 0 | CL65: 0 | CM65: 0 | CN65: 0 | CO65: 0 | CP65: 0 | CQ65: 0 | CR65: 0 | CS65: 0 | CT65: 0 | CU65: 0 | CV65: 0 | CW65: 0 | CX65: 0 | CY65: 0 | CZ65: 0 | DA65: 0 | DB65: 0 | DC65: 0 | DD65: 0 | DE65: 0 | DF65: 0 | DG65: 0 | DH65: 0
C66: Pole Mounted ; < = 22kV ; > 600 kVA ; Single Phase | D66: 0 | E66: 0 | F66: 0 | G66: 0 | H66: 0 | I66: 0 | J66: 0 | K66: 0 | L66: 0 | M66: 0 | N66: 0 | O66: 0 | P66: 0 | Q66: 0 | R66: 0 | S66: 0 | T66: 0 | U66: 0 | V66: 0 | W66: 0 | X66: 0 | Y66: 0 | Z66: 0 | AA66: 0 | AB66: 0 | AC66: 0 | AD66: 0 | AE66: 0 | AF66: 0 | AG66: 0 | AH66: 0 | AI66: 0 | AJ66: 0 | AK66: 0 | AL66: 0 | AM66: 0 | AN66: 0 | AO66: 0 | AP66: 0 | AQ66: 0 | AR66: 0 | AS66: 0 | AT66: 0 | AU66: 0 | AV66: 0 | AW66: 0 | AX66: 0 | AY66: 0 | AZ66: 0 | BA66: 0 | BB66: 0 | BC66: 0 | BD66: 0 | BE66: 0 | BF66: 0 | BG66: 0 | BH66: 0 | BI66: 0 | BJ66: 0 | BK66: 0 | BL66: 0 | BM66: 0 | BN66: 0 | BO66: 0 | BP66: 0 | BQ66: 0 | BR66: 0 | BS66: 0 | BT66: 0 | BU66: 0 | BV66: 0 | BW66: 0 | BX66: 0 | BY66: 0 | BZ66: 0 | CA66: 0 | CB66: 0 | CC66: 0 | CD66: 0 | CE66: 0 | CF66: 0 | CG66: 0 | CH66: 0 | CI66: 0 | CJ66: 0 | CK66: 0 | CL66: 0 | CM66: 0 | CN66: 0 | CO66: 0 | CP66: 0 | CQ66: 0 | CR66: 0 | CS66: 0 | CT66: 0 | CU66: 0 | CV66: 0 | CW66: 0 | CX66: 0 | CY66: 0 | CZ66: 0 | DA66: 0 | DB66: 0 | DC66: 0 | DD66: 0 | DE66: 0 | DF66: 0 | DG66: 0 | DH66: 0
C67: Pole Mounted ; < = 22kV ; < = 60 kVA ; Multiple Phase | D67: 40 | E67: 6.32 | F67: 11 | G67: 99 | H67: 111 | I67: 177 | J67: 209 | K67: 206 | L67: 132 | M67: 164 | N67: 191 | O67: 190 | P67: 194 | Q67: 126 | R67: 293 | S67: 88 | T67: 173 | U67: 92 | V67: 99 | W67: 88 | X67: 75 | Y67: 61 | Z67: 80 | AA67: 56 | AB67: 22 | AC67: 125 | AD67: 156 | AE67: 101 | AF67: 123 | AG67: 139 | AH67: 64 | AI67: 250 | AJ67: 4 | AK67: 3 | AL67: 280 | AM67: 169 | AN67: 105 | AO67: 122 | AP67: 164 | AQ67: 150 | AR67: 91 | AS67: 79 | AT67: 70 | AU67: 33 | AV67: 56 | AW67: 0 | AX67: 39 | AY67: 37 | AZ67: 54 | BA67: 91 | BB67: 58 | BC67: 44 | BD67: 18 | BE67: 20 | BF67: 44 | BG67: 44 | BH67: 36 | BI67: 28 | BJ67: 28 | BK67: 1 | BL67: 24 | BM67: 26 | BN67: 2 | BO67: 14 | BP67: 2 | BQ67: 2 | BR67: 0 | BS67: 0 | BT67: 5 | BU67: 0 | BV67: 5 | BW67: 3 | BX67: 9 | BY67: 2 | BZ67: 1 | CA67: 1 | CB67: 4 | CC67: 1 | CD67: 0 | CE67: 3 | CF67: 2 | CG67: 3 | CH67: 0 | CI67: 8 | CJ67: 0 | CK67: 3 | CL67: 0 | CM67: 0 | CN67: 0 | CO67: 0 | CP67: 0 | CQ67: 0 | CR67: 0 | CS67: 0 | CT67: 0 | CU67: 0 | CV67: 0 | CW67: 0 | CX67: 0 | CY67: 0 | CZ67: 0 | DA67: 0 | DB67: 0 | DC67: 0 | DD67: 0 | DE67: 0 | DF67: 0 | DG67: 0 | DH67: 0
C68: Pole Mounted ; < = 22kV ; > 60 kVA and < = 600 kVA ; Multiple Phase | D68: 40 | E68: 6.32 | F68: 97 | G68: 801 | H68: 803 | I68: 885 | J68: 878 | K68: 724 | L68: 794 | M68: 952 | N68: 1033 | O68: 1256 | P68: 1343 | Q68: 1070 | R68: 1668 | S68: 707 | T68: 1492 | U68: 538 | V68: 497 | W68: 722 | X68: 482 | Y68: 503 | Z68: 420 | AA68: 229 | AB68: 194 | AC68: 431 | AD68: 471 | AE68: 173 | AF68: 224 | AG68: 290 | AH68: 140 | AI68: 423 | AJ68: 51 | AK68: 38 | AL68: 325 | AM68: 203 | AN68: 291 | AO68: 200 | AP68: 221 | AQ68: 239 | AR68: 120 | AS68: 107 | AT68: 64 | AU68: 24 | AV68: 61 | AW68: 14 | AX68: 94 | AY68: 40 | AZ68: 35 | BA68: 57 | BB68: 52 | BC68: 15 | BD68: 8 | BE68: 29 | BF68: 19 | BG68: 15 | BH68: 13 | BI68: 18 | BJ68: 4 | BK68: 5 | BL68: 5 | BM68: 2 | BN68: 4 | BO68: 0 | BP68: 0 | BQ68: 1 | BR68: 1 | BS68: 0 | BT68: 2 | BU68: 0 | BV68: 7 | BW68: 4 | BX68: 0 | BY68: 1 | BZ68: 3 | CA68: 0 | CB68: 1 | CC68: 2 | CD68: 2 | CE68: 0 | CF68: 0 | CG68: 1 | CH68: 0 | CI68: 0 | CJ68: 3 | CK68: 0 | CL68: 1 | CM68: 0 | CN68: 0 | CO68: 0 | CP68: 0 | CQ68: 0 | CR68: 0 | CS68: 0 | CT68: 0 | CU68: 0 | CV68: 0 | CW68: 0 | CX68: 0 | CY68: 0 | CZ68: 0 | DA68: 0 | DB68: 0 | DC68: 0 | DD68: 0 | DE68: 0 | DF68: 0 | DG68: 0 | DH68: 0
C69: Pole Mounted ; < = 22kV ; > 600 kVA ; Multiple Phase | D69: 0 | E69: 0 | F69: 3 | G69: 7 | H69: 5 | I69: 12 | J69: 8 | K69: 9 | L69: 30 | M69: 18 | N69: 16 | O69: 16 | P69: 28 | Q69: 22 | R69: 16 | S69: 7 | T69: 9 | U69: 0 | V69: 2 | W69: 1 | X69: 11 | Y69: 4 | Z69: 3 | AA69: 2 | AB69: 1 | AC69: 1 | AD69: 0 | AE69: 0 | AF69: 0 | AG69: 0 | AH69: 0 | AI69: 1 | AJ69: 1 | AK69: 0 | AL69: 0 | AM69: 0 | AN69: 0 | AO69: 0 | AP69: 0 | AQ69: 0 | AR69: 0 | AS69: 0 | AT69: 0 | AU69: 0 | AV69: 0 | AW69: 0 | AX69: 0 | AY69: 0 | AZ69: 0 | BA69: 0 | BB69: 0 | BC69: 0 | BD69: 0 | BE69: 0 | BF69: 0 | BG69: 0 | BH69: 0 | BI69: 0 | BJ69: 0 | BK69: 0 | BL69: 0 | BM69: 0 | BN69: 0 | BO69: 0 | BP69: 0 | BQ69: 0 | BR69: 0 | BS69: 0 | BT69: 0 | BU69: 0 | BV69: 0 | BW69: 0 | BX69: 0 | BY69: 0 | BZ69: 0 | CA69: 0 | CB69: 0 | CC69: 0 | CD69: 0 | CE69: 0 | CF69: 0 | CG69: 0 | CH69: 0 | CI69: 0 | CJ69: 0 | CK69: 0 | CL69: 0 | CM69: 0 | CN69: 0 | CO69: 0 | CP69: 0 | CQ69: 0 | CR69: 0 | CS69: 0 | CT69: 0 | CU69: 0 | CV69: 0 | CW69: 0 | CX69: 0 | CY69: 0 | CZ69: 0 | DA69: 0 | DB69: 0 | DC69: 0 | DD69: 0 | DE69: 0 | DF69: 0 | DG69: 0 | DH69: 0
C70: Kiosk Mounted ; < = 22kV ; < = 60 kVA ; Single Phase | D70: 0 | E70: 0 | F70: 0 | G70: 0 | H70: 0 | I70: 0 | J70: 0 | K70: 0 | L70: 0 | M70: 0 | N70: 0 | O70: 0 | P70: 0 | Q70: 0 | R70: 0 | S70: 0 | T70: 0 | U70: 0 | V70: 0 | W70: 0 | X70: 0 | Y70: 0 | Z70: 0 | AA70: 0 | AB70: 0 | AC70: 0 | AD70: 0 | AE70: 0 | AF70: 0 | AG70: 0 | AH70: 0 | AI70: 0 | AJ70: 0 | AK70: 0 | AL70: 0 | AM70: 0 | AN70: 0 | AO70: 0 | AP70: 0 | AQ70: 0 | AR70: 0 | AS70: 0 | AT70: 0 | AU70: 0 | AV70: 0 | AW70: 0 | AX70: 0 | AY70: 0 | AZ70: 0 | BA70: 0 | BB70: 0 | BC70: 0 | BD70: 0 | BE70: 0 | BF70: 0 | BG70: 0 | BH70: 0 | BI70: 0 | BJ70: 0 | BK70: 0 | BL70: 0 | BM70: 0 | BN70: 0 | BO70: 0 | BP70: 0 | BQ70: 0 | BR70: 0 | BS70: 0 | BT70: 0 | BU70: 0 | BV70: 0 | BW70: 0 | BX70: 0 | BY70: 0 | BZ70: 0 | CA70: 0 | CB70: 0 | CC70: 0 | CD70: 0 | CE70: 0 | CF70: 0 | CG70: 0 | CH70: 0 | CI70: 0 | CJ70: 0 | CK70: 0 | CL70: 0 | CM70: 0 | CN70: 0 | CO70: 0 | CP70: 0 | CQ70: 0 | CR70: 0 | CS70: 0 | CT70: 0 | CU70: 0 | CV70: 0 | CW70: 0 | CX70: 0 | CY70: 0 | CZ70: 0 | DA70: 0 | DB70: 0 | DC70: 0 | DD70: 0 | DE70: 0 | DF70: 0 | DG70: 0 | DH70: 0
C71: Kiosk Mounted ; < = 22kV ; > 60 kVA and < = 600 kVA ; Single Phase | D71: 0 | E71: 0 | F71: 0 | G71: 0 | H71: 0 | I71: 0 | J71: 0 | K71: 0 | L71: 0 | M71: 0 | N71: 0 | O71: 0 | P71: 0 | Q71: 0 | R71: 0 | S71: 0 | T71: 0 | U71: 0 | V71: 0 | W71: 0 | X71: 0 | Y71: 0 | Z71: 0 | AA71: 0 | AB71: 0 | AC71: 0 | AD71: 0 | AE71: 0 | AF71: 0 | AG71: 0 | AH71: 0 | AI71: 0 | AJ71: 0 | AK71: 0 | AL71: 0 | AM71: 0 | AN71: 0 | AO71: 0 | AP71: 0 | AQ71: 0 | AR71: 0 | AS71: 0 | AT71: 0 | AU71: 0 | AV71: 0 | AW71: 0 | AX71: 0 | AY71: 0 | AZ71: 0 | BA71: 0 | BB71: 0 | BC71: 0 | BD71: 0 | BE71: 0 | BF71: 0 | BG71: 0 | BH71: 0 | BI71: 0 | BJ71: 0 | BK71: 0 | BL71: 0 | BM71: 0 | BN71: 0 | BO71: 0 | BP71: 0 | BQ71: 0 | BR71: 0 | BS71: 0 | BT71: 0 | BU71: 0 | BV71: 0 | BW71: 0 | BX71: 0 | BY71: 0 | BZ71: 0 | CA71: 0 | CB71: 0 | CC71: 0 | CD71: 0 | CE71: 0 | CF71: 0 | CG71: 0 | CH71: 0 | CI71: 0 | CJ71: 0 | CK71: 0 | CL71: 0 | CM71: 0 | CN71: 0 | CO71: 0 | CP71: 0 | CQ71: 0 | CR71: 0 | CS71: 0 | CT71: 0 | CU71: 0 | CV71: 0 | CW71: 0 | CX71: 0 | CY71: 0 | CZ71: 0 | DA71: 0 | DB71: 0 | DC71: 0 | DD71: 0 | DE71: 0 | DF71: 0 | DG71: 0 | DH71: 0
C72: Kiosk Mounted ; < = 22kV ; > 600 kVA ; Single Phase | D72: 0 | E72: 0 | F72: 0 | G72: 0 | H72: 0 | I72: 0 | J72: 0 | K72: 0 | L72: 0 | M72: 0 | N72: 0 | O72: 0 | P72: 0 | Q72: 0 | R72: 0 | S72: 0 | T72: 0 | U72: 0 | V72: 0 | W72: 0 | X72: 0 | Y72: 0 | Z72: 0 | AA72: 0 | AB72: 0 | AC72: 0 | AD72: 0 | AE72: 0 | AF72: 0 | AG72: 0 | AH72: 0 | AI72: 0 | AJ72: 0 | AK72: 0 | AL72: 0 | AM72: 0 | AN72: 0 | AO72: 0 | AP72: 0 | AQ72: 0 | AR72: 0 | AS72: 0 | AT72: 0 | AU72: 0 | AV72: 0 | AW72: 0 | AX72: 0 | AY72: 0 | AZ72: 0 | BA72: 0 | BB72: 0 | BC72: 0 | BD72: 0 | BE72: 0 | BF72: 0 | BG72: 0 | BH72: 0 | BI72: 0 | BJ72: 0 | BK72: 0 | BL72: 0 | BM72: 0 | BN72: 0 | BO72: 0 | BP72: 0 | BQ72: 0 | BR72: 0 | BS72: 0 | BT72: 0 | BU72: 0 | BV72: 0 | BW72: 0 | BX72: 0 | BY72: 0 | BZ72: 0 | CA72: 0 | CB72: 0 | CC72: 0 | CD72: 0 | CE72: 0 | CF72: 0 | CG72: 0 | CH72: 0 | CI72: 0 | CJ72: 0 | CK72: 0 | CL72: 0 | CM72: 0 | CN72: 0 | CO72: 0 | CP72: 0 | CQ72: 0 | CR72: 0 | CS72: 0 | CT72: 0 | CU72: 0 | CV72: 0 | CW72: 0 | CX72: 0 | CY72: 0 | CZ72: 0 | DA72: 0 | DB72: 0 | DC72: 0 | DD72: 0 | DE72: 0 | DF72: 0 | DG72: 0 | DH72: 0
C73: Kiosk Mounted ; < = 22kV ; < = 60 kVA ; Multiple Phase | D73: 0 | E73: 0 | F73: 0 | G73: 0 | H73: 0 | I73: 0 | J73: 0 | K73: 0 | L73: 0 | M73: 0 | N73: 0 | O73: 0 | P73: 0 | Q73: 0 | R73: 0 | S73: 0 | T73: 0 | U73: 0 | V73: 0 | W73: 0 | X73: 0 | Y73: 0 | Z73: 0 | AA73: 0 | AB73: 0 | AC73: 0 | AD73: 0 | AE73: 0 | AF73: 0 | AG73: 0 | AH73: 0 | AI73: 0 | AJ73: 0 | AK73: 0 | AL73: 0 | AM73: 0 | AN73: 0 | AO73: 0 | AP73: 0 | AQ73: 0 | AR73: 0 | AS73: 0 | AT73: 0 | AU73: 0 | AV73: 0 | AW73: 0 | AX73: 0 | AY73: 0 | AZ73: 0 | BA73: 0 | BB73: 0 | BC73: 0 | BD73: 0 | BE73: 0 | BF73: 0 | BG73: 0 | BH73: 0 | BI73: 0 | BJ73: 0 | BK73: 0 | BL73: 0 | BM73: 0 | BN73: 0 | BO73: 0 | BP73: 0 | BQ73: 0 | BR73: 0 | BS73: 0 | BT73: 0 | BU73: 0 | BV73: 0 | BW73: 0 | BX73: 0 | BY73: 0 | BZ73: 0 | CA73: 0 | CB73: 0 | CC73: 0 | CD73: 0 | CE73: 0 | CF73: 0 | CG73: 0 | CH73: 0 | CI73: 0 | CJ73: 0 | CK73: 0 | CL73: 0 | CM73: 0 | CN73: 0 | CO73: 0 | CP73: 0 | CQ73: 0 | CR73: 0 | CS73: 0 | CT73: 0 | CU73: 0 | CV73: 0 | CW73: 0 | CX73: 0 | CY73: 0 | CZ73: 0 | DA73: 0 | DB73: 0 | DC73: 0 | DD73: 0 | DE73: 0 | DF73: 0 | DG73: 0 | DH73: 0
C74: Kiosk Mounted ; < = 22kV ; > 60 kVA and < = 600 kVA ; Multiple Phase | D74: 40 | E74: 6.32 | F74: 24 | G74: 412 | H74: 493 | I74: 432 | J74: 328 | K74: 198 | L74: 183 | M74: 401 | N74: 548 | O74: 652 | P74: 732 | Q74: 593 | R74: 875 | S74: 319 | T74: 411 | U74: 281 | V74: 173 | W74: 171 | X74: 117 | Y74: 115 | Z74: 201 | AA74: 103 | AB74: 140 | AC74: 118 | AD74: 126 | AE74: 68 | AF74: 86 | AG74: 98 | AH74: 149 | AI74: 15 | AJ74: 282 | AK74: 7 | AL74: 157 | AM74: 1 | AN74: 5 | AO74: 159 | AP74: 84 | AQ74: 49 | AR74: 93 | AS74: 41 | AT74: 2 | AU74: 7 | AV74: 23 | AW74: 17 | AX74: 8 | AY74: 2 | AZ74: 11 | BA74: 11 | BB74: 7 | BC74: 6 | BD74: 1 | BE74: 0 | BF74: 0 | BG74: 0 | BH74: 0 | BI74: 0 | BJ74: 0 | BK74: 0 | BL74: 0 | BM74: 0 | BN74: 0 | BO74: 0 | BP74: 0 | BQ74: 0 | BR74: 0 | BS74: 0 | BT74: 0 | BU74: 0 | BV74: 0 | BW74: 0 | BX74: 0 | BY74: 0 | BZ74: 0 | CA74: 0 | CB74: 0 | CC74: 0 | CD74: 0 | CE74: 0 | CF74: 0 | CG74: 0 | CH74: 0 | CI74: 0 | CJ74: 0 | CK74: 0 | CL74: 0 | CM74: 0 | CN74: 0 | CO74: 0 | CP74: 0 | CQ74: 0 | CR74: 0 | CS74: 0 | CT74: 0 | CU74: 0 | CV74: 0 | CW74: 0 | CX74: 0 | CY74: 0 | CZ74: 0 | DA74: 0 | DB74: 0 | DC74: 0 | DD74: 0 | DE74: 0 | DF74: 0 | DG74: 0 | DH74: 0
C75: Kiosk Mounted ; < = 22kV ; > 600 kVA ; Multiple Phase | D75: 40 | E75: 6.32 | F75: 26 | G75: 155 | H75: 134 | I75: 192 | J75: 111 | K75: 108 | L75: 84 | M75: 168 | N75: 198 | O75: 258 | P75: 257 | Q75: 262 | R75: 355 | S75: 83 | T75: 131 | U75: 74 | V75: 50 | W75: 20 | X75: 28 | Y75: 6 | Z75: 41 | AA75: 26 | AB75: 20 | AC75: 27 | AD75: 11 | AE75: 8 | AF75: 3 | AG75: 0 | AH75: 0 | AI75: 0 | AJ75: 0 | AK75: 0 | AL75: 0 | AM75: 0 | AN75: 0 | AO75: 0 | AP75: 0 | AQ75: 0 | AR75: 0 | AS75: 0 | AT75: 0 | AU75: 0 | AV75: 0 | AW75: 0 | AX75: 0 | AY75: 0 | AZ75: 0 | BA75: 0 | BB75: 0 | BC75: 0 | BD75: 0 | BE75: 0 | BF75: 0 | BG75: 0 | BH75: 0 | BI75: 0 | BJ75: 0 | BK75: 0 | BL75: 0 | BM75: 0 | BN75: 0 | BO75: 0 | BP75: 0 | BQ75: 0 | BR75: 0 | BS75: 0 | BT75: 0 | BU75: 0 | BV75: 0 | BW75: 0 | BX75: 0 | BY75: 0 | BZ75: 0 | CA75: 0 | CB75: 0 | CC75: 0 | CD75: 0 | CE75: 0 | CF75: 0 | CG75: 0 | CH75: 0 | CI75: 0 | CJ75: 0 | CK75: 0 | CL75: 0 | CM75: 0 | CN75: 0 | CO75: 0 | CP75: 0 | CQ75: 0 | CR75: 0 | CS75: 0 | CT75: 0 | CU75: 0 | CV75: 0 | CW75: 0 | CX75: 0 | CY75: 0 | CZ75: 0 | DA75: 0 | DB75: 0 | DC75: 0 | DD75: 0 | DE75: 0 | DF75: 0 | DG75: 0 | DH75: 0
C76: Ground Outdoor / Indoor Chamber Mounted; ˂ 22 kV ; < = 60 kVA ; Single Phase | D76: 0 | E76: 0 | F76: 0 | G76: 0 | H76: 0 | I76: 0 | J76: 0 | K76: 0 | L76: 0 | M76: 0 | N76: 0 | O76: 0 | P76: 0 | Q76: 0 | R76: 0 | S76: 0 | T76: 0 | U76: 0 | V76: 0 | W76: 0 | X76: 0 | Y76: 0 | Z76: 0 | AA76: 0 | AB76: 0 | AC76: 0 | AD76: 0 | AE76: 0 | AF76: 0 | AG76: 0 | AH76: 0 | AI76: 0 | AJ76: 0 | AK76: 0 | AL76: 0 | AM76: 0 | AN76: 0 | AO76: 0 | AP76: 0 | AQ76: 0 | AR76: 0 | AS76: 0 | AT76: 0 | AU76: 0 | AV76: 0 | AW76: 0 | AX76: 0 | AY76: 0 | AZ76: 0 | BA76: 0 | BB76: 0 | BC76: 0 | BD76: 0 | BE76: 0 | BF76: 0 | BG76: 0 | BH76: 0 | BI76: 0 | BJ76: 0 | BK76: 0 | BL76: 0 | BM76: 0 | BN76: 0 | BO76: 0 | BP76: 0 | BQ76: 0 | BR76: 0 | BS76: 0 | BT76: 0 | BU76: 0 | BV76: 0 | BW76: 0 | BX76: 0 | BY76: 0 | BZ76: 0 | CA76: 0 | CB76: 0 | CC76: 0 | CD76: 0 | CE76: 0 | CF76: 0 | CG76: 0 | CH76: 0 | CI76: 0 | CJ76: 0 | CK76: 0 | CL76: 0 | CM76: 0 | CN76: 0 | CO76: 0 | CP76: 0 | CQ76: 0 | CR76: 0 | CS76: 0 | CT76: 0 | CU76: 0 | CV76: 0 | CW76: 0 | CX76: 0 | CY76: 0 | CZ76: 0 | DA76: 0 | DB76: 0 | DC76: 0 | DD76: 0 | DE76: 0 | DF76: 0 | DG76: 0 | DH76: 0
C77: Ground Outdoor / Indoor Chamber Mounted; ˂ 22 kV ; > 60 kVA and < = 600 kVA ; Single Phase | D77: 0 | E77: 0 | F77: 0 | G77: 0 | H77: 0 | I77: 0 | J77: 0 | K77: 0 | L77: 0 | M77: 0 | N77: 0 | O77: 0 | P77: 0 | Q77: 0 | R77: 0 | S77: 0 | T77: 0 | U77: 0 | V77: 0 | W77: 0 | X77: 0 | Y77: 0 | Z77: 0 | AA77: 0 | AB77: 0 | AC77: 0 | AD77: 0 | AE77: 0 | AF77: 0 | AG77: 0 | AH77: 0 | AI77: 0 | AJ77: 0 | AK77: 0 | AL77: 0 | AM77: 0 | AN77: 0 | AO77: 0 | AP77: 0 | AQ77: 0 | AR77: 0 | AS77: 0 | AT77: 0 | AU77: 0 | AV77: 0 | AW77: 0 | AX77: 0 | AY77: 0 | AZ77: 0 | BA77: 0 | BB77: 0 | BC77: 0 | BD77: 0 | BE77: 0 | BF77: 0 | BG77: 0 | BH77: 0 | BI77: 0 | BJ77: 0 | BK77: 0 | BL77: 0 | BM77: 0 | BN77: 0 | BO77: 0 | BP77: 0 | BQ77: 0 | BR77: 0 | BS77: 0 | BT77: 0 | BU77: 0 | BV77: 0 | BW77: 0 | BX77: 0 | BY77: 0 | BZ77: 0 | CA77: 0 | CB77: 0 | CC77: 0 | CD77: 0 | CE77: 0 | CF77: 0 | CG77: 0 | CH77: 0 | CI77: 0 | CJ77: 0 | CK77: 0 | CL77: 0 | CM77: 0 | CN77: 0 | CO77: 0 | CP77: 0 | CQ77: 0 | CR77: 0 | CS77: 0 | CT77: 0 | CU77: 0 | CV77: 0 | CW77: 0 | CX77: 0 | CY77: 0 | CZ77: 0 | DA77: 0 | DB77: 0 | DC77: 0 | DD77: 0 | DE77: 0 | DF77: 0 | DG77: 0 | DH77: 0
C78: Ground Outdoor / Indoor Chamber Mounted; ˂ 22 kV ; > 600 kVA ; Single Phase | D78: 0 | E78: 0 | F78: 0 | G78: 0 | H78: 0 | I78: 0 | J78: 0 | K78: 0 | L78: 0 | M78: 0 | N78: 0 | O78: 0 | P78: 0 | Q78: 0 | R78: 0 | S78: 0 | T78: 0 | U78: 0 | V78: 0 | W78: 0 | X78: 0 | Y78: 0 | Z78: 0 | AA78: 0 | AB78: 0 | AC78: 0 | AD78: 0 | AE78: 0 | AF78: 0 | AG78: 0 | AH78: 0 | AI78: 0 | AJ78: 0 | AK78: 0 | AL78: 0 | AM78: 0 | AN78: 0 | AO78: 0 | AP78: 0 | AQ78: 0 | AR78: 0 | AS78: 0 | AT78: 0 | AU78: 0 | AV78: 0 | AW78: 0 | AX78: 0 | AY78: 0 | AZ78: 0 | BA78: 0 | BB78: 0 | BC78: 0 | BD78: 0 | BE78: 0 | BF78: 0 | BG78: 0 | BH78: 0 | BI78: 0 | BJ78: 0 | BK78: 0 | BL78: 0 | BM78: 0 | BN78: 0 | BO78: 0 | BP78: 0 | BQ78: 0 | BR78: 0 | BS78: 0 | BT78: 0 | BU78: 0 | BV78: 0 | BW78: 0 | BX78: 0 | BY78: 0 | BZ78: 0 | CA78: 0 | CB78: 0 | CC78: 0 | CD78: 0 | CE78: 0 | CF78: 0 | CG78: 0 | CH78: 0 | CI78: 0 | CJ78: 0 | CK78: 0 | CL78: 0 | CM78: 0 | CN78: 0 | CO78: 0 | CP78: 0 | CQ78: 0 | CR78: 0 | CS78: 0 | CT78: 0 | CU78: 0 | CV78: 0 | CW78: 0 | CX78: 0 | CY78: 0 | CZ78: 0 | DA78: 0 | DB78: 0 | DC78: 0 | DD78: 0 | DE78: 0 | DF78: 0 | DG78: 0 | DH78: 0
C79: Ground Outdoor / Indoor Chamber Mounted; ˂ 22 kV ; < = 60 kVA ; Multiple Phase | D79: 40 | E79: 6.32 | F79: 0 | G79: 0 | H79: 0 | I79: 0 | J79: 0 | K79: 0 | L79: 0 | M79: 0 | N79: 0 | O79: 0 | P79: 0 | Q79: 0 | R79: 0 | S79: 0 | T79: 0 | U79: 0 | V79: 0 | W79: 0 | X79: 0 | Y79: 0 | Z79: 0 | AA79: 0 | AB79: 0 | AC79: 0 | AD79: 0 | AE79: 0 | AF79: 0 | AG79: 0 | AH79: 0 | AI79: 0 | AJ79: 0 | AK79: 0 | AL79: 0 | AM79: 0 | AN79: 0 | AO79: 0 | AP79: 0 | AQ79: 0 | AR79: 0 | AS79: 0 | AT79: 0 | AU79: 0 | AV79: 0 | AW79: 0 | AX79: 0 | AY79: 0 | AZ79: 0 | BA79: 0 | BB79: 0 | BC79: 0 | BD79: 0 | BE79: 1 | BF79: 0 | BG79: 0 | BH79: 0 | BI79: 0 | BJ79: 0 | BK79: 0 | BL79: 0 | BM79: 0 | BN79: 0 | BO79: 0 | BP79: 0 | BQ79: 0 | BR79: 0 | BS79: 0 | BT79: 0 | BU79: 0 | BV79: 0 | BW79: 0 | BX79: 0 | BY79: 0 | BZ79: 0 | CA79: 0 | CB79: 0 | CC79: 0 | CD79: 0 | CE79: 0 | CF79: 0 | CG79: 0 | CH79: 0 | CI79: 0 | CJ79: 0 | CK79: 0 | CL79: 0 | CM79: 0 | CN79: 0 | CO79: 0 | CP79: 0 | CQ79: 0 | CR79: 0 | CS79: 0 | CT79: 0 | CU79: 0 | CV79: 0 | CW79: 0 | CX79: 0 | CY79: 0 | CZ79: 0 | DA79: 0 | DB79: 0 | DC79: 0 | DD79: 0 | DE79: 0 | DF79: 0 | DG79: 0 | DH79: 0
C80: Ground Outdoor / Indoor Chamber Mounted; ˂ 22 kV ; > 60 kVA and < = 600 kVA ; Multiple Phase | D80: 40 | E80: 6.32 | F80: 0 | G80: 2 | H80: 3 | I80: 9 | J80: 4 | K80: 16 | L80: 8 | M80: 9 | N80: 8 | O80: 13 | P80: 9 | Q80: 4 | R80: 26 | S80: 7 | T80: 7 | U80: 3 | V80: 8 | W80: 1 | X80: 15 | Y80: 5 | Z80: 4 | AA80: 0 | AB80: 2 | AC80: 0 | AD80: 12 | AE80: 6 | AF80: 0 | AG80: 0 | AH80: 5 | AI80: 3 | AJ80: 0 | AK80: 33 | AL80: 25 | AM80: 3 | AN80: 8 | AO80: 50 | AP80: 4 | AQ80: 39 | AR80: 18 | AS80: 13 | AT80: 8 | AU80: 1 | AV80: 1 | AW80: 0 | AX80: 6 | AY80: 2 | AZ80: 1 | BA80: 20 | BB80: 5 | BC80: 20 | BD80: 0 | BE80: 18 | BF80: 30 | BG80: 12 | BH80: 9 | BI80: 13 | BJ80: 8 | BK80: 2 | BL80: 5 | BM80: 2 | BN80: 1 | BO80: 1 | BP80: 0 | BQ80: 3 | BR80: 0 | BS80: 1 | BT80: 10 | BU80: 7 | BV80: 0 | BW80: 6 | BX80: 7 | BY80: 6 | BZ80: 0 | CA80: 2 | CB80: 1 | CC80: 0 | CD80: 1 | CE80: 0 | CF80: 3 | CG80: 0 | CH80: 3 | CI80: 0 | CJ80: 2 | CK80: 0 | CL80: 0 | CM80: 0 | CN80: 0 | CO80: 0 | CP80: 0 | CQ80: 0 | CR80: 0 | CS80: 0 | CT80: 0 | CU80: 0 | CV80: 0 | CW80: 0 | CX80: 0 | CY80: 0 | CZ80: 0 | DA80: 0 | DB80: 0 | DC80: 0 | DD80: 0 | DE80: 0 | DF80: 0 | DG80: 0 | DH80: 0
C81: Ground Outdoor / Indoor Chamber Mounted; ˂ 22 kV ; > 600 kVA ; Multiple Phase | D81: 40 | E81: 6.32 | F81: 1 | G81: 31 | H81: 89 | I81: 77 | J81: 101 | K81: 64 | L81: 64 | M81: 114 | N81: 92 | O81: 128 | P81: 241 | Q81: 204 | R81: 191 | S81: 115 | T81: 118 | U81: 70 | V81: 82 | W81: 56 | X81: 91 | Y81: 44 | Z81: 91 | AA81: 11 | AB81: 47 | AC81: 57 | AD81: 55 | AE81: 32 | AF81: 12 | AG81: 25 | AH81: 7 | AI81: 63 | AJ81: 27 | AK81: 165 | AL81: 103 | AM81: 94 | AN81: 35 | AO81: 94 | AP81: 29 | AQ81: 77 | AR81: 47 | AS81: 48 | AT81: 15 | AU81: 7 | AV81: 8 | AW81: 22 | AX81: 8 | AY81: 0 | AZ81: 10 | BA81: 10 | BB81: 2 | BC81: 8 | BD81: 0 | BE81: 4 | BF81: 10 | BG81: 7 | BH81: 5 | BI81: 1 | BJ81: 1 | BK81: 5 | BL81: 0 | BM81: 2 | BN81: 1 | BO81: 0 | BP81: 2 | BQ81: 1 | BR81: 0 | BS81: 0 | BT81: 0 | BU81: 3 | BV81: 2 | BW81: 0 | BX81: 1 | BY81: 0 | BZ81: 0 | CA81: 0 | CB81: 0 | CC81: 1 | CD81: 0 | CE81: 0 | CF81: 0 | CG81: 0 | CH81: 0 | CI81: 0 | CJ81: 0 | CK81: 0 | CL81: 0 | CM81: 0 | CN81: 0 | CO81: 0 | CP81: 0 | CQ81: 0 | CR81: 0 | CS81: 0 | CT81: 0 | CU81: 0 | CV81: 0 | CW81: 0 | CX81: 0 | CY81: 0 | CZ81: 0 | DA81: 0 | DB81: 0 | DC81: 0 | DD81: 0 | DE81: 0 | DF81: 0 | DG81: 0 | DH81: 0
C82: Ground Outdoor / Indoor Chamber Mounted; > = 22 kV & < = 33 kV ; < = 15 MVA | D82: 60 | E82: 7.75 | F82: 0 | G82: 0 | H82: 0 | I82: 0 | J82: 0 | K82: 3 | L82: 1 | M82: 2 | N82: 14 | O82: 10 | P82: 2 | Q82: 2 | R82: 4 | S82: 7 | T82: 11 | U82: 6 | V82: 13 | W82: 11 | X82: 9 | Y82: 4 | Z82: 1 | AA82: 1 | AB82: 2 | AC82: 4 | AD82: 0 | AE82: 1 | AF82: 0 | AG82: 0 | AH82: 4 | AI82: 1 | AJ82: 3 | AK82: 0 | AL82: 2 | AM82: 0 | AN82: 1 | AO82: 3 | AP82: 2 | AQ82: 5 | AR82: 0 | AS82: 1 | AT82: 0 | AU82: 2 | AV82: 12 | AW82: 0 | AX82: 1 | AY82: 7 | AZ82: 2 | BA82: 5 | BB82: 2 | BC82: 1 | BD82: 0 | BE82: 11 | BF82: 4 | BG82: 3 | BH82: 5 | BI82: 2 | BJ82: 5 | BK82: 0 | BL82: 3 | BM82: 0 | BN82: 0 | BO82: 1 | BP82: 0 | BQ82: 0 | BR82: 0 | BS82: 0 | BT82: 0 | BU82: 0 | BV82: 0 | BW82: 2 | BX82: 0 | BY82: 4 | BZ82: 0 | CA82: 0 | CB82: 1 | CC82: 0 | CD82: 0 | CE82: 0 | CF82: 0 | CG82: 0 | CH82: 0 | CI82: 0 | CJ82: 0 | CK82: 0 | CL82: 0 | CM82: 0 | CN82: 0 | CO82: 0 | CP82: 0 | CQ82: 0 | CR82: 0 | CS82: 0 | CT82: 0 | CU82: 0 | CV82: 0 | CW82: 0 | CX82: 0 | CY82: 0 | CZ82: 0 | DA82: 0 | DB82: 0 | DC82: 0 | DD82: 0 | DE82: 0 | DF82: 0 | DG82: 0 | DH82: 0
C83: Ground Outdoor / Indoor Chamber Mounted; > = 22 kV & < = 33 kV ; > 15 MVA and < = 40 MVA | D83: 60 | E83: 7.75 | F83: 0 | G83: 0 | H83: 7 | I83: 2 | J83: 4 | K83: 11 | L83: 10 | M83: 15 | N83: 24 | O83: 22 | P83: 15 | Q83: 11 | R83: 18 | S83: 35 | T83: 23 | U83: 2 | V83: 4 | W83: 2 | X83: 3 | Y83: 6 | Z83: 0 | AA83: 2 | AB83: 0 | AC83: 4 | AD83: 2 | AE83: 0 | AF83: 0 | AG83: 2 | AH83: 0 | AI83: 0 | AJ83: 0 | AK83: 0 | AL83: 0 | AM83: 1 | AN83: 5 | AO83: 2 | AP83: 0 | AQ83: 0 | AR83: 0 | AS83: 0 | AT83: 1 | AU83: 7 | AV83: 0 | AW83: 2 | AX83: 5 | AY83: 0 | AZ83: 0 | BA83: 0 | BB83: 0 | BC83: 0 | BD83: 0 | BE83: 0 | BF83: 0 | BG83: 0 | BH83: 0 | BI83: 0 | BJ83: 0 | BK83: 0 | BL83: 0 | BM83: 0 | BN83: 0 | BO83: 0 | BP83: 0 | BQ83: 0 | BR83: 0 | BS83: 0 | BT83: 0 | BU83: 0 | BV83: 0 | BW83: 0 | BX83: 0 | BY83: 0 | BZ83: 0 | CA83: 0 | CB83: 0 | CC83: 0 | CD83: 0 | CE83: 0 | CF83: 0 | CG83: 0 | CH83: 0 | CI83: 0 | CJ83: 0 | CK83: 0 | CL83: 0 | CM83: 0 | CN83: 0 | CO83: 0 | CP83: 0 | CQ83: 0 | CR83: 0 | CS83: 0 | CT83: 0 | CU83: 0 | CV83: 0 | CW83: 0 | CX83: 0 | CY83: 0 | CZ83: 0 | DA83: 0 | DB83: 0 | DC83: 0 | DD83: 0 | DE83: 0 | DF83: 0 | DG83: 0 | DH83: 0
C84: Ground Outdoor / Indoor Chamber Mounted; > = 22 kV & < = 33 kV ; > 40 MVA | D84: 0 | E84: 0 | F84: 0 | G84: 0 | H84: 0 | I84: 0 | J84: 0 | K84: 0 | L84: 0 | M84: 0 | N84: 0 | O84: 0 | P84: 0 | Q84: 0 | R84: 0 | S84: 0 | T84: 0 | U84: 0 | V84: 0 | W84: 0 | X84: 0 | Y84: 0 | Z84: 0 | AA84: 0 | AB84: 0 | AC84: 0 | AD84: 0 | AE84: 0 | AF84: 0 | AG84: 0 | AH84: 0 | AI84: 0 | AJ84: 0 | AK84: 0 | AL84: 0 | AM84: 0 | AN84: 0 | AO84: 0 | AP84: 0 | AQ84: 0 | AR84: 0 | AS84: 0 | AT84: 0 | AU84: 0 | AV84: 0 | AW84: 0 | AX84: 0 | AY84: 0 | AZ84: 0 | BA84: 0 | BB84: 0 | BC84: 0 | BD84: 0 | BE84: 0 | BF84: 0 | BG84: 0 | BH84: 0 | BI84: 0 | BJ84: 0 | BK84: 0 | BL84: 0 | BM84: 0 | BN84: 0 | BO84: 0 | BP84: 0 | BQ84: 0 | BR84: 0 | BS84: 0 | BT84: 0 | BU84: 0 | BV84: 0 | BW84: 0 | BX84: 0 | BY84: 0 | BZ84: 0 | CA84: 0 | CB84: 0 | CC84: 0 | CD84: 0 | CE84: 0 | CF84: 0 | CG84: 0 | CH84: 0 | CI84: 0 | CJ84: 0 | CK84: 0 | CL84: 0 | CM84: 0 | CN84: 0 | CO84: 0 | CP84: 0 | CQ84: 0 | CR84: 0 | CS84: 0 | CT84: 0 | CU84: 0 | CV84: 0 | CW84: 0 | CX84: 0 | CY84: 0 | CZ84: 0 | DA84: 0 | DB84: 0 | DC84: 0 | DD84: 0 | DE84: 0 | DF84: 0 | DG84: 0 | DH84: 0
C85: Ground Outdoor / Indoor Chamber Mounted; > 33 kV & < = 66 kV ; < = 15 MVA | D85: 0 | E85: 0 | F85: 0 | G85: 0 | H85: 0 | I85: 0 | J85: 0 | K85: 0 | L85: 0 | M85: 0 | N85: 0 | O85: 0 | P85: 0 | Q85: 0 | R85: 0 | S85: 0 | T85: 0 | U85: 0 | V85: 0 | W85: 0 | X85: 0 | Y85: 0 | Z85: 0 | AA85: 0 | AB85: 0 | AC85: 0 | AD85: 0 | AE85: 0 | AF85: 0 | AG85: 0 | AH85: 0 | AI85: 0 | AJ85: 0 | AK85: 0 | AL85: 0 | AM85: 0 | AN85: 0 | AO85: 0 | AP85: 0 | AQ85: 0 | AR85: 0 | AS85: 0 | AT85: 0 | AU85: 0 | AV85: 0 | AW85: 0 | AX85: 0 | AY85: 0 | AZ85: 0 | BA85: 0 | BB85: 0 | BC85: 0 | BD85: 0 | BE85: 0 | BF85: 0 | BG85: 0 | BH85: 0 | BI85: 0 | BJ85: 0 | BK85: 0 | BL85: 0 | BM85: 0 | BN85: 0 | BO85: 0 | BP85: 0 | BQ85: 0 | BR85: 0 | BS85: 0 | BT85: 0 | BU85: 0 | BV85: 0 | BW85: 0 | BX85: 0 | BY85: 0 | BZ85: 0 | CA85: 0 | CB85: 0 | CC85: 0 | CD85: 0 | CE85: 0 | CF85: 0 | CG85: 0 | CH85: 0 | CI85: 0 | CJ85: 0 | CK85: 0 | CL85: 0 | CM85: 0 | CN85: 0 | CO85: 0 | CP85: 0 | CQ85: 0 | CR85: 0 | CS85: 0 | CT85: 0 | CU85: 0 | CV85: 0 | CW85: 0 | CX85: 0 | CY85: 0 | CZ85: 0 | DA85: 0 | DB85: 0 | DC85: 0 | DD85: 0 | DE85: 0 | DF85: 0 | DG85: 0 | DH85: 0
C86: Ground Outdoor / Indoor Chamber Mounted; > 33 kV & < = 66 kV ; > 15 MVA and < = 40 MVA | D86: 60 | E86: 7.75 | F86: 0 | G86: 0 | H86: 0 | I86: 0 | J86: 0 | K86: 0 | L86: 0 | M86: 0 | N86: 0 | O86: 0 | P86: 0 | Q86: 0 | R86: 0 | S86: 0 | T86: 0 | U86: 1 | V86: 0 | W86: 0 | X86: 0 | Y86: 0 | Z86: 0 | AA86: 0 | AB86: 0 | AC86: 0 | AD86: 0 | AE86: 0 | AF86: 0 | AG86: 0 | AH86: 0 | AI86: 0 | AJ86: 0 | AK86: 0 | AL86: 0 | AM86: 0 | AN86: 0 | AO86: 0 | AP86: 0 | AQ86: 0 | AR86: 0 | AS86: 0 | AT86: 0 | AU86: 0 | AV86: 0 | AW86: 0 | AX86: 0 | AY86: 0 | AZ86: 0 | BA86: 0 | BB86: 0 | BC86: 0 | BD86: 0 | BE86: 0 | BF86: 0 | BG86: 0 | BH86: 0 | BI86: 0 | BJ86: 0 | BK86: 0 | BL86: 0 | BM86: 0 | BN86: 0 | BO86: 0 | BP86: 0 | BQ86: 0 | BR86: 0 | BS86: 0 | BT86: 0 | BU86: 0 | BV86: 0 | BW86: 0 | BX86: 0 | BY86: 0 | BZ86: 0 | CA86: 0 | CB86: 0 | CC86: 0 | CD86: 0 | CE86: 0 | CF86: 0 | CG86: 0 | CH86: 0 | CI86: 0 | CJ86: 0 | CK86: 0 | CL86: 0 | CM86: 0 | CN86: 0 | CO86: 0 | CP86: 0 | CQ86: 0 | CR86: 0 | CS86: 0 | CT86: 0 | CU86: 0 | CV86: 0 | CW86: 0 | CX86: 0 | CY86: 0 | CZ86: 0 | DA86: 0 | DB86: 0 | DC86: 0 | DD86: 0 | DE86: 0 | DF86: 0 | DG86: 0 | DH86: 0
C87: Ground Outdoor / Indoor Chamber Mounted; > 33 kV & < = 66 kV ; > 40 MVA | D87: 0 | E87: 0 | F87: 0 | G87: 0 | H87: 0 | I87: 0 | J87: 0 | K87: 0 | L87: 0 | M87: 0 | N87: 0 | O87: 0 | P87: 0 | Q87: 0 | R87: 0 | S87: 0 | T87: 0 | U87: 0 | V87: 0 | W87: 0 | X87: 0 | Y87: 0 | Z87: 0 | AA87: 0 | AB87: 0 | AC87: 0 | AD87: 0 | AE87: 0 | AF87: 0 | AG87: 0 | AH87: 0 | AI87: 0 | AJ87: 0 | AK87: 0 | AL87: 0 | AM87: 0 | AN87: 0 | AO87: 0 | AP87: 0 | AQ87: 0 | AR87: 0 | AS87: 0 | AT87: 0 | AU87: 0 | AV87: 0 | AW87: 0 | AX87: 0 | AY87: 0 | AZ87: 0 | BA87: 0 | BB87: 0 | BC87: 0 | BD87: 0 | BE87: 0 | BF87: 0 | BG87: 0 | BH87: 0 | BI87: 0 | BJ87: 0 | BK87: 0 | BL87: 0 | BM87: 0 | BN87: 0 | BO87: 0 | BP87: 0 | BQ87: 0 | BR87: 0 | BS87: 0 | BT87: 0 | BU87: 0 | BV87: 0 | BW87: 0 | BX87: 0 | BY87: 0 | BZ87: 0 | CA87: 0 | CB87: 0 | CC87: 0 | CD87: 0 | CE87: 0 | CF87: 0 | CG87: 0 | CH87: 0 | CI87: 0 | CJ87: 0 | CK87: 0 | CL87: 0 | CM87: 0 | CN87: 0 | CO87: 0 | CP87: 0 | CQ87: 0 | CR87: 0 | CS87: 0 | CT87: 0 | CU87: 0 | CV87: 0 | CW87: 0 | CX87: 0 | CY87: 0 | CZ87: 0 | DA87: 0 | DB87: 0 | DC87: 0 | DD87: 0 | DE87: 0 | DF87: 0 | DG87: 0 | DH87: 0
C88: Ground Outdoor / Indoor Chamber Mounted; > 66 kV & < = 132 kV ; < = 100 MVA | D88: 60 | E88: 7.75 | F88: 0 | G88: 0 | H88: 0 | I88: 0 | J88: 0 | K88: 0 | L88: 6 | M88: 12 | N88: 8 | O88: 6 | P88: 5 | Q88: 6 | R88: 16 | S88: 14 | T88: 6 | U88: 1 | V88: 8 | W88: 4 | X88: 1 | Y88: 5 | Z88: 2 | AA88: 0 | AB88: 0 | AC88: 2 | AD88: 0 | AE88: 0 | AF88: 0 | AG88: 0 | AH88: 3 | AI88: 0 | AJ88: 1 | AK88: 0 | AL88: 3 | AM88: 0 | AN88: 6 | AO88: 3 | AP88: 0 | AQ88: 7 | AR88: 0 | AS88: 0 | AT88: 2 | AU88: 2 | AV88: 2 | AW88: 2 | AX88: 0 | AY88: 0 | AZ88: 0 | BA88: 2 | BB88: 0 | BC88: 0 | BD88: 0 | BE88: 0 | BF88: 0 | BG88: 0 | BH88: 0 | BI88: 0 | BJ88: 1 | BK88: 0 | BL88: 0 | BM88: 0 | BN88: 0 | BO88: 0 | BP88: 0 | BQ88: 0 | BR88: 0 | BS88: 0 | BT88: 0 | BU88: 0 | BV88: 0 | BW88: 0 | BX88: 0 | BY88: 0 | BZ88: 0 | CA88: 0 | CB88: 0 | CC88: 0 | CD88: 0 | CE88: 0 | CF88: 0 | CG88: 0 | CH88: 0 | CI88: 0 | CJ88: 0 | CK88: 0 | CL88: 0 | CM88: 0 | CN88: 0 | CO88: 0 | CP88: 0 | CQ88: 0 | CR88: 0 | CS88: 0 | CT88: 0 | CU88: 0 | CV88: 0 | CW88: 0 | CX88: 0 | CY88: 0 | CZ88: 0 | DA88: 0 | DB88: 0 | DC88: 0 | DD88: 0 | DE88: 0 | DF88: 0 | DG88: 0 | DH88: 0
C89: Ground Outdoor / Indoor Chamber Mounted; > 66 kV & < = 132 kV ; > 100 MVA | D89: 60 | E89: 7.75 | F89: 0 | G89: 0 | H89: 0 | I89: 0 | J89: 0 | K89: 0 | L89: 1 | M89: 0 | N89: 0 | O89: 1 | P89: 2 | Q89: 0 | R89: 0 | S89: 0 | T89: 1 | U89: 0 | V89: 0 | W89: 0 | X89: 1 | Y89: 1 | Z89: 0 | AA89: 0 | AB89: 0 | AC89: 0 | AD89: 0 | AE89: 0 | AF89: 0 | AG89: 0 | AH89: 0 | AI89: 0 | AJ89: 0 | AK89: 0 | AL89: 0 | AM89: 0 | AN89: 0 | AO89: 0 | AP89: 0 | AQ89: 0 | AR89: 0 | AS89: 0 | AT89: 0 | AU89: 0 | AV89: 0 | AW89: 0 | AX89: 0 | AY89: 0 | AZ89: 0 | BA89: 0 | BB89: 0 | BC89: 0 | BD89: 0 | BE89: 0 | BF89: 0 | BG89: 0 | BH89: 0 | BI89: 0 | BJ89: 0 | BK89: 0 | BL89: 0 | BM89: 0 | BN89: 0 | BO89: 0 | BP89: 0 | BQ89: 0 | BR89: 0 | BS89: 0 | BT89: 0 | BU89: 0 | BV89: 0 | BW89: 0 | BX89: 0 | BY89: 0 | BZ89: 0 | CA89: 0 | CB89: 0 | CC89: 0 | CD89: 0 | CE89: 0 | CF89: 0 | CG89: 0 | CH89: 0 | CI89: 0 | CJ89: 0 | CK89: 0 | CL89: 0 | CM89: 0 | CN89: 0 | CO89: 0 | CP89: 0 | CQ89: 0 | CR89: 0 | CS89: 0 | CT89: 0 | CU89: 0 | CV89: 0 | CW89: 0 | CX89: 0 | CY89: 0 | CZ89: 0 | DA89: 0 | DB89: 0 | DC89: 0 | DD89: 0 | DE89: 0 | DF89: 0 | DG89: 0 | DH89: 0
C90: Ground Outdoor / Indoor Chamber Mounted; > 132 kV ; < = 100 MVA | D90: 0 | E90: 0 | F90: 0 | G90: 0 | H90: 0 | I90: 0 | J90: 0 | K90: 0 | L90: 0 | M90: 0 | N90: 0 | O90: 0 | P90: 0 | Q90: 0 | R90: 0 | S90: 0 | T90: 0 | U90: 0 | V90: 0 | W90: 0 | X90: 0 | Y90: 0 | Z90: 0 | AA90: 0 | AB90: 0 | AC90: 0 | AD90: 0 | AE90: 0 | AF90: 0 | AG90: 0 | AH90: 0 | AI90: 0 | AJ90: 0 | AK90: 0 | AL90: 0 | AM90: 0 | AN90: 0 | AO90: 0 | AP90: 0 | AQ90: 0 | AR90: 0 | AS90: 0 | AT90: 0 | AU90: 0 | AV90: 0 | AW90: 0 | AX90: 0 | AY90: 0 | AZ90: 0 | BA90: 0 | BB90: 0 | BC90: 0 | BD90: 0 | BE90: 0 | BF90: 0 | BG90: 0 | BH90: 0 | BI90: 0 | BJ90: 0 | BK90: 0 | BL90: 0 | BM90: 0 | BN90: 0 | BO90: 0 | BP90: 0 | BQ90: 0 | BR90: 0 | BS90: 0 | BT90: 0 | BU90: 0 | BV90: 0 | BW90: 0 | BX90: 0 | BY90: 0 | BZ90: 0 | CA90: 0 | CB90: 0 | CC90: 0 | CD90: 0 | CE90: 0 | CF90: 0 | CG90: 0 | CH90: 0 | CI90: 0 | CJ90: 0 | CK90: 0 | CL90: 0 | CM90: 0 | CN90: 0 | CO90: 0 | CP90: 0 | CQ90: 0 | CR90: 0 | CS90: 0 | CT90: 0 | CU90: 0 | CV90: 0 | CW90: 0 | CX90: 0 | CY90: 0 | CZ90: 0 | DA90: 0 | DB90: 0 | DC90: 0 | DD90: 0 | DE90: 0 | DF90: 0 | DG90: 0 | DH90: 0
C91: Ground Outdoor / Indoor Chamber Mounted; > 132 kV ; > 100 MVA | D91: 0 | E91: 0 | F91: 0 | G91: 0 | H91: 0 | I91: 0 | J91: 0 | K91: 0 | L91: 0 | M91: 0 | N91: 0 | O91: 0 | P91: 0 | Q91: 0 | R91: 0 | S91: 0 | T91: 0 | U91: 0 | V91: 0 | W91: 0 | X91: 0 | Y91: 0 | Z91: 0 | AA91: 0 | AB91: 0 | AC91: 0 | AD91: 0 | AE91: 0 | AF91: 0 | AG91: 0 | AH91: 0 | AI91: 0 | AJ91: 0 | AK91: 0 | AL91: 0 | AM91: 0 | AN91: 0 | AO91: 0 | AP91: 0 | AQ91: 0 | AR91: 0 | AS91: 0 | AT91: 0 | AU91: 0 | AV91: 0 | AW91: 0 | AX91: 0 | AY91: 0 | AZ91: 0 | BA91: 0 | BB91: 0 | BC91: 0 | BD91: 0 | BE91: 0 | BF91: 0 | BG91: 0 | BH91: 0 | BI91: 0 | BJ91: 0 | BK91: 0 | BL91: 0 | BM91: 0 | BN91: 0 | BO91: 0 | BP91: 0 | BQ91: 0 | BR91: 0 | BS91: 0 | BT91: 0 | BU91: 0 | BV91: 0 | BW91: 0 | BX91: 0 | BY91: 0 | BZ91: 0 | CA91: 0 | CB91: 0 | CC91: 0 | CD91: 0 | CE91: 0 | CF91: 0 | CG91: 0 | CH91: 0 | CI91: 0 | CJ91: 0 | CK91: 0 | CL91: 0 | CM91: 0 | CN91: 0 | CO91: 0 | CP91: 0 | CQ91: 0 | CR91: 0 | CS91: 0 | CT91: 0 | CU91: 0 | CV91: 0 | CW91: 0 | CX91: 0 | CY91: 0 | CZ91: 0 | DA91: 0 | DB91: 0 | DC91: 0 | DD91: 0 | DE91: 0 | DF91: 0 | DG91: 0 | DH91: 0
C92: Other | D92: 0 | E92: 0 | F92: 0 | G92: 0 | H92: 0 | I92: 0 | J92: 0 | K92: 0 | L92: 0 | M92: 0 | N92: 0 | O92: 0 | P92: 0 | Q92: 0 | R92: 0 | S92: 0 | T92: 0 | U92: 0 | V92: 0 | W92: 0 | X92: 0 | Y92: 0 | Z92: 0 | AA92: 0 | AB92: 0 | AC92: 0 | AD92: 0 | AE92: 0 | AF92: 0 | AG92: 0 | AH92: 0 | AI92: 0 | AJ92: 0 | AK92: 0 | AL92: 0 | AM92: 0 | AN92: 0 | AO92: 0 | AP92: 0 | AQ92: 0 | AR92: 0 | AS92: 0 | AT92: 0 | AU92: 0 | AV92: 0 | AW92: 0 | AX92: 0 | AY92: 0 | AZ92: 0 | BA92: 0 | BB92: 0 | BC92: 0 | BD92: 0 | BE92: 0 | BF92: 0 | BG92: 0 | BH92: 0 | BI92: 0 | BJ92: 0 | BK92: 0 | BL92: 0 | BM92: 0 | BN92: 0 | BO92: 0 | BP92: 0 | BQ92: 0 | BR92: 0 | BS92: 0 | BT92: 0 | BU92: 0 | BV92: 0 | BW92: 0 | BX92: 0 | BY92: 0 | BZ92: 0 | CA92: 0 | CB92: 0 | CC92: 0 | CD92: 0 | CE92: 0 | CF92: 0 | CG92: 0 | CH92: 0 | CI92: 0 | CJ92: 0 | CK92: 0 | CL92: 0 | CM92: 0 | CN92: 0 | CO92: 0 | CP92: 0 | CQ92: 0 | CR92: 0 | CS92: 0 | CT92: 0 | CU92: 0 | CV92: 0 | CW92: 0 | CX92: 0 | CY92: 0 | CZ92: 0 | DA92: 0 | DB92: 0 | DC92: 0 | DD92: 0 | DE92: 0 | DF92: 0 | DG92: 0 | DH92: 0
B93: SWITCHGEAR BY: HIGHEST OPERATING VOLTAGE ; SWITCH FUNCTION | C93: ˂ = 11 kV ; Fuse | D93: 0 | E93: 0 | F93: 0 | G93: 0 | H93: 0 | I93: 0 | J93: 0 | K93: 0 | L93: 0 | M93: 0 | N93: 0 | O93: 0 | P93: 0 | Q93: 0 | R93: 0 | S93: 0 | T93: 0 | U93: 0 | V93: 0 | W93: 0 | X93: 0 | Y93: 0 | Z93: 0 | AA93: 0 | AB93: 0 | AC93: 0 | AD93: 0 | AE93: 0 | AF93: 0 | AG93: 0 | AH93: 0 | AI93: 0 | AJ93: 0 | AK93: 0 | AL93: 0 | AM93: 0 | AN93: 0 | AO93: 0 | AP93: 0 | AQ93: 0 | AR93: 0 | AS93: 0 | AT93: 0 | AU93: 0 | AV93: 0 | AW93: 0 | AX93: 0 | AY93: 0 | AZ93: 0 | BA93: 0 | BB93: 0 | BC93: 0 | BD93: 0 | BE93: 0 | BF93: 0 | BG93: 0 | BH93: 0 | BI93: 0 | BJ93: 0 | BK93: 0 | BL93: 0 | BM93: 0 | BN93: 0 | BO93: 0 | BP93: 0 | BQ93: 0 | BR93: 0 | BS93: 0 | BT93: 0 | BU93: 0 | BV93: 0 | BW93: 0 | BX93: 0 | BY93: 0 | BZ93: 0 | CA93: 0 | CB93: 0 | CC93: 0 | CD93: 0 | CE93: 0 | CF93: 0 | CG93: 0 | CH93: 0 | CI93: 0 | CJ93: 0 | CK93: 0 | CL93: 0 | CM93: 0 | CN93: 0 | CO93: 0 | CP93: 0 | CQ93: 0 | CR93: 0 | CS93: 0 | CT93: 0 | CU93: 0 | CV93: 0 | CW93: 0 | CX93: 0 | CY93: 0 | CZ93: 0 | DA93: 0 | DB93: 0 | DC93: 0 | DD93: 0 | DE93: 0 | DF93: 0 | DG93: 0 | DH93: 0
C94: ˂ = 11 kV ; Switch | D94: 40 | E94: 6.32 | F94: 8138 | G94: 12965 | H94: 15004 | I94: 17067 | J94: 12780 | K94: 13146 | L94: 10646 | M94: 12597 | N94: 8918 | O94: 9266 | P94: 9902 | Q94: 9149 | R94: 8350 | S94: 8746 | T94: 4968 | U94: 2784 | V94: 4514 | W94: 3847 | X94: 3332 | Y94: 2917 | Z94: 2967 | AA94: 2508 | AB94: 2229 | AC94: 2713 | AD94: 2931 | AE94: 3002 | AF94: 2830 | AG94: 3693 | AH94: 3798 | AI94: 5087 | AJ94: 2802 | AK94: 2629 | AL94: 3434 | AM94: 2308 | AN94: 1560 | AO94: 1058 | AP94: 754 | AQ94: 554 | AR94: 627 | AS94: 347 | AT94: 216 | AU94: 176 | AV94: 122 | AW94: 129 | AX94: 77 | AY94: 139 | AZ94: 165 | BA94: 121 | BB94: 333 | BC94: 87 | BD94: 65 | BE94: 40 | BF94: 159 | BG94: 109 | BH94: 38 | BI94: 45 | BJ94: 23 | BK94: 8 | BL94: 0 | BM94: 0 | BN94: 0 | BO94: 1 | BP94: 0 | BQ94: 1 | BR94: 0 | BS94: 0 | BT94: 1 | BU94: 0 | BV94: 1 | BW94: 0 | BX94: 0 | BY94: 1 | BZ94: 0 | CA94: 0 | CB94: 0 | CC94: 0 | CD94: 0 | CE94: 0 | CF94: 0 | CG94: 0 | CH94: 0 | CI94: 0 | CJ94: 0 | CK94: 0 | CL94: 0 | CM94: 0 | CN94: 0 | CO94: 0 | CP94: 0 | CQ94: 0 | CR94: 0 | CS94: 0 | CT94: 0 | CU94: 0 | CV94: 0 | CW94: 0 | CX94: 0 | CY94: 0 | CZ94: 0 | DA94: 0 | DB94: 0 | DC94: 0 | DD94: 0 | DE94: 0 | DF94: 0 | DG94: 0 | DH94: 0
C95: ˂ = 11 kV ; Circuit Breaker | D95: 55 | E95: 7.42 | F95: 42 | G95: 101 | H95: 78 | I95: 54 | J95: 194 | K95: 231 | L95: 368 | M95: 247 | N95: 193 | O95: 412 | P95: 258 | Q95: 337 | R95: 362 | S95: 347 | T95: 185 | U95: 83 | V95: 113 | W95: 65 | X95: 149 | Y95: 71 | Z95: 10 | AA95: 61 | AB95: 43 | AC95: 41 | AD95: 32 | AE95: 33 | AF95: 31 | AG95: 29 | AH95: 45 | AI95: 56 | AJ95: 72 | AK95: 29 | AL95: 77 | AM95: 91 | AN95: 171 | AO95: 87 | AP95: 68 | AQ95: 46 | AR95: 18 | AS95: 10 | AT95: 1 | AU95: 42 | AV95: 69 | AW95: 66 | AX95: 13 | AY95: 7 | AZ95: 16 | BA95: 30 | BB95: 14 | BC95: 6 | BD95: 12 | BE95: 19 | BF95: 11 | BG95: 9 | BH95: 2 | BI95: 0 | BJ95: 0 | BK95: 0 | BL95: 0 | BM95: 0 | BN95: 0 | BO95: 0 | BP95: 0 | BQ95: 0 | BR95: 0 | BS95: 0 | BT95: 0 | BU95: 0 | BV95: 0 | BW95: 0 | BX95: 0 | BY95: 0 | BZ95: 0 | CA95: 0 | CB95: 0 | CC95: 0 | CD95: 0 | CE95: 0 | CF95: 0 | CG95: 0 | CH95: 0 | CI95: 0 | CJ95: 0 | CK95: 0 | CL95: 0 | CM95: 0 | CN95: 0 | CO95: 0 | CP95: 0 | CQ95: 0 | CR95: 0 | CS95: 0 | CT95: 0 | CU95: 0 | CV95: 0 | CW95: 0 | CX95: 0 | CY95: 0 | CZ95: 0 | DA95: 0 | DB95: 0 | DC95: 0 | DD95: 0 | DE95: 0 | DF95: 0 | DG95: 0 | DH95: 0
C96: > 11 kV & < = 22 kV ; Switch | D96: 0 | E96: 0 | F96: 0 | G96: 0 | H96: 0 | I96: 0 | J96: 0 | K96: 0 | L96: 0 | M96: 0 | N96: 0 | O96: 1 | P96: 0 | Q96: 0 | R96: 0 | S96: 0 | T96: 0 | U96: 0 | V96: 0 | W96: 0 | X96: 0 | Y96: 0 | Z96: 0 | AA96: 0 | AB96: 0 | AC96: 0 | AD96: 0 | AE96: 0 | AF96: 0 | AG96: 0 | AH96: 0 | AI96: 0 | AJ96: 0 | AK96: 0 | AL96: 0 | AM96: 0 | AN96: 0 | AO96: 0 | AP96: 0 | AQ96: 0 | AR96: 0 | AS96: 0 | AT96: 0 | AU96: 0 | AV96: 0 | AW96: 0 | AX96: 0 | AY96: 0 | AZ96: 0 | BA96: 0 | BB96: 0 | BC96: 0 | BD96: 0 | BE96: 0 | BF96: 0 | BG96: 0 | BH96: 0 | BI96: 0 | BJ96: 0 | BK96: 0 | BL96: 0 | BM96: 0 | BN96: 0 | BO96: 0 | BP96: 0 | BQ96: 0 | BR96: 0 | BS96: 0 | BT96: 0 | BU96: 0 | BV96: 0 | BW96: 0 | BX96: 0 | BY96: 0 | BZ96: 0 | CA96: 0 | CB96: 0 | CC96: 0 | CD96: 0 | CE96: 0 | CF96: 0 | CG96: 0 | CH96: 0 | CI96: 0 | CJ96: 0 | CK96: 0 | CL96: 0 | CM96: 0 | CN96: 0 | CO96: 0 | CP96: 0 | CQ96: 0 | CR96: 0 | CS96: 0 | CT96: 0 | CU96: 0 | CV96: 0 | CW96: 0 | CX96: 0 | CY96: 0 | CZ96: 0 | DA96: 0 | DB96: 0 | DC96: 0 | DD96: 0 | DE96: 0 | DF96: 0 | DG96: 0 | DH96: 0
C97: > 11 kV & < = 22 kV ; Circuit Breaker | D97: 0 | E97: 0 | F97: 0 | G97: 0 | H97: 0 | I97: 0 | J97: 0 | K97: 0 | L97: 0 | M97: 0 | N97: 0 | O97: 0 | P97: 0 | Q97: 0 | R97: 0 | S97: 0 | T97: 0 | U97: 0 | V97: 0 | W97: 0 | X97: 0 | Y97: 0 | Z97: 0 | AA97: 0 | AB97: 0 | AC97: 0 | AD97: 0 | AE97: 0 | AF97: 0 | AG97: 0 | AH97: 0 | AI97: 0 | AJ97: 0 | AK97: 0 | AL97: 0 | AM97: 0 | AN97: 0 | AO97: 0 | AP97: 0 | AQ97: 0 | AR97: 0 | AS97: 0 | AT97: 0 | AU97: 0 | AV97: 0 | AW97: 0 | AX97: 0 | AY97: 0 | AZ97: 0 | BA97: 0 | BB97: 0 | BC97: 0 | BD97: 0 | BE97: 0 | BF97: 0 | BG97: 0 | BH97: 0 | BI97: 0 | BJ97: 0 | BK97: 0 | BL97: 0 | BM97: 0 | BN97: 0 | BO97: 0 | BP97: 0 | BQ97: 0 | BR97: 0 | BS97: 0 | BT97: 0 | BU97: 0 | BV97: 0 | BW97: 0 | BX97: 0 | BY97: 0 | BZ97: 0 | CA97: 0 | CB97: 0 | CC97: 0 | CD97: 0 | CE97: 0 | CF97: 0 | CG97: 0 | CH97: 0 | CI97: 0 | CJ97: 0 | CK97: 0 | CL97: 0 | CM97: 0 | CN97: 0 | CO97: 0 | CP97: 0 | CQ97: 0 | CR97: 0 | CS97: 0 | CT97: 0 | CU97: 0 | CV97: 0 | CW97: 0 | CX97: 0 | CY97: 0 | CZ97: 0 | DA97: 0 | DB97: 0 | DC97: 0 | DD97: 0 | DE97: 0 | DF97: 0 | DG97: 0 | DH97: 0
C98: > 22 kV & < = 33 kV ; Switch | D98: 40 | E98: 6.32 | F98: 35 | G98: 75 | H98: 82 | I98: 150 | J98: 148 | K98: 129 | L98: 186 | M98: 299 | N98: 123 | O98: 178 | P98: 175 | Q98: 83 | R98: 82 | S98: 104 | T98: 28 | U98: 33 | V98: 59 | W98: 61 | X98: 372 | Y98: 14 | Z98: 1 | AA98: 1 | AB98: 5 | AC98: 3 | AD98: 21 | AE98: 0 | AF98: 0 | AG98: 1 | AH98: 18 | AI98: 13 | AJ98: 12 | AK98: 1 | AL98: 4 | AM98: 0 | AN98: 2 | AO98: 0 | AP98: 0 | AQ98: 1 | AR98: 5 | AS98: 0 | AT98: 289 | AU98: 0 | AV98: 3 | AW98: 0 | AX98: 11 | AY98: 0 | AZ98: 0 | BA98: 0 | BB98: 0 | BC98: 0 | BD98: 0 | BE98: 0 | BF98: 15 | BG98: 0 | BH98: 0 | BI98: 0 | BJ98: 0 | BK98: 0 | BL98: 0 | BM98: 0 | BN98: 1 | BO98: 4 | BP98: 0 | BQ98: 0 | BR98: 0 | BS98: 0 | BT98: 0 | BU98: 0 | BV98: 0 | BW98: 0 | BX98: 0 | BY98: 0 | BZ98: 0 | CA98: 0 | CB98: 0 | CC98: 0 | CD98: 0 | CE98: 0 | CF98: 0 | CG98: 0 | CH98: 0 | CI98: 0 | CJ98: 0 | CK98: 0 | CL98: 0 | CM98: 0 | CN98: 0 | CO98: 0 | CP98: 0 | CQ98: 0 | CR98: 0 | CS98: 0 | CT98: 0 | CU98: 0 | CV98: 0 | CW98: 0 | CX98: 0 | CY98: 0 | CZ98: 0 | DA98: 0 | DB98: 0 | DC98: 0 | DD98: 0 | DE98: 0 | DF98: 0 | DG98: 0 | DH98: 0
C99: > 22 kV & < = 33 kV ; Circuit Breaker | D99: 55 | E99: 7.45 | F99: 16 | G99: 15 | H99: 18 | I99: 48 | J99: 19 | K99: 20 | L99: 37 | M99: 30 | N99: 93 | O99: 121 | P99: 177 | Q99: 52 | R99: 131 | S99: 166 | T99: 49 | U99: 13 | V99: 50 | W99: 29 | X99: 60 | Y99: 42 | Z99: 8 | AA99: 11 | AB99: 18 | AC99: 17 | AD99: 7 | AE99: 15 | AF99: 12 | AG99: 2 | AH99: 1 | AI99: 31 | AJ99: 0 | AK99: 8 | AL99: 3 | AM99: 12 | AN99: 1 | AO99: 10 | AP99: 0 | AQ99: 0 | AR99: 0 | AS99: 0 | AT99: 2 | AU99: 17 | AV99: 30 | AW99: 1 | AX99: 0 | AY99: 5 | AZ99: 2 | BA99: 0 | BB99: 2 | BC99: 15 | BD99: 31 | BE99: 1 | BF99: 58 | BG99: 3 | BH99: 0 | BI99: 35 | BJ99: 15 | BK99: 4 | BL99: 3 | BM99: 0 | BN99: 11 | BO99: 0 | BP99: 2 | BQ99: 0 | BR99: 7 | BS99: 0 | BT99: 14 | BU99: 1 | BV99: 0 | BW99: 0 | BX99: 0 | BY99: 0 | BZ99: 0 | CA99: 0 | CB99: 0 | CC99: 0 | CD99: 0 | CE99: 0 | CF99: 0 | CG99: 0 | CH99: 0 | CI99: 0 | CJ99: 0 | CK99: 0 | CL99: 0 | CM99: 0 | CN99: 0 | CO99: 0 | CP99: 0 | CQ99: 0 | CR99: 0 | CS99: 0 | CT99: 0 | CU99: 0 | CV99: 0 | CW99: 0 | CX99: 0 | CY99: 0 | CZ99: 0 | DA99: 0 | DB99: 0 | DC99: 0 | DD99: 0 | DE99: 0 | DF99: 0 | DG99: 0 | DH99: 0
C100: > 33 kV & < = 66 kV ; Switch | D100: 50 | E100: 7.07 | F100: 0 | G100: 0 | H100: 0 | I100: 0 | J100: 0 | K100: 0 | L100: 0 | M100: 0 | N100: 0 | O100: 0 | P100: 0 | Q100: 0 | R100: 0 | S100: 1 | T100: 0 | U100: 0 | V100: 0 | W100: 0 | X100: 0 | Y100: 0 | Z100: 0 | AA100: 0 | AB100: 0 | AC100: 0 | AD100: 0 | AE100: 0 | AF100: 0 | AG100: 0 | AH100: 0 | AI100: 0 | AJ100: 0 | AK100: 0 | AL100: 0 | AM100: 0 | AN100: 0 | AO100: 0 | AP100: 0 | AQ100: 0 | AR100: 0 | AS100: 0 | AT100: 0 | AU100: 0 | AV100: 0 | AW100: 0 | AX100: 0 | AY100: 0 | AZ100: 0 | BA100: 0 | BB100: 0 | BC100: 0 | BD100: 0 | BE100: 0 | BF100: 0 | BG100: 0 | BH100: 0 | BI100: 0 | BJ100: 0 | BK100: 0 | BL100: 0 | BM100: 0 | BN100: 0 | BO100: 0 | BP100: 0 | BQ100: 0 | BR100: 0 | BS100: 0 | BT100: 0 | BU100: 0 | BV100: 0 | BW100: 0 | BX100: 0 | BY100: 0 | BZ100: 0 | CA100: 0 | CB100: 0 | CC100: 0 | CD100: 0 | CE100: 0 | CF100: 0 | CG100: 0 | CH100: 0 | CI100: 0 | CJ100: 0 | CK100: 0 | CL100: 0 | CM100: 0 | CN100: 0 | CO100: 0 | CP100: 0 | CQ100: 0 | CR100: 0 | CS100: 0 | CT100: 0 | CU100: 0 | CV100: 0 | CW100: 0 | CX100: 0 | CY100: 0 | CZ100: 0 | DA100: 0 | DB100: 0 | DC100: 0 | DD100: 0 | DE100: 0 | DF100: 0 | DG100: 0 | DH100: 0
C101: > 33 kV & < = 66 kV ; Circuit Breaker | D101: 55 | E101: 7.42 | F101: 0 | G101: 0 | H101: 0 | I101: 0 | J101: 0 | K101: 0 | L101: 0 | M101: 0 | N101: 0 | O101: 0 | P101: 0 | Q101: 0 | R101: 0 | S101: 0 | T101: 0 | U101: 1 | V101: 0 | W101: 0 | X101: 0 | Y101: 0 | Z101: 0 | AA101: 0 | AB101: 0 | AC101: 0 | AD101: 0 | AE101: 0 | AF101: 0 | AG101: 0 | AH101: 0 | AI101: 0 | AJ101: 0 | AK101: 0 | AL101: 0 | AM101: 0 | AN101: 0 | AO101: 0 | AP101: 0 | AQ101: 0 | AR101: 0 | AS101: 0 | AT101: 0 | AU101: 0 | AV101: 0 | AW101: 0 | AX101: 0 | AY101: 0 | AZ101: 0 | BA101: 0 | BB101: 0 | BC101: 0 | BD101: 0 | BE101: 0 | BF101: 0 | BG101: 0 | BH101: 0 | BI101: 0 | BJ101: 0 | BK101: 0 | BL101: 0 | BM101: 0 | BN101: 0 | BO101: 0 | BP101: 0 | BQ101: 0 | BR101: 0 | BS101: 0 | BT101: 0 | BU101: 0 | BV101: 0 | BW101: 0 | BX101: 0 | BY101: 0 | BZ101: 0 | CA101: 0 | CB101: 0 | CC101: 0 | CD101: 0 | CE101: 0 | CF101: 0 | CG101: 0 | CH101: 0 | CI101: 0 | CJ101: 0 | CK101: 0 | CL101: 0 | CM101: 0 | CN101: 0 | CO101: 0 | CP101: 0 | CQ101: 0 | CR101: 0 | CS101: 0 | CT101: 0 | CU101: 0 | CV101: 0 | CW101: 0 | CX101: 0 | CY101: 0 | CZ101: 0 | DA101: 0 | DB101: 0 | DC101: 0 | DD101: 0 | DE101: 0 | DF101: 0 | DG101: 0 | DH101: 0
C102: > 66 kV & < = 132 kV ; Switch | D102: 50 | E102: 7.07 | F102: 3 | G102: 10 | H102: 29 | I102: 109 | J102: 117 | K102: 159 | L102: 38 | M102: 162 | N102: 109 | O102: 64 | P102: 55 | Q102: 88 | R102: 35 | S102: 41 | T102: 5 | U102: 79 | V102: 33 | W102: 84 | X102: 242 | Y102: 7 | Z102: 22 | AA102: 4 | AB102: 0 | AC102: 0 | AD102: 0 | AE102: 0 | AF102: 0 | AG102: 0 | AH102: 0 | AI102: 7 | AJ102: 14 | AK102: 0 | AL102: 5 | AM102: 3 | AN102: 11 | AO102: 0 | AP102: 0 | AQ102: 0 | AR102: 0 | AS102: 0 | AT102: 18 | AU102: 0 | AV102: 0 | AW102: 0 | AX102: 0 | AY102: 0 | AZ102: 0 | BA102: 0 | BB102: 0 | BC102: 2 | BD102: 0 | BE102: 0 | BF102: 0 | BG102: 2 | BH102: 0 | BI102: 0 | BJ102: 0 | BK102: 0 | BL102: 0 | BM102: 0 | BN102: 0 | BO102: 0 | BP102: 0 | BQ102: 0 | BR102: 0 | BS102: 0 | BT102: 0 | BU102: 0 | BV102: 0 | BW102: 0 | BX102: 0 | BY102: 0 | BZ102: 0 | CA102: 0 | CB102: 0 | CC102: 0 | CD102: 0 | CE102: 0 | CF102: 0 | CG102: 0 | CH102: 0 | CI102: 0 | CJ102: 0 | CK102: 0 | CL102: 0 | CM102: 0 | CN102: 0 | CO102: 0 | CP102: 0 | CQ102: 0 | CR102: 0 | CS102: 0 | CT102: 0 | CU102: 0 | CV102: 0 | CW102: 0 | CX102: 0 | CY102: 0 | CZ102: 0 | DA102: 0 | DB102: 0 | DC102: 0 | DD102: 0 | DE102: 0 | DF102: 0 | DG102: 0 | DH102: 0
C103: > 66 kV & < = 132 kV ; Circuit Breaker | D103: 55 | E103: 7.42 | F103: 1 | G103: 0 | H103: 2 | I103: 1 | J103: 5 | K103: 25 | L103: 20 | M103: 16 | N103: 44 | O103: 23 | P103: 40 | Q103: 24 | R103: 19 | S103: 23 | T103: 1 | U103: 2 | V103: 18 | W103: 5 | X103: 2 | Y103: 2 | Z103: 8 | AA103: 0 | AB103: 0 | AC103: 0 | AD103: 0 | AE103: 0 | AF103: 0 | AG103: 0 | AH103: 6 | AI103: 1 | AJ103: 1 | AK103: 4 | AL103: 0 | AM103: 3 | AN103: 1 | AO103: 0 | AP103: 5 | AQ103: 1 | AR103: 0 | AS103: 0 | AT103: 1 | AU103: 0 | AV103: 0 | AW103: 4 | AX103: 0 | AY103: 0 | AZ103: 0 | BA103: 0 | BB103: 4 | BC103: 0 | BD103: 0 | BE103: 0 | BF103: 0 | BG103: 0 | BH103: 0 | BI103: 0 | BJ103: 0 | BK103: 0 | BL103: 0 | BM103: 0 | BN103: 0 | BO103: 0 | BP103: 0 | BQ103: 0 | BR103: 0 | BS103: 0 | BT103: 0 | BU103: 0 | BV103: 0 | BW103: 0 | BX103: 0 | BY103: 0 | BZ103: 0 | CA103: 0 | CB103: 0 | CC103: 0 | CD103: 0 | CE103: 0 | CF103: 0 | CG103: 0 | CH103: 0 | CI103: 0 | CJ103: 0 | CK103: 0 | CL103: 0 | CM103: 0 | CN103: 0 | CO103: 0 | CP103: 0 | CQ103: 0 | CR103: 0 | CS103: 0 | CT103: 0 | CU103: 0 | CV103: 0 | CW103: 0 | CX103: 0 | CY103: 0 | CZ103: 0 | DA103: 0 | DB103: 0 | DC103: 0 | DD103: 0 | DE103: 0 | DF103: 0 | DG103: 0 | DH103: 0
C104: > 132 kV ; Switch | D104: 0 | E104: 0 | F104: 0 | G104: 0 | H104: 0 | I104: 0 | J104: 0 | K104: 0 | L104: 0 | M104: 0 | N104: 0 | O104: 0 | P104: 0 | Q104: 0 | R104: 0 | S104: 0 | T104: 0 | U104: 0 | V104: 0 | W104: 0 | X104: 0 | Y104: 0 | Z104: 0 | AA104: 0 | AB104: 0 | AC104: 0 | AD104: 0 | AE104: 0 | AF104: 0 | AG104: 0 | AH104: 0 | AI104: 0 | AJ104: 0 | AK104: 0 | AL104: 0 | AM104: 0 | AN104: 0 | AO104: 0 | AP104: 0 | AQ104: 0 | AR104: 0 | AS104: 0 | AT104: 0 | AU104: 0 | AV104: 0 | AW104: 0 | AX104: 0 | AY104: 0 | AZ104: 0 | BA104: 0 | BB104: 0 | BC104: 0 | BD104: 0 | BE104: 0 | BF104: 0 | BG104: 0 | BH104: 0 | BI104: 0 | BJ104: 0 | BK104: 0 | BL104: 0 | BM104: 0 | BN104: 0 | BO104: 0 | BP104: 0 | BQ104: 0 | BR104: 0 | BS104: 0 | BT104: 0 | BU104: 0 | BV104: 0 | BW104: 0 | BX104: 0 | BY104: 0 | BZ104: 0 | CA104: 0 | CB104: 0 | CC104: 0 | CD104: 0 | CE104: 0 | CF104: 0 | CG104: 0 | CH104: 0 | CI104: 0 | CJ104: 0 | CK104: 0 | CL104: 0 | CM104: 0 | CN104: 0 | CO104: 0 | CP104: 0 | CQ104: 0 | CR104: 0 | CS104: 0 | CT104: 0 | CU104: 0 | CV104: 0 | CW104: 0 | CX104: 0 | CY104: 0 | CZ104: 0 | DA104: 0 | DB104: 0 | DC104: 0 | DD104: 0 | DE104: 0 | DF104: 0 | DG104: 0 | DH104: 0
C105: > 132 kV ; Circuit Breaker | D105: 0 | E105: 0 | F105: 0 | G105: 0 | H105: 0 | I105: 0 | J105: 0 | K105: 0 | L105: 0 | M105: 0 | N105: 0 | O105: 0 | P105: 0 | Q105: 0 | R105: 0 | S105: 0 | T105: 0 | U105: 0 | V105: 0 | W105: 0 | X105: 0 | Y105: 0 | Z105: 0 | AA105: 0 | AB105: 0 | AC105: 0 | AD105: 0 | AE105: 0 | AF105: 0 | AG105: 0 | AH105: 0 | AI105: 0 | AJ105: 0 | AK105: 0 | AL105: 0 | AM105: 0 | AN105: 0 | AO105: 0 | AP105: 0 | AQ105: 0 | AR105: 0 | AS105: 0 | AT105: 0 | AU105: 0 | AV105: 0 | AW105: 0 | AX105: 0 | AY105: 0 | AZ105: 0 | BA105: 0 | BB105: 0 | BC105: 0 | BD105: 0 | BE105: 0 | BF105: 0 | BG105: 0 | BH105: 0 | BI105: 0 | BJ105: 0 | BK105: 0 | BL105: 0 | BM105: 0 | BN105: 0 | BO105: 0 | BP105: 0 | BQ105: 0 | BR105: 0 | BS105: 0 | BT105: 0 | BU105: 0 | BV105: 0 | BW105: 0 | BX105: 0 | BY105: 0 | BZ105: 0 | CA105: 0 | CB105: 0 | CC105: 0 | CD105: 0 | CE105: 0 | CF105: 0 | CG105: 0 | CH105: 0 | CI105: 0 | CJ105: 0 | CK105: 0 | CL105: 0 | CM105: 0 | CN105: 0 | CO105: 0 | CP105: 0 | CQ105: 0 | CR105: 0 | CS105: 0 | CT105: 0 | CU105: 0 | CV105: 0 | CW105: 0 | CX105: 0 | CY105: 0 | CZ105: 0 | DA105: 0 | DB105: 0 | DC105: 0 | DD105: 0 | DE105: 0 | DF105: 0 | DG105: 0 | DH105: 0
C106: Other | D106: 0 | E106: 0 | F106: 0 | G106: 0 | H106: 0 | I106: 0 | J106: 0 | K106: 0 | L106: 0 | M106: 0 | N106: 0 | O106: 0 | P106: 0 | Q106: 0 | R106: 0 | S106: 0 | T106: 0 | U106: 0 | V106: 0 | W106: 0 | X106: 0 | Y106: 0 | Z106: 0 | AA106: 0 | AB106: 0 | AC106: 0 | AD106: 0 | AE106: 0 | AF106: 0 | AG106: 0 | AH106: 0 | AI106: 0 | AJ106: 0 | AK106: 0 | AL106: 0 | AM106: 0 | AN106: 0 | AO106: 0 | AP106: 0 | AQ106: 0 | AR106: 0 | AS106: 0 | AT106: 0 | AU106: 0 | AV106: 0 | AW106: 0 | AX106: 0 | AY106: 0 | AZ106: 0 | BA106: 0 | BB106: 0 | BC106: 0 | BD106: 0 | BE106: 0 | BF106: 0 | BG106: 0 | BH106: 0 | BI106: 0 | BJ106: 0 | BK106: 0 | BL106: 0 | BM106: 0 | BN106: 0 | BO106: 0 | BP106: 0 | BQ106: 0 | BR106: 0 | BS106: 0 | BT106: 0 | BU106: 0 | BV106: 0 | BW106: 0 | BX106: 0 | BY106: 0 | BZ106: 0 | CA106: 0 | CB106: 0 | CC106: 0 | CD106: 0 | CE106: 0 | CF106: 0 | CG106: 0 | CH106: 0 | CI106: 0 | CJ106: 0 | CK106: 0 | CL106: 0 | CM106: 0 | CN106: 0 | CO106: 0 | CP106: 0 | CQ106: 0 | CR106: 0 | CS106: 0 | CT106: 0 | CU106: 0 | CV106: 0 | CW106: 0 | CX106: 0 | CY106: 0 | CZ106: 0 | DA106: 0 | DB106: 0 | DC106: 0 | DD106: 0 | DE106: 0 | DF106: 0 | DG106: 0 | DH106: 0
B107: PUBLIC LIGHTING BY: ASSET TYPE ; LIGHTING OBLIGATION | C107: Luminaires ; Major Road | D107: 20 | E107: 4.47 | F107: 5553 | G107: 7128 | H107: 6805 | I107: 6216 | J107: 5794 | K107: 6846 | L107: 5894 | M107: 5901 | N107: 4935 | O107: 4661 | P107: 4215 | Q107: 3626 | R107: 3876 | S107: 3605 | T107: 3275 | U107: 3357 | V107: 2034 | W107: 2651 | X107: 3297 | Y107: 2448 | Z107: 0 | AA107: 0 | AB107: 0 | AC107: 0 | AD107: 0 | AE107: 0 | AF107: 0 | AG107: 0 | AH107: 0 | AI107: 0 | AJ107: 0 | AK107: 0 | AL107: 0 | AM107: 0 | AN107: 0 | AO107: 0 | AP107: 0 | AQ107: 0 | AR107: 0 | AS107: 0 | AT107: 0 | AU107: 0 | AV107: 0 | AW107: 0 | AX107: 0 | AY107: 0 | AZ107: 0 | BA107: 0 | BB107: 0 | BC107: 0 | BD107: 0 | BE107: 0 | BF107: 0 | BG107: 0 | BH107: 0 | BI107: 0 | BJ107: 0 | BK107: 0 | BL107: 0 | BM107: 0 | BN107: 0 | BO107: 0 | BP107: 0 | BQ107: 0 | BR107: 0 | BS107: 0 | BT107: 0 | BU107: 0 | BV107: 0 | BW107: 0 | BX107: 0 | BY107: 0 | BZ107: 0 | CA107: 0 | CB107: 0 | CC107: 0 | CD107: 0 | CE107: 0 | CF107: 0 | CG107: 0 | CH107: 0 | CI107: 0 | CJ107: 0 | CK107: 0 | CL107: 0 | CM107: 0 | CN107: 0 | CO107: 0 | CP107: 0 | CQ107: 0 | CR107: 0 | CS107: 0 | CT107: 0 | CU107: 0 | CV107: 0 | CW107: 0 | CX107: 0 | CY107: 0 | CZ107: 0 | DA107: 0 | DB107: 0 | DC107: 0 | DD107: 0 | DE107: 0 | DF107: 0 | DG107: 0 | DH107: 0
C108: Luminaires ; Minor Road | D108: 20 | E108: 4.47 | F108: 13147 | G108: 16858 | H108: 21979 | I108: 23372 | J108: 25535 | K108: 16613 | L108: 10976 | M108: 12187 | N108: 11108 | O108: 11839 | P108: 10327 | Q108: 10566 | R108: 9452 | S108: 8180 | T108: 6930 | U108: 5500 | V108: 5138 | W108: 5304 | X108: 5719 | Y108: 4773 | Z108: 0 | AA108: 0 | AB108: 0 | AC108: 0 | AD108: 0 | AE108: 0 | AF108: 0 | AG108: 0 | AH108: 0 | AI108: 0 | AJ108: 0 | AK108: 0 | AL108: 0 | AM108: 0 | AN108: 0 | AO108: 0 | AP108: 0 | AQ108: 0 | AR108: 0 | AS108: 0 | AT108: 0 | AU108: 0 | AV108: 0 | AW108: 0 | AX108: 0 | AY108: 0 | AZ108: 0 | BA108: 0 | BB108: 0 | BC108: 0 | BD108: 0 | BE108: 0 | BF108: 0 | BG108: 0 | BH108: 0 | BI108: 0 | BJ108: 0 | BK108: 0 | BL108: 0 | BM108: 0 | BN108: 0 | BO108: 0 | BP108: 0 | BQ108: 0 | BR108: 0 | BS108: 0 | BT108: 0 | BU108: 0 | BV108: 0 | BW108: 0 | BX108: 0 | BY108: 0 | BZ108: 0 | CA108: 0 | CB108: 0 | CC108: 0 | CD108: 0 | CE108: 0 | CF108: 0 | CG108: 0 | CH108: 0 | CI108: 0 | CJ108: 0 | CK108: 0 | CL108: 0 | CM108: 0 | CN108: 0 | CO108: 0 | CP108: 0 | CQ108: 0 | CR108: 0 | CS108: 0 | CT108: 0 | CU108: 0 | CV108: 0 | CW108: 0 | CX108: 0 | CY108: 0 | CZ108: 0 | DA108: 0 | DB108: 0 | DC108: 0 | DD108: 0 | DE108: 0 | DF108: 0 | DG108: 0 | DH108: 0
C109: Brackets ; Major Road | D109: 40 | E109: 6.32 | F109: 3156 | G109: 3632 | H109: 3085 | I109: 2626 | J109: 2532 | K109: 4094 | L109: 4249 | M109: 3898 | N109: 3502 | O109: 3788 | P109: 3572 | Q109: 3210 | R109: 3583 | S109: 3471 | T109: 3197 | U109: 3283 | V109: 1986 | W109: 2616 | X109: 3235 | Y109: 2381 | Z109: 2335 | AA109: 3465 | AB109: 3637 | AC109: 3526 | AD109: 3235 | AE109: 2726 | AF109: 1628 | AG109: 1990 | AH109: 1406 | AI109: 861 | AJ109: 635 | AK109: 416 | AL109: 289 | AM109: 130 | AN109: 68 | AO109: 66 | AP109: 44 | AQ109: 35 | AR109: 54 | AS109: 67 | AT109: 61 | AU109: 24 | AV109: 78 | AW109: 63 | AX109: 12 | AY109: 5 | AZ109: 17 | BA109: 10 | BB109: 15 | BC109: 0 | BD109: 2 | BE109: 0 | BF109: 3 | BG109: 0 | BH109: 1 | BI109: 6 | BJ109: 1 | BK109: 0 | BL109: 0 | BM109: 0 | BN109: 0 | BO109: 0 | BP109: 1 | BQ109: 0 | BR109: 0 | BS109: 0 | BT109: 1 | BU109: 0 | BV109: 0 | BW109: 0 | BX109: 0 | BY109: 0 | BZ109: 0 | CA109: 0 | CB109: 0 | CC109: 0 | CD109: 0 | CE109: 0 | CF109: 0 | CG109: 0 | CH109: 0 | CI109: 0 | CJ109: 0 | CK109: 0 | CL109: 0 | CM109: 0 | CN109: 0 | CO109: 0 | CP109: 0 | CQ109: 0 | CR109: 0 | CS109: 0 | CT109: 0 | CU109: 0 | CV109: 0 | CW109: 0 | CX109: 0 | CY109: 0 | CZ109: 0 | DA109: 0 | DB109: 0 | DC109: 0 | DD109: 0 | DE109: 0 | DF109: 0 | DG109: 0 | DH109: 0
C110: Brackets ; Minor Road | D110: 40 | E110: 6.32 | F110: 8449 | G110: 10210 | H110: 12722 | I110: 14341 | J110: 18399 | K110: 9359 | L110: 5610 | M110: 6217 | N110: 6414 | O110: 8047 | P110: 7238 | Q110: 7131 | R110: 6745 | S110: 7240 | T110: 6344 | U110: 5133 | V110: 4783 | W110: 4789 | X110: 5511 | Y110: 4588 | Z110: 4572 | AA110: 6455 | AB110: 9198 | AC110: 8984 | AD110: 7000 | AE110: 7208 | AF110: 5320 | AG110: 5922 | AH110: 4616 | AI110: 3739 | AJ110: 3071 | AK110: 3389 | AL110: 2691 | AM110: 919 | AN110: 572 | AO110: 352 | AP110: 349 | AQ110: 512 | AR110: 206 | AS110: 179 | AT110: 110 | AU110: 181 | AV110: 42 | AW110: 31 | AX110: 69 | AY110: 43 | AZ110: 46 | BA110: 31 | BB110: 39 | BC110: 37 | BD110: 14 | BE110: 18 | BF110: 16 | BG110: 17 | BH110: 6 | BI110: 4 | BJ110: 2 | BK110: 3 | BL110: 0 | BM110: 6 | BN110: 2 | BO110: 1 | BP110: 2 | BQ110: 1 | BR110: 2 | BS110: 0 | BT110: 0 | BU110: 2 | BV110: 4 | BW110: 0 | BX110: 0 | BY110: 0 | BZ110: 0 | CA110: 0 | CB110: 0 | CC110: 0 | CD110: 0 | CE110: 0 | CF110: 0 | CG110: 0 | CH110: 0 | CI110: 0 | CJ110: 0 | CK110: 0 | CL110: 0 | CM110: 0 | CN110: 0 | CO110: 0 | CP110: 0 | CQ110: 0 | CR110: 0 | CS110: 0 | CT110: 0 | CU110: 0 | CV110: 0 | CW110: 0 | CX110: 0 | CY110: 0 | CZ110: 0 | DA110: 0 | DB110: 0 | DC110: 0 | DD110: 0 | DE110: 0 | DF110: 0 | DG110: 0 | DH110: 0
C111: Lamps ; Major Road | D111: 3 | E111: 1.73 | F111: 22019 | G111: 24884 | H111: 23502 | I111: 21221 | J111: 490 | K111: 0 | L111: 0 | M111: 0 | N111: 0 | O111: 0 | P111: 0 | Q111: 0 | R111: 0 | S111: 0 | T111: 0 | U111: 0 | V111: 0 | W111: 0 | X111: 0 | Y111: 0 | Z111: 0 | AA111: 0 | AB111: 0 | AC111: 0 | AD111: 0 | AE111: 0 | AF111: 0 | AG111: 0 | AH111: 0 | AI111: 0 | AJ111: 0 | AK111: 0 | AL111: 0 | AM111: 0 | AN111: 0 | AO111: 0 | AP111: 0 | AQ111: 0 | AR111: 0 | AS111: 0 | AT111: 0 | AU111: 0 | AV111: 0 | AW111: 0 | AX111: 0 | AY111: 0 | AZ111: 0 | BA111: 0 | BB111: 0 | BC111: 0 | BD111: 0 | BE111: 0 | BF111: 0 | BG111: 0 | BH111: 0 | BI111: 0 | BJ111: 0 | BK111: 0 | BL111: 0 | BM111: 0 | BN111: 0 | BO111: 0 | BP111: 0 | BQ111: 0 | BR111: 0 | BS111: 0 | BT111: 0 | BU111: 0 | BV111: 0 | BW111: 0 | BX111: 0 | BY111: 0 | BZ111: 0 | CA111: 0 | CB111: 0 | CC111: 0 | CD111: 0 | CE111: 0 | CF111: 0 | CG111: 0 | CH111: 0 | CI111: 0 | CJ111: 0 | CK111: 0 | CL111: 0 | CM111: 0 | CN111: 0 | CO111: 0 | CP111: 0 | CQ111: 0 | CR111: 0 | CS111: 0 | CT111: 0 | CU111: 0 | CV111: 0 | CW111: 0 | CX111: 0 | CY111: 0 | CZ111: 0 | DA111: 0 | DB111: 0 | DC111: 0 | DD111: 0 | DE111: 0 | DF111: 0 | DG111: 0 | DH111: 0
